Workbook

Sheet Control Panel
A1: GO TO
A2: Utah | C2: FILING INFORMATION | J2: Model Checks
A3: 1.1 | J3: (Must Be 0)
A4: 1.2 | E4: UTAH | J4: ='Model Checks'!D7 -> 0.4442672431
A5: 1.3 pg 1 | D5: Current Case No. | E5: 16-057-09 | J5: (If this is not 0, or very close, go to
A6: 1.3 pg 2 | D6: Filing Date | E6: 2016-09-29 | J6: the "Model Checks"
D7: Test Year Ending | E7: 2017-10-31 | J7: Tab and find the
A8: 1.4 pg 1 | D8: Proposed Effective Date | E8: 2016-11-01 | J8: problem.)
A9: 1.4 pg 2 | D9: Prior Case No. | E9: 16-057-05
A10: 1.4 pg 3 | J10: Go To
A11: 1.5 | C11: Total Increase (Decrease) | E11: ='Utah Summary-by class'!Q24 -> 7279051.505 | G11: =E11-F11 -> 7279051.505 | J11: Model Checks'
A12: 1.6 pg 1
A13: 1.6 pg 2
A14: 1.6 pg 3 | C14: Typical Customer's Bill | J14: Old Ut Data color
A15: 1.7 pg 1
A16: 1.7 pg 2 | D16: Previous | E16: ='Ut 1.7'!F30 -> 679.7 | J16: New Data color
A17: 1.8 | D17: Proposed | E17: ='Ut 1.7'!H30 -> 685.1
A18: 1.9 | D18: Difference | E18: ='Ut 1.7'!J30 -> 5.4 | G18: =E18-F18 -> 5.4
A19: Monthly Inputs | D19: % Difference | E19: ='Ut 1.7'!J32 -> 0.79 | G19: =E19-F19 -> 0.79
A20: Other Inputs
A21: Expenses
A22: Rate Base
C29: Exhibit Headings
C31: UTAH
E32: Questar Gas Company
E33: ="Docket No. "&E5 -> Docket No. 16-057-09
C35: Test Year (enter as text)
D36: from | E36: Nov-16
D37: to | E37: Oct-17

Sheet Monthly Inputs
A1: MONTHLY INPUTS
G2: TEST YEAR COLUMNS | S2: 12-Month
E3: Sep16 | F3: Oct16 | G3: Nov16 | H3: Dec16 | I3: Jan17 | J3: Feb17 | K3: Mar17 | L3: Apr17 | M3: May17 | N3: Jun17 | O3: Jul17 | P3: Aug17 | Q3: Sep17 | R3: Oct17 | S3: =R3 -> Oct17
E4: 9 | F4: 10 | G4: 11 | H4: 12 | I4: 1 | J4: 2 | K4: 3 | L4: 4 | M4: 5 | N4: 6 | O4: 7 | P4: 8 | Q4: 9 | R4: 10
A5: QGC Company Produced Gas In MDth | I5: Updated: | J5: 2016-08-23
A6: WEXPRO I
B7: Company Production In Dth | E7: 4736953 | F7: 5013259 | G7: 5066770.574 | H7: 5464011.055 | I7: 5381194.176 | J7: 4767717.046 | K7: 5183003.513 | L7: 4931795.11 | M7: 5016414.383 | N7: 4782810.905 | O7: 4869664.706 | P7: 4803890.336 | Q7: 4624036.987 | R7: 5022685.743 | S7: =SUM(G7:R7) -> 59913994.53
B8: Birch Cr Gathering | E8: =E7/$S$7*$S$8 -> 0 | F8: 0 | G8: =G7/$S$7*$S$8 -> 0 | H8: =H7/$S$7*$S$8 -> 0 | I8: =I7/$S$7*$S$8 -> 0 | J8: 0 | K8: 0 | L8: 0 | M8: 0 | N8: 0 | O8: 0 | P8: 0 | Q8: 0 | R8: =R7/$S$7*$S$8 -> 0 | S8: ='Other Inputs'!$D$154 -> 0
B9: Gathering | E9: =E7/$S$7*$S$9 -> 3039596.074 | F9: 3216895.412 | G9: =G7/$S$7*$S$9 -> 3251232.584 | H9: =H7/$S$7*$S$9 -> 3506132.856 | I9: 3452991.129 | J9: 3059336.669 | K9: 3325816.644 | L9: 3164621.868 | M9: 3218920.15 | N9: 3069022.058 | O9: 3124754.187 | P9: 3082548.255 | Q9: 2967140.411 | R9: =R7/$S$7*$S$9 -> 3222944.341 | S9: =+'Ex 1.1 Data'!E1 -> 38445461.15
A12: WEXPRO II
B13: Company Production In Dth | E13: 710330 | F13: 722723 | G13: 824839 | H13: 935335 | I13: 905674 | J13: 794043 | K13: 857113 | L13: 811027 | M13: 821111 | N13: 779757 | O13: 791642 | P13: 808284 | Q13: 839730 | R13: 847506 | S13: =SUM(G13:R13) -> 10016061
B14: Samson Gathering | E14: =E13/$S$13*$S$14 -> 710330 | F14: 722723 | G14: =G13/$S$13*$S$14 -> 824839 | H14: =H13/$S$13*$S$14 -> 935335 | I14: 905674 | J14: 794043 | K14: 857113 | L14: 811027 | M14: 821111 | N14: 779757 | O14: 791642 | P14: 808284 | Q14: 839730 | R14: =R13/$S$13*$S$14 -> 847506 | S14: =+'Ex 1.1 Data'!L1 -> 10016061
D21: 1000
B23: Injections in Dth
C24: Chalk Creek | E24: 0 | F24: 0 | G24: 135791.0156 | H24: 106922.0657 | I24: 63484.54285 | J24: 0 | K24: 0 | L24: 0 | M24: 0 | N24: 0 | O24: 0 | P24: 0 | Q24: 0 | R24: 0 | S24: =SUM(G24:R24) -> 306197.6242
C25: Clay Basin | E25: =2181994+13243 -> 2195237 | F25: 1889585 | G25: 0 | H25: 0 | I25: 0 | J25: 0 | K25: 516446.7621 | L25: 1400675.091 | M25: 2750785.522 | N25: 2662050.415 | O25: 2510794.825 | P25: 2579046.449 | Q25: 2205522.642 | R25: 279207.9163 | S25: =SUM(G25:R25) -> 14904529.62
C26: Coalville | E26: 0 | F26: 0 | G26: 121531.2958 | H26: 125582.3364 | I26: 37136.27625 | J26: 0 | K26: 0 | L26: 0 | M26: 0 | N26: 0 | O26: 0 | P26: 0 | Q26: 0 | R26: 62791.16821 | S26: =SUM(G26:R26) -> 347041.0767
C27: Leroy | E27: 0 | F27: 0 | G27: 170904.7089 | H27: 0 | I27: 0 | J27: 0 | K27: 0 | L27: 0 | M27: 0 | N27: 0 | O27: 0 | P27: 0 | Q27: 0 | R27: 324607.3303 | S27: 495512.0392
C28: Total Injections | E28: =SUM(E24:E27) -> 2195237 | F28: 1889585 | G28: =SUM(G24:G27) -> 428227.0203 | H28: 232504.4022 | I28: 100620.8191 | J28: 0 | K28: 516446.7621 | L28: 1400675.091 | M28: 2750785.522 | N28: 2662050.415 | O28: 2510794.825 | P28: 2579046.449 | Q28: 2205522.642 | R28: 666606.4148 | S28: 16053280.36
B30: Withdrawls In Dth
C31: Chalk Creek | E31: 0 | F31: 0 | G31: 0 | H31: 0 | I31: 0 | J31: 44875.19836 | K31: 257250 | L31: 0 | M31: 0 | N31: 0 | O31: 0 | P31: 0 | Q31: 0 | R31: 0 | S31: =SUM(G31:R31) -> 302125.1984
C32: Clay Basin | E32: 0 | F32: 0 | G32: 0 | H32: 6148442.993 | I32: 4617807.861 | J32: 2652749.084 | K32: 0 | L32: 59110.69489 | M32: 0 | N32: 0 | O32: 0 | P32: 0 | Q32: 0 | R32: 0 | S32: =SUM(G32:R32) -> 13478110.63
C33: Coalville | E33: 0 | F33: 0 | G33: 0 | H33: 0 | I33: 0 | J33: 0 | K33: 317796.3562 | L33: 0 | M33: 0 | N33: 0 | O33: 0 | P33: 0 | Q33: 0 | R33: 0 | S33: 317796.3562
C34: Leroy | E34: 0 | F34: 0 | G34: 0 | H34: 0 | I34: 52153.6026 | J34: 0 | K34: 391329.4067 | L34: 0 | M34: 0 | N34: 0 | O34: 0 | P34: 0 | Q34: 0 | R34: 0 | S34: 443483.0093
C35: Total Withdrawls | E35: =SUM(E31:E34) -> 0 | F35: 0 | G35: =SUM(G31:G34) -> 0 | H35: 6148442.993 | I35: 4669961.464 | J35: 2697624.283 | K35: 966375.7629 | L35: 59110.69489 | M35: 0 | N35: 0 | O35: 0 | P35: 0 | Q35: 0 | R35: 0 | S35: 14541515.2
B37: Lost & Unaccounted for on QPC
A40: Injection and Withdrawl Used, Lost and Unaccounted For
D41: Gas Use
D42: %
B43: Injections in Dth
C44: Chalk Creek | D44: ='Other Inputs'!E133 -> 0.0133 | E44: =E24*-$D44 -> 0 | F44: 0 | G44: =G24*-$D44 -> -1806.020508 | H44: -1422.063474 | I44: -844.3444199 | J44: 0 | K44: 0 | L44: 0 | M44: 0 | N44: 0 | O44: 0 | P44: 0 | Q44: 0 | R44: 0 | S44: =SUM(G44:R44) -> -4072.428402
C45: Clay Basin | D45: ='Other Inputs'!E139 -> 0.0308 | E45: =E25*-$D45 -> -67613.2996 | F45: -58199.218 | G45: =G25*-$D45 -> 0 | H45: 0 | I45: 0 | J45: 0 | K45: -15906.56027 | L45: -43140.7928 | M45: -84724.19409 | N45: -81991.15278 | O45: -77332.48062 | P45: -79434.63062 | Q45: -67930.09738 | R45: -8599.603821 | S45: =SUM(G45:R45) -> -459059.5124
C46: Coalville | D46: ='Other Inputs'!E142 -> 0.0126 | E46: =E26*-$D46 -> 0 | F46: 0 | G46: =G26*-$D46 -> -1531.294327 | H46: -1582.337439 | I46: -467.9170807 | J46: 0 | K46: 0 | L46: 0 | M46: 0 | N46: 0 | O46: 0 | P46: 0 | Q46: 0 | R46: -791.1687195 | S46: =SUM(G46:R46) -> -4372.717566
C47: Leroy | D47: ='Other Inputs'!E136 -> 0.045 | E47: =E27*-$D47 -> 0 | F47: 0 | G47: =G27*-$D47 -> -7690.711899 | H47: 0 | I47: 0 | J47: 0 | K47: 0 | L47: 0 | M47: 0 | N47: 0 | O47: 0 | P47: 0 | Q47: 0 | R47: -14607.32986 | S47: =SUM(G47:R47) -> -22298.04176
C48: Total Injections | E48: =SUM(E44:E47) -> -67613.2996 | F48: -58199.218 | G48: =SUM(G44:G47) -> -11028.02673 | H48: -3004.400913 | I48: -1312.261501 | J48: 0 | K48: -15906.56027 | L48: -43140.7928 | M48: -84724.19409 | N48: -81991.15278 | O48: -77332.48062 | P48: -79434.63062 | Q48: -67930.09738 | R48: -23998.1024 | S48: -489802.7001
B50: Withdrawls In Dth
C51: Chalk Creek | D51: ='Other Inputs'!E134 -> 0.0158 | E51: =E31*-$D51 -> 0 | F51: 0 | G51: =G31*-$D51 -> 0 | H51: 0 | I51: 0 | J51: -709.0281342 | K51: -4064.55 | L51: 0 | M51: 0 | N51: 0 | O51: 0 | P51: 0 | Q51: 0 | R51: 0 | S51: =SUM(G51:R51) -> -4773.578134
C52: Clay Basin | D52: ='Other Inputs'!E140 -> 0.0187 | E52: =E32*-$D52 -> 0 | F52: 0 | G52: =G32*-$D52 -> 0 | H52: -114975.884 | I52: -86353.00701 | J52: -49606.40788 | K52: 0 | L52: -1105.369994 | M52: 0 | N52: 0 | O52: 0 | P52: 0 | Q52: 0 | R52: 0 | S52: =SUM(G52:R52) -> -252040.6689
C53: Coalville | D53: ='Other Inputs'!E143 -> 0.018 | E53: =E33*-$D53 -> 0 | F53: 0 | G53: =G33*-$D53 -> 0 | H53: 0 | I53: 0 | J53: 0 | K53: -5720.334412 | L53: 0 | M53: 0 | N53: 0 | O53: 0 | P53: 0 | Q53: 0 | R53: 0 | S53: =SUM(G53:R53) -> -5720.334412
C54: Leroy | D54: ='Other Inputs'!E137 -> 0.018 | E54: =E34*-$D54 -> 0 | F54: 0 | G54: =G34*-$D54 -> 0 | H54: 0 | I54: -938.7648468 | J54: 0 | K54: -7043.929321 | L54: 0 | M54: 0 | N54: 0 | O54: 0 | P54: 0 | Q54: 0 | R54: 0 | S54: =SUM(G54:R54) -> -7982.694168
C55: Total Withdrawls | E55: =SUM(E51:E54) -> 0 | F55: 0 | G55: =SUM(G51:G54) -> 0 | H55: -114975.884 | I55: -87291.77185 | J55: -50315.43601 | K55: -16828.81373 | L55: -1105.369994 | M55: 0 | N55: 0 | O55: 0 | P55: 0 | Q55: 0 | R55: 0 | S55: -270517.2756
B57: QPC Transportation Loss
C58: Chalk Creek | D58: ='Other Inputs'!$E$280 -> 0.0137 | E58: =E31*-$D58 -> 0 | F58: 0 | G58: =G31*-$D58 -> 0 | H58: 0 | I58: 0 | J58: -614.7902176 | K58: -3524.325 | L58: 0 | M58: 0 | N58: 0 | O58: 0 | P58: 0 | Q58: 0 | R58: 0 | S58: =SUM(G58:R58) -> -4139.115218
C59: Clay Basin | D59: ='Other Inputs'!$E$280 -> 0.0137 | E59: =E32*-$D59 -> 0 | F59: 0 | G59: =G32*-$D59 -> 0 | H59: -84233.66901 | I59: -63263.9677 | J59: -36342.66246 | K59: 0 | L59: -809.8165199 | M59: 0 | N59: 0 | O59: 0 | P59: 0 | Q59: 0 | R59: 0 | S59: =SUM(G59:R59) -> -184650.1157
C60: Coalville | D60: ='Other Inputs'!$E$280 -> 0.0137 | E60: =E33*-$D60 -> 0 | F60: 0 | G60: =G33*-$D60 -> 0 | H60: 0 | I60: 0 | J60: 0 | K60: -4353.81008 | L60: 0 | M60: 0 | N60: 0 | O60: 0 | P60: 0 | Q60: 0 | R60: 0 | S60: =SUM(G60:R60) -> -4353.81008
C61: Leroy | D61: ='Other Inputs'!$E$280 -> 0.0137 | E61: =E34*-$D61 -> 0 | F61: 0 | G61: =G34*-$D61 -> 0 | H61: 0 | I61: -714.5043556 | J61: 0 | K61: -5361.212872 | L61: 0 | M61: 0 | N61: 0 | O61: 0 | P61: 0 | Q61: 0 | R61: 0 | S61: =SUM(G61:R61) -> -6075.717228
C62: Total Withdrawls | E62: =SUM(E58:E61) -> 0 | F62: 0 | G62: =SUM(G58:G61) -> 0 | H62: -84233.66901 | I62: -63978.47206 | J62: -36957.45267 | K62: -13239.34795 | L62: -809.8165199 | M62: 0 | N62: 0 | O62: 0 | P62: 0 | Q62: 0 | R62: 0 | S62: -199218.7582
B65: Total Injections & Withdrawls | E65: =E48+E55 -> -67613.2996 | F65: -58199.218 | G65: =G48+G55 -> -11028.02673 | H65: -117980.2849 | I65: -88604.03335 | J65: -50315.43601 | K65: -32735.37401 | L65: -44246.16279 | M65: -84724.19409 | N65: -81991.15278 | O65: -77332.48062 | P65: -79434.63062 | Q65: -67930.09738 | R65: -23998.1024 | S65: -760319.9757
R67: Fuel Factor | S67: =-S65/(S35+S28) -> 0.02485128473
S69: 12-Month
E70: =E3 -> Sep16 | F70: Oct16 | G70: Nov16 | H70: Dec16 | I70: Jan17 | J70: Feb17 | K70: Mar17 | L70: Apr17 | M70: May17 | N70: Jun17 | O70: Jul17 | P70: Aug17 | Q70: Sep17 | R70: Oct17 | S70: Total
I72: Updated: | J72: 2016-09-07 | K72: EXH 1.2
A73: Natural Gas Spot Price Forecast - Average of GI, Cera & Pira | E73: (Forecast --->) | G73: (Forecast --->)
B74: Kern River Opal, Wyoming | E74: 2.66 | F74: 2.43 | G74: 2.82 | H74: 3.2 | I74: 3.41 | J74: 3.35 | K74: 2.99 | L74: 2.79 | M74: 2.73 | N74: 2.81 | O74: 2.93 | P74: 2.94 | Q74: 2.87 | R74: 2.75
B77: Spot Purchases from IRP | G77: 5131.593019 | H77: 1113.028963 | I77: 2555.917005 | J77: 3459.110571 | K77: 5677.916134 | L77: 4491.464105 | M77: 2686.469251 | N77: 776.800066 | O77: 0 | P77: 0 | Q77: 0 | R77: 2329.309884 | S77: =SUM(G77:R77) -> 28221.609
C78: In DTH | G78: =G77*1000 -> 5131593.019 | H78: =H77*1000 -> 1113028.963 | I78: 2555917.005 | J78: 3459110.571 | K78: 5677916.134 | L78: =L77*1000 -> 4491464.105 | M78: =M77*1000 -> 2686469.251 | N78: 776800.066 | O78: 0 | P78: 0 | Q78: 0 | R78: 2329309.884 | S78: =SUM(G78:R78) -> 28221609
C79: In $ | G79: =G78*G74 -> 14471092.31 | H79: 3561692.68 | I79: 8715676.987 | J79: 11588020.41 | K79: =K78*K74 -> 16976969.24 | L79: 12531184.85 | M79: 7334061.056 | N79: 2182808.185 | O79: 0 | P79: 0 | Q79: 0 | R79: 6405602.182 | S79: =SUM(G79:R79) -> 83767107.91
A82: CONTRACT PURCHASES | I82: Updated: | J82: 2016-08-30
B84: Peaking Purchases (DTH) | G84: 1000000 | H84: 4000000 | I84: 5000000 | J84: 3000000 | K84: 0 | L84: 0 | M84: 0 | N84: 0 | O84: 0 | P84: 0 | Q84: 0 | R84: 0 | S84: =SUM(G84:R84) -> 13000000
B85: Peaking Purchases ($) | G85: 2968878.296 | H85: 13413022.92 | I85: 17878024.93 | J85: 10542116.52 | K85: 0 | L85: 0 | M85: 0 | N85: 0 | O85: 0 | P85: 0 | Q85: 0 | R85: 0 | S85: =SUM(G85:R85) -> 44802042.66
B87: Term Purchases (DTH) | G87: 900000 | H87: 2015000 | I87: 2015000 | J87: 1820000 | K87: 930000 | L87: 0 | M87: 0 | N87: 0 | O87: 0 | P87: 0 | Q87: 0 | R87: 0 | S87: =SUM(G87:R87) -> 7680000
B88: Term Purchases ($) | G88: 2740410 | H88: 6637782 | I88: 7060932 | J88: 6268416 | K88: 2989857 | L88: 0 | M88: 0 | N88: 0 | O88: 0 | P88: 0 | Q88: 0 | R88: 0 | S88: =SUM(G88:R88) -> 25697397
B89: Stabilization Costs (Winter Months - Oct to Mar) | G89: 0 | H89: 0 | I89: 0 | J89: 0 | K89: 0 | L89: 0 | M89: 0 | N89: 0 | O89: 0 | P89: 0 | Q89: 0 | R89: 0 | S89: =SUM(G89:R89) -> 0
B92: Total Purchases (DTH) | E92: =E84+E87 -> 0 | F92: =F84+F87 -> 0 | G92: =G84+G87 -> 1900000 | H92: =H84+H87 -> 6015000 | I92: 7015000 | J92: 4820000 | K92: 930000 | L92: =L84+L87 -> 0 | M92: 0 | N92: 0 | O92: 0 | P92: 0 | Q92: 0 | R92: 0 | S92: =SUM(G92:R92) -> 20680000
B93: Total Purchases ($) | E93: =E85+E88 -> 0 | F93: =F85+F88 -> 0 | G93: 5709288.296 | H93: 20050804.92 | I93: 24938956.93 | J93: 16810532.52 | K93: 2989857 | L93: =L85+L88 -> 0 | M93: 0 | N93: 0 | O93: 0 | P93: 0 | Q93: 0 | R93: 0 | S93: =SUM(G93:R93) -> 70499439.66
A96: Typical Customer Monthly Usage in Dth
B97: Utah | G97: =VLOOKUP(MONTH(G3),$F$110:$G$121,2,FALSE) -> 6.3 | H97: =VLOOKUP(MONTH(H3),$F$110:$G$121,2,FALSE) -> 11.5 | I97: =VLOOKUP(MONTH(I3),$F$110:$G$121,2,FALSE) -> 14.9 | J97: 12.5 | K97: 10.1 | L97: 8.3 | M97: 4.4 | N97: 3.1 | O97: 2 | P97: 1.8 | Q97: 2 | R97: 3.1 | S97: =SUM(G97:R97) -> 80
A99: INPUTS FROM WEXPRO | G99: =G3 -> Nov16 | H99: =H3 -> Dec16 | I99: Jan17 | J99: Feb17 | K99: Mar17 | L99: Apr17 | M99: May17 | N99: Jun17 | O99: Jul17 | P99: =P3 -> Aug17 | Q99: Sep17 | R99: Oct17 | S99: 12-Month
S100: Total
A101: Wexpro I Operator Fee (Wexpro forecast) | G101: 22669587 | H101: 23011164 | I101: 22616107 | J101: 21564243 | K101: 21918397 | L101: 22174143 | M101: 21270750 | N101: 20952071 | O101: 20960181 | P101: 21056389 | Q101: 21058485 | R101: 21913150 | S101: =SUM(G101:R101) -> 261164667
A103: Wexpro II Operator Fee (Wexpro forecast) | G103: 3199363 | H103: 3375466 | I103: 3419216 | J103: 3203709 | K103: 3279270 | L103: 3162872 | M103: 3168278 | N103: 3094171 | O103: 3108812 | P103: 3185490 | Q103: 3206713 | R103: 3264653 | S103: =SUM(G103:R103) -> 38668013
F109: Typical UPC | G109: UT
F110: 1 | G110: 14.9
F111: 2 | G111: 12.5
F112: 3 | G112: 10.1
F113: 4 | G113: 8.3
F114: 5 | G114: 4.4
F115: 6 | G115: 3.1
F116: 7 | G116: 2
F117: 8 | G117: 1.8
F118: 9 | G118: 2
F119: 10 | G119: 3.1
F120: 11 | G120: 6.3
F121: 12 | G121: 11.5
F122: Total | G122: =SUM(G110:G121) -> 80

Sheet Graph (Ex 1.10) Inputs
C1: ACTUAL | D1: CERA | E1: PIRA | F1: AVG
B2: Oct16 | D2: 2.17 | E2: 2.697 | F2: 2.43
B3: Nov16 | D3: 2.56 | E3: 3.07 | F3: 2.82
B4: Dec16 | D4: 2.93 | E4: 3.47 | F4: 3.2
B5: Jan17 | D5: 3.18 | E5: 3.63 | F5: 3.41
B6: Feb17 | D6: 3.19 | E6: 3.51 | F6: 3.35
B7: Mar17 | D7: 2.91 | E7: 3.07 | F7: 2.99
B8: Apr17 | D8: 2.85 | E8: 2.73 | F8: 2.79
B9: May17 | D9: 2.81 | E9: 2.65 | F9: 2.73
B10: Jun17 | D10: 2.96 | E10: 2.65 | F10: 2.81
B11: Jul17 | D11: 3.13 | E11: 2.73 | F11: 2.93
B12: Aug17 | D12: 3.2 | E12: 2.67 | F12: 2.94
B13: Sept17 | D13: 3.17 | E13: 2.56 | F13: 2.87
B14: Oct17 | D14: 2.98 | E14: 2.51 | F14: 2.75

Sheet Other Inputs
H1: Used In
A2: INPUT SECTION | H2: Ut | I2: Wy | J2: Source
A3: INPUTS FROM QUESTAR PIPELINE TARIFF AND CONTRACTS
B5: Storage Commodity Rates | E5: Rate | F5: Effective
B6: Peaking Injections | E6: 0.03872 | F6: 2016-01-01 | H6: 1.3.2 | I6: 1.3p2 | J6: QPC Tariff Statement of Rates
B7: Peaking Withdrawals | E7: 0.03872 | F7: =$F$6 -> 2016-01-01 | H7: 1.3.2 | I7: 1.3p2 | J7: =J6 -> QPC Tariff Statement of Rates
B8: Clay Basin Injections | E8: 0.01049 | F8: =$F$6 -> 2016-01-01 | H8: 1.3.2 | I8: 1.3p2 | J8: QPC Tariff Statement of Rates
B9: Clay Basin Withdrawals | E9: 0.01781 | F9: =$F$6 -> 2016-01-01 | H9: 1.3.2 | I9: 1.3p2 | J9: =J8 -> QPC Tariff Statement of Rates
B11: Storage Field Reservation Charges
B12: Peaking Storage Fields Demand (Leroy, Chalk Creek, Coalville) | E12: 2.87375 | F12: =$F$6 -> 2016-01-01 | H12: 1.3.2 | I12: 1.3p2 | J12: =$J$6 -> QPC Tariff Statement of Rates
B13: Clay Basin Demand | E13: 2.85338 | F13: =$F$6 -> 2016-01-01 | H13: 1.3.2 | I13: 1.3p2 | J13: =$J$6 -> QPC Tariff Statement of Rates
B14: Clay Basin Capacity | E14: 0.02378 | F14: =$F$6 -> 2016-01-01 | H14: 1.3.2 | I14: 1.3p2 | J14: =$J$6 -> QPC Tariff Statement of Rates
B18: FIRM TRANSPORTATION | D18: Contract Dth | E18: Months | F18: Maximum Rate | G18: Effective
B19: T-1 Transportation - Yearly (MT241) | D19: =798902 -> 798902 | E19: 12 | F19: 5.28804 | G19: 2016-01-01 | H19: 1.3p1 | J19: =$J$6 -> QPC Tariff Statement of Rates
B20: T-1 Transportation - Yearly (Mainline 104) | D20: 30000 | E20: 12 | F20: 5.28804 | G20: =$G$19 -> 2016-01-01 | H20: Jan | J20: =$J$6 -> QPC Tariff Statement of Rates
B21: T-1 Transportation - Yearly (Tieline 112) | D21: 12000 | E21: 12 | F21: 5.28804 | G21: =$G$19 -> 2016-01-01 | H21: 1.3p1 | J21: =$J$6 -> QPC Tariff Statement of Rates
B22: T-1 Transportation - Nov-Mar | D22: 75000 | E22: 5 | F22: 6.80887 | G22: =$G$19 -> 2016-01-01
B23: Total Yearly T-1 Transportation | D23: =SUM(D19:D22) -> 915902 | E23: 12
B25: T-1 Transportation - Seasonal(BASE TARIFF RATE LOW LOAD) Mainline 104 | D25: 0 | E25: 0 | F25: 0
B27: No-Notice Transportation (BASE TARIFF RATE) | D27: 203542 | E27: 12 | F27: 0.86753 | G27: =$G$19 -> 2016-01-01 | H27: 1.3p1 | J27: =$J$6 -> QPC Tariff Statement of Rates
B28: GRI - Yearly (SURCHARGE LOW LOAD CUSTOMERS MAXIMUM) | D28: =D23 -> 915902 | E28: 12 | F28: 0 | G28: =$G$19 -> 2016-01-01 | H28: 1.3p1 | J28: =$J$6 -> QPC Tariff Statement of Rates
B29: GRI - Seasonal (No GRI currently) | D29: 30000 | E29: 3 | F29: =+F28 -> 0 | G29: =$G$19 -> 2016-01-01 | H29: 1.3p1 | J29: =$J$6 -> QPC Tariff Statement of Rates
B30: GRI | D30: 52000 | E30: 12 | F30: =+F28 -> 0 | G30: =$G$19 -> 2016-01-01 | H30: 1.3p1 | J30: =$J$6 -> QPC Tariff Statement of Rates
B32: TRANSPORTATION COMMODITY
B33: PIPELINE USAGE CHARGE TO VOLUMETRIC RELEASES
B34: QPC Commodity
B35: QPC Firm Transportation Usage Charge (Max & Min) (BASE TARIFF RATE) | F35: 0.00267 | G35: 2016-01-01 | H35: 1.3p1 | J35: =$J$6 -> QPC Tariff Statement of Rates
B36: QPC (ANNUAL CHARGE ADJUSTMENT) | F36: 0.0013 | G36: 2016-10-01 | H36: 1.3p1 | J36: FERC Website
B37: QPC GRI SURCHARGE (not used currently) | F37: 0 | G37: =G35 -> 2016-01-01 | H37: 1.3p1 | J37: =$J$6 -> QPC Tariff Statement of Rates
E38: Current | F38: Proposed
B39: INTER TRANS (T-2 PIPELINE BASE TARIFF) MAX | D39: Base Tariff | E39: 0.17652 | F39: 0.17652 | G39: 2016-01-01 | J39: =$J$6 -> QPC Tariff Statement of Rates
C40: (not used currently) | D40: GRI Surcharge | E40: 0 | F40: 0 | G40: =G39 -> 2016-01-01 | J40: =$J$6 -> QPC Tariff Statement of Rates
D41: Annual Charge | E41: 0.0014 | F41: 0.0013 | G41: =+G36 -> 2016-10-01 | J41: ferc.gov
D42: Total | E42: =SUM(E39:E41) -> 0.17792 | F42: =SUM(F39:F41) -> 0.17782
B45: Utah | E45: =ROUND((E42)/(1-$E277),5) -> 0.17887 | F45: =ROUND((F42)/(1-E277),5) -> 0.17877 | H45: 1.6.3 | J45: Before Adjustment for Bad Debt (Transport grossed up for QGC fuel)
B46: Wyoming | F46: =ROUND((F42)/(1-E278),5) -> 0.18053
A48: INPUTS FROM KERN RIVER PIPELINE TARIFF AND CONTRACTS
B49: Kern River 2003 Expansion | D49: Contract Dth | E49: Months | F49: Maximum Rate | G49: Effective
F50: 0.4704 | G50: 2016-04-01 | J50: KR Tariff 5-A
B51: Jan - Dec | D51: 3000 | E51: 12 | F51: =F50*E54/E51 -> 14.308 | H51: 1.3.1
B52: November - March | D52: 50000 | E52: 5 | F52: =F51 -> 14.308 | H52: Jan
B53: Jan - Dec | D53: 1885 | E53: 12 | F53: =F54*E54/E53 -> 17.693375
B54: Days in Tariff Rate | E54: 365 | F54: 0.5817 | G54: =G50 -> 2016-04-01
B56: Kern River #1534 | D56: 27625 | E56: 6 | F56: =F57*E57/E56 -> 5.536666667
B57: October - March | E57: 151 | F57: 0.22 | G57: 2016-10-01
B59: Kern River 2003 Expansion | E59: Days in TEST PERIOD
B60: Jan - Dec | C60: 0.927677939 | D60: =D51+D53 -> 4885 | E60: 365 | F60: 0.0044 | G60: =G54 -> 2016-04-01 | H60: 1.3p1 | J60: KR Tariff 5-A
B61: November - March | C61: =C60 -> 0.927677939 | D61: =D52 -> 50000 | E61: 151 | F61: 0.0044 | G61: =G54 -> 2016-04-01 | H61: 1.3p1 | J61: KR Tariff 5-A
B63: Kern River #1534 | E63: Days in TEST PERIOD
B64: October - March | C64: =+C60 -> 0.927677939 | D64: =D56 -> 27625 | E64: 151 | F64: 0.0031 | G64: 2016-10-01
A66: INPUTS FROM QUESTAR GAS TARIFF
B68: I-Sales Commodity Rates | E68: I-2 -eliminated | F68: IS
B69: Effective Date | E69: 11/1/2005 | F69: 7/31/2009
B70: Commodity Rate | E70: 0 | F70: =ROUND((7353080/1941997),5) -> 3.78635
B71: CO2 Refund | E71: 0 | F71: 0
B72: Net Commodity Rate | E72: =SUM(E70:E71) -> 0 | F72: =SUM(F70:F71) -> 3.78635
A74: Current SNG Rates
B75: UTAH | E75: Current SNG Base | F75: Current SNG Amort. | G75: Current SNG Total | J75: Effective
B76: GS | D76: Winter | E76: 1.14407 | F76: 0.04308 | G76: =E76+F76 -> 1.18715 | J76: 2016-06-01
D77: Summer | E77: 0.53715 | F77: 0.02023 | G77: =E77+F77 -> 0.55738 | J77: =J76 -> 2016-06-01
B79: FS | D79: Winter | E79: 1.11427 | F79: 0.04196 | G79: =E79+F79 -> 1.15623 | J79: 2016-06-01
D80: Summer | E80: 0.53715 | F80: 0.02023 | G80: =E80+F80 -> 0.55738 | J80: =J79 -> 2016-06-01
B82: NGV | E82: 0.82558 | F82: 0.03109 | G82: =E82+F82 -> 0.85667 | J82: 2016-06-01
B84: (This includes bad debt adjustment) IS | E84: 0.17925 | F84: 0 | G84: =E84+F84 -> 0.17925 | J84: 2016-06-01
A87: Current Rates
B88: Utah GS | J88: Effective
B89: Block 1 | D89: Summer | G89: 6.58271 | J89: 2016-06-01
B90: Block 2 | D90: Summer | G90: 5.50133 | J90: =$J$89 -> 2016-06-01
B91: Block 1 | D91: Winter | G91: 7.88596 | J91: =$J$89 -> 2016-06-01
B92: Block 2 | D92: Winter | G92: 6.80457 | J92: =$J$89 -> 2016-06-01
B93: #1 BSF | G93: 6.75 | J93: =J89 -> 2016-06-01
A95: INPUTS FROM PREVIOUS PASSTHROUGH CASE
B96: PRIOR PERIOD COMPANY PRODUCTION AVERAGE GAS COST
E97: PROPOSED | F97: PRIOR CASE | G97: Most Recent
B98: VOLUMES DTH | E98: ='Monthly Inputs'!S7+'Monthly Inputs'!S13 -> 69930055.53 | F98: 68124528 | G98: EXH 1.1
B99: AMOUNT | E99: =+D178+D199 -> 334117676.5 | F99: 334050707 | G99: EXH 1.1
B100: AVG COST | E100: =+E99/E98 -> 4.777883757 | F100: =ROUND(+F99/F98,5) -> 4.90353
B102: Utah Cost of Gas by Component
B103: Unit Cost Of Gas (Line 7) | F103: 4.07582 | J103: Exhibit 1.6 pg 1 (Prior case)
B104: 191 Account Amortization (Line 8) | F104: -0.17731 | J104: Exhibit 1.6 pg 1 (Prior case )
B105: Total Unit Cost In Rates (Line 9) | F105: =SUM(F103:F104) -> 3.89851
B107: I-2 Commodity Cost (excluding bad debt) | E107: 0
B109: Wyoming Cost of Gas by Component
B110: Unit Cost Of Gas (Line 9) | F110: 4.84071 | J110: (WY) Exhibit 1.6 pg 1
B111: 191 Account Amortization (Line 10) | F111: -0.2063 | J111: (WY) Exhibit 1.6 pg 1
B112: Total Unit Cost In Rates (Line 11) | F112: =F110+F111 -> 4.63441 | J112: (WY) Exhibit 1.6 pg 1
A117: INPUTS FROM 191 ACCOUNT MONTH END BALANCE ACTUAL OR FORECAST | E117: Utah | F117: Wyoming
E118: 2016 | F118: 2016-08-31
H119: 1.6.2
D120: current yr /mo(text)
B121: August 2016 191 account (Actual/Forecast) | D121: 2016 | E121: -13433410 | F121: 186541 | H121: 1.6.1
B122: Supplier Non-Gas Cost Under (Over) Collected through August 2016 (act/fcst) | D122: August | E122: 11579903 | H122: 1.6.2
B123: Commodity Cost Under (Over) Collected during YEAR (Act/Fcst) | E123: =E121-E122 -> -25013313
A125: INPUTS FROM IRP
B126: #1 Peak Day Demand Forecast | E126: 2016 | F126: Source
B127: Utah | E127: =E129-E128 -> 1280082 | F127: 2016 IRP
B128: Wyoming | E128: 36506
B129: System Total Peak Day Demand Forecast | E129: 1316588 | H129: 1.5 | I129: 1.5
A132: STORAGE FIELD INPUTS | E132: Storage
B133: Chalk Creek Injections Factor | E133: 0.0133
B134: Chalk Creek Withdrawls Factor | E134: 0.0158
B136: Leroy Injections Factor | E136: 0.045
B137: Leroy Withdrawls Factor | E137: 0.018
B139: Clay Basin Injections Factor | E139: 0.0308
B140: Clay Basin Withdrawls Factor | E140: 0.0187
B142: Coalville Injections Factor | E142: 0.0126
B143: Coalville Withdrawls Factor | E143: 0.018
B145: QPC Storage Field Reservation Charges | E145: Monthly Dth
B146: Peaking Storage Fields Maximum Daily Withdrawal Qty (Leroy, Chalk Creek, Coalville) | E146: 184625
B147: Clay Basin Minimum Required Deliverability | E147: 111827
B148: Clay Basin Capacity | E148: 13419000
A150: OTHER INPUTS | D150: Revenue
B151: OTHER GATHERING
B156: Total Forecasted Birch Creek | D156: 328790.88 | E156: 2016-07-31
B158: Other gathering | D158: 1869001.68 | E158: 2016-07-31 | H158: JanB
B159: Total Gathering | D159: =SUM(D156:D158) -> 2197792.56 | H159: 1.3.1 | I159: 1.3P1
B161: Other Transportation | D161: 3854667.5 | E161: 2016-07-31 | H161: 1.3.1
B163: Forecast Future Contracts Premium over spot price | E163: 0.02 | F163: Verified with Tina 9/6/16
D165: Commodity | E165: Demand
D166: Charge | E166: Charge | F166: Effective
B167: Gathering Rates -System wide Gathering agreement #163 (SWGA) | D167: 6303902.265 | E167: 12245844 | F167: 2016-01-01 | I167: 1.3p1
B170: Gathering Rate Wexpro II | D170: 4355383.965 | I170: 1.3p1
A173: OTHER INPUTS | D173: Volume (Dth) | E173: Revenue
A174: WEXPRO I
B175: Questar Gas Production 1/ | D175: Current
B176: Test Year Royalties | D176: ='Ut 1.1'!I1399 -> 29255771.4 | H176: 1.4.1 | I176: 1.4P1
B177: Operator Service Fee | D177: ='Monthly Inputs'!S101 -> 261164667 | H177: 1.4.1 | I177: 1.4P1
B178: Total Questar Gas Production Costs | D178: =SUM(D176:D177) -> 290420438.4
B180: Total Questar Gas Production Dth | D180: ='Ut 1.1'!F1404 -> 59913994.53
F181: Hot | G181: Hot
B182: Other Revenue Credits | D182: 1 | E182: 2 | F182: 2 | G182: 2 | I182: 1
D183: Historical | E183: Forecast | F183: =HLOOKUP(F$182,$D$182:$E$190,$I183) -> Forecast | G183: =HLOOKUP(G$182,$D$182:$E$190,$I183) -> Forecast | I183: 2
D184: 12 Mo Ending | E184: 12 Mo Ending | F184: Utah | G184: Wyoming | I184: 3
B185: 483 Sales for Resale | E185: 2934782 | F185: =HLOOKUP(F$182,$D$182:$E$190,$I185) -> 2934782 | G185: =HLOOKUP(G$182,$D$182:$E$190,$I185) -> 2934782 | I185: 4
B186: 490 Incidental Plant Prod Sales | E186: 3053673 | F186: =HLOOKUP(F$182,$D$182:$E$190,$I186) -> 3053673 | G186: 3053673 | I186: 5
B187: 492 Incidental Gasoline_Oil Sales | E187: 404502 | F187: 404502 | G187: 404502 | I187: 6
B188: 4951 Overriding Royalty Revenue from Celsius | E188: 12461499 | F188: 12461499 | G188: 12461499 | I188: 7
B189: 4952 Oil Revenue Received from Wexpro | E189: 0 | F189: 0 | G189: 0 | I189: 8
B190: 758001 Gas Well Royalities - Other | E190: -66702 | F190: -66702 | G190: -66702 | I190: 9
B193: Total Other Revenue Credits | D193: =SUM(D185:D190) -> 0 | E193: =SUM(E185:E190) -> 18787754 | F193: =SUM(F185:F190) -> 18787754 | G193: =SUM(G185:G190) -> 18787754
A195: WEXPRO II
B196: Questar Gas Production 1/ | D196: Current
B197: Test Year Royalties | D197: ='Ut 1.1'!I1597 -> 5029225.064 | H197: 1.4.1 | I197: 1.4P1
B198: Operator Service Fee | D198: ='Monthly Inputs'!S103 -> 38668013 | H198: 1.4.1 | I198: 1.4P1
B199: Total Questar Gas Production Costs | D199: =SUM(D197:D198) -> 43697238.06
B201: Total Questar Gas Production Dth | D201: ='Ut 1.1'!F1602 -> 10016061
F202: Hot | G202: Hot
B203: Other Revenue Credits | D203: 1 | E203: 2 | F203: 2 | G203: 2 | I203: 1
D204: Historical | E204: Forecast | F204: =HLOOKUP(F$182,$D$182:$E$190,$I204) -> Forecast | G204: =HLOOKUP(G$182,$D$182:$E$190,$I204) -> Forecast | I204: 2
D205: 12 Mo Ending | E205: 12 Mo Ending | F205: Utah | G205: Wyoming | I205: 3
B206: 483 Sales for Resale | E206: 0 | F206: =HLOOKUP(F$203,$D$203:$E$211,$I206) -> 0 | G206: 0 | I206: 4
B207: 490 Incidental Plant Prod Sales | E207: 597886 | F207: 597886 | G207: 597886 | I207: 5
B208: 492 Incidental Gasoline_Oil Sales | E208: 895716 | F208: 895716 | G208: 895716 | I208: 6
B209: 4951 Overriding Royalty Revenue from Celsius | E209: 0 | F209: 0 | G209: 0 | I209: 7
B210: 4952 Oil Revenue Received from Wexpro | E210: -37571 | F210: -37571 | G210: -37571 | I210: 8
B211: 758001 Gas Well Royalities - Other | E211: -150544 | F211: -150544 | G211: -150544 | I211: 9
B214: Total Other Revenue Credits | D214: =SUM(D206:D211) -> 0 | E214: =SUM(E206:E212) -> 1305487 | F214: =SUM(F206:F211) -> 1305487 | G214: =SUM(G206:G211) -> 1305487
E216: Proceeds | F216: Dths | G216: Price
B217: Sales of Wexpro Gas | E217: 0 | F217: 0 | G217: 0
A219: SUMMARY INPUTS FROM REVRUN, RATE BASE, EXPENSES, ETC.
B221: Supplier Non-Gas Costs Recovered at Current Rates 3/ | E221: ='RevRun Fcst'!T$199 -> 107564381.7 | H221: 1.6.2
B222: MT Supplier Non-Gas | E222: ='RevRun Fcst'!T142 -> 1945.2
B223: Net Supplier Non-Gas | E223: =E221-E222 -> 107562436.5
B224: UT Current Int Sales SNG Rate - not including Bad Debt adj. | E224: ='RevRun Fcst'!T102+'RevRun Fcst'!T93 -> 582615 | F224: 0.1788
E226: ='Rate Base'!$U$8 -> 2016-08-31
B227: Account 164-1 - Gas Stored Underground | D227: Dth | E227: Ending Balance | F227: $ per Dth
D228: ='Rate Base'!T295 -> -10339158 | E228: ='Rate Base'!T216 -> 52516754.78 | F228: =+E228/D228 -> -5.079403447 | H228: 1.4.2
A231: UT CET and DSM AMORTIZATION FILING INPUTS
E232: Base DNG | F232: Current DNG
B233: GS Rates (Base rates are before CET, DSM, & EA Amortizations) | D233: Summer Blk 1 | E233: 1.7267 | F233: 2.12682
D234: Summer Blk 2 | E234: 0.7267 | F234: 1.04544
D235: Winter Blk 1 | E235: 2.34949 | F235: 2.8003
D236: Winter Blk 2 | E236: 1.34949 | F236: 1.71891
D238: Energy Assistance | E238: 0.01419 | F238: Current Rate 7/1/2014 GS Rate
E239: 0.01174 | F239: Current Rate 7/1/2014 FS Rate
E240: 0.00657 | F240: Current Rate 7/1/2014 IS Rate
E241: 0.2679 | F241: Current Rate 7/1/2014 NGV Rate
E242: Ending Balance | F242: Date
B243: CET Balance (Account 191.9) | E243: -1886289.514 | F243: 2011-07-31
B244: DSM Expense Deferral Balance (Account 182.4) | E244: 42000000 | F244: 2011-03-31
B246: GS Block Usage in Dth | D246: Winter Blk 1 | E246: 52526064
D247: Winter Blk 2 | E247: 14984828
D248: Summer Blk 1 | E248: 23076373
D249: Summer Blk 2 | E249: 4705902
A251: WY CET and DSM AMORTIZATION FILING INPUTS
E252: Base DNG | F252: Current DNG
B253: GS Rates (Base rates are before CET and DSM Amortizations) | D253: Blk 1 | E253: 1.73142 | F253: 2.01783
D254: Blk 2 | E254: 0.73142 | F254: 1.08394
E259: Ending Balance | F259: Date
B260: CET Balance (Account 191.9) | E260: 57097.0875 | F260: 2011-07-31
B261: DSM Expense Deferral Balance (Account 182.4) | E261: 274858.68 | F261: 2011-07-31
B263: GS Block Usage in Dth | D263: Blk 1 | E263: 2593433
D264: Blk 2 | E264: 705379
A269: MISCELLANEOUS INPUTS
B270: Test Year | D270: ='Control Panel'!E36 -> Nov-16 | E270: ='Control Panel'!E37 -> Oct-17
B272: Wexpro Red. @ 6.3% | E272: -0.063 | I272: 1.3p3
B274: Pre-Tax Rate of Return % | D274: WYO | E274: 0.1059 | F274: 2015-03-01 | I274: 1.3p2 | J274: Changes with General Rate Case
B275: Pre-Tax Rate of Return % | D275: UTAH | E275: 0.1079 | F275: 2014-03-01 | J275: Changes with General Rate Case
B277: QGC Lost & Unaccounted For % (Utah | E277: 0.0053 | F277: 2016-06-01 | H277: Q | I277: Q
B278: QGC Lost & Unaccounted For % (Wyoming) | E278: 0.015
... 8 more rows

Sheet CET & DSM WY (hidden)
A1: Rate Caclulation for the CET and DSM Amortizations WY
L3: Solver Cells
A4: CET Amortization % Calculation | L4: % Change | M4: Difference
B5: Balance | C5: Date | D5: GS Dth | F5: Amortization per Dth | L5: =J20/D20 -> 0.01140516088 | M5: =G20-B11 -> 0 | O5: -> Difference should be at 0 (Use Goal Seek to Get Difference to Equal 0.
A6: DSM Balance | B6: ='Other Inputs'!$E$261 -> 274858.68 | C6: ='Other Inputs'!$F$261 -> 2011-07-31 | D6: =B20 -> 3298812 | F6: =B6/D6 -> 0.08332050447
O8: Typical Bill Rates
A9: CET Amortization Calculation
B10: Balance | C10: Date | D10: DNG Rev | F10: New DNG | I10: % Change | O10: Current | P10: Proposed
A11: CET Balance | B11: ='Other Inputs'!$E$260 -> 57097.0875 | C11: ='Other Inputs'!$F$260 -> 2011-07-31 | D11: =D20 -> 5006250.073 | F11: =D11+B11 -> 5063347.161 | I11: =L5 -> 0.01140516088 | O11: Effective | R11: SNG & | S11: CET, DSM
O12: ='Other Inputs'!#REF! ->  | P12: CET Only | Q12: DSM Only | R12: Commodity | S12: Commodity
O13: BSF | P13: BSF | Q13: BSF | R13: BSF | S13: BSF
B14: Revenue Calculation | F14: CET Amortization | I14: Total DNG | L14: REVRUN Calculation | O14: ='Other Inputs'!#REF! ->  | P14: ='Other Inputs'!#REF! ->  | Q14: ='Other Inputs'!#REF! ->  | R14: ='Other Inputs'!#REF! ->  | S14: =#REF! -> 
A15: WY GS | B15: Dth | C15: Base DNG | D15: DNG Revenue | F15: CET Rate | G15: Revenue | I15: DNG Rate | J15: Revenue | L15: CET Rate | M15: CET Amort
A16: Block 1 | B16: ='Other Inputs'!E263 -> 2593433 | C16: ='Other Inputs'!E253 -> 1.73142 | D16: =B16*C16 -> 4490321.765 | F16: =ROUND((G16/B16),5) -> 0.01975 | G16: =D16*$L$5 -> 51212.84214 | I16: =C16+F16 -> 1.75117 | J16: =I16*B16 -> 4541542.067 | L16: =ROUND(F16,5) -> 0.01975 | M16: =B16*L16 -> 51220.30175 | O16: ='Other Inputs'!$G$89 -> 6.58271 | P16: =J24 -> 6.78793 | Q16: =J31 -> 6.82863 | R16: =J36 ->  | S16: =J41 -> 
A17: Block 2 | B17: ='Other Inputs'!E264 -> 705379 | C17: ='Other Inputs'!E254 -> 0.73142 | D17: =B17*C17 -> 515928.3082 | F17: =ROUND((G17/B17),5) -> 0.00834 | G17: =D17*$L$5 -> 5884.245359 | I17: =C17+F17 -> 0.73976 | J17: =I17*B17 -> 521811.169 | L17: =ROUND(F17,5) -> 0.00834 | M17: =B17*L17 -> 5882.86086
O18: ='Other Inputs'!#REF! ->  | P18: =J24 -> 6.78793 | Q18: =J31 -> 6.82863 | R18: =J36 ->  | S18: =J41 -> 
A20: GS-1 Block Rev | B20: =SUM(B16:B19) -> 3298812 | D20: =SUM(D16:D19) -> 5006250.073 | G20: =SUM(G16:G19) -> 57097.0875 | J20: =B11 -> 57097.0875 | M20: =SUM(M16:M19) -> 57103.16261
A22: Total Rate Calculation With CET Amortization Only | J22: ='Control Panel'!#REF! ->  | L22: ='Other Inputs'!#REF! -> 
A23: WY GS | B23: Total DNG | C23: CET | D23: DSM | F23: Total DNG | G23: Core Commodity Cost | J23: Total Rate | L23: Total Rate
A24: Block 1 | B24: =$C$16 -> 1.73142 | C24: =$F$16 -> 0.01975 | D24: 0.06792 | F24: =SUM(B24:D24) -> 1.81909 | G24: 4.96884 | J24: =SUM(F24:G24) -> 6.78793 | L24: ='Other Inputs'!#REF! ->  | M24: =J24-L24 -> 
A25: Block 2 | B25: =$C$17 -> 0.73142 | C25: =$F$17 -> 0.00834 | D25: =$D$24 -> 0.06792 | F25: =SUM(B25:D25) -> 0.80768 | G25: =G24 -> 4.96884 | J25: =SUM(F25:G25) -> 5.77652 | L25: ='Other Inputs'!#REF! ->  | M25: =J25-L25 -> 
A29: Total Rate Calculation With DSM Amortization Only | J29: =J22 ->  | L29: ='Other Inputs'!#REF! -> 
A30: WY GS | B30: Base DNG | C30: CET | D30: DSM | F30: Total DNG | G30: Core Commodity Cost | J30: Total Rate | L30: Total Rate
A31: Block 1 | B31: =$C$16 -> 1.73142 | C31: 0.04505 | D31: =$F$6 -> 0.08332050447 | F31: =ROUND(SUM(B31:D31),5) -> 1.85979 | G31: =G24 -> 4.96884 | J31: =SUM(F31:I31) -> 6.82863 | L31: ='Other Inputs'!$G$89 -> 6.58271 | M31: =J31-L31 -> 0.24592
A32: Block 2 | B32: =$C$17 -> 0.73142 | C32: 0.02848 | D32: =$F$6 -> 0.08332050447 | F32: =ROUND(SUM(B32:D32),5) -> 0.84322 | G32: =G25 -> 4.96884 | J32: =SUM(F32:I32) -> 5.81206 | L32: ='Other Inputs'!#REF! ->  | M32: =J32-L32 -> 
A34: Total Rate Calculation With Core Commodity Cost Changes Only | J34: =J22 ->  | L34: ='Other Inputs'!#REF! -> 
A35: WY GS | B35: Base DNG | C35: CET | D35: DSM | F35: Total DNG | G35: Core Commodity Cost | J35: Total Rate | L35: Total Rate
A36: Block 1 | B36: =$C$16 -> 1.73142 | C36: =C31 -> 0.04505 | D36: =D24 -> 0.06792 | F36: =SUM(B36:D36) -> 1.84439 | G36: =#REF! ->  | J36: =SUM(F36:I36) ->  | L36: ='Other Inputs'!$G$89 -> 6.58271 | M36: =J36-L36 -> 
A37: Block 2 | B37: =$C$17 -> 0.73142 | C37: =C32 -> 0.02848 | D37: =D25 -> 0.06792 | F37: =SUM(B37:D37) -> 0.82782 | G37: =#REF! ->  | J37: =SUM(F37:I37) ->  | L37: ='Other Inputs'!#REF! ->  | M37: =J37-L37 -> 
A39: Total Rate Calculation | J39: =J29 ->  | L39: ='Other Inputs'!#REF! -> 
A40: WY GS | B40: Base DNG | C40: CET | D40: DSM | F40: Total DNG | G40: Core Commodity Cost | J40: Total Rate | L40: Total Rate
A41: Block 1 | B41: =$C$16 -> 1.73142 | C41: =$F$16 -> 0.01975 | D41: =$F$6 -> 0.08332050447 | F41: =SUM(B41:D41) -> 1.834490504 | G41: =#REF! ->  | J41: =SUM(F41:I41) ->  | L41: ='Other Inputs'!$G$89 -> 6.58271 | M41: =J41-L41 -> 
A42: Block 2 | B42: =$C$17 -> 0.73142 | C42: =$F$17 -> 0.00834 | D42: =$F$6 -> 0.08332050447 | F42: =SUM(B42:D42) -> 0.8230805045 | G42: =#REF! ->  | J42: =SUM(F42:I42) ->  | L42: ='Other Inputs'!#REF! ->  | M42: =J42-L42 -> 
A44: Typical Customer Difference - CET Amortization Only
B45: Typical
A46: GS | B46: Dth | C46: =O12 ->  | D46: =J39 ->  | F46: Change | G46: % Change
A47: January | B47: 14.7 | C47: =ROUND($O$14+(B47*$O$18),2) ->  | D47: =ROUND($P$14+(B47*$P$18),2) ->  | F47: =D47-C47 -> 
A48: February | B48: 14.1 | C48: =ROUND($O$14+(B48*$O$18),2) ->  | D48: =ROUND($P$14+(B48*$P$18),2) ->  | F48: =D48-C48 -> 
A49: March | B49: 11.8 | C49: =ROUND($O$14+(B49*$O$18),2) ->  | D49: =ROUND($P$14+(B49*$P$18),2) -> 
A50: April | B50: 9.4 | C50: =ROUND($O$14+(B50*$O$16),2) ->  | D50: =ROUND($P$14+(B50*$P$16),2) -> 
A51: May | B51: 5.8 | D51: =ROUND($P$14+(B51*$P$16),2) -> 
A52: June | B52: 3.7
A53: July | B53: 2.3
A54: August | B54: 1.7
A55: September | B55: 2.1
A56: October | B56: 4.1
A57: November | B57: 8 | C57: =ROUND($O$14+(B57*$O$18),2) ->  | D57: =ROUND($P$14+(B57*$P$18),2) -> 
A58: December | B58: 12.3 | C58: =ROUND($O$14+(B58*$O$18),2) ->  | D58: =ROUND($P$14+(B58*$P$18),2) -> 
B59: =SUM(B47:B58) -> 90 | C59: =SUM(C47:C58) ->  | D59: =SUM(D47:D58) ->  | F59: =SUM(F47:F58) ->  | G59: =F59/C59 -> 
A62: Typical Customer Difference - DSM Amortization Only
B63: Typical
A64: GS | B64: Dth | C64: =C46 ->  | D64: =D46 ->  | F64: Change | G64: % Change
A65: January | B65: 14.7 | C65: =ROUND($O$14+(B65*$O$18),2) ->  | D65: =ROUND($Q$14+(B65*$Q$18),2) ->  | F65: =D65-C65 -> 
A66: February | B66: 14.1 | C66: =ROUND($O$14+(B66*$O$18),2) ->  | D66: =ROUND($Q$14+(B66*$Q$18),2) ->  | F66: =D66-C66 -> 
A67: March | B67: 11.8 | C67: =ROUND($O$14+(B67*$O$18),2) ->  | D67: =ROUND($Q$14+(B67*$Q$18),2) -> 
A68: April | B68: 9.4 | C68: =ROUND($O$14+(B68*$O$16),2) ->  | D68: =ROUND($Q$14+(B68*$Q$16),2) -> 
A69: May | B69: 5.8
A70: June | B70: 3.7
A71: July | B71: 2.3
A72: August | B72: 1.7
A73: September | B73: 2.1
A74: October | B74: 4.1
A75: November | B75: 8 | C75: =ROUND($O$14+(B75*$O$18),2) ->  | D75: =ROUND($Q$14+(B75*$Q$18),2) -> 
A76: December | B76: 12.3 | C76: =ROUND($O$14+(B76*$O$18),2) ->  | D76: =ROUND($Q$14+(B76*$Q$18),2) -> 
B77: =SUM(B65:B76) -> 90 | C77: =SUM(C65:C76) ->  | D77: =SUM(D65:D76) ->  | F77: =SUM(F65:F76) ->  | G77: =F77/C77 -> 
A80: Typical Customer Difference - SNG and Commodity Changes Only
B81: Typical
A82: GS | B82: Dth | C82: =C64 ->  | D82: =D64 ->  | F82: Change | G82: % Change
A83: January | B83: 14.7 | C83: =ROUND($O$14+(B83*$O$18),2) ->  | D83: =ROUND($R$14+(B83*$R$18),2) ->  | F83: =D83-C83 -> 
A84: February | B84: 14.1 | C84: =ROUND($O$14+(B84*$O$18),2) ->  | D84: =ROUND($R$14+(B84*$R$18),2) ->  | F84: =D84-C84 -> 
A85: March | B85: 11.8 | C85: =ROUND($O$14+(B85*$O$18),2) ->  | D85: =ROUND($R$14+(B85*$R$18),2) -> 
A86: April | B86: 9.4 | C86: =ROUND($O$14+(B86*$O$16),2) ->  | D86: =ROUND($R$14+(B86*$R$16),2) -> 
A87: May | B87: 5.8
A88: June | B88: 3.7
A89: July | B89: 2.3
A90: August | B90: 1.7
A91: September | B91: 2.1
A92: October | B92: 4.1
A93: November | B93: 8 | C93: =ROUND($O$14+(B93*$O$18),2) ->  | D93: =ROUND($R$14+(B93*$R$18),2) -> 
A94: December | B94: 12.3 | C94: =ROUND($O$14+(B94*$O$18),2) ->  | D94: =ROUND($R$14+(B94*$R$18),2) -> 
B95: =SUM(B83:B94) -> 90 | C95: =SUM(C83:C94) ->  | D95: =SUM(D83:D94) ->  | F95: =SUM(F83:F94) ->  | G95: =F95/C95 -> 
A98: Typical Customer Difference - CET & DSM Amort, SNG and Commodity Changes
B99: Typical
A100: GS | B100: Dth | C100: =C46 ->  | D100: =D46 ->  | F100: Change | G100: % Change
A101: January | B101: 14.7 | C101: =ROUND($O$14+(B101*$O$18),2) ->  | D101: =ROUND($S$14+(B101*$S$18),2) ->  | F101: =D101-C101 -> 
A102: February | B102: 14.1 | C102: =ROUND($O$14+(B102*$O$18),2) ->  | D102: =ROUND($S$14+(B102*$S$18),2) ->  | F102: =D102-C102 -> 
A103: March | B103: 11.8 | C103: =ROUND($O$14+(B103*$O$18),2) ->  | D103: =ROUND($S$14+(B103*$S$18),2) -> 
A104: April | B104: 9.4 | C104: =ROUND($O$14+(B104*$O$16),2) ->  | D104: =ROUND($S$14+(B104*$S$16),2) -> 
A105: May | B105: 5.8
A106: June | B106: 3.7
A107: July | B107: 2.3
A108: August | B108: 1.7
A109: September | B109: 2.1
A110: October | B110: 4.1
A111: November | B111: 8 | C111: =ROUND($O$14+(B111*$O$18),2) ->  | D111: =ROUND($S$14+(B111*$S$18),2) -> 
A112: December | B112: 12.3 | C112: =ROUND($O$14+(B112*$O$18),2) ->  | D112: =ROUND($S$14+(B112*$S$18),2) -> 
B113: =SUM(B101:B112) -> 90 | C113: =SUM(C101:C112) ->  | D113: =SUM(D101:D112) ->  | F113: =SUM(F101:F112) ->  | G113: =F113/C113 -> 

Sheet WY Tariff Sheets (hidden)
T2: Rates Per Dth Used Each Month
B3: 2.02 General Service Rate Schedule (GS) | K3: 2.02 General Service Rate Schedule (GS) | Q3: 2.03 Firm Sales Service Rate Schedule (FS) | T3: Dth = decatherm = 10 therms = 1,000,000 BTU | Z3: 4.02 INTERRUPTIBLE SALES RATE SERVICE SCHEDULE (IS) | BF3: 2.04 NATURAL GAS VEHICLE RATE (NGV)
L4: Rates Per Dth Used Each Month | R4: Summer Rates: Apr. 1 - Oct. 31
C5: Rates Per Dth Used Each Month | L5: Dth = decatherm = 10 therms = 1,000,000 BTU | R5: First | T5: Next | V5: All Over | Z5: IS VOLUMETRIC RATES | AA5: Rates Per Dth Used Each Month | BF5: NGV Volumetric Rate
C6: Dth = decatherm = 10 therms = 1,000,000 BTU | L6: First 45 Dth | M6: All Over 45 Dth | R6: 80 | T6: 730 | V6: 810 | AA6: Dth = decatherm = 10 therms = 1,000,000 BTU | BJ6: Rates Per Dth Used Each Month
C7: First 45 Dth | D7: All Over 45 Dth | K7: Non-Gas Cost | L7: ='CET & DSM WY'!B31 -> 1.73142 | M7: ='CET & DSM WY'!B32 -> 0.73142 | Q7: Non Gas Cost | R7: =#REF! ->  | T7: =#REF! ->  | V7: =#REF! ->  | AA7: First | AB7: Next | AC7: All Over | BJ7: Dth = decatherm = 10 therms = 1,000,000 BTU
B8: Non-Gas Cost | C8: ='CET & DSM WY'!B24 -> 1.73142 | D8: ='CET & DSM WY'!B25 -> 0.73142 | K8: Conservation Enabling Adjustment | L8: =ROUND('CET & DSM WY'!C31,5) -> 0.04505 | M8: ='CET & DSM WY'!C32 -> 0.02848 | Q8: Core Service Commodity Cost | R8: =#REF! ->  | T8: =#REF! ->  | V8: =#REF! ->  | AA8: 48600 | AB8: 72900 | AC8: 121500
B9: Conservation Enabling Adjustment | C9: ='CET & DSM WY'!C24 -> 0.01975 | D9: ='CET & DSM WY'!C25 -> 0.00834 | K9: Energy Efficiency Services | L9: ='CET & DSM WY'!D31 -> 0.08332050447 | M9: ='CET & DSM WY'!D32 -> 0.08332050447 | Z9: Distribution Non-Gas Rate | AA9: =#REF! ->  | AB9: =#REF! ->  | AC9: =#REF! ->  | BF9: Non-Gas Cost | BG9: =#REF! -> 
B10: Energy Efficiency Services | C10: ='CET & DSM WY'!D24 -> 0.06792 | D10: ='CET & DSM WY'!D25 -> 0.06792 | K10: Core Service Commodity Cost | L10: ='CET & DSM WY'!G31 -> 4.96884 | M10: =ROUND('CET & DSM WY'!G32,5) -> 4.96884 | Q10: Total Rate | R10: =SUM(R7:R8) ->  | T10: =SUM(T7:T8) ->  | V10: =SUM(V7:V8) ->  | Z10: Upstream Pipeline Cost | AA10: =#REF! ->  | AB10: =#REF! ->  | AC10: =#REF! ->  | BF10: Core Commodity Cost | BG10: =#REF! -> 
B11: Core Service Commodity Cost | C11: ='CET & DSM WY'!G24 -> 4.96884 | D11: ='CET & DSM WY'!G25 -> 4.96884 | Z11: Commodity Rate | BF11: Total Rate | BG11: =SUM(BG9:BJ10) -> 
K12: Total Rate | L12: =SUM(L7:L10) -> 6.828630504 | M12: =SUM(M7:M10) -> 5.812060504 | Q12: Minimum Monthly Distribution Non-Gas Charge | W12: =#REF! -> 
B13: Total Rate | C13: =SUM(C8:C11) -> 6.78793 | D13: =SUM(D8:D11) -> 5.77652
M15: BSF Category 1 | N15: =E16 -> 
D16: BSF Category 1 | E16: ='CET & DSM WY'!O14 ->  | M16: BSF Category 2 | N16: =E17 -> 44 | U16: BSF Category 1 | W16: ='Other Inputs'!#REF! -> 
D17: BSF Category 2 | E17: 44 | M17: BSF Category 3 | N17: =E18 -> 86 | U17: BSF Category 2 | W17: =#REF! -> 
D18: BSF Category 3 | E18: 86 | M18: BSF Category 4 | N18: =E19 -> 555 | U18: BSF Category 3 | W18: =#REF! ->  | Z18: Total Rate | AA18: $ | AB18: $ | AC18: $
D19: BSF Category 4 | E19: 555 | U19: BSF Category 4 | W19: =#REF! -> 
Z20: Minimum Monthly Distribution Non-Gas Charge
BF23: =B38 -> Issued by R. W. Jibson, President | BI23: Advice No | BJ23: Section Revision No.
AB24: BSF Category 1 | AC24: ='Other Inputs'!#REF! -> 
AB25: BSF Category 2 | AC25: =#REF! -> 
AB26: BSF Category 3 | AC26: =#REF! -> 
AB27: BSF Category 4 | AC27: =#REF! -> 
K37: Issued by R. W. Jibson, President | M37: Section Revision No. | N37: Effective Date
B38: Issued by R. W. Jibson, President | D38: Section Revision No. | E38: Effective Date | Q38: =B38 -> Issued by R. W. Jibson, President | T38: Advice No | U38: Section Revision No. | W38: Effective Date
B42: New CET ONLY | K42: New DSM ONLY | Q42: New Pass Through Values
Z47: =B38 -> Issued by R. W. Jibson, President | AC47: Advice No
Z50: New Pass Through Values

Sheet Calculations
A1: GAS BALANCE FOR 12 MONTHS ENDING: _________________
D3: SALES VOLUMES IN DECATHERMS (12 Months of Forecast)
D4: Forecast | E4: Forecast | F4: Forecast | G4: Forecast | H4: Forecast | I4: Forecast | J4: Forecast | K4: Forecast | L4: Forecast | M4: Forecast | N4: Forecast | O4: Forecast | P4: 12-Month
A5: RATE CLASS | D5: ='Monthly Inputs'!G3 -> Nov16 | E5: ='Monthly Inputs'!H3 -> Dec16 | F5: ='Monthly Inputs'!I3 -> Jan17 | G5: ='Monthly Inputs'!J3 -> Feb17 | H5: ='Monthly Inputs'!K3 -> Mar17 | I5: ='Monthly Inputs'!L3 -> Apr17 | J5: ='Monthly Inputs'!M3 -> May17 | K5: ='Monthly Inputs'!N3 -> Jun17 | L5: ='Monthly Inputs'!O3 -> Jul17 | M5: ='Monthly Inputs'!P3 -> Aug17 | N5: ='Monthly Inputs'!Q3 -> Sep17 | O5: ='Monthly Inputs'!R3 -> Oct17 | P5: Total
A6: UTAH | D6: =MONTH(D5) -> 11 | E6: =MONTH(E5) -> 12 | F6: 1 | G6: 2 | H6: 3 | I6: 4 | J6: 5 | K6: 6 | L6: 7 | M6: 8 | N6: 9 | O6: 10 | Q6: 1
B7: GSR | D7: ='RevRun Fcst'!H21 -> 11163498 | E7: ='RevRun Fcst'!I21 -> 17535402 | F7: ='RevRun Fcst'!J21 -> 18387772 | G7: ='RevRun Fcst'!K21 -> 14848944 | H7: ='RevRun Fcst'!L21 -> 11588704 | I7: ='RevRun Fcst'!M21 -> 7606235 | J7: ='RevRun Fcst'!N21 -> 4635406 | K7: ='RevRun Fcst'!O21 -> 2752141 | L7: ='RevRun Fcst'!P21 -> 2319117 | M7: ='RevRun Fcst'!Q21 -> 2193818 | N7: ='RevRun Fcst'!R21 -> 2401406 | O7: ='RevRun Fcst'!S21 -> 6459280 | P7: =SUM(D7:O7) -> 101891723 | Q7: 2
B8: GSC | D8: ='RevRun Fcst'!H30 -> 0 | E8: ='RevRun Fcst'!I30 -> 0 | F8: ='RevRun Fcst'!J30 -> 0 | G8: ='RevRun Fcst'!K30 -> 0 | H8: ='RevRun Fcst'!L30 -> 0 | I8: ='RevRun Fcst'!M30 -> 0 | J8: ='RevRun Fcst'!N30 -> 0 | K8: ='RevRun Fcst'!O30 -> 0 | L8: ='RevRun Fcst'!P30 -> 0 | M8: ='RevRun Fcst'!Q30 -> 0 | N8: ='RevRun Fcst'!R30 -> 0 | O8: ='RevRun Fcst'!S30 -> 0 | P8: 0 | Q8: 3
B9: GSS | D9: ='RevRun Fcst'!H39 -> 0 | E9: ='RevRun Fcst'!I39 -> 0 | F9: ='RevRun Fcst'!J39 -> 0 | G9: ='RevRun Fcst'!K39 -> 0 | H9: ='RevRun Fcst'!L39 -> 0 | I9: ='RevRun Fcst'!M39 -> 0 | J9: ='RevRun Fcst'!N39 -> 0 | K9: ='RevRun Fcst'!O39 -> 0 | L9: ='RevRun Fcst'!P39 -> 0 | M9: ='RevRun Fcst'!Q39 -> 0 | N9: ='RevRun Fcst'!R39 -> 0 | O9: ='RevRun Fcst'!S39 -> 0 | P9: 0 | Q9: 4
B10: F-1 | D10: ='RevRun Fcst'!H48 -> 378172 | E10: ='RevRun Fcst'!I48 -> 494626 | F10: ='RevRun Fcst'!J48 -> 542200 | G10: ='RevRun Fcst'!K48 -> 460820 | H10: ='RevRun Fcst'!L48 -> 436390 | I10: ='RevRun Fcst'!M48 -> 410877 | J10: ='RevRun Fcst'!N48 -> 353101 | K10: ='RevRun Fcst'!O48 -> 302901 | L10: ='RevRun Fcst'!P48 -> 279086 | M10: ='RevRun Fcst'!Q48 -> 284654 | N10: ='RevRun Fcst'!R48 -> 269978 | O10: ='RevRun Fcst'!S48 -> 332327 | P10: 4545132 | Q10: 5
B11: F-4 | D11: ='RevRun Fcst'!H75 -> 0 | E11: ='RevRun Fcst'!I75 -> 0 | F11: ='RevRun Fcst'!J75 -> 0 | G11: ='RevRun Fcst'!K75 -> 0 | H11: ='RevRun Fcst'!L75 -> 0 | I11: ='RevRun Fcst'!M75 -> 0 | J11: ='RevRun Fcst'!N75 -> 0 | K11: ='RevRun Fcst'!O75 -> 0 | L11: ='RevRun Fcst'!P75 -> 0 | M11: ='RevRun Fcst'!Q75 -> 0 | N11: ='RevRun Fcst'!R75 -> 0 | O11: ='RevRun Fcst'!S75 -> 0 | P11: 0 | Q11: 6
B12: NGV | D12: ='RevRun Fcst'!H66 -> 38381 | E12: ='RevRun Fcst'!I66 -> 38608 | F12: ='RevRun Fcst'!J66 -> 43309 | G12: ='RevRun Fcst'!K66 -> 35779 | H12: ='RevRun Fcst'!L66 -> 41959 | I12: ='RevRun Fcst'!M66 -> 42370 | J12: ='RevRun Fcst'!N66 -> 46171 | K12: ='RevRun Fcst'!O66 -> 47121 | L12: ='RevRun Fcst'!P66 -> 47190 | M12: ='RevRun Fcst'!Q66 -> 45642 | N12: ='RevRun Fcst'!R66 -> 45997 | O12: ='RevRun Fcst'!S66 -> 45936 | P12: 518463 | Q12: 7
A13: Total Firm Sales | D13: =SUM(D7:D12) -> 11580051 | E13: 18068636 | F13: =SUM(F7:F12) -> 18973281 | G13: 15345543 | H13: 12067053 | I13: 8059482 | J13: 5034678 | K13: 3102163 | L13: 2645393 | M13: 2524114 | N13: 2717381 | O13: 6837543 | P13: =SUM(P7:P12) -> 106955318 | Q13: 8
Q14: 9
B15: I-4 | D15: ='RevRun Fcst'!H102 -> 44591 | E15: ='RevRun Fcst'!I102 -> 63276 | F15: ='RevRun Fcst'!J102 -> 53251 | G15: ='RevRun Fcst'!K102 -> 38786 | H15: ='RevRun Fcst'!L102 -> 35343 | I15: ='RevRun Fcst'!M102 -> 40023 | J15: ='RevRun Fcst'!N102 -> 53718 | K15: ='RevRun Fcst'!O102 -> 46592 | L15: ='RevRun Fcst'!P102 -> 47028 | M15: ='RevRun Fcst'!Q102 -> 48293 | N15: ='RevRun Fcst'!R102 -> 53903 | O15: ='RevRun Fcst'!S102 -> 57811 | P15: =SUM(D15:O15) -> 582615 | Q15: 10
B16: IS-4 | D16: ='RevRun Fcst'!H93 -> 0 | E16: ='RevRun Fcst'!I93 -> 0 | F16: ='RevRun Fcst'!J93 -> 0 | G16: ='RevRun Fcst'!K93 -> 0 | H16: ='RevRun Fcst'!L93 -> 0 | I16: ='RevRun Fcst'!M93 -> 0 | J16: ='RevRun Fcst'!N93 -> 0 | K16: ='RevRun Fcst'!O93 -> 0 | L16: ='RevRun Fcst'!P93 -> 0 | M16: ='RevRun Fcst'!Q93 -> 0 | N16: ='RevRun Fcst'!R93 -> 0 | O16: ='RevRun Fcst'!S93 -> 0 | P16: =SUM(D16:O16) -> 0 | Q16: 11
A17: Total Interruptible Sales | D17: =SUM(D15:D16) -> 44591 | E17: 63276 | F17: 53251 | G17: 38786 | H17: 35343 | I17: 40023 | J17: 53718 | K17: 46592 | L17: 47028 | M17: 48293 | N17: 53903 | O17: 57811 | P17: 582615 | Q17: 12
Q18: 13
Q19: 14
A20: Total Utah Sales | D20: =+D13+D17 -> 11624642 | E20: =+E13+E17 -> 18131912 | F20: =+F13+F17 -> 19026532 | G20: =+G13+G17 -> 15384329 | H20: 12102396 | I20: 8099505 | J20: 5088396 | K20: 3148755 | L20: 2692421 | M20: 2572407 | N20: 2771284 | O20: 6895354 | P20: =+P13+P17 -> 107537933 | Q20: 15
Q21: 16
A22: Total Utah Transportation | D22: ='RevRun Fcst'!H204 -> 6919214 | E22: ='RevRun Fcst'!I204 -> 7981209 | F22: ='RevRun Fcst'!J204 -> 6812017 | G22: ='RevRun Fcst'!K204 -> 6185064 | H22: ='RevRun Fcst'!L204 -> 5456511 | I22: ='RevRun Fcst'!M204 -> 6081533 | J22: ='RevRun Fcst'!N204 -> 6478112 | K22: ='RevRun Fcst'!O204 -> 6970262 | L22: ='RevRun Fcst'!P204 -> 6980913 | M22: ='RevRun Fcst'!Q204 -> 7317087 | N22: ='RevRun Fcst'!R204 -> 6656273 | O22: ='RevRun Fcst'!S204 -> 5842352 | P22: =SUM(D22:O22) -> 79680547 | Q22: 17
Q23: 18
Q24: 19
A25: Total Utah Sales & Trans | D25: =+D20+D22 -> 18543856 | E25: 26113121 | F25: 25838549 | G25: 21569393 | H25: 17558907 | I25: 14181038 | J25: 11566508 | K25: 10119017 | L25: 9673334 | M25: 9889494 | N25: 9427557 | O25: 12737706 | P25: 187218480 | Q25: 20
Q26: 21
A27: WYOMING | Q27: 22
A28: GS-1 | D28: ='RevRun Fcst'!H244 -> 378865 | E28: ='RevRun Fcst'!I244 -> 555390 | F28: ='RevRun Fcst'!J244 -> 656076 | G28: ='RevRun Fcst'!K244 -> 558966 | H28: ='RevRun Fcst'!L244 -> 460225 | I28: ='RevRun Fcst'!M244 -> 327225 | J28: ='RevRun Fcst'!N244 -> 220808 | K28: ='RevRun Fcst'!O244 -> 120674 | L28: ='RevRun Fcst'!P244 -> 68519 | M28: ='RevRun Fcst'!Q244 -> 72032 | N28: ='RevRun Fcst'!R244 -> 116192 | O28: ='RevRun Fcst'!S244 -> 229167 | P28: =SUM(D28:O28) -> 3764139 | Q28: 23
A29: GS-W | D29: ='RevRun Fcst'!H271 -> 0 | E29: ='RevRun Fcst'!I271 -> 0 | F29: ='RevRun Fcst'!J271 -> 0 | G29: ='RevRun Fcst'!K271 -> 0 | H29: ='RevRun Fcst'!L271 -> 0 | I29: ='RevRun Fcst'!M271 -> 0 | J29: ='RevRun Fcst'!N271 -> 0 | K29: ='RevRun Fcst'!O271 -> 0 | L29: ='RevRun Fcst'!P271 -> 0 | M29: ='RevRun Fcst'!Q271 -> 0 | N29: ='RevRun Fcst'!R271 -> 0 | O29: ='RevRun Fcst'!S271 -> 0 | P29: =SUM(D29:O29) -> 0 | Q29: 24
A30: F-1 | D30: ='RevRun Fcst'!H253 -> 16064 | E30: ='RevRun Fcst'!I253 -> 20107 | F30: ='RevRun Fcst'!J253 -> 23259 | G30: ='RevRun Fcst'!K253 -> 20021 | H30: ='RevRun Fcst'!L253 -> 19790 | I30: ='RevRun Fcst'!M253 -> 18460 | J30: ='RevRun Fcst'!N253 -> 16093 | K30: ='RevRun Fcst'!O253 -> 13716 | L30: ='RevRun Fcst'!P253 -> 11316 | M30: ='RevRun Fcst'!Q253 -> 10936 | N30: ='RevRun Fcst'!R253 -> 10601 | O30: ='RevRun Fcst'!S253 -> 13807 | P30: =SUM(D30:O30) -> 194170 | Q30: 25
A31: NGV | D31: ='RevRun Fcst'!H262 -> 925 | E31: ='RevRun Fcst'!I262 -> 654 | F31: ='RevRun Fcst'!J262 -> 1245 | G31: ='RevRun Fcst'!K262 -> 1661 | H31: ='RevRun Fcst'!L262 -> 1635 | I31: ='RevRun Fcst'!M262 -> 1711 | J31: ='RevRun Fcst'!N262 -> 1530 | K31: ='RevRun Fcst'!O262 -> 1168 | L31: ='RevRun Fcst'!P262 -> 1187 | M31: ='RevRun Fcst'!Q262 -> 1187 | N31: ='RevRun Fcst'!R262 -> 1179 | O31: ='RevRun Fcst'!S262 -> 3485 | P31: =SUM(D31:O31) -> 17567 | Q31: 26
A32: Total Firm Sales | D32: =SUM(D28:D31) -> 395854 | E32: 576151 | F32: 680580 | G32: 580648 | H32: 481650 | I32: 347396 | J32: 238431 | K32: 135558 | L32: 81022 | M32: 84155 | N32: 127972 | O32: 246459 | P32: 3975876 | Q32: 27
Q33: 28
A34: I-2 | D34: ='RevRun Fcst'!H280 -> 13134 | E34: ='RevRun Fcst'!I280 -> 20743 | F34: ='RevRun Fcst'!J280 -> 21875 | G34: ='RevRun Fcst'!K280 -> 14043 | H34: ='RevRun Fcst'!L280 -> 13117 | I34: ='RevRun Fcst'!M280 -> 11616 | J34: ='RevRun Fcst'!N280 -> 9215 | K34: ='RevRun Fcst'!O280 -> 9145 | L34: ='RevRun Fcst'!P280 -> 6388 | M34: ='RevRun Fcst'!Q280 -> 6821 | N34: ='RevRun Fcst'!R280 -> 6757 | O34: ='RevRun Fcst'!S280 -> 8263 | P34: =SUM(D34:O34) -> 141117 | Q34: 29
A35: I-4 | D35: ='RevRun Fcst'!H289 -> 0 | E35: ='RevRun Fcst'!I289 -> 0 | F35: ='RevRun Fcst'!J289 -> 0 | G35: ='RevRun Fcst'!K289 -> 0 | H35: ='RevRun Fcst'!L289 -> 0 | I35: ='RevRun Fcst'!M289 -> 0 | J35: ='RevRun Fcst'!N289 -> 0 | K35: ='RevRun Fcst'!O289 -> 0 | L35: ='RevRun Fcst'!P289 -> 0 | M35: ='RevRun Fcst'!Q289 -> 0 | N35: ='RevRun Fcst'!R289 -> 0 | O35: ='RevRun Fcst'!S289 -> 0 | P35: =SUM(D35:O35) -> 0 | Q35: 30
A36: Total Interruptible Sales | D36: =SUM(D34:D35) -> 13134 | E36: 20743 | F36: 21875 | G36: 14043 | H36: 13117 | I36: 11616 | J36: 9215 | K36: 9145 | L36: 6388 | M36: 6821 | N36: 6757 | O36: 8263 | P36: 141117 | Q36: 31
Q37: 32
Q38: 33
A39: Total Wyoming Sales | D39: =+D32+D36 -> 408988 | E39: =+E32+E36 -> 596894 | F39: 702455 | G39: 594691 | H39: 494767 | I39: 359012 | J39: 247646 | K39: 144703 | L39: 87410 | M39: 90976 | N39: 134729 | O39: 254722 | P39: 4116993 | Q39: 34
Q40: 35
A41: Total Wyoming Transportation | D41: ='RevRun Fcst'!H328 -> 27280 | E41: ='RevRun Fcst'!I328 -> 55585 | F41: ='RevRun Fcst'!J328 -> 47350 | G41: ='RevRun Fcst'!K328 -> 40973 | H41: ='RevRun Fcst'!L328 -> 46274 | I41: ='RevRun Fcst'!M328 -> 53723 | J41: ='RevRun Fcst'!N328 -> 54937 | K41: ='RevRun Fcst'!O328 -> 83815 | L41: ='RevRun Fcst'!P328 -> 19006 | M41: ='RevRun Fcst'!Q328 -> 15299 | N41: ='RevRun Fcst'!R328 -> 14589 | O41: ='RevRun Fcst'!S328 -> 19918 | P41: =SUM(D41:O41) -> 478749 | Q41: 36
Q42: 37
Q43: 38
A44: Total Wyoming Sales & Trans | D44: =+D39+D41 -> 436268 | E44: 652479 | F44: 749805 | G44: 635664 | H44: 541041 | I44: 412735 | J44: 302583 | K44: 228518 | L44: 106416 | M44: 106275 | N44: 149318 | O44: 274640 | P44: 4595742 | Q44: 39
Q45: 40
Q46: 41
A47: Total System Sales and Trans | D47: =+D25+D44 -> 18980124 | E47: 26765600 | F47: 26588354 | G47: 22205057 | H47: 18099948 | I47: 14593773 | J47: 11869091 | K47: 10347535 | L47: 9779750 | M47: 9995769 | N47: 9576875 | O47: =+O25+O44 -> 13012346 | P47: 191814222 | Q47: 42
Q48: 43
A49: Usage by Season | Q49: 44
C50: Month | D50: =MONTH(D5) -> 11 | E50: 12 | F50: 1 | G50: 2 | H50: 3 | I50: 4 | J50: 5 | K50: 6 | L50: 7 | M50: 8 | N50: 9 | O50: 10 | Q50: 45
A51: GS | C51: Season (0=Winter, 1=Summer) | D51: =IF(D$50<4,0,IF(D$50>10,0,1)) -> 0 | E51: =IF(E$50<4,0,IF(E$50>10,0,1)) -> 0 | F51: 0 | G51: 0 | H51: 0 | I51: 1 | J51: 1 | K51: 1 | L51: 1 | M51: 1 | N51: 1 | O51: 1 | P51: Total | Q51: 46
B52: Winter | D52: =IF(D51=0,D7+D8,0) -> 11163498 | E52: =IF(E51=0,E7+E8,0) -> 17535402 | F52: 18387772 | G52: 14848944 | H52: 11588704 | I52: 0 | J52: 0 | K52: 0 | L52: 0 | M52: 0 | N52: 0 | O52: 0 | P52: =SUM(D52:O52) -> 73524320 | Q52: 47
B53: Summer | D53: =IF(D51=1,D7+D8,0) -> 0 | E53: 0 | F53: 0 | G53: 0 | H53: 0 | I53: 7606235 | J53: 4635406 | K53: 2752141 | L53: 2319117 | M53: 2193818 | N53: 2401406 | O53: 6459280 | P53: =SUM(D53:O53) -> 28367403 | Q53: 48
A54: GSS | Q54: 49
B55: Winter | D55: =IF(D51=0,D9,0) -> 0 | E55: 0 | F55: 0 | G55: 0 | H55: 0 | I55: 0 | J55: 0 | K55: 0 | L55: 0 | M55: 0 | N55: 0 | O55: 0 | P55: =SUM(D55:O55) -> 0 | Q55: 50
B56: Summer | D56: =IF(D51=1,D9,0) -> 0 | E56: 0 | F56: 0 | G56: 0 | H56: 0 | I56: 0 | J56: 0 | K56: 0 | L56: 0 | M56: 0 | N56: 0 | O56: 0 | P56: =SUM(D56:O56) -> 0 | Q56: 51
A57: F-S | Q57: 52
B58: Winter | D58: =IF(D51=0,D10,0) -> 378172 | E58: 494626 | F58: 542200 | G58: 460820 | H58: 436390 | I58: 0 | J58: 0 | K58: 0 | L58: 0 | M58: 0 | N58: 0 | O58: 0 | P58: =SUM(D58:O58) -> 2312208 | Q58: 53
B59: Summer | D59: =IF(D51=1,D10,0) -> 0 | E59: 0 | F59: 0 | G59: 0 | H59: 0 | I59: 410877 | J59: 353101 | K59: 302901 | L59: 279086 | M59: 284654 | N59: 269978 | O59: 332327 | P59: =SUM(D59:O59) -> 2232924 | Q59: 54
Q60: 55
Q61: 56
B62: Rates: R050201.R1 | C62: WYOMING NON-CORE DNG REVENUES FROM DEMAND FORECAST AND CURRENTLY EFFECTIVE I-SALES GAS COST RATES | Q62: 57
D63: Forecast | E63: Forecast | F63: Forecast | G63: Forecast | H63: Forecast | I63: Forecast | J63: Forecast | K63: Forecast | L63: Forecast | M63: Forecast | N63: Forecast | O63: Forecast | P63: 12-Month | Q63: 58
D64: =D5 -> Nov16 | E64: =E5 -> Dec16 | F64: =F5 -> Jan17 | G64: Feb17 | H64: Mar17 | I64: Apr17 | J64: May17 | K64: Jun17 | L64: Jul17 | M64: Aug17 | N64: Sep17 | O64: Oct17 | P64: Total | Q64: 59
A65: I-2 & 1-4 (Non-Gas Revenue) (Yearly) | D65: ='RevRun Fcst'!H273+'RevRun Fcst'!H282 -> 4963.57 | E65: ='RevRun Fcst'!I273+'RevRun Fcst'!I282 -> 6877.17 | F65: ='RevRun Fcst'!J273+'RevRun Fcst'!J282 -> 7161.85 | G65: ='RevRun Fcst'!K273+'RevRun Fcst'!K282 -> 5192.18 | H65: ='RevRun Fcst'!L273+'RevRun Fcst'!L282 -> 4959.29 | I65: ='RevRun Fcst'!M273+'RevRun Fcst'!M282 -> 4581.8 | J65: ='RevRun Fcst'!N273+'RevRun Fcst'!N282 -> 3977.98 | K65: ='RevRun Fcst'!O273+'RevRun Fcst'!O282 -> 3960.38 | L65: ='RevRun Fcst'!P273+'RevRun Fcst'!P282 -> 3267.01 | M65: ='RevRun Fcst'!Q273+'RevRun Fcst'!Q282 -> 3375.91 | N65: ='RevRun Fcst'!R273+'RevRun Fcst'!R282 -> 3359.82 | O65: ='RevRun Fcst'!S273+'RevRun Fcst'!S282 -> 3738.56 | P65: =SUM(D65:O65) -> 55415.52 | Q65: 60
A66: IC (Total Revenue) (Yearly) | D66: =ROUND(D41*$P66/$P41,0) -> 5959 | E66: 12143 | F66: 10344 | G66: 8951 | H66: 10109 | I66: 11736 | J66: 12001 | K66: 18310 | L66: 4152 | M66: 3342 | N66: 3187 | O66: =P66-SUM(D66:N66) -> 4351.88 | P66: ='RevRun Fcst'!T300+'RevRun Fcst'!T314 -> 104585.88 | Q66: 61
Q67: 62
A68: ="I-2 Gas Cost (Rate Effective "&'Other Inputs'!E69&")" -> I-2 Gas Cost (Rate Effective 11/1/2005) | D68: ='Other Inputs'!E72 -> 0 | E68: =+D68 -> 0 | F68: 0 | G68: 0 | H68: 0 | I68: 0 | J68: 0 | K68: 0 | L68: 0 | M68: 0 | N68: 0 | O68: 0 | Q68: 63
A69: ="I-4 Gas Cost (Rate Effective "&'Other Inputs'!F69&")" -> I-4 Gas Cost (Rate Effective 7/31/2009) | D69: ='Other Inputs'!F72 -> 3.78635 | E69: =+D69 -> 3.78635 | F69: 3.78635 | G69: 3.78635 | H69: 3.78635 | I69: 3.78635 | J69: 3.78635 | K69: 3.78635 | L69: 3.78635 | M69: 3.78635 | N69: 3.78635 | O69: 3.78635 | Q69: 64
Q70: 65
Q71: 66
D72: ALLOCATION BASES | Q72: 67
D73: DEMAND | G73: OTHER COST | Q73: 68
A74: Utah Peak Day Demand | D74: =+D76-D75 -> 1280082 | E74: =D74/D76 -> 0.9722722674 | G74: Utah Sales | H74: =+P20 -> 107537933 | I74: =H74/H76 -> 0.9631275292 | Q74: 69
A75: Wyoming Peak Day Demand | D75: ='Other Inputs'!E128 -> 36506 | E75: =1-E74 -> 0.02772773259 | G75: Wyoming Sales | H75: =+P39 -> 4116993 | I75: =1-I74 -> 0.03687247081 | Q75: 70
A76: Peak Day Demand | D76: ='Other Inputs'!E129 -> 1316588 | E76: =ROUND(D76/D$76,4) -> 1 | G76: Total Sales | H76: =+H74+H75 -> 111654926 | I76: =ROUND(H76/H$76,4) -> 1 | Q76: 71
Q77: 72
Q78: 73
D79: Financial Report Information (Latest 12 Months of Actual Expenses and 13 Months of Rate Base) | Q79: 74
D80: Actual | E80: Actual | F80: Actual | G80: Actual | H80: Actual | I80: Actual | J80: Actual | K80: Actual | L80: Actual | M80: Actual | N80: Actual | O80: Actual | Q80: 75
A81: Accounts | D81: =Expenses!J9 -> 2015-12-01 | E81: =Expenses!K9 -> 2016-01-01 | F81: =Expenses!L9 -> 2016-02-01 | G81: =Expenses!M9 -> 2016-03-01 | H81: =Expenses!N9 -> 2016-04-01 | I81: =Expenses!O9 -> 2016-05-01 | J81: =Expenses!P9 -> 2016-06-01 | K81: =Expenses!Q9 -> 2016-07-01 | L81: =Expenses!R9 -> 2016-08-01 | M81: =Expenses!G9 -> 2015-09-01 | N81: =Expenses!H9 -> 2015-10-01 | O81: =Expenses!I9 -> 2015-11-01 | P81: =+'Monthly Inputs'!S3 -> Oct17 | Q81: 76
A82: EXPENSES | Q82: 77
B83: Gas Use In Dth (Acct 810 & 812) | D83: 0 | E83: 0 | F83: 0 | G83: 0 | H83: 0 | I83: 0 | J83: 0 | K83: 0 | L83: 0 | M83: 0 | N83: 0 | O83: 0 | P83: =SUM(D83:O83) -> 0 | Q83: 78
Q84: 79
B85: Other Revenue (Yearly) | Q85: 80
B86: Sales for Resale (account 483) | D86: =Expenses!J445 -> 1428274.72 | E86: =Expenses!K445 -> 241612.42 | F86: =Expenses!L445 -> 98299.23 | G86: =Expenses!M445 -> 127973.86 | H86: =Expenses!N445 -> 103865.06 | I86: =Expenses!O445 -> 92160.29 | J86: =Expenses!P445 -> 92290.95 | K86: =Expenses!Q445 -> 167019.8 | L86: =Expenses!R445 -> 134648.51 | M86: =Expenses!G445 -> 216373.79 | N86: =Expenses!H445 -> 160539.79 | O86: =Expenses!I445 -> 210981.26 | P86: =SUM(D86:O86) -> 3074039.68 | Q86: 81
B87: Incidental Plant Prod Sales (Acct 490) | D87: =Expenses!J446 -> 316494.93 | E87: =Expenses!K446 -> 187377.57 | F87: =Expenses!L446 -> 281543.31 | G87: =Expenses!M446 -> 173107.5 | H87: =Expenses!N446 -> 394.26 | I87: =Expenses!O446 -> 790735.17 | J87: =Expenses!P446 -> 2096.25 | K87: =Expenses!Q446 -> 409801.35 | L87: =Expenses!R446 -> 265084.2 | M87: =Expenses!G446 -> 351058.44 | N87: =Expenses!H446 -> 256706.17 | O87: =Expenses!I446 -> 203107.26 | P87: =SUM(D87:O87) -> 3237506.41 | Q87: 82
B88: Gas Processed by Others (account 491) | D88: =Expenses!J461 -> 0 | E88: =Expenses!K461 -> 0 | F88: =Expenses!L461 -> 0 | G88: =Expenses!M461 -> 0 | H88: =Expenses!N461 -> 0 | I88: =Expenses!O461 -> 0 | J88: =Expenses!P461 -> 0 | K88: =Expenses!Q461 -> 0 | L88: =Expenses!R461 -> 0 | M88: =Expenses!G461 -> 0 | N88: =Expenses!H461 -> 0 | O88: =Expenses!I461 -> 0 | P88: =SUM(D88:O88) -> 0 | Q88: 83
B89: Gasoline - Oil Sales (account 492) | D89: =Expenses!J447 -> 120466.35 | E89: =Expenses!K447 -> 67234.83 | F89: =Expenses!L447 -> 127818.3 | G89: =Expenses!M447 -> 106130.69 | H89: =Expenses!N447 -> 107658.57 | I89: =Expenses!O447 -> 132006.82 | J89: =Expenses!P447 -> 138802.16 | K89: =Expenses!Q447 -> 154610.95 | L89: =Expenses!R447 -> 177405.86 | M89: =Expenses!G447 -> 104378.08 | N89: =Expenses!H447 -> 86921.91 | O89: =Expenses!I447 -> 123489.87 | P89: =SUM(D89:O89) -> 1446924.39 | Q89: 84
B90: Gasoline - Oil Cost (account 758.001) | D90: =-Expenses!J450 -> -14389.17 | E90: =-Expenses!K450 -> -10663.89 | F90: =-Expenses!L450 -> -28562.26 | G90: =-Expenses!M450 -> -22427.16 | H90: =-Expenses!N450 -> -19252.41 | I90: =-Expenses!O450 -> -25073.81 | J90: =-Expenses!P450 -> -25045.86 | K90: =-Expenses!Q450 -> -28097.85 | L90: =-Expenses!R450 -> -31912.25 | M90: =-Expenses!G450 -> -16081.87 | N90: =-Expenses!H450 -> -14228.49 | O90: =-Expenses!I450 -> -20030.32 | P90: =SUM(D90:O90) -> -255765.34 | Q90: 85
Q91: 86
Q92: 87
B93: Overriding Royalty (account 495-1) | D93: =Expenses!J448 -> 963771.9 | E93: =Expenses!K448 -> 689428.24 | F93: =Expenses!L448 -> 845638.23 | G93: =Expenses!M448 -> 759896.83 | H93: =Expenses!N448 -> 1102274.52 | I93: =Expenses!O448 -> 603420.49 | J93: =Expenses!P448 -> 701605.14 | K93: =Expenses!Q448 -> 665379.68 | L93: =Expenses!R448 -> 605696.89 | M93: =Expenses!G448 -> 904263.29 | N93: =Expenses!H448 -> 923369.33 | O93: =Expenses!I448 -> 1137423.31 | P93: =SUM(D93:O93) -> 9902167.85 | Q93: 88
B94: Wexpro Revenue Sharing (account 495-2) | D94: =Expenses!J449 -> 0 | E94: =Expenses!K449 -> 0 | F94: =Expenses!L449 -> 0 | G94: =Expenses!M449 -> 0 | H94: =Expenses!N449 -> 0 | I94: =Expenses!O449 -> 0 | J94: =Expenses!P449 -> 0 | K94: =Expenses!Q449 -> 0 | L94: =Expenses!R449 -> 0 | M94: =Expenses!G449 -> 0 | N94: =Expenses!H449 -> 0 | O94: =Expenses!I449 -> 0 | P94: =SUM(D94:O94) -> 0 | Q94: 89
P95: Page 2 of 6 | Q95: 90
C96: Actual | D96: Actual | E96: Actual | F96: Actual | G96: Actual | H96: Actual | I96: Actual | J96: Actual | K96: Actual | L96: Actual | M96: Actual | N96: Actual | O96: Actual | P96: 13-Month | Q96: 91
A97: Accounts | C97: ='Rate Base'!H8 -> 2015-08-22 | D97: ='Rate Base'!I8 -> 2015-09-21 | E97: ='Rate Base'!J8 -> 2015-10-21 | F97: ='Rate Base'!K8 -> 2015-11-20 | G97: ='Rate Base'!L8 -> 2015-12-20 | H97: ='Rate Base'!M8 -> 2016-01-19 | I97: ='Rate Base'!N8 -> 2016-02-18 | J97: ='Rate Base'!O8 -> 2016-03-19 | K97: ='Rate Base'!P8 -> 2016-04-18 | L97: ='Rate Base'!Q8 -> 2016-05-18 | M97: ='Rate Base'!R8 -> 2016-06-17 | N97: ='Rate Base'!S8 -> 2016-07-17 | O97: ='Rate Base'!T8 -> 2016-08-16 | P97: Average | Q97: 92
A98: RATE BASE - PRODUCTION | Q98: 93
B99: Acct 164 (Working Gas) - Production | C99: ='Rate Base'!H216 -> 55069784.97 | D99: ='Rate Base'!I216 -> 68899212.39 | E99: ='Rate Base'!J216 -> 68125004.8 | F99: ='Rate Base'!K216 -> 50875669 | G99: ='Rate Base'!L216 -> 43864860.97 | H99: ='Rate Base'!M216 -> 31528328.54 | I99: ='Rate Base'!N216 -> 21185728.7 | J99: ='Rate Base'!O216 -> 7159514.94 | K99: ='Rate Base'!P216 -> 3455713.05 | L99: ='Rate Base'!Q216 -> 11147739.1 | M99: ='Rate Base'!R216 -> 23044902.9 | N99: ='Rate Base'!S216 -> 39135538.03 | O99: ='Rate Base'!T216 -> 52516754.78 | P99: =(((+C99+O99)/2)+SUM(D99:N99))/12 -> 35184623.52 | Q99: 94
B100: Acct 101 - Production | C100: ='Rate Base'!H158 -> 79968136 | D100: ='Rate Base'!I158 -> 79968136 | E100: ='Rate Base'!J158 -> 79968136 | F100: ='Rate Base'!K158 -> 79968136 | G100: ='Rate Base'!L158 -> 79968136 | H100: ='Rate Base'!M158 -> 79968136 | I100: ='Rate Base'!N158 -> 79968136 | J100: ='Rate Base'!O158 -> 79968136 | K100: ='Rate Base'!P158 -> 79968136 | L100: ='Rate Base'!Q158 -> 79968136 | M100: ='Rate Base'!R158 -> 79968136 | N100: ='Rate Base'!S158 -> 79968136 | O100: ='Rate Base'!T158 -> 79968136 | P100: 79968136 | Q100: 95
B101: Acct 108 - Production | C101: ='Rate Base'!H176 -> -67944094.28 | D101: ='Rate Base'!I176 -> -67973999.84 | E101: ='Rate Base'!J176 -> -68001196.19 | F101: ='Rate Base'!K176 -> -68029065.25 | G101: ='Rate Base'!L176 -> -68103276.2 | H101: ='Rate Base'!M176 -> -68178210.2 | I101: ='Rate Base'!N176 -> -68255444.1 | J101: ='Rate Base'!O176 -> -68322385.69 | K101: ='Rate Base'!P176 -> -68397973.48 | L101: ='Rate Base'!Q176 -> -68472533.73 | M101: ='Rate Base'!R176 -> -68538871.03 | N101: ='Rate Base'!S176 -> -68609618.29 | O101: ='Rate Base'!T176 -> -68698903.88 | P101: -68267006.09 | Q101: 96
B102: Acct 111 - Production | C102: ='Rate Base'!H183 -> -6107602.76 | D102: ='Rate Base'!I183 -> -6108371.08 | E102: ='Rate Base'!J183 -> -6109069.8 | F102: ='Rate Base'!K183 -> -6109785.8 | G102: ='Rate Base'!L183 -> -6111692.41 | H102: ='Rate Base'!M183 -> -6113617.59 | I102: ='Rate Base'!N183 -> -6115658.56 | J102: ='Rate Base'!O183 -> -6117403.35 | K102: ='Rate Base'!P183 -> -6119373.49 | L102: ='Rate Base'!Q183 -> -6121316.86 | M102: ='Rate Base'!R183 -> -6123045.87 | N102: ='Rate Base'!S183 -> -6124889.85 | O102: ='Rate Base'!T183 -> -6127217.02 | P102: -6115969.546 | Q102: 97
B103: Acct 2550 - Production | C103: ='Rate Base'!H251 -> -2587.92 | D103: ='Rate Base'!I251 -> -2317.67 | E103: ='Rate Base'!J251 -> -2047.42 | F103: ='Rate Base'!K251 -> -1777.17 | G103: ='Rate Base'!L251 -> -1506.87 | H103: ='Rate Base'!M251 -> -1475.03 | I103: ='Rate Base'!N251 -> -1443.19 | J103: ='Rate Base'!O251 -> -1411.35 | K103: ='Rate Base'!P251 -> -1379.51 | L103: ='Rate Base'!Q251 -> -1347.67 | M103: ='Rate Base'!R251 -> -1315.83 | N103: ='Rate Base'!S251 -> -1283.99 | O103: ='Rate Base'!T251 -> -1252.15 | P103: -1602.144583 | Q103: 98
B104: Acct 2820 - Production | C104: ='Rate Base'!H258 -> -1718308.81 | D104: ='Rate Base'!I258 -> -1711688.08 | E104: ='Rate Base'!J258 -> -1705841.95 | F104: ='Rate Base'!K258 -> -1986234.16 | G104: ='Rate Base'!L258 -> -1247543.38 | H104: ='Rate Base'!M258 -> -1175632.1 | I104: ='Rate Base'!N258 -> -1102083.78 | J104: ='Rate Base'!O258 -> -1029516.94 | K104: ='Rate Base'!P258 -> -957190.61 | L104: ='Rate Base'!Q258 -> -885237.62 | M104: ='Rate Base'!R258 -> -813385.1 | N104: ='Rate Base'!S258 -> -741679.42 | O104: ='Rate Base'!T258 -> -670309.83 | P104: -1212528.538 | Q104: 99
B105: Acct 2821 - Production | C105: ='Rate Base'!H265 -> -725600.31 | D105: ='Rate Base'!I265 -> -725600.31 | E105: ='Rate Base'!J265 -> -725600.31 | F105: ='Rate Base'!K265 -> -700755.31 | G105: ='Rate Base'!L265 -> -700755.31 | H105: ='Rate Base'!M265 -> -700755.31 | I105: ='Rate Base'!N265 -> -700755.31 | J105: ='Rate Base'!O265 -> -700755.31 | K105: ='Rate Base'!P265 -> -700755.31 | L105: ='Rate Base'!Q265 -> -700755.31 | M105: ='Rate Base'!R265 -> -700755.31 | N105: ='Rate Base'!S265 -> -700755.31 | O105: ='Rate Base'!T265 -> -700755.31 | P105: -705931.3517 | Q105: 100
Q106: 101
D107: Production | H107: Acct 101 | I107: Acct 108 | J107: Acct 111 | K107: Acct 2550 | L107: Acct 2820 | M107: Acct 2821 | N107: Total | Q107: 102
B108: Depreciation - Acct 403 | D108: =Expenses!S385 -> 754809.6 | F108: Thirteen month average | H108: =P100 -> 79968136 | I108: =P101 -> -68267006.09 | J108: =P102 -> -6115969.546 | K108: =P103 -> -1602.144583 | L108: =P104 -> -1212528.538 | M108: =P105 -> -705931.3517 | N108: =SUM(H108:M108) -> 3665098.33 | Q108: 103
B109: Amortization & Depletion - Acct 404 | D109: =Expenses!S392 -> 19614.26 | F109: =CONCATENATE("Wexpro Red. @ ",-'Other Inputs'!E272*100," %") -> Wexpro Red. @ 6.3 % | H109: =H108*'Other Inputs'!$E$272 -> -5037992.568 | I109: =I108*'Other Inputs'!$E$272 -> 4300821.384 | J109: =J108*'Other Inputs'!$E$272 -> 385306.0814 | N109: =SUM(H109:M109) -> -351865.1029 | Q109: 104
B110: Utah Pre-Tax Return on Production Assets | D110: =+N111 -> 357497.8652 | M110: =SUM(N108:N109) -> 3313233.227 | Q110: 105
B111: Utah Production Cost | D111: =SUM(D108:D110) -> 1131921.725 | M111: ="Utah Pre-Tax Rate of Return on Production Assets ("&'Other Inputs'!E275&")" -> Utah Pre-Tax Rate of Return on Production Assets (0.1079) | N111: =M110*'Other Inputs'!E275 -> 357497.8652 | Q111: 106
M112: ="Wyoming Pre-Tax Rate of Return on Production Assets ("&'Other Inputs'!E274&")" -> Wyoming Pre-Tax Rate of Return on Production Assets (0.1059) | N112: =M110*'Other Inputs'!E274 -> 350871.3987 | Q112: 107
Q113: 108
A114: TACTICAL PLAN INFORMATION (IRP) | P114: 12-Month | Q114: 109
D115: =D5 -> Nov16 | E115: =E5 -> Dec16 | F115: Jan17 | G115: Feb17 | H115: Mar17 | I115: Apr17 | J115: May17 | K115: Jun17 | L115: Jul17 | M115: Aug17 | N115: Sep17 | O115: Oct17 | P115: Total | Q115: 110
A116: COMPANY PRODUCTION | Q116: 111
B117: Prior Company | Q117: 112
B118: D24 Wells | Q118: 113
B119: Brady & Powel | Q119: 114
B120: Total Company Production Wexpro I & II | D120: ='Monthly Inputs'!G7+'Monthly Inputs'!G13 -> 5891609.574 | E120: ='Monthly Inputs'!H7+'Monthly Inputs'!H13 -> 6399346.055 | F120: ='Monthly Inputs'!I7+'Monthly Inputs'!I13 -> 6286868.176 | G120: ='Monthly Inputs'!J7+'Monthly Inputs'!J13 -> 5561760.046 | H120: ='Monthly Inputs'!K7+'Monthly Inputs'!K13 -> 6040116.513 | I120: ='Monthly Inputs'!L7+'Monthly Inputs'!L13 -> 5742822.11 | J120: ='Monthly Inputs'!M7+'Monthly Inputs'!M13 -> 5837525.383 | K120: ='Monthly Inputs'!N7+'Monthly Inputs'!N13 -> 5562567.905 | L120: ='Monthly Inputs'!O7+'Monthly Inputs'!O13 -> 5661306.706 | M120: ='Monthly Inputs'!P7+'Monthly Inputs'!P13 -> 5612174.336 | N120: ='Monthly Inputs'!Q7+'Monthly Inputs'!Q13 -> 5463766.987 | O120: ='Monthly Inputs'!R7+'Monthly Inputs'!R13 -> 5870191.743 | P120: =SUM(D120:O120) -> 69930055.53 | Q120: 115
Q121: 116
A122: STORAGE INJECTIONS | Q122: 117
B123: Chalk Creek | D123: ='Monthly Inputs'!G24 -> 135791.0156 | E123: ='Monthly Inputs'!H24 -> 106922.0657 | F123: ='Monthly Inputs'!I24 -> 63484.54285 | G123: ='Monthly Inputs'!J24 -> 0 | H123: ='Monthly Inputs'!K24 -> 0 | I123: ='Monthly Inputs'!L24 -> 0 | J123: ='Monthly Inputs'!M24 -> 0 | K123: ='Monthly Inputs'!N24 -> 0 | L123: ='Monthly Inputs'!O24 -> 0 | M123: ='Monthly Inputs'!P24 -> 0 | N123: ='Monthly Inputs'!Q24 -> 0 | O123: ='Monthly Inputs'!R24 -> 0 | P123: =SUM(D123:O123) -> 306197.6242 | Q123: 118
B124: Coalville | D124: ='Monthly Inputs'!G26 -> 121531.2958 | E124: ='Monthly Inputs'!H26 -> 125582.3364 | F124: ='Monthly Inputs'!I26 -> 37136.27625 | G124: ='Monthly Inputs'!J26 -> 0 | H124: ='Monthly Inputs'!K26 -> 0 | I124: ='Monthly Inputs'!L26 -> 0 | J124: ='Monthly Inputs'!M26 -> 0 | K124: ='Monthly Inputs'!N26 -> 0 | L124: ='Monthly Inputs'!O26 -> 0 | M124: ='Monthly Inputs'!P26 -> 0 | N124: ='Monthly Inputs'!Q26 -> 0 | O124: ='Monthly Inputs'!R26 -> 62791.16821 | P124: =SUM(D124:O124) -> 347041.0767 | Q124: 119
B125: Leroy | D125: ='Monthly Inputs'!G27 -> 170904.7089 | E125: ='Monthly Inputs'!H27 -> 0 | F125: ='Monthly Inputs'!I27 -> 0 | G125: ='Monthly Inputs'!J27 -> 0 | H125: ='Monthly Inputs'!K27 -> 0 | I125: ='Monthly Inputs'!L27 -> 0 | J125: ='Monthly Inputs'!M27 -> 0 | K125: ='Monthly Inputs'!N27 -> 0 | L125: ='Monthly Inputs'!O27 -> 0 | M125: ='Monthly Inputs'!P27 -> 0 | N125: ='Monthly Inputs'!Q27 -> 0 | O125: ='Monthly Inputs'!R27 -> 324607.3303 | P125: =SUM(D125:O125) -> 495512.0392 | Q125: 120
B126: Total Peaking Storage | D126: =SUM(D123:D125) -> 428227.0203 | E126: 232504.4022 | F126: 100620.8191 | G126: 0 | H126: 0 | I126: 0 | J126: 0 | K126: 0 | L126: 0 | M126: 0 | N126: 0 | O126: 387398.4985 | P126: 1148750.74 | Q126: 121
B127: Clay Basin | D127: ='Monthly Inputs'!G25 -> 0 | E127: ='Monthly Inputs'!H25 -> 0 | F127: ='Monthly Inputs'!I25 -> 0 | G127: ='Monthly Inputs'!J25 -> 0 | H127: ='Monthly Inputs'!K25 -> 516446.7621 | I127: ='Monthly Inputs'!L25 -> 1400675.091 | J127: ='Monthly Inputs'!M25 -> 2750785.522 | K127: ='Monthly Inputs'!N25 -> 2662050.415 | L127: ='Monthly Inputs'!O25 -> 2510794.825 | M127: ='Monthly Inputs'!P25 -> 2579046.449 | N127: ='Monthly Inputs'!Q25 -> 2205522.642 | O127: ='Monthly Inputs'!R25 -> 279207.9163 | P127: =SUM(D127:O127) -> 14904529.62 | Q127: 122
B128: Total Storage Injections | D128: =SUM(D126:D127) -> 428227.0203 | E128: =SUM(E126:E127) -> 232504.4022 | F128: 100620.8191 | G128: 0 | H128: 516446.7621 | I128: 1400675.091 | J128: 2750785.522 | K128: 2662050.415 | L128: 2510794.825 | M128: 2579046.449 | N128: 2205522.642 | O128: 666606.4148 | P128: 16053280.36 | Q128: 123
A129: STORAGE WITHDRAWLS | Q129: 124
B130: Chalk Creek | D130: ='Monthly Inputs'!G31 -> 0 | E130: ='Monthly Inputs'!H31 -> 0 | F130: ='Monthly Inputs'!I31 -> 0 | G130: ='Monthly Inputs'!J31 -> 44875.19836 | H130: ='Monthly Inputs'!K31 -> 257250 | I130: ='Monthly Inputs'!L31 -> 0 | J130: ='Monthly Inputs'!M31 -> 0 | K130: ='Monthly Inputs'!N31 -> 0 | L130: ='Monthly Inputs'!O31 -> 0 | M130: ='Monthly Inputs'!P31 -> 0 | N130: ='Monthly Inputs'!Q31 -> 0 | O130: ='Monthly Inputs'!R31 -> 0 | P130: =SUM(D130:O130) -> 302125.1984 | Q130: 125
B131: Coalville | D131: ='Monthly Inputs'!G33 -> 0 | E131: ='Monthly Inputs'!H33 -> 0 | F131: ='Monthly Inputs'!I33 -> 0 | G131: ='Monthly Inputs'!J33 -> 0 | H131: ='Monthly Inputs'!K33 -> 317796.3562 | I131: ='Monthly Inputs'!L33 -> 0 | J131: ='Monthly Inputs'!M33 -> 0 | K131: ='Monthly Inputs'!N33 -> 0 | L131: ='Monthly Inputs'!O33 -> 0 | M131: ='Monthly Inputs'!P33 -> 0 | N131: ='Monthly Inputs'!Q33 -> 0 | O131: ='Monthly Inputs'!R33 -> 0 | P131: =SUM(D131:O131) -> 317796.3562 | Q131: 126
B132: Leroy | D132: ='Monthly Inputs'!G34 -> 0 | E132: ='Monthly Inputs'!H34 -> 0 | F132: ='Monthly Inputs'!I34 -> 52153.6026 | G132: ='Monthly Inputs'!J34 -> 0 | H132: ='Monthly Inputs'!K34 -> 391329.4067 | I132: ='Monthly Inputs'!L34 -> 0 | J132: ='Monthly Inputs'!M34 -> 0 | K132: ='Monthly Inputs'!N34 -> 0 | L132: ='Monthly Inputs'!O34 -> 0 | M132: ='Monthly Inputs'!P34 -> 0 | N132: ='Monthly Inputs'!Q34 -> 0 | O132: ='Monthly Inputs'!R34 -> 0 | P132: =SUM(D132:O132) -> 443483.0093 | Q132: 127
B133: Total Peaking Storage | D133: =SUM(D130:D132) -> 0 | E133: 0 | F133: 52153.6026 | G133: 44875.19836 | H133: 966375.7629 | I133: 0 | J133: 0 | K133: 0 | L133: 0 | M133: 0 | N133: 0 | O133: 0 | P133: 1063404.564 | Q133: 128
B134: Clay Basin | D134: ='Monthly Inputs'!G32 -> 0 | E134: ='Monthly Inputs'!H32 -> 6148442.993 | F134: ='Monthly Inputs'!I32 -> 4617807.861 | G134: ='Monthly Inputs'!J32 -> 2652749.084 | H134: ='Monthly Inputs'!K32 -> 0 | I134: ='Monthly Inputs'!L32 -> 59110.69489 | J134: ='Monthly Inputs'!M32 -> 0 | K134: ='Monthly Inputs'!N32 -> 0 | L134: ='Monthly Inputs'!O32 -> 0 | M134: ='Monthly Inputs'!P32 -> 0 | N134: ='Monthly Inputs'!Q32 -> 0 | O134: ='Monthly Inputs'!R32 -> 0 | P134: =SUM(D134:O134) -> 13478110.63 | Q134: 129
B135: Total Storage Withdrawls | D135: =SUM(D133:D134) -> 0 | E135: 6148442.993 | F135: 4669961.464 | G135: 2697624.283 | H135: 966375.7629 | I135: 59110.69489 | J135: 0 | K135: 0 | L135: 0 | M135: 0 | N135: 0 | O135: 0 | P135: 14541515.2 | Q135: 130
Q136: 131
Q137: 132
A138: Gas Supply and Demand | D138: =D4 -> Forecast | E138: Forecast | F138: Forecast | G138: Forecast | H138: Forecast | I138: Forecast | J138: Forecast | K138: Forecast | L138: Forecast | M138: Forecast | N138: Forecast | O138: Forecast | P138: 12-Month | Q138: 133
A139: Demand | D139: =D5 -> Nov16 | E139: Dec16 | F139: Jan17 | G139: Feb17 | H139: Mar17 | I139: Apr17 | J139: May17 | K139: Jun17 | L139: Jul17 | M139: Aug17 | N139: Sep17 | O139: Oct17 | P139: Total | Q139: 134
Q140: 135
A141: Utah Sales | D141: =+D20 -> 11624642 | E141: =+E20 -> 18131912 | F141: 19026532 | G141: 15384329 | H141: 12102396 | I141: 8099505 | J141: 5088396 | K141: 3148755 | L141: 2692421 | M141: 2572407 | N141: 2771284 | O141: 6895354 | P141: =SUM(D141:O141) -> 107537933 | Q141: 136
A142: Wyoming Sales | D142: =+D39 -> 408988 | E142: 596894 | F142: 702455 | G142: 594691 | H142: 494767 | I142: 359012 | J142: 247646 | K142: 144703 | L142: 87410 | M142: 90976 | N142: 134729 | O142: 254722 | P142: =SUM(D142:O142) -> 4116993 | Q142: 137
A143: Total Sales | D143: =+D141+D142 -> 12033630 | E143: 18728806 | F143: 19728987 | G143: 15979020 | H143: 12597163 | I143: 8458517 | J143: 5336042 | K143: 3293458 | L143: 2779831 | M143: 2663383 | N143: 2906013 | O143: 7150076 | P143: 111654926 | Q143: 138
Q144: 139
A145: Distribution Use (Offices) | C145: Check formulas for correct month | D145: =ROUND(O83,0) -> 0 | E145: =ROUND(D83,0) -> 0 | F145: 0 | G145: 0 | H145: 0 | I145: 0 | J145: 0 | K145: 0 | L145: 0 | M145: 0 | N145: 0 | O145: 0 | P145: =SUM(D145:O145) -> 0 | Q145: 140
A146: Distribution Lost and Unaccounted for | D146: =+D148-D143-D145 -> 64118 | E146: =+E148-E143-E145 -> 99792 | F146: 105121 | G146: 85140 | H146: 67121 | I146: 45069 | J146: 28432 | K146: 17548 | L146: 14812 | M146: 14191 | N146: 15484 | O146: =+O148-O143-O145 -> 38097 | P146: =SUM(D146:O146) -> 594925 | Q146: 141
Q147: 142
A148: Total City Gate | D148: =ROUND((D143+D145)/(1-'Other Inputs'!$E$277),0) -> 12097748 | E148: =ROUND((E143+E145)/(1-'Other Inputs'!$E$277),0) -> 18828598 | F148: =ROUND((F143+F145)/(1-'Other Inputs'!$E$277),0) -> 19834108 | G148: =ROUND((G143+G145)/(1-'Other Inputs'!$E$277),0) -> 16064160 | H148: =ROUND((H143+H145)/(1-'Other Inputs'!$E$277),0) -> 12664284 | I148: =ROUND((I143+I145)/(1-'Other Inputs'!$E$277),0) -> 8503586 | J148: =ROUND((J143+J145)/(1-'Other Inputs'!$E$277),0) -> 5364474 | K148: =ROUND((K143+K145)/(1-'Other Inputs'!$E$277),0) -> 3311006 | L148: =ROUND((L143+L145)/(1-'Other Inputs'!$E$277),0) -> 2794643 | M148: =ROUND((M143+M145)/(1-'Other Inputs'!$E$277),0) -> 2677574 | N148: =ROUND((N143+N145)/(1-'Other Inputs'!$E$277),0) -> 2921497 | O148: =ROUND((O143+O145)/(1-'Other Inputs'!$E$277),0) -> 7188173 | P148: =SUM(D148:O148) -> 112249851 | Q148: 143
Q149: 144
A150: Peaking Injection | D150: =+D126 -> 428227.0203 | E150: 232504.4022 | F150: 100620.8191 | G150: 0 | H150: 0 | I150: 0 | J150: 0 | K150: 0 | L150: 0 | M150: 0 | N150: 0 | O150: 387398.4985 | P150: =SUM(D150:O150) -> 1148750.74 | Q150: 145
A151: Clay Basin Injection | D151: =+D127 -> 0 | E151: 0 | F151: 0 | G151: 0 | H151: 516446.7621 | I151: 1400675.091 | J151: 2750785.522 | K151: 2662050.415 | L151: 2510794.825 | M151: 2579046.449 | N151: 2205522.642 | O151: 279207.9163 | P151: =SUM(D151:O151) -> 14904529.62 | Q151: 146
A152: Storage Lost & Unaccounted For | D152: =-'Monthly Inputs'!G48 -> 11028.02673 | E152: =-'Monthly Inputs'!H48 -> 3004.400913 | F152: =-'Monthly Inputs'!I48 -> 1312.261501 | G152: =-'Monthly Inputs'!J48 -> 0 | H152: =-'Monthly Inputs'!K48 -> 15906.56027 | I152: =-'Monthly Inputs'!L48 -> 43140.7928 | J152: =-'Monthly Inputs'!M48 -> 84724.19409 | K152: =-'Monthly Inputs'!N48 -> 81991.15278 | L152: =-'Monthly Inputs'!O48 -> 77332.48062 | M152: =-'Monthly Inputs'!P48 -> 79434.63062 | N152: =-'Monthly Inputs'!Q48 -> 67930.09738 | O152: =-'Monthly Inputs'!R48 -> 23998.1024 | P152: =SUM(D152:O152) -> 489802.7001 | Q152: 147
A153: Total Demand | D153: =SUM(D148:D152) -> 12537003.05 | E153: =SUM(E148:E152) -> 19064106.8 | F153: 19936041.08 | G153: 16064160 | H153: =SUM(H148:H152) -> 13196637.32 | I153: 9947401.884 | J153: 8199983.717 | K153: 6055047.568 | L153: 5382770.306 | M153: 5336055.079 | N153: 5194949.74 | O153: =SUM(O148:O152) -> 7878777.517 | P153: =SUM(D153:O153) -> 128792934.1 | Q153: 148
Q154: 149
D155: Forecast | E155: Forecast | F155: Forecast | G155: Forecast | H155: Forecast | I155: Forecast | J155: Forecast | K155: Forecast | L155: Forecast | M155: Forecast | N155: Forecast | O155: Forecast | P155: 12-Month | Q155: 150
A156: Supply | D156: =D5 -> Nov16 | E156: Dec16 | F156: Jan17 | G156: Feb17 | H156: Mar17 | I156: Apr17 | J156: May17 | K156: Jun17 | L156: Jul17 | M156: Aug17 | N156: Sep17 | O156: Oct17 | P156: Total | Q156: 151
A157: Company Production | D157: =+D120 -> 5891609.574 | E157: =+E120 -> 6399346.055 | F157: 6286868.176 | G157: 5561760.046 | H157: 6040116.513 | I157: 5742822.11 | J157: 5837525.383 | K157: 5562567.905 | L157: 5661306.706 | M157: 5612174.336 | N157: 5463766.987 | O157: 5870191.743 | P157: =SUM(D157:O157) -> 69930055.53 | Q157: 152
A158: Co Prod Lost & Unaccounted For | D158: =ROUND(D157*(-'Other Inputs'!$E$279-'Other Inputs'!$E$280),0) -> -289867 | E158: =ROUND(E157*(-'Other Inputs'!$E$279-'Other Inputs'!$E$280),0) -> -314848 | F158: =ROUND(F157*(-'Other Inputs'!$E$279-'Other Inputs'!$E$280),0) -> -309314 | G158: =ROUND(G157*(-'Other Inputs'!$E$279-'Other Inputs'!$E$280),0) -> -273639 | H158: =ROUND(H157*(-'Other Inputs'!$E$279-'Other Inputs'!$E$280),0) -> -297174 | I158: =ROUND(I157*(-'Other Inputs'!$E$279-'Other Inputs'!$E$280),0) -> -282547 | J158: =ROUND(J157*(-'Other Inputs'!$E$279-'Other Inputs'!$E$280),0) -> -287206 | K158: =ROUND(K157*(-'Other Inputs'!$E$279-'Other Inputs'!$E$280),0) -> -273678 | L158: =ROUND(L157*(-'Other Inputs'!$E$279-'Other Inputs'!$E$280),0) -> -278536 | M158: =ROUND(M157*(-'Other Inputs'!$E$279-'Other Inputs'!$E$280),0) -> -276119 | N158: =ROUND(N157*(-'Other Inputs'!$E$279-'Other Inputs'!$E$280),0) -> -268817 | O158: =ROUND(O157*(-'Other Inputs'!$E$279-'Other Inputs'!$E$280),0) -> -288813 | P158: =SUM(D158:O158) -> -3440558 | Q158: 153
A159: Company Production @ City Gate | D159: =SUM(D157:D158) -> 5601742.574 | E159: =SUM(E157:E158) -> 6084498.055 | F159: 5977554.176 | G159: 5288121.046 | H159: 5742942.513 | I159: 5460275.11 | J159: 5550319.383 | K159: 5288889.905 | L159: 5382770.706 | M159: 5336055.336 | N159: 5194949.987 | O159: 5581378.743 | P159: =SUM(D159:O159) -> 66489497.53 | Q159: 154
Q160: 155
A161: Peaking Withdrawal | D161: =+D133 -> 0 | E161: 0 | F161: 52153.6026 | G161: 44875.19836 | H161: 966375.7629 | I161: 0 | J161: 0 | K161: 0 | L161: 0 | M161: 0 | N161: 0 | O161: 0 | P161: =SUM(D161:O161) -> 1063404.564 | Q161: 156
A162: Clay Basin Withdrawal | D162: =+D134 -> 0 | E162: 6148442.993 | F162: 4617807.861 | G162: 2652749.084 | H162: 0 | I162: 59110.69489 | J162: 0 | K162: 0 | L162: 0 | M162: 0 | N162: 0 | O162: 0 | P162: =SUM(D162:O162) -> 13478110.63 | Q162: 157
A163: QPC Transportation Loss on Storage | D163: ='Monthly Inputs'!G62+'Monthly Inputs'!G55 -> 0 | E163: ='Monthly Inputs'!H62+'Monthly Inputs'!H55 -> -199209.553 | F163: ='Monthly Inputs'!I62+'Monthly Inputs'!I55 -> -151270.2439 | G163: ='Monthly Inputs'!J62+'Monthly Inputs'!J55 -> -87272.88869 | H163: ='Monthly Inputs'!K62+'Monthly Inputs'!K55 -> -30068.16169 | I163: ='Monthly Inputs'!L62+'Monthly Inputs'!L55 -> -1915.186514 | J163: ='Monthly Inputs'!M62+'Monthly Inputs'!M55 -> 0 | K163: ='Monthly Inputs'!N62+'Monthly Inputs'!N55 -> 0 | L163: ='Monthly Inputs'!O62+'Monthly Inputs'!O55 -> 0 | M163: ='Monthly Inputs'!P62+'Monthly Inputs'!P55 -> 0 | N163: ='Monthly Inputs'!Q62+'Monthly Inputs'!Q55 -> 0 | O163: ='Monthly Inputs'!R62+'Monthly Inputs'!R55 -> 0 | P163: =SUM(D163:O163) -> -469736.0338 | Q163: 158
A164: Storage Lost & Unaccounted For | D164: ='Monthly Inputs'!G48 -> -11028.02673 | E164: ='Monthly Inputs'!H48 -> -3004.400913 | F164: ='Monthly Inputs'!I48 -> -1312.261501 | G164: ='Monthly Inputs'!J48 -> 0 | H164: ='Monthly Inputs'!K48 -> -15906.56027 | I164: ='Monthly Inputs'!L48 -> -43140.7928 | J164: ='Monthly Inputs'!M48 -> -84724.19409 | K164: ='Monthly Inputs'!N48 -> -81991.15278 | L164: ='Monthly Inputs'!O48 -> -77332.48062 | M164: ='Monthly Inputs'!P48 -> -79434.63062 | N164: ='Monthly Inputs'!Q48 -> -67930.09738 | O164: ='Monthly Inputs'!R48 -> -23998.1024 | P164: =SUM(D164:O164) -> -489802.7001 | Q164: 159
A165: Storage Supply @ City Gate | D165: =SUM(D161:D164) -> -11028.02673 | E165: =SUM(E161:E164) -> 5946229.039 | F165: 4517378.959 | G165: 2610351.394 | H165: 920401.041 | I165: 14054.71557 | J165: -84724.19409 | K165: -81991.15278 | L165: -77332.48062 | M165: -79434.63062 | N165: -67930.09738 | O165: -23998.1024 | P165: 13581976.46 | Q165: 160
Q166: 161
A167: Gas Purchased @ City Gate | D167: =D153-D159-D165-D152 -> 6935260.473 | E167: =E153-E159-E165-E152 -> 7030375.308 | F167: 9439795.685 | G167: 8165687.56 | H167: 6517387.208 | I167: 4429931.266 | J167: 2649664.333 | K167: 766157.6631 | L167: -0.4001291571 | M167: -0.2562752347 | N167: -0.2471970012 | O167: 2297398.774 | P167: =SUM(D167:O167) -> 48231657.37 | Q167: 162
A168: Gas Reimbursement | D168: =+D169-D167 -> 96332.52668 | E168: =+E169-E167 -> 97653.69215 | F168: 131121.3153 | G168: 113423.4399 | H168: 90528.79206 | I168: 61532.73434 | J168: 36804.6669 | K168: 10642.33691 | L168: 0.4001291571 | M168: 0.2562752347 | N168: 0.2471970012 | O168: 31911.2262 | P168: =SUM(D168:O168) -> 669951.634 | Q168: 163
A169: Gas Purchased - Dth ( /.98) | D169: =ROUND(D167/(1-'Other Inputs'!$E$280),0) -> 7031593 | E169: =ROUND(E167/(1-'Other Inputs'!$E$280),0) -> 7128029 | F169: =ROUND(F167/(1-'Other Inputs'!$E$280),0) -> 9570917 | G169: =ROUND(G167/(1-'Other Inputs'!$E$280),0) -> 8279111 | H169: =ROUND(H167/(1-'Other Inputs'!$E$280),0) -> 6607916 | I169: =ROUND(I167/(1-'Other Inputs'!$E$280),0) -> 4491464 | J169: =ROUND(J167/(1-'Other Inputs'!$E$280),0) -> 2686469 | K169: =ROUND(K167/(1-'Other Inputs'!$E$280),0) -> 776800 | L169: =ROUND(L167/(1-'Other Inputs'!$E$280),0) -> 0 | M169: =ROUND(M167/(1-'Other Inputs'!$E$280),0) -> 0 | N169: =ROUND(N167/(1-'Other Inputs'!$E$280),0) -> 0 | O169: =ROUND(O167/(1-'Other Inputs'!$E$280),0) -> 2329310 | P169: =SUM(D169:O169) -> 48901609 | Q169: 164
Q170: 165
A171: Transported Volumes - total | D171: =+D159+D167+D135+D163 -> 12537003.05 | E171: =+E159+E167+E135+E163 -> 19064106.8 | F171: =+F159+F167+F135+F163 -> 19936041.08 | G171: 16064160 | H171: =+H159+H167+H135+H163 -> 13196637.32 | I171: 9947401.884 | J171: 8199983.717 | K171: 6055047.568 | L171: 5382770.306 | M171: 5336055.079 | N171: 5194949.74 | O171: 7878777.517 | P171: =+P159+P167+P135+P163 -> 128792934.1 | Q171: 166
A172: Kern transported volumes | D172: =HLOOKUP(MONTH(D5),kernrivertrans,6,FALSE) -> 1527468.11 | E172: =HLOOKUP(MONTH(E5),kernrivertrans,6,FALSE) -> 1578383.714 | F172: 1578383.714 | G172: 1425636.903 | H172: =HLOOKUP(MONTH(H5),kernrivertrans,6,FALSE) -> 1578383.714 | I172: 135951.202 | J172: =HLOOKUP(MONTH(J5),kernrivertrans,6,FALSE) -> 140482.9087 | K172: 135951.202 | L172: 140482.9087 | M172: 140482.9087 | N172: 135951.202 | O172: 140482.9087 | Q172: 167
A173: Storage Fuel % | C173: =(P152-P164)/(P161+P162+P150+P151) -> 0.0320186941 | Q173: 168
Q174: 169
A175: Company Production as % of Total Supply / Demand | D175: =D157/(D169+D157) -> 0.4558939272 | E175: 0.4730663583 | F175: =F157/(F169+F157) -> 0.3964531053 | G175: 0.4018359847 | H175: =H157/(H169+H157) -> 0.4775538414 | I175: 0.5611355837 | J175: 0.6848344944 | K175: 0.8774641239 | L175: 1 | M175: 1 | N175: 1 | O175: =O157/(O169+O157) -> 0.7159205434 | P175: =P157/(P169+P157) -> 0.5884799797 | Q175: 170
Q176: 171
A177: PURCHASES BREAKDOWN | Q177: 172
A178: Spot Market Purchases | D178: ='Monthly Inputs'!G78 -> 5131593.019 | E178: ='Monthly Inputs'!H78 -> 1113028.963 | F178: ='Monthly Inputs'!I78 -> 2555917.005 | G178: ='Monthly Inputs'!J78 -> 3459110.571 | H178: ='Monthly Inputs'!K78 -> 5677916.134 | I178: ='Monthly Inputs'!L78 -> 4491464.105 | J178: ='Monthly Inputs'!M78 -> 2686469.251 | K178: ='Monthly Inputs'!N78 -> 776800.066 | L178: ='Monthly Inputs'!O78 -> 0 | M178: ='Monthly Inputs'!P78 -> 0 | N178: ='Monthly Inputs'!Q78 -> 0 | O178: ='Monthly Inputs'!R78 -> 2329309.884 | P178: =SUM(D178:O178) -> 28221609 | Q178: 173
A179: Spot Market Purchases Cost | D179: ='Monthly Inputs'!G79 -> 14471092.31 | E179: ='Monthly Inputs'!H79 -> 3561692.68 | F179: ='Monthly Inputs'!I79 -> 8715676.987 | G179: ='Monthly Inputs'!J79 -> 11588020.41 | H179: ='Monthly Inputs'!K79 -> 16976969.24 | I179: ='Monthly Inputs'!L79 -> 12531184.85 | J179: ='Monthly Inputs'!M79 -> 7334061.056 | K179: ='Monthly Inputs'!N79 -> 2182808.185 | L179: ='Monthly Inputs'!O79 -> 0 | M179: ='Monthly Inputs'!P79 -> 0 | N179: ='Monthly Inputs'!Q79 -> 0 | O179: ='Monthly Inputs'!R79 -> 6405602.182 | P179: =SUM(D179:O179) -> 83767107.91 | Q179: 174
Q180: 175
A181: Contract Purchases (Dth) | D181: ='Monthly Inputs'!G87 -> 900000 | E181: ='Monthly Inputs'!H87 -> 2015000 | F181: ='Monthly Inputs'!I87 -> 2015000 | G181: ='Monthly Inputs'!J87 -> 1820000 | H181: ='Monthly Inputs'!K87 -> 930000 | I181: ='Monthly Inputs'!L87 -> 0 | J181: ='Monthly Inputs'!M87 -> 0 | K181: ='Monthly Inputs'!N87 -> 0 | L181: ='Monthly Inputs'!O87 -> 0 | M181: ='Monthly Inputs'!P87 -> 0 | N181: ='Monthly Inputs'!Q87 -> 0 | O181: ='Monthly Inputs'!R87 -> 0 | P181: =SUM(D181:O181) -> 7680000 | Q181: 176
A182: Contract Purchases Cost Including Stabalization Costs | D182: ='Monthly Inputs'!G88+'Monthly Inputs'!G89 -> 2740410 | E182: ='Monthly Inputs'!H88+'Monthly Inputs'!H89 -> 6637782 | F182: ='Monthly Inputs'!I88+'Monthly Inputs'!I89 -> 7060932 | G182: ='Monthly Inputs'!J88+'Monthly Inputs'!J89 -> 6268416 | H182: ='Monthly Inputs'!K88+'Monthly Inputs'!K89 -> 2989857 | I182: ='Monthly Inputs'!L88+'Monthly Inputs'!L89 -> 0 | J182: ='Monthly Inputs'!M88+'Monthly Inputs'!M89 -> 0 | K182: ='Monthly Inputs'!N88+'Monthly Inputs'!N89 -> 0 | L182: ='Monthly Inputs'!O88+'Monthly Inputs'!O89 -> 0 | M182: ='Monthly Inputs'!P88+'Monthly Inputs'!P89 -> 0 | N182: ='Monthly Inputs'!Q88+'Monthly Inputs'!Q89 -> 0 | O182: ='Monthly Inputs'!R88+'Monthly Inputs'!R89 -> 0 | P182: =SUM(D182:O182) -> 25697397
A184: Peak Purchases (Dth) | D184: ='Monthly Inputs'!G84 -> 1000000 | E184: ='Monthly Inputs'!H84 -> 4000000 | F184: ='Monthly Inputs'!I84 -> 5000000 | G184: ='Monthly Inputs'!J84 -> 3000000 | H184: ='Monthly Inputs'!K84 -> 0 | I184: ='Monthly Inputs'!L84 -> 0 | J184: ='Monthly Inputs'!M84 -> 0 | K184: ='Monthly Inputs'!N84 -> 0 | L184: ='Monthly Inputs'!O84 -> 0 | M184: ='Monthly Inputs'!P84 -> 0 | N184: ='Monthly Inputs'!Q84 -> 0 | O184: ='Monthly Inputs'!R84 -> 0 | P184: =SUM(D184:O184) -> 13000000
A185: Peak Purchases Cost | D185: ='Monthly Inputs'!G85 -> 2968878.296 | E185: ='Monthly Inputs'!H85 -> 13413022.92 | F185: ='Monthly Inputs'!I85 -> 17878024.93 | G185: ='Monthly Inputs'!J85 -> 10542116.52 | H185: ='Monthly Inputs'!K85 -> 0 | I185: ='Monthly Inputs'!L85 -> 0 | J185: ='Monthly Inputs'!M85 -> 0 | K185: ='Monthly Inputs'!N85 -> 0 | L185: ='Monthly Inputs'!O85 -> 0 | M185: ='Monthly Inputs'!P85 -> 0 | N185: ='Monthly Inputs'!Q85 -> 0 | O185: ='Monthly Inputs'!R85 -> 0 | P185: =SUM(D185:O185) -> 44802042.66
A187: Future Purchases | D187: =+D169-D178-D181-D184 -> -0.01861572266 | E187: =+E169-E178-E181-E184 -> 0.0373840332 | F187: =+F169-F178-F181-F184 -> -0.004970703274 | G187: =+G169-G178-G181-G184 -> 0.4292297363 | H187: =+H169-H178-H181-H184 -> -0.1341552734 | I187: =+I169-I178-I181-I184 -> -0.10546875 | J187: =+J169-J178-J181-J184 -> -0.2512207031 | K187: =+K169-K178-K181-K184 -> -0.06597900391 | L187: 0 | M187: =+M169-M178-M181-M184 -> 0 | N187: 0 | O187: 0.1157226562 | P187: =SUM(D187:O187) -> 0.001926269382
A188: Future Purchases Cost | D188: =ROUND(D187*D195,0) -> 0 | E188: =ROUND(E187*E195,0) -> 0 | F188: =ROUND(F187*F195,0) -> 0 | G188: =ROUND(G187*G195,0) -> 1 | H188: =ROUND(H187*H195,0) -> 0 | I188: 0 | J188: -1 | K188: 0 | L188: 0 | M188: 0 | N188: 0 | O188: 0 | P188: =SUM(D188:O188) -> 0
A190: Total Purchases Cost | D190: =+D179+D182+D185+D188 -> 20180380.61 | E190: =+E179+E182+E185+E188 -> 23612497.6 | F190: =+F179+F182+F185+F188 -> 33654633.91 | G190: =+G179+G182+G185+G188 -> 28398553.93 | H190: =+H179+H182+H185+H188 -> 19966826.24 | I190: 12531184.85 | J190: =+J179+J182+J185+J188 -> 7334060.056 | K190: 2182808.185 | L190: 0 | M190: 0 | N190: 0 | O190: =+O179+O182+O185+O188 -> 6405602.182 | P190: 154266547.6
A192: Gas Cost
A193: Gas Cost Purchases | D193: =IF(D169=0,0,ROUND(D190/D169,5)) -> 2.86996 | E193: =IF(E169=0,0,ROUND(E190/E169,5)) -> 3.31263 | F193: 3.51634 | G193: 3.43015 | H193: 3.02165 | I193: 2.79 | J193: 2.73 | K193: 2.81 | L193: 0 | M193: 0 | N193: 0 | O193: 2.75
A194: Gas Cost Injection Rate | D194: ='Ut Storage'!K27 -> 4.662419749 | E194: =+D194 -> 4.662419749 | F194: 4.662419749 | G194: 4.662419749 | H194: 4.662419749 | I194: 4.662419749 | J194: 4.662419749 | K194: 4.662419749 | L194: 4.662419749 | M194: 4.662419749 | N194: 4.662419749 | O194: 4.662419749
A195: =CONCATENATE("'Future Contract Price (spot + $",'Other Inputs'!E163,")") -> 'Future Contract Price (spot + $0.02) | D195: =+D227+'Other Inputs'!$E$163 -> 2.84 | E195: =+E227+'Other Inputs'!$E$163 -> 3.22 | F195: =+F227+'Other Inputs'!$E$163 -> 3.43 | G195: =+G227+'Other Inputs'!$E$163 -> 3.37 | H195: =+H227+'Other Inputs'!$E$163 -> 3.01 | I195: =+I227+'Other Inputs'!$E$163 -> 2.81 | J195: =+J227+'Other Inputs'!$E$163 -> 2.75 | K195: =+K227+'Other Inputs'!$E$163 -> 2.83 | L195: =+L227+'Other Inputs'!$E$163 -> 2.95 | M195: =+M227+'Other Inputs'!$E$163 -> 2.96 | N195: =+N227+'Other Inputs'!$E$163 -> 2.89 | O195: =+O227+'Other Inputs'!$E$163 -> 2.77
A197: System Production | D197: =+D159 -> 5601742.574 | E197: 6084498.055 | F197: 5977554.176 | G197: 5288121.046 | H197: 5742942.513 | I197: 5460275.11 | J197: 5550319.383 | K197: 5288889.905 | L197: 5382770.706 | M197: 5336055.336 | N197: 5194949.987 | O197: 5581378.743 | P197: =SUM(D197:O197) -> 66489497.53
A198: System Purchases | D198: =+D167 -> 6935260.473 | E198: 7030375.308 | F198: 9439795.685 | G198: 8165687.56 | H198: 6517387.208 | I198: 4429931.266 | J198: 2649664.333 | K198: 766157.6631 | L198: -0.4001291571 | M198: -0.2562752347 | N198: -0.2471970012 | O198: 2297398.774 | P198: =SUM(D198:O198) -> 48231657.37
A199: System Gathering of Production | D199: =ROUND($P199*D$120/$P$120,0) -> 0 | E199: 0 | F199: 0 | G199: 0 | H199: 0 | I199: 0 | J199: 0 | K199: 0 | L199: 0 | M199: 0 | N199: 0 | O199: 0 | P199: ='Other Inputs'!$D$168 -> 0
A200: System Birch Creek Gathering | D200: =ROUND($P200*D$120/$P$120,0) -> 0 | E200: 0 | F200: 0 | G200: 0 | H200: 0 | I200: 0 | J200: 0 | K200: 0 | L200: 0 | M200: 0 | N200: 0 | O200: 0 | P200: ='Other Inputs'!$D$152 -> 0
A202: Utah Production | D202: =ROUND(D197*$I$74,0) -> 5395192 | E202: 5860148 | F202: 5757147 | G202: 5093135 | H202: 5531186 | I202: 5258941 | J202: 5345665 | K202: 5093875 | L202: 5184295 | M202: 5139302 | N202: 5003399 | O202: 5375580 | P202: =SUM(D202:O202) -> 64037865
A203: Utah Purchases | D203: =ROUND(D198*$I$74,0) -> 6679540 | E203: 6771148 | F203: 9091727 | G203: 7864598 | H203: 6277075 | I203: 4266589 | J203: 2551965 | K203: 737908 | L203: 0 | M203: 0 | N203: 0 | O203: 2212688 | P203: =SUM(D203:O203) -> 46453238
A204: Utah Gathering | D204: =ROUND(D199*$I$74,0) -> 0 | E204: 0 | F204: 0 | G204: 0 | H204: 0 | I204: 0 | J204: 0 | K204: 0 | L204: 0 | M204: 0 | N204: 0 | O204: 0 | P204: =SUM(D204:O204) -> 0
A205: Utah Birch Creek Gathering | D205: =ROUND(D200*$I$74,0) -> 0 | E205: 0 | F205: 0 | G205: 0 | H205: 0 | I205: 0 | J205: 0 | K205: 0 | L205: 0 | M205: 0 | N205: 0 | O205: 0 | P205: =SUM(D205:O205) -> 0
A207: Wyoming Production | D207: =+D197-D202 -> 206550.5737 | E207: 224350.055 | F207: 220407.1758 | G207: 194986.0457 | H207: 211756.5132 | I207: 201334.1096 | J207: 204654.3835 | K207: 195014.9047 | L207: 198475.7059 | M207: 196753.3356 | N207: 191550.9869 | O207: 205798.7434 | P207: =SUM(D207:O207) -> 2451632.533
A208: Wyoming Purchases | D208: =+D198-D203 -> 255720.4733 | E208: 259227.3078 | F208: 348068.6847 | G208: 301089.5601 | H208: 240312.2079 | I208: 163342.2657 | J208: 97699.3331 | K208: 28249.66309 | L208: -0.4001291571 | M208: -0.2562752347 | N208: -0.2471970012 | O208: 84710.7738 | P208: =SUM(D208:O208) -> 1778419.366
... 29 more rows

Sheet CET & DSM (hidden)
A1: Rate Caclulation for the CET and DSM Amortizations
P3: Solver Cells
A4: CET Amortization % Calculation | P4: % Change | Q4: Difference
B5: Balance | C5: Date | D5: GS Dth | H5: Amortization per Dth | P5: =J20/D20 -> -0.01009266391 | Q5: =J20-B11 -> 0 | S5: -> Difference should be at 0 (Use Goal Seek to Get Difference to Equal 0.
A6: DSM Balance | B6: ='Other Inputs'!$E$244 -> 42000000 | C6: ='Other Inputs'!$F$244 -> 2011-03-31 | D6: =B20 -> 95293167 | H6: =ROUND(B6/D6,5) -> 0.44075
S8: Typical Bill Rates
A9: CET Amortization Calculation
B10: Balance | C10: Date | D10: DNG Rev | H10: New DNG | L10: % Change | S10: Current | T10: Proposed
A11: CET Balance | B11: ='Other Inputs'!$E$243 -> -1886289.514 | C11: ='Other Inputs'!$F$243 -> 2011-07-31 | D11: =D20 -> 186897089.9 | H11: =D11+B11 -> 185010800.4 | L11: =P5 -> -0.01009266391 | S11: Effective | V11: SNG & | W11: CET, DSM
S12: ='Other Inputs'!$J$89 -> 2016-06-01 | T12: CET Only | U12: DSM Only | V12: Commodity | W12: Commodity
S13: BSF | T13: BSF | U13: BSF | V13: BSF | W13: BSF
B14: Revenue Calculation | H14: CET Amortization | L14: Total DNG | P14: REVRUN Calculation | S14: ='Other Inputs'!$G$93 -> 6.75 | T14: ='Other Inputs'!$G$93 -> 6.75 | U14: ='Other Inputs'!$G$93 -> 6.75 | V14: ='Other Inputs'!$G$93 -> 6.75 | W14: ='Ut 1.8'!$C$12 -> 6.75
A15: Utah GS | B15: Dth | C15: Base DNG | D15: DNG Revenue | H15: CET Rate | J15: Revenue | L15: DNG Rate | N15: Revenue | P15: CET Rate | Q15: CET Amort
A16: Block 1 Summer | B16: ='Other Inputs'!E248 -> 23076373 | C16: ='Other Inputs'!E233 -> 1.7267 | D16: =B16*C16 -> 39845973.26 | H16: =ROUND((J16/B16),5) -> -0.01743 | J16: =D16*$P$5 -> -402152.0163 | L16: =C16+H16 -> 1.70927 | N16: =L16*B16 -> 39443752.08 | P16: =ROUND(H16,5) -> -0.01743 | Q16: =B16*P16 -> -402221.1814 | S16: ='Other Inputs'!$G$89 -> 6.58271 | T16: =N24 -> 7.11823 | U16: =N31 -> 7.07547 | V16: =N38 -> 6.676320095 | W16: =N45 -> 7.254870095
A17: Block 2 Summer | B17: ='Other Inputs'!E249 -> 4705902 | C17: ='Other Inputs'!E234 -> 0.7267 | D17: =B17*C17 -> 3419778.983 | H17: =ROUND((J17/B17),5) -> -0.00733 | J17: =D17*$P$5 -> -34514.67993 | L17: =C17+H17 -> 0.71937 | N17: =L17*B17 -> 3385284.722 | P17: =ROUND(H17,5) -> -0.00733 | Q17: =B17*P17 -> -34494.26166
A18: Block 1 Winter | B18: ='Other Inputs'!E246 -> 52526064 | C18: ='Other Inputs'!E235 -> 2.34949 | D18: =B18*C18 -> 123409462.1 | H18: =ROUND((J18/B18),5) -> -0.02371 | J18: =D18*$P$5 -> -1245530.224 | L18: =C18+H18 -> 2.32578 | N18: =L18*B18 -> 122164069.1 | P18: =ROUND(H18,5) -> -0.02371 | Q18: =B18*P18 -> -1245392.977 | S18: ='Other Inputs'!$G$91 -> 7.88596 | T18: =N26 -> 8.38376 | U18: =N33 -> 8.33606 | V18: =N40 -> 7.922210095 | W18: =N47 -> 9.111720095
A19: Block 2 Winter | B19: ='Other Inputs'!E247 -> 14984828 | C19: ='Other Inputs'!E236 -> 1.34949 | D19: =B19*C19 -> 20221875.54 | H19: =ROUND((J19/B19),5) -> -0.01362 | J19: =D19*$P$5 -> -204092.5934 | L19: =C19+H19 -> 1.33587 | N19: =L19*B19 -> 20017782.18 | P19: =ROUND(H19,5) -> -0.01362 | Q19: =B19*P19 -> -204093.3574
A20: GS-1 Block Rev | B20: =SUM(B16:B19) -> 95293167 | D20: =SUM(D16:D19) -> 186897089.9 | J20: =B11 -> -1886289.514 | N20: =SUM(N16:N19) -> 185010888.1 | Q20: =SUM(Q16:Q19) -> -1886201.778
A22: Total Rate Calculation With CET Amortization Only | N22: ='Control Panel'!E8 -> 2016-11-01 | P22: ='Other Inputs'!$J$89 -> 2016-06-01
A23: Utah GS | B23: Base DNG | C23: CET | D23: DSM | E23: Energy Assist | F23: Infrastructure | H23: Total DNG | I23: Base SNG | J23: SNG Amort | L23: Base Gas Cost | M23: 191 Amort | N23: Total Rate | P23: Total Rate
A24: Block 1 Summer | B24: =$C$16 -> 1.7267 | C24: =$H$16 -> -0.01743 | D24: 0.44104 | E24: 0.01519 | F24: 0.02908 | H24: =SUM(B24:F24) -> 2.19458 | I24: 0.55715 | J24: 0.01244 | L24: 4.21339 | M24: 0.14067 | N24: =SUM(H24:M24) -> 7.11823 | P24: ='Other Inputs'!$G$89 -> 6.58271 | Q24: =N24-P24 -> 0.53552
A25: Block 2 Summer | B25: =$C$17 -> 0.7267 | C25: =$H$17 -> -0.00733 | D25: =$D$24 -> 0.44104 | E25: =$E$24 -> 0.01519 | F25: 0.0108 | H25: =SUM(B25:F25) -> 1.1864 | I25: =I24 -> 0.55715 | J25: =J24 -> 0.01244 | L25: =L24 -> 4.21339 | M25: =$M$24 -> 0.14067 | N25: =SUM(H25:M25) -> 6.11005 | P25: ='Other Inputs'!$G$90 -> 5.50133 | Q25: =N25-P25 -> 0.60872
A26: Block 1 Winter | B26: =$C$18 -> 2.34949 | C26: =$H$18 -> -0.02371 | D26: =$D$24 -> 0.44104 | E26: =$E$24 -> 0.01519 | F26: 0.03453 | H26: =SUM(B26:F26) -> 2.81654 | I26: 1.18665 | J26: 0.02651 | L26: =L24 -> 4.21339 | M26: =$M$24 -> 0.14067 | N26: =SUM(H26:M26) -> 8.38376 | P26: ='Other Inputs'!$G$91 -> 7.88596 | Q26: =N26-P26 -> 0.4978
A27: Block 2 Winter | B27: =$C$19 -> 1.34949 | C27: =$H$19 -> -0.01362 | D27: =$D$24 -> 0.44104 | E27: =$E$24 -> 0.01519 | F27: 0.01434 | H27: =SUM(B27:F27) -> 1.80644 | I27: =I26 -> 1.18665 | J27: =J26 -> 0.02651 | L27: =L24 -> 4.21339 | M27: =$M$24 -> 0.14067 | N27: =SUM(H27:M27) -> 7.37366 | P27: ='Other Inputs'!$G$92 -> 6.80457 | Q27: =N27-P27 -> 0.56909
A29: Total Rate Calculation With DSM Amortization Only | N29: =N22 -> 2016-11-01 | P29: ='Other Inputs'!$J$89 -> 2016-06-01
A30: Utah GS | B30: Base DNG | C30: CET | D30: DSM | E30: Energy Assist | F30: Infrastructure | H30: Total DNG | I30: Base SNG | J30: SNG Amort | L30: Commodity | M30: 191 Amort | N30: Total Rate | P30: Total Rate
A31: Block 1 Summer | B31: =$C$16 -> 1.7267 | C31: -0.0599 | D31: =$H$6 -> 0.44075 | E31: =$E$24 -> 0.01519 | F31: =F24 -> 0.02908 | H31: =SUM(B31:F31) -> 2.15182 | I31: =$I$24 -> 0.55715 | J31: =J24 -> 0.01244 | L31: =$L$24 -> 4.21339 | M31: =$M$24 -> 0.14067 | N31: =SUM(H31:M31) -> 7.07547 | P31: ='Other Inputs'!$G$89 -> 6.58271 | Q31: =N31-P31 -> 0.49276
A32: Block 2 Summer | B32: =$C$17 -> 0.7267 | C32: -0.02224 | D32: =$H$6 -> 0.44075 | E32: =$E$24 -> 0.01519 | F32: =F25 -> 0.0108 | H32: =SUM(B32:F32) -> 1.1712 | I32: =$I$24 -> 0.55715 | J32: =J25 -> 0.01244 | L32: =$L$24 -> 4.21339 | M32: =$M$24 -> 0.14067 | N32: =SUM(H32:M32) -> 6.09485 | P32: ='Other Inputs'!$G$90 -> 5.50133 | Q32: =N32-P32 -> 0.59352
A33: Block 1 Winter | B33: =$C$18 -> 2.34949 | C33: -0.07112 | D33: =$H$6 -> 0.44075 | E33: =$E$24 -> 0.01519 | F33: =F26 -> 0.03453 | H33: =SUM(B33:F33) -> 2.76884 | I33: =$I$26 -> 1.18665 | J33: =J26 -> 0.02651 | L33: =$L$24 -> 4.21339 | M33: =$M$24 -> 0.14067 | N33: =SUM(H33:M33) -> 8.33606 | P33: ='Other Inputs'!$G$91 -> 7.88596 | Q33: =N33-P33 -> 0.4501
A34: Block 2 Winter | B34: =$C$19 -> 1.34949 | C34: -0.02953 | D34: =$H$6 -> 0.44075 | E34: =$E$24 -> 0.01519 | F34: =F27 -> 0.01434 | H34: =SUM(B34:F34) -> 1.79024 | I34: =$I$26 -> 1.18665 | J34: =J27 -> 0.02651 | L34: =$L$24 -> 4.21339 | M34: =$M$24 -> 0.14067 | N34: =SUM(H34:M34) -> 7.35746 | P34: ='Other Inputs'!$G$92 -> 6.80457 | Q34: =N34-P34 -> 0.55289
A36: Total Rate Calculation With SNG and Commodity Changes Only | N36: =N22 -> 2016-11-01 | P36: ='Other Inputs'!$J$89 -> 2016-06-01
A37: Utah GS | B37: Base DNG | C37: CET | D37: DSM | E37: Energy Assist | F37: Infrastructure | H37: Total DNG | I37: Base SNG | J37: SNG | L37: Commodity | M37: 191 Amort | N37: Total Rate | P37: Total Rate
A38: Block 1 Summer | B38: =$C$16 -> 1.7267 | C38: =C31 -> -0.0599 | D38: =D24 -> 0.44104 | E38: =$E$24 -> 0.01519 | F38: =F24 -> 0.02908 | H38: =SUM(B38:F38) -> 2.15211 | I38: ='Ut 1.6 p3'!G17 -> 0.53637 | J38: ='Ut 1.6 p3'!$H$17 -> 0.02022 | L38: ='Ut 1.6 p1'!$F$31 -> 4.20022 | M38: ='Ut 1.6 p1'!$F$32 -> -0.232599905 | N38: =SUM(H38:M38) -> 6.676320095 | P38: ='Other Inputs'!$G$89 -> 6.58271 | Q38: =N38-P38 -> 0.093610095
A39: Block 2 Summer | B39: =$C$17 -> 0.7267 | C39: =C32 -> -0.02224 | D39: =D25 -> 0.44104 | E39: =$E$24 -> 0.01519 | F39: =F25 -> 0.0108 | H39: =SUM(B39:F39) -> 1.17149 | I39: ='Ut 1.6 p3'!G17 -> 0.53637 | J39: ='Ut 1.6 p3'!$H$17 -> 0.02022 | L39: ='Ut 1.6 p1'!$F$31 -> 4.20022 | M39: ='Ut 1.6 p1'!$F$32 -> -0.232599905 | N39: =SUM(H39:M39) -> 5.695700095 | P39: ='Other Inputs'!$G$90 -> 5.50133 | Q39: =N39-P39 -> 0.194370095
A40: Block 1 Winter | B40: =$C$18 -> 2.34949 | C40: =C33 -> -0.07112 | D40: =D26 -> 0.44104 | E40: =$E$24 -> 0.01519 | F40: =F26 -> 0.03453 | H40: =SUM(B40:F40) -> 2.76913 | I40: ='Ut 1.6 p3'!G16 -> 1.14239 | J40: ='Ut 1.6 p3'!$H$16 -> 0.04307 | L40: ='Ut 1.6 p1'!$F$31 -> 4.20022 | M40: ='Ut 1.6 p1'!$F$32 -> -0.232599905 | N40: =SUM(H40:M40) -> 7.922210095 | P40: ='Other Inputs'!$G$91 -> 7.88596 | Q40: =N40-P40 -> 0.036250095
A41: Block 2 Winter | B41: =$C$19 -> 1.34949 | C41: =C34 -> -0.02953 | D41: =D27 -> 0.44104 | E41: =$E$24 -> 0.01519 | F41: =F27 -> 0.01434 | H41: =SUM(B41:F41) -> 1.79053 | I41: ='Ut 1.6 p3'!G16 -> 1.14239 | J41: ='Ut 1.6 p3'!$H$16 -> 0.04307 | L41: ='Ut 1.6 p1'!$F$31 -> 4.20022 | M41: ='Ut 1.6 p1'!$F$32 -> -0.232599905 | N41: =SUM(H41:M41) -> 6.943610095 | P41: ='Other Inputs'!$G$92 -> 6.80457 | Q41: =N41-P41 -> 0.139040095
A43: Total Rate Calculation | N43: =N29 -> 2016-11-01 | P43: ='Other Inputs'!$J$89 -> 2016-06-01
A44: Utah GS | B44: Base DNG | C44: CET | D44: DSM | E44: Energy Assist | F44: Infrastructure | H44: Total DNG | I44: Base SNG | J44: SNG | L44: Commodity | N44: Total Rate | P44: Total Rate
A45: Block 1 Summer | B45: =$C$16 -> 1.7267 | C45: =$H$16 -> -0.01743 | D45: =$H$6 -> 0.44075 | E45: =$E$24 -> 0.01519 | F45: =F38 -> 0.02908 | H45: =SUM(B45:F45) -> 2.19429 | I45: =I38 -> 0.53637 | J45: ='Ut 1.6 p3'!$I$17 -> 0.55659 | L45: ='Ut 1.6 p1'!$F$33 -> 3.967620095 | N45: =SUM(H45:L45) -> 7.254870095 | P45: ='Other Inputs'!$G$89 -> 6.58271 | Q45: =N45-P45 -> 0.672160095
A46: Block 2 Summer | B46: =$C$17 -> 0.7267 | C46: =$H$17 -> -0.00733 | D46: =$H$6 -> 0.44075 | E46: =$E$24 -> 0.01519 | F46: =F39 -> 0.0108 | H46: =SUM(B46:F46) -> 1.18611 | I46: =I39 -> 0.53637 | J46: ='Ut 1.6 p3'!$I$17 -> 0.55659 | L46: =$L$45 -> 3.967620095 | N46: =SUM(H46:L46) -> 6.246690095 | P46: ='Other Inputs'!$G$90 -> 5.50133 | Q46: =N46-P46 -> 0.745360095
A47: Block 1 Winter | B47: =$C$18 -> 2.34949 | C47: =$H$18 -> -0.02371 | D47: =$H$6 -> 0.44075 | E47: =$E$24 -> 0.01519 | F47: =F40 -> 0.03453 | H47: =SUM(B47:F47) -> 2.81625 | I47: =I40 -> 1.14239 | J47: ='Ut 1.6 p3'!$I$16 -> 1.18546 | L47: =$L$45 -> 3.967620095 | N47: =SUM(H47:L47) -> 9.111720095 | P47: ='Other Inputs'!$G$91 -> 7.88596 | Q47: =N47-P47 -> 1.225760095
A48: Block 2 Winter | B48: =$C$19 -> 1.34949 | C48: =$H$19 -> -0.01362 | D48: =$H$6 -> 0.44075 | E48: =$E$24 -> 0.01519 | F48: =F41 -> 0.01434 | H48: =SUM(B48:F48) -> 1.80615 | I48: =I41 -> 1.14239 | J48: ='Ut 1.6 p3'!$I$16 -> 1.18546 | L48: =$L$45 -> 3.967620095 | N48: =SUM(H48:L48) -> 8.101620095 | P48: ='Other Inputs'!$G$92 -> 6.80457 | Q48: =N48-P48 -> 1.297050095
A50: Typical Customer Difference - CET Amortization Only
B51: Typical
A52: GS | B52: Dth | C52: =S12 -> 2016-06-01 | D52: =N43 -> 2016-11-01 | H52: Change | J52: % Change
A53: January | B53: 14.9 | C53: =ROUND($S$14+(B53*$S$18),2) -> 124.25 | D53: =ROUND($T$14+(B53*$T$18),2) -> 131.67 | H53: =D53-C53 -> 7.42
A54: February | B54: 12.5 | C54: =ROUND($S$14+(B54*$S$18),2) -> 105.32 | D54: =ROUND($T$14+(B54*$T$18),2) -> 111.55 | H54: 6.23
A55: March | B55: 10.1 | C55: =ROUND($S$14+(B55*$S$18),2) -> 86.4 | D55: =ROUND($T$14+(B55*$T$18),2) -> 91.43 | H55: 5.03
A56: April | B56: 8.3 | C56: =ROUND($S$14+(B56*$S$16),2) -> 61.39 | D56: =ROUND($T$14+(B56*$T$16),2) -> 65.83 | H56: 4.44
A57: May | B57: 4.4 | C57: 35.71 | D57: =ROUND($T$14+(B57*$T$16),2) -> 38.07 | H57: 2.36
A58: June | B58: 3.1 | C58: 27.16 | D58: 28.82 | H58: 1.66
A59: July | B59: 2 | C59: 19.92 | D59: 20.99 | H59: 1.07
A60: August | B60: 1.8 | C60: 18.6 | D60: 19.56 | H60: 0.96
A61: September | B61: 2 | C61: 19.92 | D61: 20.99 | H61: 1.07
A62: October | B62: 3.1 | C62: 27.16 | D62: 28.82 | H62: 1.66
A63: November | B63: 6.3 | C63: =ROUND($S$14+(B63*$S$18),2) -> 56.43 | D63: =ROUND($T$14+(B63*$T$18),2) -> 59.57 | H63: 3.14
A64: December | B64: 11.5 | C64: =ROUND($S$14+(B64*$S$18),2) -> 97.44 | D64: =ROUND($T$14+(B64*$T$18),2) -> 103.16 | H64: 5.72
B65: =SUM(B53:B64) -> 80 | C65: =SUM(C53:C64) -> 679.7 | D65: =SUM(D53:D64) -> 720.46 | H65: =SUM(H53:H64) -> 40.76 | J65: =H65/C65 -> 0.05996763278
A68: Typical Customer Difference - DSM Amortization Only
B69: Typical
A70: GS | B70: Dth | C70: =C52 -> 2016-06-01 | D70: =D52 -> 2016-11-01 | H70: Change | J70: % Change
A71: January | B71: 14.9 | C71: =ROUND($S$14+(B71*$S$18),2) -> 124.25 | D71: =ROUND($U$14+(B71*$U$18),2) -> 130.96 | H71: =D71-C71 -> 6.71
A72: February | B72: 12.5 | C72: =ROUND($S$14+(B72*$S$18),2) -> 105.32 | D72: =ROUND($U$14+(B72*$U$18),2) -> 110.95 | H72: 5.63
A73: March | B73: 10.1 | C73: =ROUND($S$14+(B73*$S$18),2) -> 86.4 | D73: =ROUND($U$14+(B73*$U$18),2) -> 90.94 | H73: 4.54
A74: April | B74: 8.3 | C74: =ROUND($S$14+(B74*$S$16),2) -> 61.39 | D74: =ROUND($U$14+(B74*$U$16),2) -> 65.48 | H74: 4.09
A75: May | B75: 4.4 | C75: 35.71 | D75: 37.88 | H75: 2.17
A76: June | B76: 3.1 | C76: 27.16 | D76: 28.68 | H76: 1.52
A77: July | B77: 2 | C77: 19.92 | D77: 20.9 | H77: 0.98
A78: August | B78: 1.8 | C78: 18.6 | D78: 19.49 | H78: 0.89
A79: September | B79: 2 | C79: 19.92 | D79: 20.9 | H79: 0.98
A80: October | B80: 3.1 | C80: 27.16 | D80: 28.68 | H80: 1.52
A81: November | B81: 6.3 | C81: =ROUND($S$14+(B81*$S$18),2) -> 56.43 | D81: =ROUND($U$14+(B81*$U$18),2) -> 59.27 | H81: 2.84
A82: December | B82: 11.5 | C82: =ROUND($S$14+(B82*$S$18),2) -> 97.44 | D82: =ROUND($U$14+(B82*$U$18),2) -> 102.61 | H82: 5.17
B83: =SUM(B71:B82) -> 80 | C83: =SUM(C71:C82) -> 679.7 | D83: =SUM(D71:D82) -> 716.74 | H83: =SUM(H71:H82) -> 37.04 | J83: =H83/C83 -> 0.05449462998
A86: Typical Customer Difference - SNG and Commodity Changes Only
B87: Typical
A88: GS-1 | B88: Dth | C88: =C70 -> 2016-06-01 | D88: =D70 -> 2016-11-01 | H88: Change | J88: % Change
A89: January | B89: 14.9 | C89: =ROUND($S$14+(B89*$S$18),2) -> 124.25 | D89: =ROUND($V$14+(B89*$V$18),2) -> 124.79 | H89: =D89-C89 -> 0.54
A90: February | B90: 12.5 | C90: =ROUND($S$14+(B90*$S$18),2) -> 105.32 | D90: =ROUND($V$14+(B90*$V$18),2) -> 105.78 | H90: 0.46
A91: March | B91: 10.1 | C91: =ROUND($S$14+(B91*$S$18),2) -> 86.4 | D91: =ROUND($V$14+(B91*$V$18),2) -> 86.76 | H91: 0.36
A92: April | B92: 8.3 | C92: =ROUND($S$14+(B92*$S$16),2) -> 61.39 | D92: =ROUND($V$14+(B92*$V$16),2) -> 62.16 | H92: 0.77
A93: May | B93: 4.4 | C93: 35.71 | D93: 36.13 | H93: 0.42
A94: June | B94: 3.1 | C94: 27.16 | D94: 27.45 | H94: 0.29
A95: July | B95: 2 | C95: 19.92 | D95: 20.1 | H95: 0.18
A96: August | B96: 1.8 | C96: 18.6 | D96: 18.77 | H96: 0.17
A97: September | B97: 2 | C97: 19.92 | D97: 20.1 | H97: 0.18
A98: October | B98: 3.1 | C98: 27.16 | D98: 27.45 | H98: 0.29
A99: November | B99: 6.3 | C99: =ROUND($S$14+(B99*$S$18),2) -> 56.43 | D99: =ROUND($V$14+(B99*$V$18),2) -> 56.66 | H99: 0.23
A100: December | B100: 11.5 | C100: =ROUND($S$14+(B100*$S$18),2) -> 97.44 | D100: =ROUND($V$14+(B100*$V$18),2) -> 97.86 | H100: 0.42
B101: =SUM(B89:B100) -> 80 | C101: =SUM(C89:C100) -> 679.7 | D101: =SUM(D89:D100) -> 684.01 | H101: =SUM(H89:H100) -> 4.31 | J101: =H101/C101 -> 0.006341032809
A104: Typical Customer Difference - CET & DSM Amort, SNG and Commodity Changes
B105: Typical
A106: GS-1 | B106: Dth | C106: =C52 -> 2016-06-01 | D106: =D52 -> 2016-11-01 | H106: Change | J106: % Change
A107: January | B107: 14.9 | C107: =ROUND($S$14+(B107*$S$18),2) -> 124.25 | D107: =ROUND($W$14+(B107*$W$18),2) -> 142.51 | H107: =D107-C107 -> 18.26
A108: February | B108: 12.5 | C108: =ROUND($S$14+(B108*$S$18),2) -> 105.32 | D108: =ROUND($W$14+(B108*$W$18),2) -> 120.65 | H108: 15.33
A109: March | B109: 10.1 | C109: =ROUND($S$14+(B109*$S$18),2) -> 86.4 | D109: =ROUND($W$14+(B109*$W$18),2) -> 98.78 | H109: 12.38
A110: April | B110: 8.3 | C110: =ROUND($S$14+(B110*$S$16),2) -> 61.39 | D110: =ROUND($W$14+(B110*$W$16),2) -> 66.97 | H110: 5.58
A111: May | B111: 4.4 | C111: 35.71 | D111: 38.67 | H111: 2.96
A112: June | B112: 3.1 | C112: 27.16 | D112: 29.24 | H112: 2.08
A113: July | B113: 2 | C113: 19.92 | D113: 21.26 | H113: 1.34
A114: August | B114: 1.8 | C114: 18.6 | D114: 19.81 | H114: 1.21
A115: September | B115: 2 | C115: 19.92 | D115: 21.26 | H115: 1.34
A116: October | B116: 3.1 | C116: 27.16 | D116: 29.24 | H116: 2.08
A117: November | B117: 6.3 | C117: =ROUND($S$14+(B117*$S$18),2) -> 56.43 | D117: =ROUND($W$14+(B117*$W$18),2) -> 64.15 | H117: 7.72
A118: December | B118: 11.5 | C118: =ROUND($S$14+(B118*$S$18),2) -> 97.44 | D118: =ROUND($W$14+(B118*$W$18),2) -> 111.53 | H118: 14.09
B119: =SUM(B107:B118) -> 80 | C119: =SUM(C107:C118) -> 679.7 | D119: =SUM(D107:D118) -> 764.07 | H119: =SUM(H107:H118) -> 84.37 | J119: =H119/C119 -> 0.1241282919

Sheet UT Tariff Sheets PT (hidden)
B2: 2.02 GS Rate Schedule | J2: 2.03 FS Rate Schedule | AB2: 4.03 ES Rate Schedule | AI2: 2.05 NGV Rate Schedule
C3: Rates Per Dth Used Each Month | M3: Rates Per Dth Used Each Month | T3: 4.02 IS Rate Schedule | AB3: ES Volumetric Rates | AI3: NGV Volumetric Rate
C4: Summer Rates: Apr. 1 - Oct. 31 | E4: Winter Rates: Nov. 1 - Mar. 31 | M4: Dth = decatherm = 10 therms = 1,000,000 BTU | T4: IS Volumetric Rates
C5: First 45 Dth | D5: All Over 45 Dth | E5: First 45 Dth | F5: All Over 45 Dth | K5: Summer Rates: Apr. 1 - Oct. 31 | N5: Winter Rates: Nov. 1 - Mar. 31 | U5: Rates Per Dth Used Each Month | AE5: Rates Per Dth Used Each Month | AM5: Rates Per Dth Used Each Month
B6: Base DNG | C6: ='CET & DSM'!B38 -> 1.7267 | D6: ='CET & DSM'!B39 -> 0.7267 | E6: ='CET & DSM'!B40 -> 2.34949 | F6: ='CET & DSM'!B41 -> 1.34949 | K6: First | L6: Next | M6: All Over | N6: First | O6: Next | P6: All Over | U6: Dth = decatherm = 10 therms = 1,000,000 BTU | AE6: Dth = decatherm = 10 therms = 1,000,000 BTU | AM6: Dth = decatherm = 10 therms = 1,000,000 BTU
B7: CET Amortization | C7: ='CET & DSM'!C38 -> -0.0599 | D7: ='CET & DSM'!C39 -> -0.02224 | E7: ='CET & DSM'!C40 -> -0.07112 | F7: ='CET & DSM'!C41 -> -0.02953 | K7: 200 | L7: 1800 | M7: 2000 | N7: 200 | O7: 1800 | P7: 2000 | U7: First | V7: Next | W7: All Over | AB7: Distribution Non-Gas Rate | AC7: ='Ut 1.8'!#REF! ->  | AI7: Base DNG | AK7: ='Ut 1.8'!C52 -> 5.66791
B8: DSM Amortization | C8: =ROUND('CET & DSM'!D38,5) -> 0.44104 | D8: =ROUND('CET & DSM'!D39,5) -> 0.44104 | E8: =ROUND('CET & DSM'!D40,5) -> 0.44104 | F8: =ROUND('CET & DSM'!D41,5) -> 0.44104 | J8: Base DNG | K8: ='Ut 1.8'!C19 -> 0.86572 | L8: ='Ut 1.8'!D19 -> 0.47047 | M8: ='Ut 1.8'!E19 -> 0.05442 | N8: ='Ut 1.8'!F19 -> 1.30918 | O8: ='Ut 1.8'!G19 -> 0.91393 | P8: ='Ut 1.8'!H19 -> 0.49788 | U8: 2000 | V8: 18000 | W8: 20000 | AI8: Energy Assistance | AK8: ='Other Inputs'!$E$241 -> 0.2679
B9: Energy Assistance | C9: ='Other Inputs'!$E$238 -> 0.01419 | D9: ='Other Inputs'!$E$238 -> 0.01419 | E9: ='Other Inputs'!$E$238 -> 0.01419 | F9: ='Other Inputs'!$E$238 -> 0.01419 | J9: Energy Assistance | K9: ='Other Inputs'!$E$239 -> 0.01174 | L9: ='Other Inputs'!$E$239 -> 0.01174 | M9: ='Other Inputs'!$E$239 -> 0.01174 | N9: ='Other Inputs'!$E$239 -> 0.01174 | O9: ='Other Inputs'!$E$239 -> 0.01174 | P9: ='Other Inputs'!$E$239 -> 0.01174 | T9: Base DNG | U9: ='Ut 1.8'!C60 -> 0.50354 | V9: ='Ut 1.8'!D60 -> 0.09352 | W9: ='Ut 1.8'!E60 -> 0.06352 | AB9: Base SNG | AC9: =ROUND('Ut 1.6 p3'!#REF!,5) ->  | AI9: Distribution Non-Gas Rate | AK9: =SUM(AK7:AM8) -> 5.93581
B10: Distribution Non-Gas Rate | C10: =SUM(C6:C9) -> 2.12203 | D10: =SUM(D6:D9) -> 1.15969 | E10: =SUM(E6:E9) -> 2.7336 | F10: =SUM(F6:F9) -> 1.77519 | J10: Distribution Non-Gas Rate | K10: =SUM(K8:K9) -> 0.87746 | L10: 0.48221 | M10: 0.06616 | N10: 1.32092 | O10: 0.92567 | P10: 0.50962 | T10: Energy Assistance | U10: ='Other Inputs'!$E$240 -> 0.00657 | V10: ='Other Inputs'!$E$240 -> 0.00657 | W10: ='Other Inputs'!$E$240 -> 0.00657 | AB10: SNG Amortization | AC10: =ROUND('Ut 1.6 p3'!#REF!,5) -> 
T11: Distribution Non-Gas Rate | U11: =SUM(U9:U10) -> 0.51011 | V11: =SUM(V9:V10) -> 0.10009 | W11: =SUM(W9:W10) -> 0.07009 | AB11: Supplier Non-Gas Rate | AC11: =SUM(AC9:AF10) ->  | AI11: Base SNG | AK11: =ROUND('Ut 1.6 p3'!G$22,5) -> 0.82437
B12: Base SNG | C12: ='CET & DSM'!I38 -> 0.53637 | D12: ='CET & DSM'!I39 -> 0.53637 | E12: ='CET & DSM'!I40 -> 1.14239 | F12: ='CET & DSM'!I41 -> 1.14239 | J12: Base SNG | K12: =ROUND('Ut 1.6 p3'!G$20,5) -> 0.53637 | L12: =ROUND('Ut 1.6 p3'!G$20,5) -> 0.53637 | M12: =ROUND('Ut 1.6 p3'!G$20,5) -> 0.53637 | N12: =ROUND('Ut 1.6 p3'!G$19,5) -> 1.11264 | O12: =ROUND('Ut 1.6 p3'!G$19,5) -> 1.11264 | P12: =ROUND('Ut 1.6 p3'!G$19,5) -> 1.11264 | T12: Supplier Non-Gas Rate | U12: =ROUND('Ut 1.6 p3'!$G$24/(1-'Other Inputs'!$E$288),5) -> 0.17922 | V12: =ROUND('Ut 1.6 p3'!$G$24/(1-'Other Inputs'!$E$288),5) -> 0.17922 | W12: =ROUND('Ut 1.6 p3'!$G$24/(1-'Other Inputs'!$E$288),5) -> 0.17922 | AI12: SNG Amortization | AK12: =ROUND('Ut 1.6 p3'!H$22,5) -> 0.03108
B13: SNG Amortization | C13: ='CET & DSM'!J38 -> 0.02022 | D13: ='CET & DSM'!J39 -> 0.02022 | E13: ='CET & DSM'!J40 -> 0.04307 | F13: ='CET & DSM'!J41 -> 0.04307 | J13: SNG Amortization | K13: =ROUND('Ut 1.6 p3'!H$20,5) -> 0.02022 | L13: =ROUND('Ut 1.6 p3'!H$20,5) -> 0.02022 | M13: =ROUND('Ut 1.6 p3'!H$20,5) -> 0.02022 | N13: =ROUND('Ut 1.6 p3'!H$19,5) -> 0.04194 | O13: =ROUND('Ut 1.6 p3'!H$19,5) -> 0.04194 | P13: =ROUND('Ut 1.6 p3'!H$19,5) -> 0.04194 | AB13: Commodity Rate | AC13: Highest Gas Cost | AI13: Supplier Non-Gas Rate | AK13: =SUM(AK11:AM12) -> 0.85545
B14: Supplier Non-Gas Rate | C14: =SUM(C12:C13) -> 0.55659 | D14: =SUM(D12:D13) -> 0.55659 | E14: =SUM(E12:E13) -> 1.18546 | F14: =SUM(F12:F13) -> 1.18546 | J14: Supplier Non-Gas Rate | K14: =SUM(K12:K13) -> 0.55659 | L14: 0.55659 | M14: 0.55659 | N14: 1.15458 | O14: 1.15458 | P14: 1.15458 | AB14: Total Rate | AC14: $
AI15: Base Gas Cost | AK15: =ROUND('Ut 1.6 p1'!$F$31,5) -> 4.20022
B16: Base Gas Cost | C16: ='Ut 1.6 p1'!$F$31 -> 4.20022 | D16: ='Ut 1.6 p1'!$F$31 -> 4.20022 | E16: ='Ut 1.6 p1'!$F$31 -> 4.20022 | F16: ='Ut 1.6 p1'!$F$31 -> 4.20022 | J16: Base Gas Cost | K16: =ROUND('Ut 1.6 p1'!$F$31,5) -> 4.20022 | L16: =ROUND('Ut 1.6 p1'!$F$31,5) -> 4.20022 | M16: =ROUND('Ut 1.6 p1'!$F$31,5) -> 4.20022 | N16: =ROUND('Ut 1.6 p1'!$F$31,5) -> 4.20022 | O16: =ROUND('Ut 1.6 p1'!$F$31,5) -> 4.20022 | P16: =ROUND('Ut 1.6 p1'!$F$31,5) -> 4.20022 | AB16: Penalty for failure to interrupt or limit usage when requested by the Company. See See § 3.02 | AI16: Commodity Amortization | AK16: =ROUND('Ut 1.6 p1'!$F$32,5) -> -0.2326
B17: 191 Amortization | C17: ='Ut 1.6 p1'!$F$32 -> -0.232599905 | D17: ='Ut 1.6 p1'!$F$32 -> -0.232599905 | E17: ='Ut 1.6 p1'!$F$32 -> -0.232599905 | F17: ='Ut 1.6 p1'!$F$32 -> -0.232599905 | J17: 191 Amortization | K17: =ROUND('Ut 1.6 p1'!$F$32,5) -> -0.2326 | L17: =ROUND('Ut 1.6 p1'!$F$32,5) -> -0.2326 | M17: =ROUND('Ut 1.6 p1'!$F$32,5) -> -0.2326 | N17: =ROUND('Ut 1.6 p1'!$F$32,5) -> -0.2326 | O17: =ROUND('Ut 1.6 p1'!$F$32,5) -> -0.2326 | P17: =ROUND('Ut 1.6 p1'!$F$32,5) -> -0.2326 | AI17: Commodity Rate | AK17: =SUM(AK15:AM16) -> 3.96762
B18: Commodity Rate | C18: =SUM(C16:C17) -> 3.967620095 | D18: =SUM(D16:D17) -> 3.967620095 | E18: =SUM(E16:E17) -> 3.967620095 | F18: =SUM(F16:F17) -> 3.967620095 | J18: Commodity Rate | K18: =SUM(K16:K17) -> 3.96762 | L18: 3.96762 | M18: 3.96762 | N18: 3.96762 | O18: 3.96762 | P18: 3.96762 | T18: Total Rate | U18: $ | V18: $ | W18: $
AI19: Total Rate | AK19: =SUM(AK9,AK13,AK17) -> 10.75888
B20: Total Rate | C20: =SUM(C18,C14,C10) -> 6.646240095 | D20: =SUM(D18,D14,D10) -> 5.683900095 | E20: =SUM(E18,E14,E10) -> 7.886680095 | F20: =SUM(F18,F14,F10) -> 6.928270095 | J20: Total Rate | K20: =SUM(K18,K14,K10) -> 5.40167 | L20: 5.00642 | M20: 4.59037 | N20: 6.44312 | O20: 6.04787 | P20: 5.63182 | T20: Minimum Monthly Distribution Non-Gas Charge
AI21: Penalty for failure to interrupt or limit usage when requested by the Company. See See § 3.02
E22: BSF Category 1 | F22: ='Ut 1.8'!C12 -> 6.75 | J22: Minimum Monthly Distribution Non-Gas Charge | O22: Summer | P22: =ROUND(K8*175,0) -> 152
E23: BSF Category 2 | F23: ='Ut 1.8'!C13 -> 18.25 | O23: Winter | P23: =ROUND(N8*175,0) -> 229
E24: BSF Category 3 | F24: ='Ut 1.8'!C14 -> 63.5 | V24: BSF Category 1 | W24: 5
E25: BSF Category 4 | F25: ='Ut 1.8'!C15 -> 420.25 | V25: BSF Category 2 | W25: 29
N26: BSF Category 1 | P26: 5 | V26: BSF Category 3 | W26: 67
N27: BSF Category 2 | P27: 21 | V27: BSF Category 4 | W27: 274
N28: BSF Category 3 | P28: 55
N29: BSF Category 4 | P29: 244
AI30: =B44 -> Issued by R. W. Jibson, President | AL30: Advice No | AM30: Section Revision No.
AB39: =B44 -> Issued by R. W. Jibson, President | AE39: Advice No | AF39: Section Revision No.
AB42: New Pass Through Values
B44: Issued by R. W. Jibson, President | D44: Advice No | E44: Section Revision No. | F44: Effective Date
T47: =B44 -> Issued by R. W. Jibson, President | W47: Advice No
B48: Pass Through Changes | J48: =B44 -> Issued by R. W. Jibson, President | M48: Advice No | N48: Section Revision No. | P48: Effective Date
T50: New Pass Through Values
J51: New Pass Through Values

Sheet UT Tariff Sheets (hidden)
B2: 2.02 GS Rate Schedule | I2: 2.02 GS Rate Schedule
C3: Rates Per Dth Used Each Month | J3: Rates Per Dth Used Each Month
C4: Summer Rates: Apr. 1 - Oct. 31 | E4: Winter Rates: Nov. 1 - Mar. 31 | J4: Summer Rates: Apr. 1 - Oct. 31 | L4: Winter Rates: Nov. 1 - Mar. 31
C5: First 45 Dth | D5: All Over 45 Dth | E5: First 45 Dth | F5: All Over 45 Dth | J5: First 45 Dth | K5: All Over 45 Dth | L5: First 45 Dth | M5: All Over 45 Dth
B6: Base DNG | C6: ='CET & DSM'!B24 -> 1.7267 | D6: ='CET & DSM'!B25 -> 0.7267 | E6: ='CET & DSM'!B26 -> 2.34949 | F6: ='CET & DSM'!B27 -> 1.34949 | I6: Base DNG | J6: ='CET & DSM'!B31 -> 1.7267 | K6: ='CET & DSM'!B32 -> 0.7267 | L6: ='CET & DSM'!B33 -> 2.34949 | M6: ='CET & DSM'!B34 -> 1.34949
B7: CET Amortization | C7: ='CET & DSM'!H16 -> -0.01743 | D7: ='CET & DSM'!H17 -> -0.00733 | E7: ='CET & DSM'!H18 -> -0.02371 | F7: ='CET & DSM'!H19 -> -0.01362 | I7: CET Amortization | J7: ='CET & DSM'!C31 -> -0.0599 | K7: ='CET & DSM'!C32 -> -0.02224 | L7: ='CET & DSM'!C33 -> -0.07112 | M7: ='CET & DSM'!C34 -> -0.02953
B8: DSM Amortization | C8: ='CET & DSM'!D24 -> 0.44104 | D8: ='CET & DSM'!D25 -> 0.44104 | E8: ='CET & DSM'!D26 -> 0.44104 | F8: ='CET & DSM'!D27 -> 0.44104 | I8: DSM Amortization | J8: =ROUND('CET & DSM'!D31,5) -> 0.44075 | K8: =ROUND('CET & DSM'!D32,5) -> 0.44075 | L8: =ROUND('CET & DSM'!D33,5) -> 0.44075 | M8: =ROUND('CET & DSM'!D34,5) -> 0.44075
B9: Energy Assistance | C9: ='Other Inputs'!$E$238 -> 0.01419 | D9: ='Other Inputs'!$E$238 -> 0.01419 | E9: ='Other Inputs'!$E$238 -> 0.01419 | F9: ='Other Inputs'!$E$238 -> 0.01419 | I9: Energy Assistance | J9: ='Other Inputs'!$E$238 -> 0.01419 | K9: ='Other Inputs'!$E$238 -> 0.01419 | L9: ='Other Inputs'!$E$238 -> 0.01419 | M9: ='Other Inputs'!$E$238 -> 0.01419
B10: Distribution Non-Gas Rate | C10: =SUM(C6:C9) -> 2.1645 | D10: =SUM(D6:D9) -> 1.1746 | E10: =SUM(E6:E9) -> 2.78101 | F10: =SUM(F6:F9) -> 1.7911 | I10: Distribution Non-Gas Rate | J10: =SUM(J6:J9) -> 2.12174 | K10: =SUM(K6:K9) -> 1.1594 | L10: =SUM(L6:L9) -> 2.73331 | M10: =SUM(M6:M9) -> 1.7749
B12: Base SNG | C12: ='CET & DSM'!I24 -> 0.55715 | D12: ='CET & DSM'!I25 -> 0.55715 | E12: ='CET & DSM'!I26 -> 1.18665 | F12: ='CET & DSM'!I27 -> 1.18665 | I12: Base SNG | J12: ='CET & DSM'!I31 -> 0.55715 | K12: ='CET & DSM'!I32 -> 0.55715 | L12: ='CET & DSM'!I33 -> 1.18665 | M12: ='CET & DSM'!I34 -> 1.18665
B13: SNG Amortization | C13: ='CET & DSM'!J24 -> 0.01244 | D13: ='CET & DSM'!J25 -> 0.01244 | E13: ='CET & DSM'!J26 -> 0.02651 | F13: ='CET & DSM'!J27 -> 0.02651 | I13: SNG Amortization | J13: ='CET & DSM'!J31 -> 0.01244 | K13: ='CET & DSM'!J32 -> 0.01244 | L13: ='CET & DSM'!J33 -> 0.02651 | M13: ='CET & DSM'!J34 -> 0.02651
B14: Supplier Non-Gas Rate | C14: =SUM(C12:C13) -> 0.56959 | D14: =SUM(D12:D13) -> 0.56959 | E14: =SUM(E12:E13) -> 1.21316 | F14: =SUM(F12:F13) -> 1.21316 | I14: Supplier Non-Gas Rate | J14: =SUM(J12:J13) -> 0.56959 | K14: =SUM(K12:K13) -> 0.56959 | L14: =SUM(L12:L13) -> 1.21316 | M14: =SUM(M12:M13) -> 1.21316
B16: Base Gas Cost | C16: ='CET & DSM'!L24 -> 4.21339 | D16: ='CET & DSM'!L25 -> 4.21339 | E16: ='CET & DSM'!L26 -> 4.21339 | F16: ='CET & DSM'!L27 -> 4.21339 | I16: Base Gas Cost | J16: ='CET & DSM'!L31 -> 4.21339 | K16: ='CET & DSM'!L32 -> 4.21339 | L16: ='CET & DSM'!L33 -> 4.21339 | M16: ='CET & DSM'!L34 -> 4.21339
B17: 191 Amortization | C17: ='CET & DSM'!M24 -> 0.14067 | D17: ='CET & DSM'!M25 -> 0.14067 | E17: ='CET & DSM'!M26 -> 0.14067 | F17: ='CET & DSM'!M27 -> 0.14067 | I17: 191 Amortization | J17: ='CET & DSM'!M31 -> 0.14067 | K17: ='CET & DSM'!M32 -> 0.14067 | L17: ='CET & DSM'!M33 -> 0.14067 | M17: ='CET & DSM'!M34 -> 0.14067
B18: Commodity Rate | C18: =SUM(C16:C17) -> 4.35406 | D18: =SUM(D16:D17) -> 4.35406 | E18: =SUM(E16:E17) -> 4.35406 | F18: =SUM(F16:F17) -> 4.35406 | I18: Commodity Rate | J18: =SUM(J16:J17) -> 4.35406 | K18: =SUM(K16:K17) -> 4.35406 | L18: =SUM(L16:L17) -> 4.35406 | M18: =SUM(M16:M17) -> 4.35406
B20: Total Rate | C20: =SUM(C18,C14,C10) -> 7.08815 | D20: =SUM(D18,D14,D10) -> 6.09825 | E20: =SUM(E18,E14,E10) -> 8.34823 | F20: =SUM(F18,F14,F10) -> 7.35832 | I20: Total Rate | J20: =SUM(J18,J14,J10) -> 7.04539 | K20: =SUM(K18,K14,K10) -> 6.08305 | L20: =SUM(L18,L14,L10) -> 8.30053 | M20: =SUM(M18,M14,M10) -> 7.34212
E23: BSF Category 1 | F23: ='Ut 1.8'!C12 -> 6.75 | L23: BSF Category 1 | M23: ='Ut 1.8'!C12 -> 6.75
E24: BSF Category 2 | F24: ='Ut 1.8'!C13 -> 18.25 | L24: BSF Category 2 | M24: ='Ut 1.8'!C13 -> 18.25
E25: BSF Category 3 | F25: ='Ut 1.8'!C14 -> 63.5 | L25: BSF Category 3 | M25: ='Ut 1.8'!C14 -> 63.5
E26: BSF Category 4 | F26: ='Ut 1.8'!C15 -> 420.25 | L26: BSF Category 4 | M26: ='Ut 1.8'!C15 -> 420.25
B45: Issued by R. W. Jibson, President | D45: Advice No | E45: Section Revision No. | F45: Effective Date | I45: Issued by R. W. Jibson, President | K45: Advice No | L45: Section Revision No. | M45: Effective Date
B49: New CET Only | I49: NEW DSM ONLY

Sheet Utah Summary-by class
A1: UTAH SUMMARY
Q3: Sub Total
C4: COMMODITY | J4: SNG | Q4: TOTAL
C5: Current | D5: Proposed | E5: Current | F5: Proposed | G5: Revenue | H5: % | J5: Current | K5: Proposed | L5: Current | M5: Proposed | N5: Revenue | O5: % | Q5: Revenue | R5: %
A6: RATE | B6: Dth Sales | C6: Rates | D6: Rates | E6: Revenue | F6: Revenue | G6: Difference | H6: Change | J6: Rates | K6: Rates | L6: Revenue | M6: Revenue | N6: Difference | O6: Change | Q6: Difference | R6: Change
A8: GS (W) | B8: =Calculations!P52 -> 73524320 | C8: ='Ut 1.6 p1'!$H$33 -> 3.89851 | D8: =ROUND('Ut 1.6 p1'!$F$33,5) -> 3.96762 | E8: =ROUND(B8*C8,0) -> 286635297 | F8: =ROUND(B8*D8,0) -> 291716563 | G8: =(F8-E8) -> 5081266 | J8: ='Ut 1.6 p3'!E16 -> 1.18715 | K8: ='Ut 1.6 p3'!I16 -> 1.18546 | L8: =ROUND(B8*J8,0) -> 87284396 | M8: =B8*K8 -> 87160140.39 | N8: =(M8-L8) -> -124255.6128 | Q8: =G8+N8 -> 4957010.387
A9: GS (S) | B9: =Calculations!P53 -> 28367403 | C9: ='Ut 1.6 p1'!$H$33 -> 3.89851 | D9: =D8 -> 3.96762 | E9: =ROUND(B9*C9,0) -> 110590604 | F9: =ROUND(B9*D9,0) -> 112551075 | G9: =(F9-E9) -> 1960471 | J9: ='Ut 1.6 p3'!E17 -> 0.55738 | K9: ='Ut 1.6 p3'!I17 -> 0.55659 | L9: =ROUND(B9*J9,0) -> 15811423 | M9: =B9*K9 -> 15789012.84 | N9: =(M9-L9) -> -22410.16423 | Q9: =G9+N9 -> 1938060.836
A10: Total | B10: =SUM(B8:B9) -> 101891723 | E10: =SUM(E8:E9) -> 397225901 | F10: =SUM(F8:F9) -> 404267638 | G10: =SUM(G8:G9) -> 7041737 | H10: =IF(G10=0,0,G10/E10) -> 0.01772728561 | L10: =SUM(L8:L9) -> 103095819 | M10: =SUM(M8:M9) -> 102949153.2 | N10: =SUM(N8:N9) -> -146665.777 | O10: =IF(N10=0,0,N10/L10) -> -0.001422616149 | Q10: =SUM(Q8:Q9) -> 6895071.223 | R10: =IF(Q10=0,0,Q10/(E10+L10)) -> 0.01378127502
A13: FS (W) | B13: =Calculations!P58 -> 2312208 | C13: ='Ut 1.6 p1'!$H$33 -> 3.89851 | D13: =D8 -> 3.96762 | E13: =ROUND(B13*C13,0) -> 9014166 | F13: =ROUND(B13*D13,0) -> 9173963 | G13: =(F13-E13) -> 159797 | J13: ='Ut 1.6 p3'!E19 -> 1.15623 | K13: ='Ut 1.6 p3'!I19 -> 1.15458 | L13: =ROUND(B13*J13,0) -> 2673444 | M13: =B13*K13 -> 2669629.113 | N13: =(M13-L13) -> -3814.88736 | Q13: =G13+N13 -> 155982.1126
A14: FS (S) | B14: =Calculations!P59 -> 2232924 | C14: ='Ut 1.6 p1'!$H$33 -> 3.89851 | D14: =D9 -> 3.96762 | E14: =ROUND(B14*C14,0) -> 8705077 | F14: =ROUND(B14*D14,0) -> 8859394 | G14: =(F14-E14) -> 154317 | J14: ='Ut 1.6 p3'!E20 -> 0.55738 | K14: ='Ut 1.6 p3'!I20 -> 0.55659 | L14: =ROUND(B14*J14,0) -> 1244587 | M14: =B14*K14 -> 1242823.169 | N14: =(M14-L14) -> -1763.83084 | Q14: =G14+N14 -> 152553.1692
A15: Total | B15: =SUM(B13:B14) -> 4545132 | E15: =SUM(E13:E14) -> 17719243 | F15: =SUM(F13:F14) -> 18033357 | G15: =SUM(G13:G14) -> 314114 | H15: =IF(G15=0,0,G15/E15) -> 0.01772728101 | L15: =SUM(L13:L14) -> 3918031 | M15: =SUM(M13:M14) -> 3912452.282 | N15: =SUM(N13:N14) -> -5578.7182 | O15: =IF(N15=0,0,N15/L15) -> -0.001423857596 | Q15: =SUM(Q13:Q14) -> 308535.2818 | R15: =IF(Q15=0,0,Q15/(E15+L15)) -> 0.01425943406
A18: NGV | B18: =Calculations!P12 -> 518463 | C18: ='Ut 1.6 p1'!$H$33 -> 3.89851 | D18: =D8 -> 3.96762 | E18: =ROUND(B18*C18,0) -> 2021233 | F18: =ROUND(B18*D18,0) -> 2057064 | G18: =(F18-E18) -> 35831 | H18: =IF(G18=0,0,G18/E18) -> 0.01772729814 | J18: ='Ut 1.6 p3'!E22 -> 0.85667 | K18: ='Ut 1.6 p3'!I22 -> 0.85545 | L18: =ROUND(B18*J18,0) -> 444152 | M18: =ROUND(B18*K18,0) -> 443519 | N18: =(M18-L18) -> -633 | O18: =IF(N18=0,0,N18/L18) -> -0.001425187774 | Q18: =G18+N18 -> 35198 | R18: =IF(Q18=0,0,Q18/(E18+L18)) -> 0.01427687765
A21: IS | B21: =Calculations!P17 -> 582615 | C21: ='Ut 1.6 p1'!$H$33 -> 3.89851 | D21: =D8 -> 3.96762 | E21: =ROUND(B21*C21,0) -> 2271330 | F21: =ROUND(B21*D21,0) -> 2311595 | G21: =(F21-E21) -> 40265 | H21: =IF(G21=0,0,G21/E21) -> 0.01772749887 | J21: ='Ut 1.6 p3'!E24 -> 0.1788 | K21: ='Ut 1.6 p3'!I24 -> 0.17877 | L21: =ROUND(B21*J21,0) -> 104172 | M21: =ROUND(B21*K21,0) -> 104154 | N21: =(M21-L21) -> -18 | O21: =IF(N21=0,0,N21/L21) -> -0.0001727911531 | Q21: =G21+N21 -> 40247 | R21: =IF(Q21=0,0,Q21/(E21+L21)) -> 0.01694252415
B23: - | E23: - | F23: - | G23: - | L23: ------------------- | M23: ------------------- | N23: ------------------- | Q23: -------------------
B24: =B10+B15+B18+B21 -> 107537933 | E24: =E10+E15+E18+E21 -> 419237707 | F24: =F10+F15+F18+F21 -> 426669654 | G24: =G10+G15+G18+G21 -> 7431947 | H24: =IF(G24=0,0,G24/E24) -> 0.01772728663 | L24: =L10+L15+L18+L21 -> 107562174 | M24: =M10+M15+M18+M21 -> 107409278.5 | N24: =N10+N15+N18+N21 -> -152895.4952 | O24: =IF(N24=0,0,N24/L24) -> -0.001421461556 | Q24: =Q10+Q15+Q18+Q21 -> 7279051.505 | R24: =IF(Q24=0,0,Q24/(E24+L24)) -> 0.01381748889
G25: =IF(G24>0,"Commodity Increase","Commodity Decrease") -> Commodity Increase | N25: =IF(N24>0,"Increase to SNG","Decrease to SNG") -> Decrease to SNG
G27: =ROUND(G24,-3) -> 7432000 | N27: =ROUND(N24,-3) -> -153000 | Q27: =ROUND(Q24,-3) -> 7279000
G28: Rounded | N28: Rounded | Q28: Rounded

Sheet UT Summary - by cost (hidden)

Sheet WY Summary - by cost (hidden)

Sheet Model Checks
B2: Model Checks
D6: Total of all Checks
D7: =ABS(SUM(D10:D1992)) -> 0.4442672431
B9: Forecasted Demand
C10: Utah | D10: =Calculations!P25-'RevRun Fcst'!T205 -> 0
C11: Total System | D11: =Calculations!P47-'RevRun Fcst'!T370 -> 0
B12: Forecasted Utah Demand Check by Month
C13: 1 | D13: =Calculations!D25-'RevRun Fcst'!H205 -> 0
C14: 2 | D14: =Calculations!E25-'RevRun Fcst'!I205 -> 0
C15: 3 | D15: =Calculations!F25-'RevRun Fcst'!J205 -> 0
C16: 4 | D16: =Calculations!G25-'RevRun Fcst'!K205 -> 0
C17: 5 | D17: =Calculations!H25-'RevRun Fcst'!L205 -> 0
C18: 6 | D18: =Calculations!I25-'RevRun Fcst'!M205 -> 0
C19: 7 | D19: =Calculations!J25-'RevRun Fcst'!N205 -> 0
C20: 8 | D20: =Calculations!K25-'RevRun Fcst'!O205 -> 0
C21: 9 | D21: =Calculations!L25-'RevRun Fcst'!P205 -> 0
C22: 10 | D22: =Calculations!M25-'RevRun Fcst'!Q205 -> 0
C23: 11 | D23: =Calculations!N25-'RevRun Fcst'!R205 -> 0
C24: 12 | D24: =Calculations!O25-'RevRun Fcst'!S205 -> 0
C25: Wyoming I-2 and I-4 Revenues | D25: =('RevRun Fcst'!T273+'RevRun Fcst'!T282)-Calculations!P65 -> 0
C26: System Sales Volumes | D26: =Calculations!H76-'RevRun Fcst'!T368 -> 0
C27: Utah Sales Volumes | D27: =Calculations!P20-'Utah Summary-by class'!B24 -> 0
B28: Company Production | D28: =Calculations!P120-'Monthly Inputs'!S7-'Monthly Inputs'!S13 -> 0
B29: Injections | D29: ='Monthly Inputs'!S28-SUM('Monthly Inputs'!S23:S27) -> 0
B30: Withdrawls | D30: ='Monthly Inputs'!S35-SUM('Monthly Inputs'!S31:S34) -> 0
B31: Injections & Withdrawls | D31: =SUM('Ut 1.3 p2'!D22:D25)-'Monthly Inputs'!S28-'Monthly Inputs'!S35 -> 0
B32: Injections | D32: =Calculations!P128-'Monthly Inputs'!S28 -> 0
B33: Withdrawls | D33: =Calculations!P135-'Monthly Inputs'!S35 -> 0
B34: Sales for Resale | D34: =Expenses!S445-Calculations!P86 -> 0
B35: Incidental Plant Prod Sales | D35: =Expenses!S446-Calculations!P87 -> 0
B36: Incidental Gas & Oil Sales | D36: =Expenses!S447-Calculations!P89 -> 0
B37: Gasoline and Oil Costs | D37: =Expenses!S450+Calculations!P90 -> 0
B38: Wexpro Revenue Sharing | D38: =Expenses!S449-Calculations!P94 -> 0
B39: Storage Gas | D39: ='Rate Base'!U216-Calculations!P99 -> 0
B40: 101 Production | D40: ='Rate Base'!U158-Calculations!P100 -> 0
B41: 108 Production | D41: ='Rate Base'!U176-Calculations!P101 -> 0
B42: 111 Production | D42: ='Rate Base'!U183-Calculations!P102 -> 0
B43: 255 Production | D43: ='Rate Base'!U251-Calculations!P103 -> 0
B44: 282 Production | D44: ='Rate Base'!U258-Calculations!P104 -> 0
B45: 282.1 Production | D45: ='Rate Base'!U265-Calculations!P105 -> 0
B46: Production Rate Base | D46: =SUM(Calculations!P99:P105)-'Rate Base'!U285 -> 0
B47: Purchased Gas Cost | D47: ='Ut 1.2'!G24-Calculations!P190 -> 0.4295296073
B48: Working Gas Rate Base | D48: =Calculations!P99-'Ut 1.3 p2'!D50 -> 0
B49: Allocations | D49: ='Ut 1.5'!E41-'Ut 1.5'!F41-'Ut 1.5'!G41+'Ut 1.5'!G39 -> 2.384185791e-07
B51: System Sales | D51: ='SDR#1'!C10-'RevRun Fcst'!T368 -> 0
B52: Lost & Unaccounted For | D52: ='SDR#1'!C15-(('SDR#1'!C10+'SDR#1'!C11)/(1-'Other Inputs'!E277)) -> 0.7939077169
B53: Supply / Demand | D53: ='SDR#1'!C36-'SDR#1'!C15 -> -2.141537085
B54: System Sales | D54: ='SDR#3'!H36-'SDR#1'!C10 -> 0
B55: SNG Revenue | D55: ='SDR#4'!G23-'Utah Summary-by class'!L24 -> 0.2673100084
B56: Utah Sales | D56: ='SDR#3'!D36-'SDR#4'!E23 -> 0
B57: Utah Sales | D57: ='SDR#2'!G61+'Ut 1.6 p1'!J22 -> 0.206522271
B58: Seasonal Volumes | D58: =Calculations!P52+Calculations!P53-Calculations!P7-Calculations!P8 -> 0
B59: Seasonal Volumes | D59: =Calculations!P55+Calculations!P56-Calculations!P9 -> 0
B60: Seasonal Volumes | D60: =Calculations!P58+Calculations!P59-Calculations!P10 -> 0

Sheet SDR#1
E1: ='Control Panel'!E32 -> Questar Gas Company
E2: ='Control Panel'!E33 -> Docket No. 16-057-09
B4: Standard Data Request #1
B5: Summary of Sources of Supply and Demand
A8: 1 | B8: DEMAND | C8: Total | D8: Utah | E8: Wyoming
A10: =A8+1 -> 2 | B10: SALES IN DTHS | C10: =D10+E10 -> 111654926 | D10: =Calculations!P20 -> 107537933 | E10: =Calculations!P39 -> 4116993
A11: =A10+1 -> 3 | B11: DIST. CO. USE & | C11: 0
A12: =A11+1 -> 4 | B12: DIST. LOST & UNACCT. (0.49%) | C12: =Calculations!P146 -> 594925
A15: =A12+1 -> 5 | B15: TOTAL | C15: =SUM(C10:C12) -> 112249851
A19: =A15+1 -> 6 | B19: SUPPLY | C19: Total | D19: Utah | E19: Wyoming
A21: =A19+1 -> 7 | B21: COMPANY PRODUCTION | C21: ='Ut 1.1'!F1404+'Ut 1.1'!F1602 -> 69930055.53 | D21: =$D$10/$C$10*C21 -> 67351561.6 | E21: =$E$10/$C$10*C21 -> 2578493.932
A22: =A21+1 -> 8 | B22: GAS REIMBURSEMENT | C22: =C21*-'Other Inputs'!$E$281 -> -3440558.732 | D22: =D21*-'Other Inputs'!$E$281 -> -3313696.831 | E22: =E21*-'Other Inputs'!$E$281 -> -126861.9014
A25: =A22+1 -> 9 | B25: CONTRACT GAS | C25: ='Ut 1.2'!E24 -> 48901609 | D25: =$D$10/$C$10*C25 -> 47098485.85 | E25: =$E$10/$C$10*C25 -> 1803123.151
A26: =A25+1 -> 10 | B26: GAS REIMBURSEMENT | C26: =C25*-'Other Inputs'!$E$280 -> -669952.0433 | D26: =D25*-'Other Inputs'!$E$280 -> -645249.2561 | E26: =E25*-'Other Inputs'!$E$280 -> -24702.78716
A28: =A26+1 -> 11 | B28: STORAGE
A29: =A28+1 -> 12 | B29: INJECTIONS | C29: ='Ut 1.4 p2'!E22 -> -16053280.36 | D29: =$D$10/$C$10*C29 -> -15461356.25 | E29: =$E$10/$C$10*C29 -> -591924.1116
A30: =A29+1 -> 13 | B30: WITHDRAWALS | C30: ='Ut 1.4 p2'!E21 -> 14541515.2 | D30: =$D$10/$C$10*C30 -> 14005333.6 | E30: =$E$10/$C$10*C30 -> 536181.5947
A31: =A30+1 -> 14 | B31: NET (INJECTIONS) WITHDRAWALS | C31: =C29+C30 -> -1511765.165 | D31: =D29+D30 -> -1456022.648 | E31: =E29+E30 -> -55742.51693
A33: =A31+1 -> 15 | B33: Storage Fuel | C33: =Calculations!P163+Calculations!P164-1 -> -959539.7339 | D33: =D10/C10*C33 -> -924159.1331 | E33: =E10/C10*C33 -> -35380.60083
A36: =A33+1 -> 16 | B36: TOTAL SUPPLY | C36: =C21+C22+C25+C26+C29+C30+C33 -> 112249848.9 | D36: =SUM(D21:D30)+D33 -> 108110919.6 | E36: =SUM(E21:E30)+E33 -> 4138929.276
A38: =A36+1 -> 17 | B38: Company Use & Loss % | C38: =(+C36-C10)/C36 -> 0.005299988058 | D38: =(+D36-D10)/D36 -> 0.005299988058 | E38: =(+E36-E10)/E36 -> 0.005299988058
B41: Difference | C41: =C15-C36 -> 2.141537085

Sheet SDR#2
H1: ='Control Panel'!E32 -> Questar Gas Company
H2: ='Control Panel'!E33 -> Docket No. 16-057-09
A5: Standard Data Request #2
A6: Supplier Non-Gas Costs
B8: (A) | C8: (B) | D8: (C) | E8: (D) | F8: (E) | G8: (F) | T8: withdraw
A9: I. Transportation (QPC T-1) | C9: Volume (Dth) | G9: Utah Total | J9: Utah gas | K9: Utah Co. | L9: Utah gas | M9: Wyo gas | N9: Wyo Co. | O9: Wyo gas | Q9: @city gate | R9: @city gate | T9: loss | U9: Kern River
B10: Month | C10: Utah | D10: Wyoming | E10: $/dth | F10: Demand | G10: b*d+e*(Ut %) | J10: purchased | K10: production | L10: withdrawn | M10: purchased | N10: production | O10: withdrawn | P10: Total | Q10: purchased | R10: co production | S10: withdrawls | T10: =-Calculations!P163/Calculations!P135 -> 0.03230310098 | U10: Transportation
B12: Nov16 | C12: =J12+K12+L12-(T12+$B$45*U12)*$J$39 -> 9863121.127 | D12: =M12+N12+O12-(T12+$B$45*U12)*$K$39 -> 377600.7173 | E12: ='Other Inputs'!$F$35 -> 0.00267 | F12: =('Other Inputs'!$D$19)*('Other Inputs'!$F$19)-('Other Inputs'!$E$285/12)+('Other Inputs'!$D$27*'Other Inputs'!$F$27) -> 4400399.578 | G12: =(+C12)*E12+F12*$J$33/$L$33 -> 4304721.008 | J12: =Q12*$J$39 -> 6679540.284 | K12: =R12*$J$39 -> 5395192.484 | L12: =S12*$J$39 -> 0 | M12: =Q12-J12 -> 255720.1894 | N12: =R12-K12 -> 206550.0895 | O12: =S12-L12 -> 0 | P12: =SUM(J12:O12)-U12 -> 10061703.05 | Q12: =Calculations!D167 -> 6935260.473 | R12: =Calculations!D159 -> 5601742.574 | S12: =Calculations!D161+Calculations!D162 -> 0 | T12: =S12*$T$10 -> 0 | U12: =V12*W12 -> 2475300 | V12: =54885+'Other Inputs'!D56 -> 82510 | W12: 30 | X12: =B12 -> Nov16
B13: Dec16 | C13: 16076407.86 | D13: 615470.8091 | E13: ='Other Inputs'!$F$35 -> 0.00267 | F13: =('Other Inputs'!$D$19)*('Other Inputs'!$F$19)-('Other Inputs'!$E$285/12)+('Other Inputs'!$D$27*'Other Inputs'!$F$27) -> 4400399.578 | G13: =(+C13)*E13+F13*$J$33/$L$33 -> 4321310.484 | J13: =Q13*$J$39 -> 6771148 | K13: 5860147.578 | L13: 5921734.708 | M13: 259227.3083 | N13: 224350.4769 | O13: 226708.2848 | P13: =SUM(J13:O13)-U13 -> 16705506.36 | Q13: =Calculations!E167 -> 7030375.308 | R13: =Calculations!E159 -> 6084498.055 | S13: =Calculations!E161+Calculations!E162 -> 6148442.993 | T13: =S13*$T$10 -> 198613.7749 | U13: =V13*W13 -> 2557810 | V13: =54885+'Other Inputs'!D56 -> 82510 | W13: 31 | X13: =B13 -> Dec16
B14: Jan17 | C14: 16916018.63 | D14: 647614.5517 | E14: ='Other Inputs'!$F$35 -> 0.00267 | F14: =('Other Inputs'!$D$19)*('Other Inputs'!$F$19)-('Other Inputs'!$E$285/12)+('Other Inputs'!$D$27*'Other Inputs'!$F$27) -> 4400399.578 | G14: 4323552.245 | J14: =Q14*$J$39 -> 9091727.094 | K14: 5757146.984 | L14: 4497768.446 | M14: 348068.5909 | N14: 220407.1919 | O14: 172193.0178 | P14: 17529501.32 | Q14: =Calculations!F167 -> 9439795.685 | R14: =Calculations!F159 -> 5977554.176 | S14: =Calculations!F161+Calculations!F162 -> 4669961.464 | T14: 150854.2367 | U14: =V14*W14 -> 2557810 | V14: =54885+'Other Inputs'!D56 -> 82510 | W14: 31 | X14: Jan17
B15: Feb17 | C15: 13407790.28 | D15: 513305.1864 | E15: ='Other Inputs'!$F$35 -> 0.00267 | F15: =('Other Inputs'!$D$19)*('Other Inputs'!$F$19)-('Other Inputs'!$E$285/12)+('Other Inputs'!$D$27*'Other Inputs'!$F$27) -> 4400399.578 | G15: 4314185.275 | J15: =Q15*$J$39 -> 7864598.484 | K15: 5093134.957 | L15: 2598156.21 | M15: 301089.0762 | N15: 194986.0889 | O15: 99468.07263 | P15: 13841152.89 | Q15: =Calculations!G167 -> 8165687.56 | R15: =Calculations!G159 -> 5288121.046 | S15: =Calculations!G161+Calculations!G162 -> 2697624.283 | T15: 87141.6296 | U15: 2310280 | V15: =54885+'Other Inputs'!D56 -> 82510 | W15: 28 | X15: Feb17
B16: Mar17 | C16: 10423606.26 | D16: 399058.3861 | E16: ='Other Inputs'!$F$35 -> 0.00267 | F16: =('Other Inputs'!$D$19)*('Other Inputs'!$F$19)-('Other Inputs'!$E$285/12)+('Other Inputs'!$D$27*'Other Inputs'!$F$27) -> 4400399.578 | G16: 4306217.503 | J16: 6277075.038 | K16: 5531186.033 | L16: 930743.1008 | M16: 240312.1696 | N16: 211756.4802 | O16: 35632.66211 | P16: 10668895.48 | Q16: =Calculations!H167 -> 6517387.208 | R16: =Calculations!H159 -> 5742942.513 | S16: =Calculations!H161+Calculations!H162 -> 966375.7629 | T16: 31216.93385 | U16: 2557810 | V16: =54885+'Other Inputs'!D56 -> 82510 | W16: 31 | X16: Mar17
B17: Apr17 | C17: 9449683.769 | D17: 361772.6401 | E17: ='Other Inputs'!$F$35 -> 0.00267 | F17: =('Other Inputs'!$D$19)*('Other Inputs'!$F$19)-('Other Inputs'!$E$285/12)+('Other Inputs'!$D$27*'Other Inputs'!$F$27) -> 4400399.578 | G17: 4303617.13 | J17: 4266588.754 | K17: 5258941.275 | L17: 56931.13751 | M17: 163342.5113 | N17: 201333.8346 | O17: 2179.557372 | P17: 9802767.07 | Q17: =Calculations!I167 -> 4429931.266 | R17: =Calculations!I159 -> 5460275.11 | S17: =Calculations!I161+Calculations!I162 -> 59110.69489 | T17: 1909.458746 | U17: 146550 | V17: 4885 | W17: 30 | X17: Apr17
B18: May17 | C18: 7762327.1 | D18: 297173.7083 | E18: ='Other Inputs'!$F$35 -> 0.00267 | F18: =('Other Inputs'!$D$19)*('Other Inputs'!$F$19)-('Other Inputs'!$E$285/12)+('Other Inputs'!$D$27*'Other Inputs'!$F$27) -> 4400399.578 | G18: =(+C18)*E18+F18*$J$33/$L$33 -> 4299111.888 | J18: 2551964.662 | K18: 5345665.394 | L18: 0 | M18: 97699.67078 | N18: 204653.9895 | O18: 0 | P18: 8048548.717 | Q18: =Calculations!J167 -> 2649664.333 | R18: =Calculations!J159 -> 5550319.383 | S18: =Calculations!J161+Calculations!J162 -> 0 | T18: 0 | U18: 151435 | V18: 4885 | W18: 31 | X18: May17
B19: Jun17 | C19: 5700844.658 | D19: 218251.708 | E19: ='Other Inputs'!$F$35 -> 0.00267 | F19: =('Other Inputs'!$D$19)*('Other Inputs'!$F$19)-('Other Inputs'!$E$285/12)+('Other Inputs'!$D$27*'Other Inputs'!$F$27) -> 4400399.578 | G19: 4293607.73 | J19: 737907.537 | K19: 5093875.466 | L19: 0 | M19: 28250.12607 | N19: 195014.4386 | O19: 0 | P19: 5908497.568 | Q19: =Calculations!K167 -> 766157.6631 | R19: =Calculations!K159 -> 5288889.905 | S19: =Calculations!K161+Calculations!K162 -> 0 | T19: 0 | U19: 146550 | V19: 4885 | W19: 30 | X19: Jun17
B20: Jul17 | C20: 5048991.308 | D20: 193296.089 | E20: ='Other Inputs'!$F$35 -> 0.00267 | F20: =('Other Inputs'!$D$19)*('Other Inputs'!$F$19)-('Other Inputs'!$E$285/12)+('Other Inputs'!$D$27*'Other Inputs'!$F$27) -> 4400399.578 | G20: =(+C20)*E20+F20*$J$33/$L$33 -> 4291867.282 | J20: -0.3853754065 | K20: 5184294.65 | L20: 0 | M20: -0.01475375067 | N20: 198476.0557 | O20: 0 | P20: 5231335.306 | Q20: =Calculations!L167 -> -0.4001291571 | R20: =Calculations!L159 -> 5382770.706 | S20: =Calculations!L161+Calculations!L162 -> 0 | T20: 0 | U20: 151435 | V20: 4885 | W20: 31 | X20: Jul17
B21: Aug17 | C21: 5003998.587 | D21: 191573.5832 | E21: ='Other Inputs'!$F$35 -> 0.00267 | F21: =('Other Inputs'!$D$19)*('Other Inputs'!$F$19)-('Other Inputs'!$E$285/12)+('Other Inputs'!$D$27*'Other Inputs'!$F$27) -> 4400399.578 | G21: =(+C21)*E21+F21*$J$33/$L$33 -> 4291747.151 | J21: -0.2468257336 | K21: 5139301.791 | L21: 0 | M21: -0.009449501113 | N21: 196753.5446 | O21: 0 | P21: 5184620.079 | Q21: =Calculations!M167 -> -0.2562752347 | R21: =Calculations!M159 -> 5336055.336 | S21: =Calculations!M161+Calculations!M162 -> 0 | T21: 0 | U21: 151435 | V21: 4885 | W21: 31 | X21: Aug17
B22: Sep17 | C22: 4872460.762 | D22: 186537.7759 | E22: ='Other Inputs'!$F$35 -> 0.00267 | F22: =('Other Inputs'!$D$19)*('Other Inputs'!$F$19)-('Other Inputs'!$E$285/12)+('Other Inputs'!$D$27*'Other Inputs'!$F$27) -> 4400399.578 | G22: =(+C22)*E22+F22*$J$33/$L$33 -> 4291395.945 | J22: -0.238082237 | K22: 5003399.345 | L22: 0 | M22: -0.009114764213 | N22: 191550.6418 | O22: 0 | P22: 5048399.74 | Q22: =Calculations!N167 -> -0.2471970012 | R22: =Calculations!N159 -> 5194949.987 | S22: =Calculations!N161+Calculations!N162 -> 0 | T22: 0 | U22: 146550 | V22: 4885 | W22: 30 | X22: Sep17
B23: Oct17 | C23: 7452964.566 | D23: 285330.0421 | E23: ='Other Inputs'!$F$35 -> 0.00267 | F23: =('Other Inputs'!$D$19)*('Other Inputs'!$F$19)-('Other Inputs'!$E$285/12)+('Other Inputs'!$D$27*'Other Inputs'!$F$27) -> 4400399.578 | G23: =(+C23)*E23+F23*$J$33/$L$33 -> 4298285.89 | J23: 2212688.005 | K23: 5375579.519 | L23: 0 | M23: 84710.76923 | N23: 205799.2248 | O23: 0 | P23: 7727342.517 | Q23: =Calculations!O167 -> 2297398.774 | R23: =Calculations!O159 -> 5581378.743 | S23: =Calculations!O161+Calculations!O162 -> 0 | T23: 0 | U23: 151435 | V23: 4885 | W23: 31 | X23: Oct17
C26: =SUM(C12:C23) -> 111978214.9 | D26: =SUM(D12:D23) -> 4286985.197 | G26: =SUM(G12:G23) -> 51639619.53 | J26: =SUM(J12:J25) -> 46453236.99 | K26: 64037865.48 | L26: 14005333.6 | M26: 1778420.378 | N26: 2451632.057 | O26: 536181.5947 | P26: =SUM(P12:P23) -> 115758270.1 | Q26: 48231657.37 | R26: 66489497.53 | S26: 14541515.2 | T26: 469736.0338 | U26: 13504400
C29: Months | F29: System | G29: Utah | J29: Allocation Factors
C30: or Days | D30: Dth | E30: Rate | F30: Total | G30: Total
J31: Peak Demand Allocation Base
A32: II. Transportation (ML 104 demand) | C32: ='Other Inputs'!E20 -> 12 | D32: ='Other Inputs'!D20 -> 30000 | E32: ='Other Inputs'!F20 -> 5.28804 | F32: =C32*D32*E32 -> 1903694.4 | G32: =F32*J34 -> 1850909.271 | J32: Utah | K32: Wyo | L32: Total
J33: ='Other Inputs'!E127 -> 1280082 | K33: ='Other Inputs'!E128 -> 36506 | L33: =J33+K33 -> 1316588
J34: =J33/L33 -> 0.9722722674 | K34: =K33/L33 -> 0.02772773259
A36: III. Transportation (TL 112 demand) | C36: ='Other Inputs'!E21 -> 12 | D36: ='Other Inputs'!D21 -> 12000 | E36: ='Other Inputs'!F21 -> 5.28804 | F36: =C36*D36*E36 -> 761477.76 | G36: =F36*J34 -> 740363.7083 | J36: Dth Sales Allocation Base
C37: ='Other Inputs'!E22 -> 5 | D37: ='Other Inputs'!D22 -> 75000 | E37: ='Other Inputs'!F22 -> 6.80887 | F37: =C37*D37*E37 -> 2553326.25 | G37: =F37*J34 -> 2482528.303 | J37: Utah | K37: Wyo | L37: Total
J38: =Calculations!P20 -> 107537933 | K38: =Calculations!P39 -> 4116993 | L38: =J38+K38 -> 111654926
A39: IV. Transportation (KR 2003 Expansion) | C39: ='Other Inputs'!E51 -> 12 | D39: ='Other Inputs'!D51 -> 3000 | E39: ='Other Inputs'!F51 -> 14.308 | F39: =C39*D39*E39 -> 515088 | J39: =J38/L38 -> 0.9631275292 | K39: =K38/L38 -> 0.03687247081
C40: ='Other Inputs'!E52 -> 5 | D40: ='Other Inputs'!D52 -> 50000 | E40: ='Other Inputs'!F52 -> 14.308 | F40: =C40*D40*E40 -> 3577000 | G40: =(F39+F40+F41)*J34 -> 4367750.513
C41: ='Other Inputs'!E53 -> 12 | D41: ='Other Inputs'!D53 -> 1885 | E41: ='Other Inputs'!F53 -> 17.693375 | F41: =C41*D41*E41 -> 400224.1425
A43: V. Transportation (KR #1534) | C43: 5 | D43: =+'Other Inputs'!D56 -> 27625 | E43: =+'Other Inputs'!F56 -> 5.536666667 | F43: =C43*D43*E43 -> 764752.0833 | G43: =F43*J34 -> 743547.2421
A45: VI. Trans (KR 2003 Expansion) | B45: ='Other Inputs'!C61 -> 0.927677939 | C45: ='Other Inputs'!E60 -> 365 | D45: ='Other Inputs'!D60 -> 4885 | E45: ='Other Inputs'!F60 -> 0.0044 | F45: =B45*C45*D45*E45 -> 7277.921011
B46: ='Other Inputs'!C60 -> 0.927677939 | C46: ='Other Inputs'!E61 -> 151 | D46: ='Other Inputs'!D61 -> 50000 | E46: ='Other Inputs'!F61 -> 0.0044 | F46: =B46*C46*D46*E46 -> 30817.46113 | G46: =(F45+F46)*J39 -> 36690.71128
A48: VII. Transportation (KR #1534) | B48: =+'Other Inputs'!C64 -> 0.927677939 | C48: =+'Other Inputs'!E64 -> 151 | D48: =+'Other Inputs'!D64 -> 27625 | E48: =+'Other Inputs'!F64 -> 0.0031 | F48: =B48*C48*D48*E48 -> 11996.04694 | G48: =+F48*J39 -> 11553.72305
A50: VIII. Other Trans, Gathering & Processing | F50: ='Other Inputs'!$D$159+'Other Inputs'!$D$161 -> 6052460.06 | G50: =F50*$J$39 -> 5829290.903
A52: IX. Gathering Wexpro I | B52: Demand | F52: =+'Other Inputs'!E167 -> 12245844
A53: Wexpro I | B53: Commodity | F53: =+'Other Inputs'!D167 -> 6303902.265 | G53: =(F52)*'Ut 1.5'!G51+(F53)*'Ut 1.5'!G54 -> 17977756.32
A54: Wexpro II | B54: Commodity | F54: =+'Other Inputs'!D170 -> 4355383.965 | G54: =(F54)*'Ut 1.5'!G54 -> 4194790.197
A56: X. Storage Demand | C56: 12 | D56: ='Other Inputs'!E146 -> 184625 | E56: ='Other Inputs'!E12 -> 2.87375 | F56: =C56*D56*E56 -> 6366793.125
C57: 12 | D57: ='Other Inputs'!E147 -> 111827 | E57: ='Other Inputs'!E13 -> 2.85338 | F57: =C57*D57*E57 -> 3829019.103
C58: 12 | D58: ='Other Inputs'!E148 -> 13419000 | E58: ='Other Inputs'!E14 -> 0.02378 | F58: =C58*D58*E58 -> 3829245.84 | G58: =SUM(F56:F58)*J34 -> 13636175.01
A61: Total Supplier Non-Gas Costs | G61: =G26+G32+G36+G37+G40+G46+G50+G54+G58+G53+G48+G43 -> 103510975.4

Sheet SDR#3
I1: ='Control Panel'!E32 -> Questar Gas Company
I2: ='Control Panel'!E33 -> Docket No. 16-057-09
C5: Standard Data Request #3
C6: Monthly Forecasted Sales
D8: Utah Sales | F8: Wyoming Sales | H8: System Total
C9: Month | D9: Dth | F9: Dth | H9: Dth
B11: 1 | C11: =Calculations!D139 -> Nov16 | D11: =Calculations!D20 -> 11624642 | F11: =Calculations!D39 -> 408988 | H11: =SUM(D11:F11) -> 12033630
B13: =B11+1 -> 2 | C13: =Calculations!E139 -> Dec16 | D13: =Calculations!E20 -> 18131912 | F13: =Calculations!E39 -> 596894 | H13: =SUM(D13:F13) -> 18728806
B15: =B13+1 -> 3 | C15: =Calculations!F139 -> Jan17 | D15: =Calculations!F20 -> 19026532 | F15: =Calculations!F39 -> 702455 | H15: 19728987
B17: =B15+1 -> 4 | C17: =Calculations!G139 -> Feb17 | D17: =Calculations!G20 -> 15384329 | F17: =Calculations!G39 -> 594691 | H17: 15979020
B19: =B17+1 -> 5 | C19: =Calculations!H139 -> Mar17 | D19: =Calculations!H20 -> 12102396 | F19: =Calculations!H39 -> 494767 | H19: 12597163
B21: =B19+1 -> 6 | C21: =Calculations!I139 -> Apr17 | D21: =Calculations!I20 -> 8099505 | F21: =Calculations!I39 -> 359012 | H21: 8458517
B23: =B21+1 -> 7 | C23: =Calculations!J139 -> May17 | D23: =Calculations!J20 -> 5088396 | F23: =Calculations!J39 -> 247646 | H23: 5336042
B25: =B23+1 -> 8 | C25: =Calculations!K139 -> Jun17 | D25: =Calculations!K20 -> 3148755 | F25: =Calculations!K39 -> 144703 | H25: 3293458
B27: =B25+1 -> 9 | C27: =Calculations!L139 -> Jul17 | D27: =Calculations!L20 -> 2692421 | F27: =Calculations!L39 -> 87410 | H27: 2779831
B29: =B27+1 -> 10 | C29: =Calculations!M139 -> Aug17 | D29: =Calculations!M20 -> 2572407 | F29: =Calculations!M39 -> 90976 | H29: 2663383
B31: =B29+1 -> 11 | C31: =Calculations!N139 -> Sep17 | D31: =Calculations!N20 -> 2771284 | F31: =Calculations!N39 -> 134729 | H31: 2906013
B33: =B31+1 -> 12 | C33: =Calculations!O139 -> Oct17 | D33: =Calculations!O20 -> 6895354 | F33: =Calculations!O39 -> 254722 | H33: 7150076
B36: =B33+1 -> 13 | C36: Total Sales (Dth) | D36: =SUM(D11:D33) -> 107537933 | F36: =SUM(F11:F33) -> 4116993 | H36: =SUM(H11:H33) -> 111654926

Sheet SDR#4
H1: ='Control Panel'!E32 -> Questar Gas Company
H2: ='Control Panel'!E33 -> Docket No. 16-057-09
C5: Standard Data Request #4
C6: Supplier Non-Gas Costs Recovered at Current Rates
C9: (A) | D9: (B) | E9: (C) | F9: (D) | G9: (E)
B10: 1 | C10: Rate Schedule | D10: Season | E10: Sales Dth | F10: SNG Rate | G10: SNG Revenue
B12: =B10+1 -> 2 | C12: GS | D12: winter | E12: ='Utah Summary-by class'!B8 -> 73524320 | F12: ='Utah Summary-by class'!J8 -> 1.18715 | G12: =E12*F12 -> 87284396.49
B13: =B12+1 -> 3 | D13: summer | E13: ='Utah Summary-by class'!B9 -> 28367403 | F13: ='Utah Summary-by class'!J9 -> 0.55738 | G13: =E13*F13 -> 15811423.08
B15: =B13+1 -> 4 | C15: FS | D15: winter | E15: ='Utah Summary-by class'!B13 -> 2312208 | F15: ='Utah Summary-by class'!J13 -> 1.15623 | G15: =E15*F15 -> 2673444.256
B16: =B15+1 -> 5 | D16: summer | E16: ='Utah Summary-by class'!B14 -> 2232924 | F16: ='Utah Summary-by class'!J14 -> 0.55738 | G16: =E16*F16 -> 1244587.179
B18: =B16+1 -> 6 | C18: NGV | D18: annual | E18: ='Utah Summary-by class'!B18 -> 518463 | F18: ='Utah Summary-by class'!J18 -> 0.85667 | G18: =E18*F18 -> 444151.6982
B20: =B18+1 -> 7 | C20: IS | D20: annual | E20: ='Utah Summary-by class'!B21 -> 582615 | F20: ='Utah Summary-by class'!J21 -> 0.1788 | G20: =E20*F20 -> 104171.562
B23: =B20+1 -> 8 | C23: Total Supplier Non-Gas Costs | E23: =SUM(E12:E20) -> 107537933 | G23: =SUM(G12:G20) -> 107562174.3

Sheet Wy SDR#1 (hidden)
A1: Wyoming Standard Data Request #1
A2: Global Insights Forecast

Sheet Ut 1.1
I1: Questar Gas Company
I2: ='Control Panel'!$E$33 -> Docket No. 16-057-09
I3: Exhibit 1.1
D4: Test Year Cost of Questar Gas' Production
D5: =CONCATENATE('Control Panel'!E36," through ",'Control Panel'!E37) -> Nov-16 through Oct-17
B7: WEXPRO I
B8: (A) | C8: (B) | D8: (C) | E8: (D) | F8: (E) | G8: (F) | H8: (G) | I8: (H)
F9: Base Year | G9: Market | H9: Royalty | I9: Test Year
B10: Field Name | C10: Well Name | D10: Formation | E10: Price $ | F10: Dth | G10: Value $ | H10: Rate % | I10: Royalty $
A12: 1 | B12: ACE UNIT (CO) | C12: ACE UNIT 10 FT UN | D12: MESAVERDE | E12: 2.87027731 | F12: 29230.097 | G12: =E12*F12 -> 83898.4842 | H12: 0.1268519763 | I12: =G12*H12 -> 10642.68853
A13: =A12+1 -> 2 | C13: ACE UNIT 11 FT UN | D13: FORT UNION | E13: 2.87027731 | F13: 25095.382 | G13: 72030.70555 | H13: 0.1268519763 | I13: =G13*H13 -> 9137.237354
A14: =A13+1 -> 3 | C14: ACE UNIT 12 FT UN | D14: FORT UNION | E14: 2.87027731 | F14: 89952.884 | G14: 258189.7219 | H14: 0.1268519763 | I14: 32751.87649
A15: 4 | C15: ACE UNIT 13 FT UN | D15: FORT UNION | E15: 2.87027731 | F15: 46833.864 | G15: 134426.1772 | H15: 0.1268519763 | I15: 17052.22624
A16: 5 | C16: ACE UNIT 2 FT UN | D16: FORT UNION | E16: 2.87027731 | F16: 59610.444 | G16: 171098.5049 | H16: 0.1268519763 | I16: 21704.18349
A17: 6 | C17: ACE UNIT 7 LOWER FT UN | D17: FORT UNION | E17: 2.87027731 | F17: 333.91 | G17: 958.4142967 | H17: 0.1268519763 | I17: 121.5767477
A18: 7 | B18: E HIAW (CO) | C18: F WILSON 29E (DD) FT UN | D18: FORT UNION | E18: 2.87027731 | F18: 24730.218 | G18: 70982.5836 | H18: 0.1625 | I18: 11534.66984
A19: 8 | C19: F WILSON 32 LANCE | D19: LANCE | E19: 2.87027731 | F19: 36525.251 | G19: 104837.5992 | H19: 0.1925 | I19: 20181.23785
A20: 9 | C20: F WILSON 32 LEWIS | D20: LEWIS | E20: 2.87027731 | F20: 32389.853 | G20: 92967.86015 | H20: 0.1925 | I20: 17896.31308
A21: 10 | C21: F WILSON 32 MESA | D21: MESAVERDE | E21: 2.87027731 | F21: 4516.676 | G21: 12964.11264 | H21: 0.1925 | I21: 2495.591683
A22: 11 | C22: F WILSON 33 FT UN | D22: FORT UNION | E22: 2.87027731 | F22: 468899.107 | G22: 1345870.468 | H22: 0.1925 | I22: 259080.065
A23: 12 | C23: F WILSON 33 LANCE | D23: LANCE | E23: 2.87027731 | F23: 23186.26 | G23: 66550.99599 | H23: 0.1925 | I23: =G23*H23 -> 12811.06673
A24: 13 | C24: F WILSON 33 LEWIS | D24: LEWIS | E24: 2.87027731 | F24: 23186.26 | G24: 66550.99599 | H24: 0.1925 | I24: 12811.06673
A25: 14 | C25: F WILSON 34 LEW/LAN/FT UN | D25: LEWIS/LANCE/FT U | E25: 2.87027731 | F25: 34253.648 | G25: 98317.46865 | H25: 0.1625 | I25: 15976.58866
A26: 15 | C26: F WILSON 35 ALMOND | D26: MESAVERDE | E26: 2.87027731 | F26: 2331.929 | G26: 6693.282898 | H26: 0.1925 | I26: 1288.456958
A27: 16 | C27: F WILSON 35 LANCE | D27: MESAVERDE | E27: 2.87027731 | F27: 79133.105 | G27: 227133.9558 | H27: 0.1925 | I27: 43723.28649
A28: 17 | C28: F WILSON 35 LEWIS | D28: MESAVERDE | E28: 2.87027731 | F28: 11745.272 | G28: 33712.18772 | H28: 0.1925 | I28: 6489.596137
A29: 18 | C29: F WILSON 37 LEW/LNC/FTUN | D29: FORT UNION | E29: 2.87027731 | F29: 60138.386 | G29: 172613.8448 | H29: 0.1625 | I29: 28049.74978
A30: 19 | C30: F WILSON 37 MESA | D30: FORT UNION | E30: 2.87027731 | F30: 10615.36 | G30: 30469.02695 | H30: 0.2325 | I30: 7084.048765
A31: 20 | C31: F WILSON A 2 WAS | D31: WASATCH | E31: 2.87027731 | F31: 122049.995 | G31: 350317.3314 | H31: 0.1925 | I31: 67436.08629
A32: 21 | C32: F WILSON A 20 FT UN | D32: FORT UNION | E32: 2.87027731 | F32: 2104.34 | G32: 6040.039355 | H32: 0.1925 | I32: 1162.707576
A33: 22 | C33: F WILSON A 20 LEW/LAN/FT UN | D33: LEWIS/LANCE/FT U | E33: 2.87027731 | F33: 39991.618 | G33: 114787.0337 | H33: 0.1925 | I33: 22096.504
A34: 23 | C34: F WILSON A 22 FT UN | D34: FORT UNION | E34: 2.87027731 | F34: 61122.706 | G34: 175439.1162 | H34: 0.1925 | I34: 33772.02986
A35: 24 | C35: F WILSON A 26 FT UN | D35: FORT UNION | E35: 2.87027731 | F35: 78274.378 | G35: 224669.1711 | H35: 0.1925 | I35: 43248.81545
A36: 25 | C36: F WILSON A 9 WAS | D36: WASATCH | E36: 2.87027731 | F36: 116813.789 | G36: 335287.9681 | H36: 0.1925 | I36: 64542.93386
A37: 26 | C37: F WILSON B 12 FT UN | D37: FORT UNION | E37: 2.87027731 | F37: 67254.865 | G37: 193040.113 | H37: 0.1625 | I37: 31369.01836
A38: 27 | C38: F WILSON B 2 UNIT (HIAW) FT UN | D38: FORT UNION | E38: 2.87027731 | F38: 48563.626 | G38: 139391.0738 | H38: 0.1625 | I38: 22651.04949
A39: 28 | C39: F WILSON B 24 FT UN | D39: FORT UNION | E39: 2.87027731 | F39: 118046.881 | G39: 338827.2841 | H39: 0.1625 | I39: 55059.43366
A40: 29 | C40: F WILSON B 25 FT UN | D40: FORT UNION | E40: 2.87027731 | F40: 14073.359 | G40: 40394.44302 | H40: 0.1625 | I40: 6564.09699
A41: 30 | C41: F WILSON B 3 WAS | D41: WASATCH | E41: 2.87027731 | F41: 182083.28 | G41: 522629.5072 | H41: 0.1625 | I41: 84927.29491
A42: 31 | C42: F WILSON B 6 WAS | D42: WASATCH | E42: 2.87027731 | F42: 132000.145 | G42: 378877.0211 | H42: 0.1625 | I42: 61567.51594
A43: 32 | C43: G KUYKENDALL 9 FT UN | D43: FORT UNION | E43: 2.87027731 | F43: 21197.765 | G43: 60843.46391 | H43: 0.1925 | I43: 11712.3668
A44: 33 | C44: G KUYKENDALL A 8 FT UN | D44: FORT UNION | E44: 2.87027731 | F44: 4603.467 | G44: 13213.22688 | H44: 0.1925 | I44: 2543.546174
A45: 34 | C45: HIAWATHA STATELAND 6 FT UN | D45: FORT UNION | E45: 2.87027731 | F45: 21201.382 | G45: 60853.8457 | H45: 0.13375 | I45: 8139.201862
A46: 35 | C46: HIAWATHA STLD 7 FT UN | D46: FORT UNION | E46: 2.87027731 | F46: 32781.658 | G46: 94092.44915 | H46: 0.1375 | I46: 12937.71176
A47: 36 | C47: HIAWATHA UNIT 1 FT UN | D47: FORT UNION | E47: 2.87027731 | F47: 31244.425 | G47: 89680.16415 | H47: 0.1925 | I47: 17263.4316
A48: 37 | C48: KS WHITFORD 1 WAS | D48: WASATCH | E48: 2.87027731 | F48: 49167.348 | G48: 141123.9234 | H48: 0.155 | I48: 21874.20812
A49: 38 | C49: STATE LAND 5 FT UN | D49: FORT UNION | E49: 2.87027731 | F49: 28354.308 | G49: 81384.7269 | H49: 0.13375 | I49: 10885.20722
A50: 39 | C50: STLD 3712100 NE4 2 WAS | D50: WASATCH | E50: 2.87027731 | F50: 26101.146 | G50: 74917.52714 | H50: 0.13375 | I50: 10020.21925
A51: 40 | C51: STLD 3712100 SE4 4 WAS | D51: WASATCH | E51: 2.87027731 | F51: 38608.039 | G51: 110815.7783 | H51: 0.1375 | I51: 15237.16952
A52: 41 | B52: HIAW DEEP (CO) | C52: HIAWATHA DEEP UNIT 1 NUGGET | D52: NUGGET | E52: 2.87027731 | F52: 29616.627 | G52: 85007.93248 | H52: 0.1723962084 | I52: 14655.04524
A53: 42 | C53: HIAWATHA DEEP UNIT 2 ENTRADA | D53: NUGGET | E53: 2.87027731 | F53: 709.224 | G53: 2035.669555 | H53: 0.172395903 | I53: 350.9410911
A54: 43 | C54: HIAWATHA DEEP UNIT 2 NUGGET | D54: NUGGET | E54: 2.87027731 | F54: 13235.775 | G54: 37990.34467 | H54: 0.172395903 | I54: 6549.379774
A55: 44 | C55: HIAWATHA DEEP UNIT 3 NUGGET | D55: NUGGET | E55: 2.87027731 | F55: 202772.293 | G55: 582012.7117 | H55: 0.1714959958 | I55: 99812.84955
A56: 45 | B56: JACKS DRAW (CO) | C56: JACKS DRAW UNIT 17 FT UN | D56: FORT UNION | E56: 2.87027731 | F56: 25653.487 | G56: 73632.62166 | H56: 0.1396875 | I56: 10285.55684
A57: 46 | C57: JACKS DRAW UNIT 18 FT UN | D57: FORT UNION | E57: 2.87027731 | F57: 110133.566 | G57: 316113.8756 | H57: 0.1396877 | I57: 44157.22022
A58: 47 | C58: JACKS DRAW UNIT 19 FT UN | D58: FORT UNION | E58: 2.87027731 | F58: 58990.372 | G58: 169318.7263 | H58: 0.149541643 | I58: 25320.20051
A59: 48 | C59: JACKS DRAW UNIT 2 FT UN | D59: FORT UNION | E59: 2.87027731 | F59: 46814.29 | G59: 134369.9944 | H59: 0.1396875 | I59: 18769.80859
A60: 49 | C60: JACKS DRAW UNIT 20 FT UN | D60: FORT UNION | E60: 2.87027731 | F60: 70818.183 | G60: 203267.8238 | H60: 0.1396877 | I60: 28394.01479
A61: 50 | C61: JACKS DRAW UNIT 3 FT UN | D61: FORT UNION | E61: 2.87027731 | F61: 7560.102 | G61: 21699.58923 | H61: 0.1396875 | I61: 3031.161371
A62: 51 | C62: JACKS DRAW UNIT 5 FT UN | D62: FORT UNION | E62: 2.87027731 | F62: 2331.325 | G62: 6691.54925 | H62: 0.1489132823 | I62: 996.4605627
A63: 52 | C63: JACKS DRAW UNIT 8 FT UN | D63: FORT UNION | E63: 2.87027731 | F63: 4621.907 | G63: 13266.15479 | H63: 0.1489132823 | I63: 1975.506654
A64: 53 | C64: JACKS DRAW UNIT 9 FT UN | D64: FORT UNION | E64: 2.87027731 | F64: 30799.136 | G64: 88402.06124 | H64: 0.1396875 | I64: 12348.66293
A65: 54 | B65: LO HORSE DR (CO) | C65: LOWER HORSE DRAW 10-1 MANCOS B | D65: MANCOS B | E65: 2.87027731 | F65: 2330.212 | G65: 6688.354632 | H65: 0.125 | I65: 836.044329
A66: 55 | C66: LOWER HORSE DRAW 10-2 MB SILT | D66: MANCOS B SILT | E66: 2.87027731 | F66: 5000.107 | G66: 14351.69367 | H66: 0.125 | I66: 1793.961709
A67: 56 | C67: LOWER HORSE DRAW 12-2 MANCOS B | D67: MANCOS B | E67: 2.87027731 | F67: 23756.305 | G67: 68187.18322 | H67: 0.125 | I67: 8523.397902
A68: 57 | C68: LOWER HORSE FED 11-5 MANCOS B | D68: MANCOS B | E68: 2.87027731 | F68: 17919.404 | G68: 51433.65871 | H68: 0.125 | I68: 6429.207339
A69: 58 | C69: LOWER HORSE FED 11-5 MB SILT | D69: MANCOS B SILT | E69: 2.87027731 | F69: 11695.808 | G69: 33570.21233 | H69: 0.125 | I69: 4196.276541
A70: 59 | B70: POWDER WASH (CO) | C70: BW MUSSER 15 UPPER FT UN | D70: FORT UNION | E70: 2.87027731 | F70: 7776.256 | G70: 22320.01116 | H70: 0.1100461 | I70: 2456.23018
A71: 60 | C71: BW MUSSER 23 FT UN | D71: FORT UNION | E71: 2.87027731 | F71: 55123.24 | G71: 158218.985 | H71: 0.1100461 | I71: 17411.38225
A72: 61 | C72: BW MUSSER 24 FT UN | D72: FORT UNION | E72: 2.87027731 | F72: 40391.018 | G72: 115933.4225 | H72: 0.1100461 | I72: 12758.02101
A73: 62 | C73: BW MUSSER 26R FT UN | D73: FORT UNION | E73: 2.87027731 | F73: 73851.33 | G73: 211973.7968 | H73: 0.1100461 | I73: 23326.88964
A74: 63 | C74: BW MUSSER 27 FT UN | D74: FORT UNION | E74: 2.87027731 | F74: 73755.896 | G74: 211699.8748 | H74: 0.110046 | I74: 23296.72442
A75: 64 | C75: BW MUSSER 28 FT UN | D75: FORT UNION | E75: 2.87027731 | F75: 12631.469 | G75: 36255.81887 | H75: 0.110046 | I75: 3989.807843
A76: 65 | C76: BW MUSSER 29 FT UN | D76: FORT UNION | E76: 2.87027731 | F76: 60809.337 | G76: =E76*F76 -> 174539.6602 | H76: 0.110046 | I76: 19207.39145
A77: 66 | C77: BW MUSSER 31 FT UN | D77: FORT UNION | E77: 2.87027731 | F77: 121104.399 | G77: 347603.2086 | H77: 0.110046 | I77: 38252.3427
A78: =A77+1 -> 67 | C78: BW MUSSER 32 FT UN | D78: FORT UNION | E78: 2.87027731 | F78: 56279.943 | G78: 161539.0434 | H78: 0.110046 | I78: 17776.72557
A79: 68 | C79: BW MUSSER 34 FT UN | D79: FORT UNION | E79: 2.87027731 | F79: 63267.618 | G79: 181595.6084 | H79: 0.110046 | I79: 19983.87032
A80: 69 | C80: BW MUSSER 35 FT UN | D80: FORT UNION | E80: 2.87027731 | F80: 3.999 | G80: 11.47823896 | H80: 0.110046 | I80: 1.263134285
A81: 70 | C81: BW MUSSER 36 FT UN | D81: FORT UNION | E81: 2.87027731 | F81: 134106.803 | G81: 384923.7138 | H81: 0.110046 | I81: 42359.31501
A82: 71 | C82: BW MUSSER 37 FT UN | D82: FORT UNION | E82: 2.87027731 | F82: 168331.347 | G82: 483157.6459 | H82: 0.110046 | I82: 53169.5663
A83: 72 | C83: BW MUSSER 38 FT UN | D83: FORT UNION | E83: 2.87027731 | F83: 107232.884 | G83: 307788.1139 | H83: 0.110046 | I83: =G83*H83 -> 33870.85078
A84: 73 | C84: BW MUSSER 39 FT UN | D84: FORT UNION | E84: 2.87027731 | F84: 127888.4 | G84: 367075.1728 | H84: 0.110046 | I84: 40395.15446
A85: 74 | C85: BW MUSSER 42 FT UN | D85: FORT UNION | E85: 2.87027731 | F85: 31754.09 | G85: 91143.04403 | H85: 0.110046 | I85: 10029.92742
A86: 75 | C86: BW MUSSER 72 FT UN | D86: FORT UNION | E86: 2.87027731 | F86: 31468.503 | G86: 90323.33015 | H86: 0.110046 | I86: 9939.72119
A87: 76 | C87: BW MUSSER 73 FT UN | D87: FORT UNION | E87: 2.87027731 | F87: 68007.987 | G87: 195201.782 | H87: 0.110046 | I87: 21481.1753
A88: 77 | C88: BW MUSSER A 1 WAS | D88: WASATCH | E88: 2.87027731 | F88: 1528.107 | G88: 4386.09085 | H88: 0.1100461 | I88: 482.6721923
A89: 78 | C89: BW MUSSER A 14 FT UN | D89: FORT UNION | E89: 2.87027731 | F89: 16425.55 | G89: 47145.88347 | H89: 0.1100461 | I89: 5188.220607
A90: 79 | C90: BW MUSSER B 10 FT UN | D90: FORT UNION | E90: 2.87027731 | F90: 10171.167 | G90: 29194.06986 | H90: 0.1100461 | I90: 3212.693531
A91: 80 | C91: BW MUSSER B 11 FT UN | D91: FORT UNION | E91: 2.87027731 | F91: 9533.81 | G91: 27364.67852 | H91: 0.1100461 | I91: 3011.376149
A92: 81 | C92: BW MUSSER B 13 FT UN | D92: FORT UNION | E92: 2.87027731 | F92: 19861.51 | G92: 57008.0415 | H92: 0.1100461 | I92: 6273.512636
A93: 82 | C93: BW MUSSER B 18 FT UN | D93: FORT UNION | E93: 2.87027731 | F93: 20953.957 | G93: 60143.66734 | H93: 0.1100461 | I93: 6618.57603
A94: 83 | C94: BW MUSSER B 19 FT UN | D94: FORT UNION | E94: 2.87027731 | F94: 29634.774 | G94: 85060.01941 | H94: 0.1100461 | I94: 9360.523402
A95: 84 | C95: BW MUSSER B 20 FT UN | D95: FORT UNION | E95: 2.87027731 | F95: 4599.12 | G95: 13200.74978 | H95: 0.1100461 | I95: 1452.691031
A96: 85 | C96: BW MUSSER B 6 WAS | D96: FRONTIER | E96: 2.87027731 | F96: 529.973 | G96: 1521.169477 | H96: 0.1100461 | I96: 167.3987684
A97: 86 | C97: CARL ALLEN 22 FT UN | D97: FORT UNION | E97: 2.87027731 | F97: 61925.261 | G97: 177742.6716 | H97: 0.1100461 | I97: 19559.88781
A98: 87 | C98: CARL ALLEN 23 FT UN | D98: FORT UNION | E98: 2.87027731 | F98: 39173.036 | G98: 112437.4764 | H98: 0.1100461 | I98: 12373.30577
A99: 88 | C99: CARL ALLEN 25 FT UN | D99: WASATCH | E99: 2.87027731 | F99: 118152.758 | G99: 339131.1804 | H99: 0.1100461 | I99: 37320.06379
A100: 89 | C100: CARL ALLEN 26 FT UN | D100: MESAVERDE | E100: 2.87027731 | F100: 127995.681 | G100: 367383.099 | H100: 0.1100461 | I100: 40429.07725
A101: 90 | C101: CARL ALLEN 27 FT UN | D101: FORT UNION | E101: 2.87027731 | F101: 101938.315 | G101: 292591.2326 | H101: 0.110046 | I101: 32198.49478
A102: 91 | C102: CARL ALLEN 28 FT UN | D102: FORT UNION | E102: 2.87027731 | F102: 32131.279 | G102: 92225.68106 | H102: 0.110046 | I102: 10149.0673
A103: 92 | C103: CARL ALLEN 29 FT UN | D103: FORT UNION | E103: 2.87027731 | F103: 80658.636 | G103: 231512.6528 | H103: 0.110046 | I103: 25477.04139
A104: 93 | C104: CARL ALLEN 30 FT UN | D104: FORT UNION | E104: 2.87027731 | F104: 86937.56 | G104: 249534.9059 | H104: 0.110046 | I104: 27460.31825
A105: 94 | C105: CARL ALLEN 31 FT UN | D105: FORT UNION | E105: 2.87027731 | F105: 171651.129 | G105: 492686.3408 | H105: 0.110046 | I105: 54218.16106
A106: 95 | C106: CARL ALLEN 32 FT UN | D106: FORT UNION | E106: 2.87027731 | F106: 74357.489 | G106: 213426.6135 | H106: 0.110046 | I106: 23486.74511
A107: 96 | C107: CARL ALLEN 33 FT UN | D107: FORT UNION | E107: 2.87027731 | F107: 21674.858 | G107: 62212.85312 | H107: 0.110046 | I107: 6846.275634
A108: 97 | C108: CARL ALLEN 34 FT UN | D108: FORT UNION | E108: 2.87027731 | F108: 89774.807 | G108: 257678.5916 | H108: 0.110046 | I108: 28356.49829
A109: 98 | C109: CARL ALLEN 35 FT UN | D109: FORT UNION | E109: 2.87027731 | F109: 69988.533 | G109: 200886.4982 | H109: 0.110046 | I109: 22106.75559
A110: 99 | C110: CARL ALLEN 36 FT UN | D110: FORT UNION | E110: 2.87027731 | F110: 73298.947 | G110: 210388.3044 | H110: 0.110046 | I110: 23152.39135
A111: 100 | C111: CARL ALLEN 37 FT UN | D111: FORT UNION | E111: 2.87027731 | F111: 100.01 | G111: 287.0564338 | H111: 0.1100461 | I111: 31.58944102
A112: 101 | C112: CARL ALLEN 40 FT UN | D112: FORT UNION | E112: 2.87027731 | F112: 56821.701 | G112: 163094.0391 | H112: 0.110046 | I112: 17947.84663
A113: 102 | C113: CARL ALLEN 41 FT UN | D113: FORT UNION | E113: 2.87027731 | F113: 40451.164 | G113: 116106.0582 | H113: 0.110046 | I113: 12777.00728
A114: 103 | C114: CARL ALLEN A 11 FT UN | D114: FORT UNION | E114: 2.87027731 | F114: 2052.143 | G114: 5890.21949 | H114: 0.1100461 | I114: 648.195683
A115: 104 | C115: CARL ALLEN A 11 LOWER FT UN | D115: FORT UNION | E115: 2.87027731 | F115: 38982.74 | G115: 111891.2741 | H115: 0.110046 | I115: 12313.18715
A116: 105 | C116: CARL ALLEN A 16 WAS | D116: WASATCH | E116: 2.87027731 | F116: 32954.225 | G116: 94587.76429 | H116: 0.1100461 | I116: 10409.01457
A117: 106 | C117: CARL ALLEN A 19 FT UN | D117: FORT UNION | E117: 2.87027731 | F117: 58980.568 | G117: 169290.5861 | H117: 0.1100461 | I117: 18629.76876
A118: 107 | C118: CARL ALLEN A 2 WAS | D118: WASATCH | E118: 2.87027731 | F118: 16113.781 | G118: 46251.01999 | H118: 0.1100461 | I118: 5089.744371
A119: 108 | C119: CARL ALLEN A 20 FT UN | D119: FORT UNION | E119: 2.87027731 | F119: 22812.237 | G119: 65477.44626 | H119: 0.1100461 | I119: 7205.537599
A120: 109 | C120: CARL ALLEN A 8 FT UN | D120: FORT UNION | E120: 2.87027731 | F120: 13524.012 | G120: 38817.66479 | H120: 0.1100461 | I120: 4271.732621
A121: 110 | C121: CARL ALLEN B 10 WAS | D121: WASATCH | E121: 2.87027731 | F121: 2359.111 | G121: 6771.302776 | H121: 0.1100461 | I121: 745.1554624
A122: 111 | C122: CARL ALLEN B 15 WAS | D122: WASATCH | E122: 2.87027731 | F122: 9926.603 | G122: 28492.10336 | H122: 0.1100461 | I122: 3135.444855
A123: 112 | C123: CARL ALLEN B 17 WAS | D123: WASATCH | E123: 2.87027731 | F123: 12263.847 | G123: 35200.64178 | H123: 0.1100461 | I123: 3873.693345
A124: 113 | C124: CARL ALLEN B 4 WAS | D124: WASATCH | E124: 2.87027731 | F124: 1 | G124: 2.87027731 | H124: 0.1100461 | I124: 0.3158628239
A125: 114 | C125: CARL ALLEN B 6 FT UN | D125: FORT UNION | E125: 2.87027731 | F125: 29788.144 | G125: 85500.23384 | H125: 0.1100461 | I125: 9408.967283
A126: 115 | C126: CARL ALLEN B 6 LOWER FT UN | D126: FORT UNION | E126: 2.87027731 | F126: 29788.144 | G126: 85500.23384 | H126: 0.1100461 | I126: 9408.967283
A127: 116 | C127: CARL ALLEN B 7 FT UN | D127: FORT UNION | E127: 2.87027731 | F127: 1973.397 | G127: 5664.196633 | H127: 0.1100461 | I127: 623.3227491
A128: 117 | C128: CARL ALLEN B 9 UPPER WAS | D128: WASATCH | E128: 2.87027731 | F128: 9176.905 | G128: 26340.2622 | H128: 0.1100461 | I128: 2898.643128
A129: 118 | C129: H STEWART 5 FT UN | D129: FORT UNION | E129: 2.87027731 | F129: 110377.878 | G129: 316815.1188 | H129: 0.1100461 | I129: 34864.26824
A130: 119 | C130: H STEWART A 1 FT UN | D130: FORT UNION | E130: 2.87027731 | F130: 6026.186 | G130: 17296.82494 | H130: 0.1100461 | I130: 1903.448127
A131: 120 | C131: H STEWART A 2 FT UN | D131: FORT UNION | E131: 2.87027731 | F131: 48985.539 | G131: 140602.0811 | H131: 0.1100461 | I131: 15472.71068
A132: 121 | C132: JA LEE 1 FT UN | D132: FORT UNION | E132: 2.87027731 | F132: 14793.299 | G132: 42460.87046 | H132: 0.1100461 | I132: 4672.653197
A133: 122 | C133: JC DONNELL 14 FT UN | D133: FORT UNION | E133: 2.87027731 | F133: 67595.114 | G133: 194016.722 | H133: 0.110046 | I133: 21350.76419
A134: 123 | C134: JC DONNELL 14-29 FT UN | D134: FORT UNION | E134: 2.87027731 | F134: 101619.853 | G134: 291677.1583 | H134: 0.1100461 | I134: 32097.93373
A135: 124 | C135: JC DONNELL 15 FT UN | D135: FORT UNION | E135: 2.87027731 | F135: 75605.986 | G135: 217010.1461 | H135: 0.110046 | I135: 23881.09854
A136: 125 | C136: JC DONNELL 16 FT UN | D136: FORT UNION | E136: 2.87027731 | F136: 100459.636 | G136: 288347.0138 | H136: 0.110046 | I136: 31731.43548
A137: 126 | C137: JC DONNELL 18 FT UN | D137: FORT UNION | E137: 2.87027731 | F137: 10773.782 | G137: 30923.74202 | H137: 0.110046 | I137: 3403.034114
A138: 127 | C138: JC DONNELL A 1 FT UN | D138: FORT UNION | E138: 2.87027731 | F138: 9459.977 | G138: 27152.75734 | H138: 0.1100461 | I138: 2988.055049
A139: 128 | C139: JC DONNELL A 11 FT UN | D139: FORT UNION | E139: 2.87027731 | F139: 45755.144 | G139: 131329.9517 | H139: 0.1100461 | I139: 14452.34899
A140: 129 | C140: JC DONNELL B 10 FT UN | D140: FORT UNION | E140: 2.87027731 | F140: 21043.41 | G140: =E140*F140 -> 60400.42225 | H140: 0.1100461 | I140: 6646.830907
A141: 130 | C141: JC DONNELL B 3 WAS | D141: WASATCH | E141: 2.87027731 | F141: 39987.245 | G141: 114774.482 | H141: 0.1100461 | I141: 12630.48413
A142: =A141+1 -> 131 | C142: JC DONNELL B 5 FT UN | D142: FORT UNION | E142: 2.87027731 | F142: 19245.865 | G142: 55240.96963 | H142: 0.1100461 | I142: 6079.053268
A143: 132 | C143: JC DONNELL B 9 FT UN | D143: FORT UNION | E143: 2.87027731 | F143: 5655.676 | G143: 16233.3585 | H143: 0.1100461 | I143: 1786.417792
A144: 133 | C144: MFS 20-1 FT UN (PC) | D144: FORT UNION | E144: 2.87027731 | F144: 71349.518 | G144: 204792.9026 | H144: 0.125 | I144: 25599.11283
A145: 134 | C145: POWDER WASH GOVT 1 FT UN | D145: FORT UNION | E145: 2.87027731 | F145: 7477.806 | G145: 21463.37689 | H145: 0.1100461 | I145: 2361.96092
A146: 135 | C146: POWDER WASH GOVT 17 FT UN | D146: FORT UNION | E146: 2.87027731 | F146: 49809.436 | G146: 142966.894 | H146: 0.110046 | I146: 15732.93482
A147: 136 | C147: STEWART 6 FT UN | D147: FORT UNION | E147: 2.87027731 | F147: 27108.736 | G147: 77809.58985 | H147: 0.110046 | I147: =G147*H147 -> 8562.634125
A148: 137 | B148: RABBIT MTN (CO) | C148: MF FEDERAL 8-1 MANCOS B | D148: MANCOS B | E148: 2.87027731 | F148: 33809.063 | G148: 97041.38641 | H148: 0.155 | I148: 15041.41489
A149: 138 | C149: RABBIT MTN FED 7-1 MANCOS B | D149: MANCOS B | E149: 2.87027731 | F149: 39190.531 | G149: 112487.6919 | H149: 0.125 | I149: 14060.96149
A150: 139 | B150: SUGAR LOAF (CO) | C150: SUGARLOAF GOVT 1 MESA | D150: MESAVERDE | E150: 2.87027731 | F150: 93395.291 | G150: 268070.3846 | H150: 0.13375 | I150: 35854.41395
A151: 140 | C151: SUGARLOAF GOVT 10 MESA | D151: MESAVERDE | E151: 2.87027731 | F151: 53494.283 | G151: 153543.4267 | H151: 0.13375 | I151: 20536.43332
A152: 141 | C152: SUGARLOAF GOVT 12 MESA | D152: MESAVERDE | E152: 2.87027731 | F152: 9524.597 | G152: 27338.23466 | H152: 0.13375 | I152: 3656.488886
A153: 142 | C153: SUGARLOAF GOVT 14 MESA | D153: MESAVERDE | E153: 2.87027731 | F153: 19152.007 | G153: 54971.57114 | H153: 0.13375 | I153: 7352.44764
A154: 143 | C154: SUGARLOAF GOVT 15 MESA | D154: MESAVERDE | E154: 2.87027731 | F154: 20738.257 | G154: 59524.54852 | H154: 0.13375 | I154: 7961.408365
A155: 144 | C155: SUGARLOAF GOVT 17 ALMOND | D155: ALMOND | E155: 2.87027731 | F155: 181063.834 | G155: 519703.4144 | H155: 0.20375 | I155: 105889.5707
A156: 145 | C156: SUGARLOAF GOVT 2 MESA | D156: MESAVERDE | E156: 2.87027731 | F156: 102142.012 | G156: 293175.8995 | H156: 0.13375 | I156: 39212.27655
A157: 146 | C157: SUGARLOAF GOVT 3 FT UN | D157: FORT UNION | E157: 2.87027731 | F157: 23503.201 | G157: 67460.70455 | H157: 0.13375 | I157: 9022.869233
A158: 147 | C158: SUGARLOAF GOVT 4 MESA | D158: MESAVERDE | E158: 2.87027731 | F158: 11600.008 | G158: 33295.23976 | H158: 0.13375 | I158: 4453.238318
A159: 148 | C159: SUGARLOAF GOVT 6 MESA | D159: MESAVERDE | E159: 2.87027731 | F159: 63477.368 | G159: 182197.6491 | H159: 0.13375 | I159: 24368.93557
A160: 149 | C160: SUGARLOAF GOVT 8 MESA | D160: MESAVERDE | E160: 2.87027731 | F160: 21671.254 | G160: 62202.50864 | H160: 0.13375 | I160: 8319.585531
A161: 150 | C161: SUGARLOAF STLD 2 MESA | D161: MESAVERDE | E161: 2.87027731 | F161: 30693.59 | G161: 88099.11495 | H161: 0.125 | I161: 11012.38937
A162: 151 | B162: W HIAW (CO) | C162: LASHER 10 FT UN | D162: FORT UNION | E162: 2.87027731 | F162: 9158.789 | G162: 26288.26426 | H162: 0.1840625 | I162: 4838.68364
A163: 152 | C163: LASHER 10 LEWIS | D163: LEWIS | E163: 2.87027731 | F163: 9158.789 | G163: 26288.26426 | H163: 0.1840625 | I163: 4838.68364
A164: 153 | C164: LASHER 10 MESA | D164: MESAVERDE | E164: 2.87027731 | F164: 9431.623 | G164: 27071.3735 | H164: 0.2540625 | I164: 6877.820829
A165: 154 | C165: LASHER 11 FT UN | D165: FORT UNION | E165: 2.87027731 | F165: 21974.493 | G165: 63072.88866 | H165: 0.1840625 | I165: 11609.35357
A166: 155 | C166: LASHER 11 LANCE | D166: LANCE | E166: 2.87027731 | F166: 21974.493 | G166: 63072.88866 | H166: 0.1840625 | I166: 11609.35357
A167: 156 | C167: LASHER 11 LEWIS | D167: LEWIS | E167: 2.87027731 | F167: 21974.493 | G167: 63072.88866 | H167: 0.1840625 | I167: 11609.35357
A168: 157 | C168: LASHER 11 MESA | D168: MESAVERDE | E168: 2.87027731 | F168: 21973.98 | G168: 63071.41621 | H168: 0.2540625 | I168: 16024.08168
A169: 158 | C169: LASHER 12 FT UN | D169: FORT UNION | E169: 2.87027731 | F169: 13281.191 | G169: 38120.70118 | H169: 0.1840625 | I169: 7016.591561
A170: 159 | C170: LASHER 12 LANCE | D170: LANCE | E170: 2.87027731 | F170: 13281.191 | G170: 38120.70118 | H170: 0.1840625 | I170: 7016.591561
A171: 160 | C171: LASHER 12 LEWIS | D171: LEWIS | E171: 2.87027731 | F171: 13281.191 | G171: 38120.70118 | H171: 0.1840625 | I171: 7016.591561
A172: 161 | C172: LASHER 12 MESA | D172: MESAVERDE | E172: 2.87027731 | F172: 13279.751 | G172: 38116.56798 | H172: 0.2540625 | I172: 9683.990553
A173: 162 | C173: LASHER 7 LEWIS | D173: LEWIS | E173: 2.87027731 | F173: 67021.303 | G173: 192369.7253 | H173: 0.1925 | I173: 37031.17212
A174: 163 | C174: LASHER 8 LEWIS | D174: LEWIS | E174: 2.87027731 | F174: 37574.43 | G174: 107849.0339 | H174: 0.1840625 | I174: 19850.9628
A175: 164 | C175: LASHER 9 LEWIS | D175: LEWIS | E175: 2.87027731 | F175: 49733.309 | G175: 142748.3884 | H175: 0.1840625 | I175: 26274.62524
A176: 165 | C176: WB LASHER A 2 WAS | D176: WASATCH | E176: 2.87027731 | F176: 17995.174 | G176: 51651.13963 | H176: 0.1925 | I176: 9942.844378
A177: 166 | C177: WB LASHER A 4 FT UN | D177: FORT UNION | E177: 2.87027731 | F177: 32459.119 | G177: 93166.67278 | H177: 0.1925 | I177: 17934.58451
A178: 167 | C178: WB LASHER A 5 FT UN | D178: FORT UNION | E178: 2.87027731 | F178: 32938.474 | G178: 94542.55456 | H178: 0.1840625 | I178: 17401.73895
A179: 168 | C179: WB LASHER A 6 LEW/LNC/FT UN | D179: LANCE/LEWIS | E179: 2.87027731 | F179: 53016.035 | G179: 152170.7223 | H179: 0.1925 | I179: 29292.86405
A180: 169 | C180: WHEELER 5 LEW/LAN/FT UN | D180: LANCE/LEWIS | E180: 2.87027731 | F180: 49237.438 | G180: 141325.1011 | H180: 0.1925 | I180: 27205.08196
A181: 170 | C181: WHEELER 5 MESA | D181: MESAVERDE | E181: 2.87027731 | F181: 2318.955 | G181: 6656.04392 | H181: 0.2625 | I181: 1747.211529
A182: 171 | C182: WHEELER 6 LEW/LAN/FT UN | D182: LANCE/LEWIS | E182: 2.87027731 | F182: 21133.304 | G182: 60658.44296 | H182: 0.1925 | I182: 11676.75027
A183: 172 | C183: WHEELER 6 MESA | D183: MESAVERDE | E183: 2.87027731 | F183: 15238.584 | G183: 43738.9619 | H183: 0.2625 | I183: 11481.4775
A184: 173 | C184: WHEELER 7 LEW/LAN/FT UN | D184: LANCE/LEWIS | E184: 2.87027731 | F184: 10426.696 | G184: 29927.50895 | H184: 0.1925 | I184: 5761.045473
A185: 174 | C185: WHEELER 7 MESA | D185: MESAVERDE | E185: 2.87027731 | F185: 4596.42 | G185: 13193.00003 | H185: 0.2625 | I185: 3463.162509
A186: 175 | C186: WHEELER 8 LEW/LAN/FT UN | D186: LANCE/LEWIS | E186: 2.87027731 | F186: 970.99 | G186: 2787.010565 | H186: 0.1925 | I186: 536.4995339
A187: 176 | C187: WHEELER 8 MESA | D187: MESAVERDE | E187: 2.87027731 | F187: 94.997 | G187: 272.6677336 | H187: 0.2625 | I187: 71.57528008
A188: 177 | C188: WHEELER 9 LEW/LAN/FT UN | D188: LANCE/LEWIS | E188: 2.87027731 | F188: 57464.585 | G188: 164939.2945 | H188: 0.1925 | I188: 31750.81419
A189: 178 | C189: WHEELER 9 MESA | D189: MESAVERDE | E189: 2.87027731 | F189: 6528.163 | G189: 18737.63814 | H189: 0.2625 | I189: 4918.630011
A190: 179 | C190: WM WHEELER A 2 FT UN | D190: FORT UNION | E190: 2.87027731 | F190: 20974.668 | G190: 60203.11365 | H190: 0.1925 | I190: 11589.09938
A191: 180 | C191: WM WHEELER A 2 WAS | D191: WASATCH | E191: 2.87027731 | F191: 20310.578 | G191: 58296.99119 | H191: 0.1925 | I191: 11222.1708
A192: 181 | C192: WM WHEELER A 3 FT UN | D192: FORT UNION | E192: 2.87027731 | F192: 26017.046 | G192: 74676.13681 | H192: 0.1925 | I192: 14375.15634
A193: 182 | C193: WM WHEELER A 4 LEW/LNC/FT UN | D193: LANCE/LEWIS | E193: 2.87027731 | F193: 70018.808 | G193: 200973.3959 | H193: 0.1925 | I193: 38687.37871
A194: 183 | B194: CLAY BASIN (UT) | C194: CLAY BASIN UNIT 12 FR | D194: FRONTIER | E194: 2.87027731 | F194: 72335.103 | G194: 207621.8049 | H194: 0.1549177 | I194: 32164.29248
A195: 184 | C195: CLAY BASIN UNIT 13 FR | D195: FRONTIER | E195: 2.87027731 | F195: 73898.73 | G195: 212109.848 | H195: 0.1549177 | I195: 32859.5698
A196: 185 | C196: CLAY BASIN UNIT 14 FR | D196: FRONTIER | E196: 2.87027731 | F196: 36765.474 | G196: 105527.1058 | H196: 0.1549177 | I196: 16348.01652
A197: 186 | C197: CLAY BASIN UNIT 15 FR | D197: LANCE | E197: 2.87027731 | F197: 162380.499 | G197: 466077.0619 | H197: 0.1549177 | I197: 72203.58645
A198: 187 | C198: CLAY BASIN UNIT 16 FR | D198: FRONTIER | E198: 2.87027731 | F198: 26599.083 | G198: 76346.74441 | H198: 0.1549177 | I198: 11827.46205
A199: 188 | C199: CLAY BASIN UNIT 17 FR | D199: FRONTIER | E199: 2.87027731 | F199: 56337.698 | G199: 161704.8163 | H199: 0.1549177 | I199: 25050.93822
A200: 189 | C200: CLAY BASIN UNIT 18 FR | D200: FRONTIER | E200: 2.87027731 | F200: 49691.107 | G200: 142627.2569 | H200: 0.1549177 | I200: 22095.4866
A201: 190 | C201: CLAY BASIN UNIT 19 FR | D201: FRONTIER | E201: 2.87027731 | F201: 80308.195 | G201: 230506.7899 | H201: 0.1549177 | I201: 35709.58173
A202: 191 | C202: CLAY BASIN UNIT 20 FR | D202: FRONTIER | E202: 2.87027731 | F202: 66366.776 | G202: 190491.0513 | H202: 0.1549177 | I202: 29510.43554
... 1387 more rows

Sheet Ut 1.2
H1: ='Control Panel'!$E$32 -> Questar Gas Company
H2: ='Control Panel'!$E$33 -> Docket No. 16-057-09
H3: Exhibit 1.2
B8: TEST YEAR PURCHASED GAS COSTS
D11: (A) | E11: (B) | F11: (C) | G11: (D)
F12: Cost
C13: Component | E13: Dth | F13: per Dth | G13: Total Cost
B15: 1 | C15: Current Contracts | G15: =ROUND(Calculations!$P$182+Calculations!$P$185-G16,0) -> 70499440
B16: =B15+1 -> 2 | C16: Stabilization Costs | G16: ='Monthly Inputs'!S89 -> 0
B17: =B16+1 -> 3 | D17: Total Current Contracts | E17: =Calculations!$P$181+Calculations!$P$184 -> 20680000 | F17: =G17/E17 -> 3.40906383 | G17: =G15+G16 -> 70499440
B19: =B17+1 -> 4 | C19: Forecast Spot | E19: =Calculations!$P$178 -> 28221609 | F19: =G19/E19 -> 2.968190368 | G19: =ROUND(Calculations!P179,0) -> 83767108
B21: =B19+1 -> 5 | C21: Future Contracts | E21: =Calculations!P187 -> 0.001926269382 | F21: =G21/E21 -> 0 | G21: =ROUND(Calculations!P188,0) -> 0
B24: =B21+1 -> 6 | C24: Total Gas Purchased | E24: =E17+E19+E21 -> 48901609 | F24: =G24/E24 -> 3.154631333 | G24: =G17+G19+G21 -> 154266548

Sheet Ut 1.3 p1
N1: ='Control Panel'!$E$32 -> Questar Gas Company
N2: ='Control Panel'!$E$33 -> Docket No. 16-057-09
N3: Exhibit 1.3
N4: Page 1 of 2
B8: TEST YEAR TRANSPORTATION, GATHERING AND PROCESSING CHARGES
B11: (A) | D11: (B) | F11: (C) | H11: (D) | J11: (E) | L11: (F) | M11: (G)
D12: Fctr | F12: Dth | H12: Months/Days | J12: Rate | M12: Total Costs
B14: TRANSPORTATION DEMAND
B16: QPC Demand
A17: 1 | B17: T-1 Transportation - Yearly | F17: ='Other Inputs'!D19+'Other Inputs'!D20+'Other Inputs'!D21 -> 840902 | G17: x | H17: ='Other Inputs'!E19 -> 12 | I17: x | J17: ='Other Inputs'!F19 -> 5.28804 | K17: = | L17: =ROUND(F17*H17*J17,0) -> 53360681
A18: =A17+1 -> 2 | B18: T-1 Transportation Nov-Mar | F18: ='Other Inputs'!D22 -> 75000 | G18: x | H18: ='Other Inputs'!E22 -> 5 | I18: x | J18: ='Other Inputs'!F22 -> 6.80887 | K18: = | L18: =ROUND(F18*H18*J18,0) -> 2553326
A19: =A18+1 -> 3 | B19: No-Notice Transportation | F19: ='Other Inputs'!D27 -> 203542 | G19: x | H19: ='Other Inputs'!E27 -> 12 | I19: x | J19: ='Other Inputs'!F27 -> 0.86753 | K19: = | L19: =ROUND(F19*H19*J19,0) -> 2118945
A20: =A19+1 -> 4 | B20: Capacity Release Credits | L20: =-ROUND('Other Inputs'!E285,0) -> -9659
A21: =A20+1 -> 5 | C21: Total | L21: =SUM(L17:L20) -> 58023293
B23: Kern River Demand
A24: =A21+1 -> 6 | B24: January - December | F24: ='Other Inputs'!D53 -> 1885 | G24: x | H24: ='Other Inputs'!E53 -> 12 | I24: x | J24: ='Other Inputs'!F53 -> 17.693375 | K24: = | L24: =ROUND(F24*H24*J24,0) -> 400224
A25: =A24+1 -> 7 | B25: January - December | F25: ='Other Inputs'!D51 -> 3000 | G25: x | H25: ='Other Inputs'!E51 -> 12 | I25: x | J25: ='Other Inputs'!F51 -> 14.308 | K25: = | L25: =ROUND(F25*H25*J25,0) -> 515088
A26: =A25+1 -> 8 | B26: November - March | F26: ='Other Inputs'!D52 -> 50000 | G26: x | H26: ='Other Inputs'!E52 -> 5 | I26: x | J26: =J25 -> 14.308 | K26: = | L26: =ROUND(F26*H26*J26,0) -> 3577000
A27: =A26+1 -> 9 | B27: November - March | F27: ='Other Inputs'!D56 -> 27625 | G27: x | H27: 5 | I27: x | J27: ='Other Inputs'!F56 -> 5.536666667 | K27: = | L27: =ROUND(F27*H27*J27,0) -> 764752
A28: =A27+1 -> 10 | C28: Total | L28: =SUM(L24:L27) -> 5257064
A30: =A28+1 -> 11 | B30: Total Transportation Demand (SNG) | M30: =L21+L28 -> 63280357
B33: TRANSPORTATION COMMODITY
A35: =A30+1 -> 12 | B35: QPC Commodity (SNG) | F35: =F37-(D40*F40*H40)-(D41*F41*H41)-(D42*F42*H42) -> 116265200.1 | I35: x | J35: ='Other Inputs'!F35 -> 0.00267 | K35: = | L35: =ROUND(F35*J35,0) -> 310428
A37: =A35+1 -> 13 | B37: Total ACA | F37: =Calculations!$P$171 -> 128792934.1 | I37: x | J37: ='Other Inputs'!F36 -> 0.0013 | K37: = | L37: =ROUND(F37*J37,0) -> 167431
B39: Kern River Commodity
A40: =A37+1 -> 14 | B40: January - December | D40: ='Other Inputs'!C60 -> 0.927677939 | E40: x | F40: ='Other Inputs'!D60 -> 4885 | G40: x | H40: ='Other Inputs'!E60 -> 365 | I40: x | J40: ='Other Inputs'!F60 -> 0.0044 | K40: = | L40: =ROUND(D40*F40*H40*J40,0) -> 7278
A41: =A40+1 -> 15 | B41: November - March | D41: ='Other Inputs'!C61 -> 0.927677939 | E41: x | F41: ='Other Inputs'!D61 -> 50000 | G41: x | H41: ='Other Inputs'!E61 -> 151 | I41: x | J41: ='Other Inputs'!F61 -> 0.0044 | K41: = | L41: =ROUND(D41*F41*H41*J41,0) -> 30817
A42: =A41+1 -> 16 | B42: November - March | D42: ='Other Inputs'!C64 -> 0.927677939 | E42: x | F42: ='Other Inputs'!D64 -> 27625 | G42: x | H42: ='Other Inputs'!E64 -> 151 | I42: x | J42: ='Other Inputs'!F64 -> 0.0031 | K42: = | L42: =ROUND(D42*F42*H42*J42,0) -> 11996
A43: =A42+1 -> 17 | C43: Total (SNG) | L43: =SUM(L40:L42) -> 50091
A45: =A43+1 -> 18 | B45: Total Transportation Commodity | M45: =L37+L43+L35 -> 527950
B48: OTHER CHARGES
A50: =A45+1 -> 19 | B50: QEPFS/Tesoro Field Services Demand | L50: ='Other Inputs'!E167 -> 12245844
A51: =A50+1 -> 20 | B51: QEPFS/Tesoro Field Services Commodity | L51: ='Other Inputs'!D167 -> 6303902.265
A52: =A51+1 -> 21 | C52: Total QEPFS/Tesoro Field Services (SNG) | M52: =L50+L51 -> 18549746.27 | N52: 1/
A54: =A52+1 -> 22 | B54: Wexpro II Gathering | J54: ='Other Inputs'!D170 -> 4355383.965 | L54: ='Other Inputs'!D170 -> 4355383.965
A55: =A54+1 -> 23 | B55: Other Wexpro I Gathering Charges | L55: =ROUND('Other Inputs'!D159,0) -> 2197793
A56: =A55+1 -> 24 | B56: Other Transportation Charges | L56: =ROUND('Other Inputs'!$D$161,0) -> 3854668
A57: =A56+1 -> 25 | C57: Total Wexpro II Gathering, Other Gathering & Transportation | M57: =SUM(L54:L56) -> 10407844.97
A62: =A57+1 -> 26 | B62: TOTAL TRANSPORTATION AND OTHER CHARGES | M62: =SUM(M13:M60) -> 92765898.23
A67: 1/ | B67: See paragraph 7c in application.

Sheet Ut 1.3 p2
L1: ='Control Panel'!$E$32 -> Questar Gas Company
L2: ='Control Panel'!$E$33 -> Docket No. 16-057-09
L3: Exhibit 1.3
L4: Page 2 of 2
B7: TEST YEAR STORAGE AND WORKING GAS CHARGES
B10: (A) | D10: (B) | F10: (C) | H10: (D) | J10: (E) | K10: (F)
B12: STORAGE CHARGES 1/
B14: Component | D14: Dth | F14: Months | H14: Rate | K14: Total Costs
B15: Storage Demand
A16: 1 | B16: Peaking Demand | D16: ='Other Inputs'!E146 -> 184625 | E16: x | F16: 12 | G16: x | H16: ='Other Inputs'!E12 -> 2.87375 | I16: = | J16: =ROUND(D16*F16*H16,0) -> 6366793
A17: =A16+1 -> 2 | B17: Clay Basin Demand | D17: ='Other Inputs'!E147 -> 111827 | E17: x | F17: 12 | G17: x | H17: ='Other Inputs'!E13 -> 2.85338 | I17: = | J17: =ROUND(D17*F17*H17,0) -> 3829019
A18: =A17+1 -> 3 | B18: Clay Basin Capacity | D18: ='Other Inputs'!E148 -> 13419000 | E18: x | F18: 12 | G18: x | H18: ='Other Inputs'!E14 -> 0.02378 | I18: = | J18: =ROUND(D18*F18*H18,0) -> 3829246
A19: 4 | C19: Total Demand Charges (SNG) | J19: =SUM(J16:J18) -> 14025058
B21: Storage Commodity 2/
A22: =A19+1 -> 5 | B22: Peaking Injections | D22: =(+'Monthly Inputs'!S24+'Monthly Inputs'!S26+'Monthly Inputs'!S27) -> 1148750.74 | F22: x | H22: ='Other Inputs'!E6 -> 0.03872 | I22: = | J22: =ROUND(D22*H22,0) -> 44480
A23: =A22+1 -> 6 | B23: Peaking Withdrawals | D23: =(+'Monthly Inputs'!S31+'Monthly Inputs'!S33+'Monthly Inputs'!S34) -> 1063404.564 | F23: x | H23: ='Other Inputs'!E7 -> 0.03872 | I23: = | J23: =ROUND(D23*H23,0) -> 41175
A24: =A23+1 -> 7 | B24: Clay Basin Injections | D24: ='Monthly Inputs'!S25 -> 14904529.62 | F24: x | H24: ='Other Inputs'!E8 -> 0.01049 | I24: = | J24: =ROUND(D24*H24,0) -> 156349
A25: 8 | B25: Clay Basin Withdrawals | D25: ='Monthly Inputs'!S32 -> 13478110.63 | F25: x | H25: ='Other Inputs'!E9 -> 0.01781 | I25: = | J25: =ROUND(D25*H25,0) -> 240045
A26: 9 | C26: Total Commodity Charges | J26: =SUM(J22:J25) -> 482049
A28: =A26+1 -> 10 | B28: Total Storage Charges | K28: =J19+J26 -> 14507107
B31: WORKING GAS CHARGES - QGC Account 164
C33: Month | D33: Amount | H33: Pre-Tax Return %
A35: =A28+1 -> 11 | C35: =+'Rate Base'!H8 -> 2015-08-22 | D35: =+'Rate Base'!H216 -> 55069784.97
A36: =A35+1 -> 12 | C36: =+'Rate Base'!I8 -> 2015-09-21 | D36: =+'Rate Base'!I216 -> 68899212.39
A37: 13 | C37: =+'Rate Base'!J8 -> 2015-10-21 | D37: =+'Rate Base'!J216 -> 68125004.8
A38: 14 | C38: =+'Rate Base'!K8 -> 2015-11-20 | D38: =+'Rate Base'!K216 -> 50875669
A39: 15 | C39: =+'Rate Base'!L8 -> 2015-12-20 | D39: =+'Rate Base'!L216 -> 43864860.97
A40: 16 | C40: =+'Rate Base'!M8 -> 2016-01-19 | D40: =+'Rate Base'!M216 -> 31528328.54
A41: 17 | C41: =+'Rate Base'!N8 -> 2016-02-18 | D41: =+'Rate Base'!N216 -> 21185728.7
A42: 18 | C42: =+'Rate Base'!O8 -> 2016-03-19 | D42: =+'Rate Base'!O216 -> 7159514.94
A43: 19 | C43: =+'Rate Base'!P8 -> 2016-04-18 | D43: =+'Rate Base'!P216 -> 3455713.05
A44: 20 | C44: =+'Rate Base'!Q8 -> 2016-05-18 | D44: =+'Rate Base'!Q216 -> 11147739.1
A45: 21 | C45: =+'Rate Base'!R8 -> 2016-06-17 | D45: =+'Rate Base'!R216 -> 23044902.9
A46: 22 | C46: =+'Rate Base'!S8 -> 2016-07-17 | D46: =+'Rate Base'!S216 -> 39135538.03
A47: 23 | C47: =+'Rate Base'!T8 -> 2016-08-16 | D47: =+'Rate Base'!T216 -> 52516754.78
A50: =A47+1 -> 24 | B50: 12-Month Average 3/ | D50: =(SUM(D36:D46)+D35/2+D47/2)/12 -> 35184623.52 | F50: x | H50: ='Other Inputs'!E275 -> 0.1079 | J50: = | K50: =D50*H50 -> 3796420.878
A53: =A50+1 -> 25 | B53: TOTAL FIRM STORAGE AND WORKING GAS CHARGES | K53: =K50+K28 -> 18303527.88
A57: 1/ | B57: QPC Tariff included in Exhibit 1.9.
A58: 2/ | B58: Questar Gas planned volumes.
A59: 3/ | B59: (½ of Line 11 + sum of Lines 12 through 22 + ½ of Line 23) / 12

Sheet Ut 1.4 p1
G1: ='Control Panel'!$E$32 -> Questar Gas Company
G2: ='Control Panel'!$E$33 -> Docket No. 16-057-09
G3: Exhibit 1.4
G4: Page 1 of 3
B8: SUMMARY OF TEST-YEAR GAS RELATED COSTS AND REVENUES CREDITS
B11: (A) | E11: (B) | F11: (C) | G11: (D)
B12: Component | E12: Costs | F12: Dth 1/ | G12: $ per Dth
B14: WEXPRO I
A15: 1 | C15: Questar Gas Production 2/ | E15: ='Other Inputs'!D178 -> 290420438.4
A16: =A15+1 -> 2 | C16: Wexpro I Revenue Sharing Credits 3/ | E16: =-'Ut 1.4 p3'!H28 -> -18787754
A17: =A16+1 -> 3 | D17: Net Questar Gas Production Costs | E17: =E15+E16 -> 271632684.4 | F17: =F22 -> 57787047.73 | G17: =E17/F22 -> 4.700580754
A19: =A17+1 -> 4 | D19: Gathering 4/ | E19: ='Ut 1.3 p1'!L55+'Ut 1.3 p1'!M52 -> 20747539.27
A22: =A19+1 -> 5 | B22: Total Wexpro I Cost of Production | E22: =SUM(E17:E19) -> 292380223.7 | F22: ='Monthly Inputs'!S7*(1-'Other Inputs'!E279) -> 57787047.73 | G22: =E22/F22 -> 5.059615176
B24: WEXPRO II
A25: =A22+1 -> 6 | C25: Wexpro II Production 5/ | E25: ='Other Inputs'!D199 -> 43697238.06
A26: =A25+1 -> 7 | C26: Wexpro II Revenue Sharing Credits 6/ | E26: =-'Ut 1.4 p3'!H44 -> -1305487
A27: =A26+1 -> 8 | D27: Net Cost of Wexpro II Production | E27: =E25+E26 -> 42391751.06 | F27: =F32 -> 9660490.834 | G27: =E27/F32 -> 4.388157061
A29: =A27+1 -> 9 | D29: Gathering 7/ | E29: ='Ut 1.3 p1'!L54 -> 4355383.965
A32: =A29+1 -> 10 | B32: Total Wexpro II Cost of Production | E32: =SUM(E27:E29) -> 46747135.03 | F32: ='Monthly Inputs'!S13*(1-'Other Inputs'!E279) -> 9660490.834 | G32: =E32/F32 -> 4.839002058
A34: =A32+1 -> 11 | B34: Sales of Cost-of-Service Gas 8/ | E34: =-'Other Inputs'!E217 -> 0 | F34: ='Other Inputs'!F217 -> 0 | G34: ='Other Inputs'!G217 -> 0
A37: =A34+1 -> 12 | B37: Total Cost-of-Service Production | E37: =E22+E32+E34 -> 339127358.7 | F37: =F22+F32 -> 67447538.56 | G37: =E37/F37 -> 5.028016825
A39: =A37+1 -> 13 | B39: Questar Gas Contract Gas 9/ | E39: ='Ut 1.2'!G24 -> 154266548 | F39: ='Ut 1.2'!E24 -> 48901609 | G39: =E39/F39 -> 3.154631333
A41: =A39+1 -> 14 | B41: Injection / Withdrawal Adjustment 10/ | E41: ='Ut 1.4 p2'!H23 -> -3761271.05
A43: =A41+1 -> 15 | B43: Transportation & Other Costs 11/ | E43: ='Ut 1.3 p1'!M30+'Ut 1.3 p1'!M45+'Ut 1.3 p1'!L56 -> 67662975 | F43: ='Ut 1.3 p1'!F37 -> 128792934.1 | G43: =E43/F43 -> 0.5253624781
A45: =A43+1 -> 16 | B45: Storage & Working Gas 12/ | E45: ='Ut 1.3 p2'!K53 -> 18303527.88
B47: Gas Management Costs | E47: ='Ut 1.3 p1'!M59 -> 0
A50: =A45+1 -> 17 | B50: Questar Gas - Related Gas Costs for Rate Purposes 13/ | E50: =E37+E39+E41+E43+E45+E47 -> 575599138.5 | F50: ='Ut 1.6 p1'!H20 -> 111654926 | G50: =E50/F50 -> 5.155161166
A53: 1/ | B53: Estimated into-pipe volumes used for Wexpro dths.
A54: 2/ | B54: Exhibit 1.1, Page 18, Line 1386, Column H.
A55: 3/ | B55: Exhibit 1.4, Page 3, Line 8.
A56: 4/ | B56: Exhibit 1.3, Page 1, Lines 21 + 23.
A57: 5/ | B57: Exhibit 1.1, Page 21, Line 1570, Column H.
A58: 6/ | B58: Exhibit 1.4, Page 3, Line 16.
A59: 7/ | B59: Exhibit 1.3, Page 1, Line 22.
A60: 8/ | B60: Exhibit 1.4, Page 3, Line 17.
A61: 9/ | B61: Exhibit 1.2, Line 6.
A62: 10/ | B62: Exhibit 1.4, Page 2, Line 6.
A63: 11/ | B63: Exhibit 1.3, Page 1, Lines 11 + 18 + 24.
A64: 12/ | B64: Exhibit 1.3, Page 2, Line 25.
A65: 13/ | B65: Exhibit 1.6, Page 1, Line 4.

Sheet Ut 1.4 p2
J1: ='Control Panel'!$E$32 -> Questar Gas Company
J2: ='Control Panel'!$E$33 -> Docket No. 16-057-09
J3: Exhibit 1.4
J4: Page 2 of 3
B8: ANNUALIZED UNIT COST OF STORAGE GAS
C11: (A) | E11: (B) | F11: (C) | H11: (D)
F12: Average
E13: Dth | F13: Rate | H13: Total Costs
B15: 1 | C15: Company Production 1/ | E15: ='Ut 1.4 p1'!F37 -> 67447538.56 | F15: =H15/E15 -> 5.028016825 | H15: ='Ut 1.4 p1'!E37 -> 339127358.7
B16: =B15+1 -> 2 | C16: Purchased Gas 2/ | E16: ='Ut 1.2'!E24 -> 48901609 | F16: =H16/E16 -> 3.154631333 | H16: ='Ut 1.2'!G24 -> 154266548
B17: =B16+1 -> 3 | C17: Average Price | E17: =SUM(E15:E16) -> 116349147.6 | F17: =(+H15+H16)/(+E15+E16) -> 4.2406319 | H17: =SUM(H15:H16) -> 493393906.7
C20: Storage 3/
B21: =B17+1 -> 4 | C21: Withdrawals | E21: ='Monthly Inputs'!S35 -> 14541515.2 | F21: ='Ut Storage'!L27 -> 4.888476847 | H21: =E21*F21 -> 71085860.36
B22: =B21+1 -> 5 | C22: Injections | E22: =-'Monthly Inputs'!S28 -> -16053280.36 | F22: ='Ut Storage'!K27 -> 4.662419749 | H22: =E22*F22 -> -74847131.41
B23: =B22+1 -> 6 | C23: Storage Adjustment | H23: =H21+H22 -> -3761271.05
B29: 1/ | C29: Exhibit 1.4, Page 1, Line 12.
B30: 2/ | C30: Exhibit 1.2, Line 6.
B31: 3/ | C31: Questar Gas Company planned volumes.

Sheet Ut 1.4 p3
K1: ='Control Panel'!$E$32 -> Questar Gas Company
K2: ='Control Panel'!$E$33 -> Docket No. 16-057-09
K3: Exhibit 1.4
K4: Page 3 of 3
D8: OTHER REVENUES 1/
C11: (A) | E11: (B) | F11: (C) | G11: (D)
C12: Account | G12: =Expenses!S8 -> 12 Months Ending
C13: Number | E13: Account Name | G13: ='Control Panel'!E7 -> 2017-10-31
C14: WEXPRO I
B15: 1 | D15: 483 | E15: Sales for Resale | H15: ='Other Inputs'!F185 -> 2934782
B17: =B15+1 -> 2 | D17: 490 | E17: Plant By-Product | H17: ='Other Inputs'!F186 -> 3053673
B19: =B17+1 -> 3 | D19: 492 | E19: Gasoline and Oil Sales | F19: ='Other Inputs'!F187 -> 404502
B20: =B19+1 -> 4 | D20: 758-1 | E20: Gasoline and Oil Cost | F20: ='Other Inputs'!F190 -> -66702
B21: =B20+1 -> 5 | E21: Net Gasoline and Oil Sales | H21: =F19+F20 -> 337800
B23: =B21+1 -> 6 | D23: 495-1 | E23: Overriding Royalty Revenue from Questar E & P | H23: ='Other Inputs'!F188 -> 12461499
B25: =B23+1 -> 7 | D25: 495-2 | E25: Oil Revenue Received from Wexpro | H25: ='Other Inputs'!F189 -> 0
B28: =B25+1 -> 8 | E28: Total Wexpro I | H28: =SUM(H15:H25) -> 18787754
C30: WEXPRO II
B31: =B28+1 -> 9 | D31: 483 | E31: Sales for Resale | H31: ='Other Inputs'!E206 -> 0
B33: =B31+1 -> 10 | D33: 490 | E33: Plant By-Product | H33: ='Other Inputs'!E207 -> 597886
B35: =B33+1 -> 11 | D35: 492 | E35: Gasoline and Oil Sales | F35: ='Other Inputs'!E208 -> 895716
B36: =B35+1 -> 12 | D36: 758-1 | E36: Gasoline and Oil Cost | F36: ='Other Inputs'!E211 -> -150544
B37: =B36+1 -> 13 | E37: Net Gasoline and Oil Sales | H37: =F35+F36 -> 745172
B39: =B37+1 -> 14 | D39: 495-1 | E39: Overriding Royalty Revenue from Questar E & P | H39: ='Other Inputs'!E209 -> 0
B41: =B39+1 -> 15 | D41: 495-2 | E41: Oil Revenue Received from Wexpro | H41: ='Other Inputs'!E210 -> -37571
B44: =B41+1 -> 16 | E44: Total Wexpro II | H44: =SUM(H31:H41) -> 1305487
B46: 17 | E46: Sales of Cost-of-Service Gas | H46: ='Other Inputs'!E217 -> 0
B49: 18 | E49: Grand Total (Line 8 + Line 16 + Line 17) | H49: =H28+H44+H46 -> 20093241
B53: 1/ | D53: Forecasted 12-month test year.

Sheet Ut 1.5
H1: ='Control Panel'!$E$32 -> Questar Gas Company
H2: ='Control Panel'!$E$33 -> Docket No. 16-057-09
H3: Exhibit 1.5
B8: TEST-YEAR GAS COST ALLOCATION
B11: (A) | D11: (B) | E11: (C) | F11: (D) | G11: (E)
D12: Allocation
D13: Factor 1/ | E13: System | F13: Wyoming | G13: Utah
A15: 1 | B15: Questar Gas Production (Exhibit 1.1) | D15: 2 | E15: ='Ut 1.4 p1'!E15+'Ut 1.4 p1'!E25 -> 334117676.5 | F15: =CHOOSE($D15,F$51,F$54)*$E15 -> 12319744.27 | G15: =CHOOSE($D15,G$51,G$54)*$E15 -> 321797932.2
A16: =A15+1 -> 2 | B16: Other Revenue's Credit (Exhibit 1.4, p 3) | D16: 2 | E16: ='Ut 1.4 p1'!E16+'Ut 1.4 p1'!E26+'Ut 1.4 p1'!E34 -> -20093241 | F16: -740887.4423 | G16: -19352353.56
A17: =A16+1 -> 3 | B17: Gathering (Exhibit 1.3, p 1) | C17: - Demand | D17: 1 | E17: ='Ut 1.3 p1'!L50 -> 12245844 | F17: 339549.4878 | G17: =CHOOSE($D17,G$51,G$54)*$E17 -> 11906294.51
A18: =A17+1 -> 4 | B18: Gathering | C18: - Commodity | D18: 2 | E18: ='Ut 1.3 p1'!L55+'Ut 1.3 p1'!L51+'Ut 1.3 p1'!L54 -> 12857079.23 | F18: 474072.2787 | G18: 12383006.95
A19: =A18+1 -> 5 | B19: Net Cost of Questar Gas Production | E19: =SUM(E15:E18) -> 339127358.7 | F19: =SUM(F15:F18) -> 12392478.6 | G19: =SUM(G15:G18) -> 326734880.1
A21: =A19+1 -> 6 | B21: Questar Gas Contract Gas (Exhibit 1.2) | D21: 2 | E21: ='Ut 1.4 p1'!E39 -> 154266548 | F21: =CHOOSE($D21,F$51,F$54)*$E21 -> 5688188.788 | G21: =CHOOSE($D21,G$51,G$54)*$E21 -> 148578359.2
A24: =A21+1 -> 7 | B24: Injection / Withdrawal Adjustment (Exhibit 1.4, p 1) | D24: 2 | E24: ='Ut 1.4 p1'!E41 -> -3761271.05 | F24: =CHOOSE($D24,F$51,F$54)*$E24 -> -138687.357 | G24: =CHOOSE($D24,G$51,G$54)*$E24 -> -3622583.693
A27: =A24+1 -> 8 | B27: Transportation (Exhibit 1.3, p 1) | C27: - Demand | D27: 1 | E27: ='Ut 1.3 p1'!M30 -> 63280357 | F27: =CHOOSE($D27,F$51,F$54)*$E27 -> 1754620.817 | G27: =CHOOSE($D27,G$51,G$54)*$E27 -> 61525736.18
A28: =A27+1 -> 9 | B28: Transportation | C28: - Commodity | D28: 2 | E28: ='Ut 1.3 p1'!M45 -> 527950 | F28: =CHOOSE($D28,F$51,F$54)*$E28 -> 19466.82097 | G28: =CHOOSE($D28,G$51,G$54)*$E28 -> 508483.179
A31: =A28+1 -> 10 | B31: Storage (Exhibit 1.3, p 2) | C31: - Demand | D31: 1 | E31: ='Ut 1.3 p2'!J19 -> 14025058 | F31: =CHOOSE($D31,F$51,F$54)*$E31 -> 388883.0578 | G31: =CHOOSE($D31,G$51,G$54)*$E31 -> 13636174.94
A32: =A31+1 -> 11 | B32: Storage | C32: - Commodity | D32: 2 | E32: ='Ut 1.3 p2'!J26 -> 482049 | F32: =CHOOSE($D32,F$51,F$54)*$E32 -> 17774.33768 | G32: =CHOOSE($D32,G$51,G$54)*$E32 -> 464274.6623
A35: =A32+1 -> 12 | B35: Other Transportation - Commodity (Exhibit 1.3, p 1) | D35: 2 | E35: ='Ut 1.3 p1'!L56 -> 3854668 | F35: =CHOOSE($D35,F$51,F$54)*$E35 -> 142131.1333 | G35: =CHOOSE($D35,G$51,G$54)*$E35 -> 3712536.867
A38: =A35+1 -> 13 | B38: Working Gas Costs (Exhibit 1.3, p 2) | D38: 2 | E38: ='Ut 1.3 p2'!K50 -> 3796420.878 | F38: =CHOOSE($D38,F$51,F$54)*$E38 -> 139983.418 | G38: =CHOOSE($D38,G$51,G$54)*$E38 -> 3656437.46
A41: =A38+1 -> 14 | B41: Totals | E41: =SUM(E19:E38) -> 575599138.5 | F41: =SUM(F19:F38) -> 20404839.61 | G41: =SUM(G19:G38) -> 555194298.9
A48: 1/ | B48: Allocation Factors | E48: Total | F48: Wyoming | G48: Utah
B50: #1 Peak Day Demand | D50: Dth- | E50: =SUM(F50:G50) -> 1316588 | F50: ='Other Inputs'!$E$128 -> 36506 | G50: ='Other Inputs'!$E$127 -> 1280082
D51: Percent- | E51: =F51+G51 -> 1 | F51: =F50/E50 -> 0.02772773259 | G51: =G50/E50 -> 0.9722722674
B53: #2 Commodity Sales - All | D53: Dth- | E53: =F53+G53 -> 111654926 | F53: ='Ut 1.6 p1'!H19 -> 4116993 | G53: ='Ut 1.6 p1'!H18 -> 107537933
D54: Percent- | E54: =F54+G54 -> 1 | F54: =F53/E53 -> 0.03687247081 | G54: =G53/E53 -> 0.9631275292

Sheet Ut 1.6 p1
J1: ='Control Panel'!$E$32 -> Questar Gas Company
J2: ='Control Panel'!$E$33 -> Docket No. 16-057-09
J3: Exhibit 1.6
J4: Page 1 of 3
B8: TEST-YEAR GAS COST CHANGE
B11: (A) | C11: (B) | D11: (C) | F11: (D) | H11: (E) | J11: (F)
F12: Average Rate | H12: x Dth | I12: = | J12: Total
A13: 1 | B13: Utah Allocation of Questar Gas-Related Gas Costs (Exhibit 1.5) 1/ | J13: ='Ut 1.5'!G41 -> 555194298.9
H15: Total
B16: Test-Year Sales: | D16: Firm | F16: + Interruptible | H16: = Sales Dth
A18: =A13+1 -> 2 | B18: Utah | D18: =Calculations!P13 -> 106955318 | F18: =Calculations!P17 -> 582615 | H18: =D18+F18 -> 107537933
A19: =A18+1 -> 3 | B19: Wyoming | D19: =Calculations!P32 -> 3975876 | F19: =Calculations!P36 -> 141117 | H19: =D19+F19 -> 4116993
A20: =A19+1 -> 4 | B20: Total Dth | H20: =SUM(H18:H19) -> 111654926
A22: =A20+1 -> 5 | B22: Supplier Non-Gas Costs 2/ | J22: =(-'Ut 1.6 p2'!F14) -> -103510975.2
A25: =A22+1 -> 6 | B25: Commodity Portion of Test-Year Gas Cost (Lines 1 + 5) | J25: =J13+J22 -> 451683323.7
F28: Current Case | H28: Prior Case
B29: FIRM CUSTOMER RATES | F29: ='Control Panel'!E5 -> 16-057-09 | H29: ='Control Panel'!E9 -> 16-057-05 | J29: Difference
A31: =A25+1 -> 7 | B31: Gas Cost (line 6/Total Sales Dth, line 4) | F31: =ROUND((J25)/H18,5) -> 4.20022 | H31: ='Other Inputs'!F103 -> 4.07582 | J31: =F31-H31 -> 0.1244
A32: =A31+1 -> 8 | B32: 191 Account Amortization (Commodity Portion) 3/ | F32: =D49/H18 -> -0.232599905 | H32: ='Other Inputs'!F104 -> -0.17731 | J32: =F32-H32 -> -0.055289905
A33: =A32+1 -> 9 | B33: Total Sales Unit Commodity Cost (Lines 7 + 8) | F33: =F31+F32 -> 3.967620095 | H33: =H31+H32 -> 3.89851 | J33: =J31+J32 -> 0.069110095
A43: 1/ | B43: Exhibit 1.5, Line 14, Column E.
A45: 2/ | B45: Test Year Estimate of Transportation, Gathering, and Storage billings.
A47: 3/ | B47: 191 Account (August 2016) actual | D47: ='Other Inputs'!E121 -> -13433410
B48: Less: Supplier Non-Gas balance actual | D48: ='Other Inputs'!E122 -> 11579903
B49: 191 Account Commodity Portion | D49: =(D47-D48) -> -25013313 | F49: =H18 -> 107537933 | H49: =D49/F49 -> -0.232599905
B50: See Application, paragraph 11.

Sheet Ut 1.6 p2
E1: Questar Gas Company
G2: ='Control Panel'!$E$33 -> Docket No. 16-057-09
G3: Exhibit 1.6
G4: Page 2 of 3
C8: TEST-YEAR SUPPLIER NON-GAS COST CHANGE
C11: (A) | D11: (B) | E11: (C) | F11: (D)
D12: Dth | E12: Average Rate | F12: Total
B14: 1 | C14: Supplier Non-Gas (SNG) Costs 1/ | F14: ='Ut 1.5'!G27+'Ut 1.5'!G31+'Ut 1.5'!G17+(+'Ut 1.3 p1'!L35+'Ut 1.3 p1'!L43+'Ut 1.3 p1'!L55+'Ut 1.3 p1'!L56+'Ut 1.3 p1'!L51+'Ut 1.3 p1'!L54)*'Ut 1.5'!G54 -> 103510975.2
B15: =B14+1 -> 2 | C15: 191 Account Balance for SNG Costs 2/ | F15: =E44 -> 3898025
B16: =1+B15 -> 3 | C16: Total | F16: =SUM(F14:F15) -> 107409000.2
B19: =B16+1 -> 4 | C19: SNG Costs Recovered at Current Rates 3/ | F19: ='Other Inputs'!E223-(D29*('Other Inputs'!G84-'Other Inputs'!F224)) -> 107562174.3
B22: =1+B19 -> 5 | C22: SNG Costs Adjustment to Current Rates (Line 3 - Line 4) | F22: =F16-F19 -> -153174.0543
B28: 6a | C28: Adjustment for SNG contributions from:
B29: 6b | C29: IS SNG current rate | D29: ='RevRun Fcst'!T102+'RevRun Fcst'!T93 -> 582615 | E29: ='Ut 1.6 p3'!E24 -> 0.1788 | F29: =D29*E29 -> 104171.562
B30: 6c | C30: IS SNG new rate | D30: ='RevRun Fcst'!T102+'RevRun Fcst'!T93 -> 582615 | E30: ='Ut 1.6 p3'!I24 -> 0.17877 | F30: =D30*E30 -> 104154.0836
B35: =2+B22 -> 7 | C35: Percent Change to Current Rates | F35: =(((+F16-F30)-(F19-F29))/(F19-F29))*100 -> -0.1425269146 | G35: %
C36: ((ln 3-ln 6c)-(ln 4-ln 6b))/(ln 4-ln 6b)
B42: 1/ | C42: Exhibit 1.6, Page 1, Line 5.
B44: 2/ | C44: Spring pass-through SNG amortization from Docket No. 16-057-05 | E44: 3898025
C45: Amortization will be adjusted in the 2017 spring pass-through.
B47: 3/ | C47: ="Output of Revrun.Exe computer program dated "&'RevRun Fcst'!D4 -> Output of Revrun.Exe computer program dated 8/31/2016

Sheet Ut 1.6 p3
I1: ='Control Panel'!$E$32 -> Questar Gas Company
I2: ='Control Panel'!$E$33 -> Docket No. 16-057-09
I3: Exhibit 1.6
I4: Page 3 of 3
F8: TEST YEAR CHANGE IN SUPPLIER NON-GAS COSTS
F9: BY RATE CLASS
C12: (A) | D12: (B) | E12: (C) | F12: (D) | G12: (E) | H12: (F) | I12: (G)
G13: Rate per Dth
C14: Rate Class | D14: Season | E14: Current total 1/ | F14: Curr. Base 1/ | G14: Calc. Base 2/ | H14: Amortization 3/ | I14: Total 4/ | K14: CHECK !!
B16: 1 | C16: GS | D16: Winter | E16: ='Other Inputs'!G76 -> 1.18715 | F16: ='Other Inputs'!E76 -> 1.14407 | G16: =ROUND(E16*('Ut 1.6 p2'!$F$14-'Ut 1.6 p2'!$F$30)/('Ut 1.6 p2'!$F$19-'Ut 1.6 p2'!$F$29),5) -> 1.14239 | H16: =I16-G16 -> 0.04307 | I16: =ROUND(E16*ROUND(1+'Ut 1.6 p2'!$F$35/100,7),5)+M16 -> 1.18546 | K16: =ROUND(G16*('Ut 1.6 p2'!$F$15)/('Ut 1.6 p2'!$F$14-'Ut 1.6 p2'!$F$30),5)-H16 -> -1e-05
B17: =B16+1 -> 2 | D17: Summer | E17: ='Other Inputs'!G77 -> 0.55738 | F17: ='Other Inputs'!E77 -> 0.53715 | G17: =ROUND(E17*('Ut 1.6 p2'!$F$14-'Ut 1.6 p2'!$F$30)/('Ut 1.6 p2'!$F$19-'Ut 1.6 p2'!$F$29),5) -> 0.53637 | H17: =I17-G17 -> 0.02022 | I17: =ROUND(E17*ROUND(1+'Ut 1.6 p2'!$F$35/100,7),5)+M17 -> 0.55659 | K17: =ROUND(G17*('Ut 1.6 p2'!$F$15)/('Ut 1.6 p2'!$F$14-'Ut 1.6 p2'!$F$30),5)-H17 -> 0
B19: =B17+1 -> 3 | C19: FS | D19: Winter | E19: ='Other Inputs'!G79 -> 1.15623 | F19: ='Other Inputs'!E79 -> 1.11427 | G19: =ROUND(E19*('Ut 1.6 p2'!$F$14-'Ut 1.6 p2'!$F$30)/('Ut 1.6 p2'!$F$19-'Ut 1.6 p2'!$F$29),5) -> 1.11264 | H19: =I19-G19 -> 0.04194 | I19: =ROUND(E19*ROUND(1+'Ut 1.6 p2'!$F$35/100,7),5)+M19 -> 1.15458 | K19: =ROUND(G19*('Ut 1.6 p2'!$F$15)/('Ut 1.6 p2'!$F$14-'Ut 1.6 p2'!$F$30),5)-H19 -> 1.318389842e-16
B20: =B19+1 -> 4 | D20: Summer | E20: ='Other Inputs'!G80 -> 0.55738 | F20: ='Other Inputs'!E80 -> 0.53715 | G20: =ROUND(E20*('Ut 1.6 p2'!$F$14-'Ut 1.6 p2'!$F$30)/('Ut 1.6 p2'!$F$19-'Ut 1.6 p2'!$F$29),5) -> 0.53637 | H20: =I20-G20 -> 0.02022 | I20: =ROUND(E20*ROUND(1+'Ut 1.6 p2'!$F$35/100,7),5)+M20 -> 0.55659 | K20: =ROUND(G20*('Ut 1.6 p2'!$F$15)/('Ut 1.6 p2'!$F$14-'Ut 1.6 p2'!$F$30),5)-H20 -> 0
B22: =B20+1 -> 5 | C22: NGV | E22: ='Other Inputs'!G82 -> 0.85667 | F22: ='Other Inputs'!E82 -> 0.82558 | G22: =ROUND(E22*('Ut 1.6 p2'!$F$14-'Ut 1.6 p2'!$F$30)/('Ut 1.6 p2'!$F$19-'Ut 1.6 p2'!$F$29),5) -> 0.82437 | H22: =I22-G22 -> 0.03108 | I22: =ROUND(E22*ROUND(1+'Ut 1.6 p2'!$F$35/100,7),5)+M22 -> 0.85545 | K22: =ROUND(G22*('Ut 1.6 p2'!$F$15)/('Ut 1.6 p2'!$F$14-'Ut 1.6 p2'!$F$30),5)-H22 -> 0
B24: =B22+1 -> 6 | C24: IS 5/ | E24: ='Other Inputs'!F224 -> 0.1788 | F24: ='Other Inputs'!F224 -> 0.1788 | G24: ='Other Inputs'!$F$45 -> 0.17877 | H24: =I24-G24 -> 0 | I24: ='Other Inputs'!$F$45 -> 0.17877
B31: 1/ | C31: Current Questar Gas Tariff (excluding bad debt surcharge).
B33: 2/ | C33: Exhibit 1.6 page 2 (line 1 - line 6c)/(line 4 - line 6b)*Exhibit 1.6 page 3 column C. (N.A. to line 6)
B35: 3/ | C35: Column G - Column E
B37: 4/ | C37: (Current Questar Gas rates) x (1+Exhibit 1.6, Page 2, Line 7, % change).
C38: ="(except ln. 6, which is calculated by adding QPC T-2 and ACA rates, then adjusting for distr. loss of "&TEXT('Other Inputs'!E277,"0.000%") -> (except ln. 6, which is calculated by adding QPC T-2 and ACA rates, then adjusting for distr. loss of 0.530%
C39: ="= ("&TEXT('Other Inputs'!$F$39,"$0.00000")&" + "&TEXT('Other Inputs'!$F$41,"$0.00000")&") / ( 1 - "&TEXT('Other Inputs'!$E$277,"0.00000")&" ) = "&TEXT(('Other Inputs'!F39+'Other Inputs'!F41)/(1-('Other Inputs'!$E$277)),("$0.00000")) -> = ($0.17652 + $0.00130) / ( 1 - 0.00530 ) = $0.17877
B41: 5/ | C41: ="IS Tariff rate has an adjustment for bad debt of "&TEXT('Other Inputs'!$E$288,"0.00%")&" = "&TEXT($I$24,"$0.00000")&" / ( 1 - "&TEXT('Other Inputs'!$E$288,"0.00000")&" ) = "&TEXT($I$24/(1-('Other Inputs'!$E$288)),("$0.00000")) -> IS Tariff rate has an adjustment for bad debt of 0.25% = $0.17877 / ( 1 - 0.00250 ) = $0.17922

Sheet Ut 1.7
L1: ='Control Panel'!$E$32 -> Questar Gas Company
L2: ='Control Panel'!$E$33 -> Docket No. 16-057-09
L3: Exhibit 1.7
C7: EFFECT ON GS TYPICAL CUSTOMER
C8: 80 DTHS - ANNUAL CONSUMPTION
C11: (A) | D11: (B) | E11: (C) | F11: (D) | H11: (E) | J11: (F)
F12: Billed at Current | H12: Billed at
C13: Rate | E13: Usage | F13: Rates Effective | H13: Proposed Rates
C14: Schedule | D14: Month | E14: In Dth | F14: ='Other Inputs'!J89 -> 2016-06-01 | H14: ='Control Panel'!E5 -> 16-057-09 | J14: Change
B16: 1 | C16: GS | D16: Jan | E16: ='Monthly Inputs'!G110 -> 14.9 | F16: =ROUND((+E16*'Other Inputs'!$G$91)+'Other Inputs'!$G$93,2) -> 124.25 | H16: =ROUND((+E16*'Ut 1.8'!$F$10)+'Ut 1.8'!$C$12,2) -> 125.26 | J16: =H16-F16 -> 1.01
B17: =B16+1 -> 2 | D17: Feb | E17: ='Monthly Inputs'!G111 -> 12.5 | F17: =ROUND((+E17*'Other Inputs'!$G$91)+'Other Inputs'!$G$93,2) -> 105.32 | H17: =ROUND((+E17*'Ut 1.8'!$F$10)+'Ut 1.8'!$C$12,2) -> 106.17 | J17: 0.85
B18: =B17+1 -> 3 | D18: Mar | E18: ='Monthly Inputs'!G112 -> 10.1 | F18: =ROUND((+E18*'Other Inputs'!$G$91)+'Other Inputs'!$G$93,2) -> 86.4 | H18: =ROUND((+E18*'Ut 1.8'!$F$10)+'Ut 1.8'!$C$12,2) -> 87.08 | J18: 0.68
B19: 4 | D19: Apr | E19: ='Monthly Inputs'!G113 -> 8.3 | F19: =ROUND((+E19*'Other Inputs'!$G$89)+'Other Inputs'!$G$93,2) -> 61.39 | H19: =ROUND((+E19*'Ut 1.8'!$C$10)+'Ut 1.8'!$C$12,2) -> 61.95 | J19: 0.56
B20: 5 | D20: May | E20: ='Monthly Inputs'!G114 -> 4.4 | F20: =ROUND((+E20*'Other Inputs'!$G$89)+'Other Inputs'!$G$93,2) -> 35.71 | H20: =ROUND((+E20*'Ut 1.8'!$C$10)+'Ut 1.8'!$C$12,2) -> 36.01 | J20: 0.3
B21: 6 | D21: Jun | E21: ='Monthly Inputs'!G115 -> 3.1 | F21: =ROUND((+E21*'Other Inputs'!$G$89)+'Other Inputs'!$G$93,2) -> 27.16 | H21: =ROUND((+E21*'Ut 1.8'!$C$10)+'Ut 1.8'!$C$12,2) -> 27.37 | J21: 0.21
B22: 7 | D22: Jul | E22: ='Monthly Inputs'!G116 -> 2 | F22: =ROUND((+E22*'Other Inputs'!$G$89)+'Other Inputs'!$G$93,2) -> 19.92 | H22: =ROUND((+E22*'Ut 1.8'!$C$10)+'Ut 1.8'!$C$12,2) -> 20.05 | J22: 0.13
B23: 8 | D23: Aug | E23: ='Monthly Inputs'!G117 -> 1.8 | F23: =ROUND((+E23*'Other Inputs'!$G$89)+'Other Inputs'!$G$93,2) -> 18.6 | H23: =ROUND((+E23*'Ut 1.8'!$C$10)+'Ut 1.8'!$C$12,2) -> 18.72 | J23: 0.12
B24: 9 | D24: Sep | E24: ='Monthly Inputs'!G118 -> 2 | F24: =ROUND((+E24*'Other Inputs'!$G$89)+'Other Inputs'!$G$93,2) -> 19.92 | H24: =ROUND((+E24*'Ut 1.8'!$C$10)+'Ut 1.8'!$C$12,2) -> 20.05 | J24: 0.13
B25: 10 | D25: Oct | E25: ='Monthly Inputs'!G119 -> 3.1 | F25: =ROUND((+E25*'Other Inputs'!$G$89)+'Other Inputs'!$G$93,2) -> 27.16 | H25: =ROUND((+E25*'Ut 1.8'!$C$10)+'Ut 1.8'!$C$12,2) -> 27.37 | J25: 0.21
B26: 11 | D26: Nov | E26: ='Monthly Inputs'!G120 -> 6.3 | F26: =ROUND((+E26*'Other Inputs'!$G$91)+'Other Inputs'!$G$93,2) -> 56.43 | H26: =ROUND((+E26*'Ut 1.8'!$F$10)+'Ut 1.8'!$C$12,2) -> 56.86 | J26: 0.43
B27: 12 | D27: Dec | E27: ='Monthly Inputs'!G121 -> 11.5 | F27: =ROUND((+E27*'Other Inputs'!$G$91)+'Other Inputs'!$G$93,2) -> 97.44 | H27: =ROUND((+E27*'Ut 1.8'!$F$10)+'Ut 1.8'!$C$12,2) -> 98.21 | J27: 0.77
B30: =B27+1 -> 13 | D30: Total | E30: =SUM(E16:E27) -> 80 | F30: =SUM(F16:F27) -> 679.7 | H30: =SUM(H16:H27) -> 685.1 | J30: =H30-F30 -> 5.4
B32: =B30+1 -> 14 | H32: Percent Change: | J32: =ROUND(J30/F30,4)*100 -> 0.79 | K32: %

Sheet Ut 1.7 Tot (hidden)
L1: ='Control Panel'!$E$32 -> Questar Gas Company
L2: Docket Nos. 08-057-15, 08-057-16 & 08-057-17
L3: Hearing Exhibit 2
A5: NOT USED
C7: EFFECT ON GS-1 TYPICAL CUSTOMER
B8: OF PROPOSED COMMODITY AND SNG RATES AND CET AND DSM AMORTIZATIONS
C9: 80 DTHS - ANNUAL CONSUMPTION
C12: (A) | D12: (B) | E12: (C) | F12: (D) | H12: (E) | J12: (F)
F13: Billed at Current | H13: Billed at
C14: Rate | E14: Usage | F14: Rates Effective | H14: Proposed
C15: Schedule | D15: Month | E15: In Dth | F15: ='Other Inputs'!J89 -> 2016-06-01 | H15: Rates | J15: Change
B17: 1 | C17: GS | D17: Jan | E17: ='Monthly Inputs'!G110 -> 14.9 | F17: =ROUND((+E17*'Other Inputs'!$G$91)+'Other Inputs'!$G$93,2) -> 124.25 | H17: ='CET & DSM'!D107 -> 142.51 | J17: =H17-F17 -> 18.26
B18: =B17+1 -> 2 | D18: Feb | E18: ='Monthly Inputs'!G111 -> 12.5 | F18: =ROUND((+E18*'Other Inputs'!$G$91)+'Other Inputs'!$G$93,2) -> 105.32 | H18: ='CET & DSM'!D108 -> 120.65 | J18: 15.33
B19: 3 | D19: Mar | E19: ='Monthly Inputs'!G112 -> 10.1 | F19: =ROUND((+E19*'Other Inputs'!$G$91)+'Other Inputs'!$G$93,2) -> 86.4 | H19: ='CET & DSM'!D109 -> 98.78 | J19: 12.38
B20: 4 | D20: Apr | E20: ='Monthly Inputs'!G113 -> 8.3 | F20: =ROUND((+E20*'Other Inputs'!$G$89)+'Other Inputs'!$G$93,2) -> 61.39 | H20: ='CET & DSM'!D110 -> 66.97 | J20: 5.58
B21: 5 | D21: May | E21: ='Monthly Inputs'!G114 -> 4.4 | F21: =ROUND((+E21*'Other Inputs'!$G$89)+'Other Inputs'!$G$93,2) -> 35.71 | H21: ='CET & DSM'!D111 -> 38.67 | J21: 2.96
B22: 6 | D22: Jun | E22: ='Monthly Inputs'!G115 -> 3.1 | F22: =ROUND((+E22*'Other Inputs'!$G$89)+'Other Inputs'!$G$93,2) -> 27.16 | H22: ='CET & DSM'!D112 -> 29.24 | J22: 2.08
B23: 7 | D23: Jul | E23: ='Monthly Inputs'!G116 -> 2 | F23: =ROUND((+E23*'Other Inputs'!$G$89)+'Other Inputs'!$G$93,2) -> 19.92 | H23: ='CET & DSM'!D113 -> 21.26 | J23: 1.34
B24: 8 | D24: Aug | E24: ='Monthly Inputs'!G117 -> 1.8 | F24: =ROUND((+E24*'Other Inputs'!$G$89)+'Other Inputs'!$G$93,2) -> 18.6 | H24: ='CET & DSM'!D114 -> 19.81 | J24: 1.21
B25: 9 | D25: Sep | E25: ='Monthly Inputs'!G118 -> 2 | F25: =ROUND((+E25*'Other Inputs'!$G$89)+'Other Inputs'!$G$93,2) -> 19.92 | H25: ='CET & DSM'!D115 -> 21.26 | J25: 1.34
B26: 10 | D26: Oct | E26: ='Monthly Inputs'!G119 -> 3.1 | F26: =ROUND((+E26*'Other Inputs'!$G$89)+'Other Inputs'!$G$93,2) -> 27.16 | H26: ='CET & DSM'!D116 -> 29.24 | J26: 2.08
B27: 11 | D27: Nov | E27: ='Monthly Inputs'!G120 -> 6.3 | F27: =ROUND((+E27*'Other Inputs'!$G$91)+'Other Inputs'!$G$93,2) -> 56.43 | H27: ='CET & DSM'!D117 -> 64.15 | J27: 7.72
B28: 12 | D28: Dec | E28: ='Monthly Inputs'!G121 -> 11.5 | F28: =ROUND((+E28*'Other Inputs'!$G$91)+'Other Inputs'!$G$93,2) -> 97.44 | H28: ='CET & DSM'!D118 -> 111.53 | J28: 14.09
B31: =B28+1 -> 13 | D31: Total | E31: =SUM(E17:E28) -> 80 | F31: =SUM(F17:F28) -> 679.7 | H31: =SUM(H17:H28) -> 764.07 | J31: =H31-F31 -> 84.37
H33: Percent Change: | J33: =ROUND(J31/F31,4)*100 -> 12.41 | K33: %

Sheet Ut 1.8 p1
F1: ='Control Panel'!E32 -> Questar Gas Company
F2: ='Control Panel'!E33 -> Docket No. 16-057-09
F3: Exhibit 1.8
F4: Page 1 of 17
A15: QUESTAR GAS COMPANY
A16: 333 South State Street
A17: P.O. Box 45433
A18: Salt Lake City, Utah 84145-0433
A29: LEGISLATIVE/PROPOSED RATE SCHEDULES
A31: P.S.C. Utah No. 400
A32: Affecting All Firm Sales Rate Schedules
A33: and Classes of Service In
A34: Questar Gas Company's
A35: Utah Service Area
A39: Date Issued: September 29, 2016
A40: To Become Effective November 1, 2016

Sheet LEG - PR
A2: LEGISLATIVE TARIFF
A3: SHEETS
A6: PROPOSED TARIFF
A7: SHEETS

Sheet Ut 1.8
A1: SUMMARY OF PROPOSED RATES
A3: UTAH RATE CLASSES | C3: Rates per Dth Used Each Month
C4: All Season Rates or Summer Rates: Apr. 1 - Oct. 31 | F4: Winter Rates: Nov. 1 - Mar. 31
A5: UT GS | C5: First 45 Dth | D5: All Over 45 Dth | F5: First 45 Dth | G5: All Over 45 Dth
B6: Distribution Non-Gas Cost | C6: 2.12682 | D6: 1.04544 | F6: 2.8003 | G6: 1.71891
B7: Supplier Non-Gas Cost | C7: ='Ut 1.6 p3'!I17 -> 0.55659 | D7: =C7 -> 0.55659 | F7: ='Ut 1.6 p3'!I16 -> 1.18546 | G7: =F7 -> 1.18546
B8: Commodity Cost | C8: =('Ut 1.6 p1'!$F$33) -> 3.967620095 | D8: =C8 -> 3.967620095 | F8: =D8 -> 3.967620095 | G8: =F8 -> 3.967620095
B10: Total Rate | C10: =SUM(C6:C9) -> 6.651030095 | D10: =SUM(D6:D9) -> 5.569650095 | F10: =SUM(F6:F9) -> 7.953380095 | G10: =SUM(G6:G9) -> 6.871990095
B12: BSF Category 1 | C12: 6.75
B13: BSF Category 2 | C13: 18.25
B14: BSF Category 3 | C14: 63.5
B15: BSF Category 4 | C15: 420.25
A18: UT FS | C18: First 200 Dth | D18: Next 1,800 Dth | E18: All Over 2,000 Dth | F18: First 200 Dth | G18: Next 1,800 Dth | H18: All Over 2,000 Dth
B19: Distribution Non-Gas Cost | C19: 0.86572 | D19: 0.47047 | E19: 0.05442 | F19: 1.30918 | G19: 0.91393 | H19: 0.49788
B20: Supplier Non-Gas Cost | C20: ='Ut 1.6 p3'!$I$20 -> 0.55659 | D20: =C20 -> 0.55659 | E20: =D20 -> 0.55659 | F20: ='Ut 1.6 p3'!$I$19 -> 1.15458 | G20: =F20 -> 1.15458 | H20: =G20 -> 1.15458
B21: Commodity Cost | C21: =('Ut 1.6 p1'!$F$33) -> 3.967620095 | D21: =C21 -> 3.967620095 | E21: =D21 -> 3.967620095 | F21: =E21 -> 3.967620095 | G21: =F21 -> 3.967620095 | H21: =G21 -> 3.967620095
B23: Total Rate | C23: =SUM(C19:C22) -> 5.389930095 | D23: =SUM(D19:D22) -> 4.994680095 | E23: 4.578630095 | F23: 6.431380095 | G23: 6.036130095 | H23: 5.620080095
B25: Minimum Monthly DNG Charge: | C25: 143 | F25: 218
B27: BSF Category 1 | C27: =C12 -> 6.75
B28: BSF Category 2 | C28: =C13 -> 18.25
B29: BSF Category 3 | C29: =C14 -> 63.5
B30: BSF Category 4 | C30: =C15 -> 420.25
A33: UT Future Rate Class
C34: First 10,000 Dth | D34: All Over 10,000 Dth
B35: Distribution Non-Gas Cost
B36: Supplier Non-Gas Cost
B37: Commodity Cost
B39: Total Rate | C39: =SUM(C35:C38) -> 0 | D39: =SUM(D35:D38) -> 0
B41: Minimum Yearly Distribution Non-Gas Charge | D41: =ROUND(((10000*C35))*12,-2) -> 0
B44: BSF Category 1 | C44: =C12 -> 6.75
B45: BSF Category 2 | C45: =C13 -> 18.25
B46: BSF Category 3 | C46: =C14 -> 63.5
B47: BSF Category 4 | C47: =C15 -> 420.25
A51: UT NGV
B52: Distribution Non-Gas Cost | C52: 5.66791
B53: Supplier Non-Gas Cost | C53: ='Ut 1.6 p3'!I22 -> 0.85545
B54: Commodity Cost | C54: ='Ut 1.6 p1'!F33 -> 3.967620095
B56: Total Rate | C56: =SUM(C52:C55) -> 10.49098009
A59: UT IS | C59: First 2,000 Dth | D59: Next 18,000 Dth | E59: All Over 20,000
B60: Distribution Non-Gas Cost | C60: 0.50354 | D60: 0.09352 | E60: 0.06352
B61: Supplier Non-Gas Cost | C61: ='Ut 1.6 p3'!$I$24/(1-'Other Inputs'!$E$288) -> 0.1792180451 | D61: =C61 -> 0.1792180451 | E61: =D61 -> 0.1792180451
B62: Commodity Cost | C62: =('Ut 1.6 p1'!$F$33) -> 3.967620095 | D62: =('Ut 1.6 p1'!$F$33) -> 3.967620095 | E62: =('Ut 1.6 p1'!$F$33) -> 3.967620095
B64: Total Rate | C64: =SUM(C60:C62) -> 4.65037814 | D64: =SUM(D60:D62) -> 4.24035814 | E64: 4.21035814
B66: BSF Category 1 | C66: =C12 -> 6.75
B67: BSF Category 2 | C67: =C13 -> 18.25
B68: BSF Category 3 | C68: 63.5
B69: BSF Category 4 | C69: 420.25

Sheet Ut 1.9
D1: ='Control Panel'!$E$32 -> Questar Gas Company
D2: ='Control Panel'!$E$33 -> Docket No. 16-057-09
D3: Exhibit 1.9
D4: Page 1 of 2
D6: ='Control Panel'!$E$32 -> Questar Gas Company
D7: ='Control Panel'!$E$33 -> Docket No. 16-057-09
D8: Exhibit 1.9
D9: Page 2 of 2

Sheet Ut 1.10
P17: Exhibit 1.10 | Q17: =CONCATENATE("Docket No. ",'Control Panel'!E5) -> Docket No. 16-057-09 | R17: Questar Gas Company

Sheet Ut 1.11
F1: ='Control Panel'!E32 -> Questar Gas Company
F2: ='Control Panel'!E33 -> Docket No. 16-057-09
F3: Exhibit 1.11
F4: Page 1 of 17
A17: QUESTAR GAS COMPANY
A18: 333 South State Street
A19: P.O. Box 45433
A20: Salt Lake City, Utah 84145-0433
A31: LEGISLATIVE/PROPOSED RATE SCHEDULES
A32: P.S.C. Utah Tariff

Sheet Ut Storage
A1: Storage Injection / Withdrawal adjustment
C3: (A) | D3: (B) | E3: (C) | F3: (D) | G3: (E) | H3: (F) | I3: (G) | K3: (H) | L3: (I) | M3: (J)
G4: Injections | I4: (J) / (C)
E5: Storage | G5: ------------------------------------------------------------- | I5: Storage | M5: Storage
C6: Injection Dth | D6: Withdrawal Dth | E6: Inventory Dth | F6: % that is | G6: Co. Prod. | H6: Purchased | I6: Inventory | M6: Inventory
A7: Line | B7: Month | C7: Per IRPs | D7: Per IRPs | E7: Balance | F7: Co. Prod. (1) | G7: $/Dth (2) | H7: $/Dth (3) | I7: Average $/Dth | K7: Injection (4) | L7: Withdrawal (5) | M7: Balance
B8: Aug16 | E8: =-1*'Other Inputs'!D228 -> 10339158 | I8: =M8/E8 -> 5.079403447 | M8: ='Other Inputs'!E228 -> 52516754.78
B9: ='Monthly Inputs'!E3 -> Sep16 | C9: ='Monthly Inputs'!E28 -> 2195237 | D9: =-'Monthly Inputs'!E35 -> 0 | E9: =E8+C9+D9 -> 12534395 | F9: =F21 -> 1 | G9: ='Other Inputs'!F100 -> 4.90353 | H9: ='Monthly Inputs'!E74 -> 2.66 | I9: =M9/E9 -> 5.048601489 | K9: =(+F9*C9*G9)+((1-F9)*C9*H9) -> 10764410.49 | L9: =D9*I8 -> 0 | M9: =M8+L9+K9 -> 63281165.27
B10: ='Monthly Inputs'!F3 -> Oct16 | C10: ='Monthly Inputs'!F28 -> 1889585 | D10: =-'Monthly Inputs'!F35 -> 0 | E10: =E9+C10+D10 -> 14423980 | F10: =F22 -> 0.7159205434 | G10: =G9 -> 4.90353 | H10: ='Monthly Inputs'!F74 -> 2.43 | I10: =M10/E10 -> 4.937543604 | K10: =(+F10*C10*G10)+((1-F10)*C10*H10) -> 7937864.927 | L10: =D10*I9 -> 0 | M10: =M9+L10+K10 -> 71219030.19
A11: 1. | B11: ='Monthly Inputs'!G3 -> Nov16 | C11: ='Monthly Inputs'!G28 -> 428227.0203 | D11: =-'Monthly Inputs'!G35 -> 0 | E11: =E10+C11+D11 -> 14852207.02 | F11: =Calculations!D175 -> 0.4558939272 | G11: ='Ut 1.4 p2'!$F$15 -> 5.028016825 | H11: =Calculations!D193 -> 2.86996 | I11: =M11/E11 -> 4.906296655 | K11: 1650303.432 | L11: =D11*I10 -> 0 | M11: =M10+L11+K11 -> 72869333.63
A12: 2. | B12: ='Monthly Inputs'!H3 -> Dec16 | C12: ='Monthly Inputs'!H28 -> 232504.4022 | D12: =-'Monthly Inputs'!H35 -> -6148442.993 | E12: 8936268.429 | F12: =Calculations!E175 -> 0.4730663583 | G12: ='Ut 1.4 p2'!$F$15 -> 5.028016825 | H12: =Calculations!E193 -> 3.31263 | I12: =M12/E12 -> 4.88594598 | K12: 958876.4732 | L12: =D12*I11 -> -30166085.29 | M12: =M11+L12+K12 -> 43662124.81
A13: 3. | B13: ='Monthly Inputs'!I3 -> Jan17 | C13: ='Monthly Inputs'!I28 -> 100620.8191 | D13: =-'Monthly Inputs'!I35 -> -4669961.464 | E13: =E12+C13+D13 -> 4366927.784 | F13: =Calculations!F175 -> 0.3964531053 | G13: ='Ut 1.4 p2'!$F$15 -> 5.028016825 | H13: =Calculations!F193 -> 3.51634 | I13: =M13/E13 -> 4.868197137 | K13: 414119.9706 | L13: =D13*I12 -> -22817179.44 | M13: 21259065.34
A14: 4. | B14: ='Monthly Inputs'!J3 -> Feb17 | C14: ='Monthly Inputs'!J28 -> 0 | D14: =-'Monthly Inputs'!J35 -> -2697624.283 | E14: 1669303.502 | F14: =Calculations!G175 -> 0.4018359847 | G14: ='Ut 1.4 p2'!$F$15 -> 5.028016825 | H14: =Calculations!G193 -> 3.43015 | I14: 4.868197137 | K14: 0 | L14: =D14*I13 -> -13132566.81 | M14: 8126498.527
A15: 5. | B15: ='Monthly Inputs'!K3 -> Mar17 | C15: ='Monthly Inputs'!K28 -> 516446.7621 | D15: =-'Monthly Inputs'!K35 -> -966375.7629 | E15: 1219374.501 | F15: =Calculations!H175 -> 0.4775538414 | G15: ='Ut 1.4 p2'!$F$15 -> 5.028016825 | H15: =Calculations!H193 -> 3.02165 | I15: 4.491929828 | K15: 2055353.886 | L15: -4704507.722 | M15: 5477344.691
A16: 6. | B16: ='Monthly Inputs'!L3 -> Apr17 | C16: ='Monthly Inputs'!L28 -> 1400675.091 | D16: =-'Monthly Inputs'!L35 -> -59110.69489 | E16: 2560938.897 | F16: =Calculations!I175 -> 0.5611355837 | G16: ='Ut 1.4 p2'!$F$15 -> 5.028016825 | H16: =Calculations!I193 -> 2.79 | I16: 4.247941309 | K16: 5666894.531 | L16: -265521.0935 | M16: 10878718.13
A17: 7. | B17: ='Monthly Inputs'!M3 -> May17 | C17: ='Monthly Inputs'!M28 -> 2750785.522 | D17: =-'Monthly Inputs'!M35 -> 0 | E17: 5311724.419 | F17: =Calculations!J175 -> 0.6848344944 | G17: ='Ut 1.4 p2'!$F$15 -> 5.028016825 | H17: =Calculations!J193 -> 2.73 | I17: =M17/E17 -> 4.27684878 | K17: 11838723.97 | L17: 0 | M17: 22717442.1
A18: 8. | B18: ='Monthly Inputs'!N3 -> Jun17 | C18: ='Monthly Inputs'!N28 -> 2662050.415 | D18: =-'Monthly Inputs'!N35 -> 0 | E18: 7973774.834 | F18: =Calculations!K175 -> 0.8774641239 | G18: ='Ut 1.4 p2'!$F$15 -> 5.028016825 | H18: =Calculations!K193 -> 2.81 | I18: 4.436890606 | K18: 12661324.55 | L18: =D18*I17 -> 0 | M18: 35378766.65
A19: 9. | B19: ='Monthly Inputs'!O3 -> Jul17 | C19: ='Monthly Inputs'!O28 -> 2510794.825 | D19: =-'Monthly Inputs'!O35 -> 0 | E19: 10484569.66 | F19: =Calculations!L175 -> 1 | G19: ='Ut 1.4 p2'!$F$15 -> 5.028016825 | H19: =Calculations!L193 -> 0 | I19: 4.578450698 | K19: 12624318.63 | L19: 0 | M19: =M18+L19+K19 -> 48003085.28
A20: 10. | B20: ='Monthly Inputs'!P3 -> Aug17 | C20: ='Monthly Inputs'!P28 -> 2579046.449 | D20: =-'Monthly Inputs'!P35 -> 0 | E20: 13063616.11 | F20: =Calculations!M175 -> 1 | G20: ='Ut 1.4 p2'!$F$15 -> 5.028016825 | H20: =Calculations!M193 -> 0 | I20: 4.667204985 | K20: 12967488.94 | L20: 0 | M20: =M19+L20+K20 -> 60970574.22
A21: 11. | B21: ='Monthly Inputs'!Q3 -> Sep17 | C21: ='Monthly Inputs'!Q28 -> 2205522.642 | D21: =-'Monthly Inputs'!Q35 -> 0 | E21: 15269138.75 | F21: =Calculations!N175 -> 1 | G21: ='Ut 1.4 p2'!$F$15 -> 5.028016825 | H21: =Calculations!N193 -> 0 | I21: 4.719321787 | K21: 11089404.95 | L21: 0 | M21: =M20+L21+K21 -> 72059979.17
A22: 12. | B22: ='Monthly Inputs'!R3 -> Oct17 | C22: ='Monthly Inputs'!R28 -> 666606.4148 | D22: =-'Monthly Inputs'!R35 -> 0 | E22: 15935745.17 | F22: =Calculations!O175 -> 0.7159205434 | G22: ='Ut 1.4 p2'!$F$15 -> 5.028016825 | H22: =Calculations!O193 -> 2.75 | I22: 4.705164425 | K22: 2920322.073 | L22: 0 | M22: =M21+L22+K22 -> 74980301.24
M25: Inj./With. Adj.
A26: 14. | B26: Total | C26: =SUM(C11:C22) -> 16053280.36 | D26: =SUM(D11:D22) -> -14541515.2 | K26: =SUM(K11:K22) -> 74847131.41 | L26: =SUM(L11:L22) -> -71085860.36 | M26: =L26+K26 -> 3761271.05
A27: 15. | B27: Average $ /Dth | K27: =K26/C26 -> 4.662419749 | L27: =L26/D26 -> 4.888476847
A31: ___________________________________________________________________

Sheet Ex 1.1 Data
A1: QEPFS gathered | B1: 39815082.69 | C1: Adjusted test year-> | D1: -0.03439956544 | E1: 38445461.15 | H1: Samson Gathered | I1: 6926029.199 | J1: Adjusted test year-> | K1: 0.4461476717 | L1: 10016061
A2: Birch Creek | B2: 1961759.8 | C2: Adjusted test year-> | D2: =D1 -> -0.03439956544 | E2: 1894276.115
A3: Other | B3: 20271481.17
C4: WEXPRO I | J4: WEXPRO II
A5: Input Operator Service Fee > | C5: ='Monthly Inputs'!S101 -> 261164667 | H5: Input Operator Service Fee > | J5: ='Monthly Inputs'!S103 -> 38668013
A8: \/ | C8: 2016-08-01 | H8: \/ | J8: 2016-08-01
A9: \/ | B9: Company | C9: Average Index | D9: Church Buttes | H9: \/ | I9: Company | J9: Average Index | K9: Church Buttes
A10: \/ | B10: Production | C10: Spot Prices | D10: & Canyon Cr | H10: \/ | I10: Production | J10: Spot Prices | K10: & Canyon Cr
A11: January | B11: 5381194.176 | C11: ='Graph (Ex 1.10) Inputs'!F5 -> 3.41 | D11: =C11+0.1 -> 3.51 | E11: =B11*D11 -> 18887991.56 | H11: January | I11: 905674 | J11: =C11 -> 3.41 | K11: =J11+0.1 -> 3.51 | L11: =I11*K11 -> 3178915.74
A12: February | B12: 4767717.046 | C12: ='Graph (Ex 1.10) Inputs'!F6 -> 3.35 | D12: =C12+0.1 -> 3.45 | E12: =B12*D12 -> 16448623.81 | H12: February | I12: 794043 | J12: =C12 -> 3.35 | K12: =J12+0.1 -> 3.45 | L12: =I12*K12 -> 2739448.35
A13: March | B13: 5183003.513 | C13: ='Graph (Ex 1.10) Inputs'!F7 -> 2.99 | D13: =C13+0.1 -> 3.09 | E13: 16015480.86 | H13: March | I13: 857113 | J13: 2.99 | K13: 3.09 | L13: 2648479.17
A14: April | B14: 4931795.11 | C14: ='Graph (Ex 1.10) Inputs'!F8 -> 2.79 | D14: 2.89 | E14: 14252887.87 | H14: April | I14: 811027 | J14: 2.79 | K14: 2.89 | L14: 2343868.03
A15: May | B15: 5016414.383 | C15: ='Graph (Ex 1.10) Inputs'!F9 -> 2.73 | D15: 2.83 | E15: 14196452.71 | H15: May | I15: 821111 | J15: 2.73 | K15: 2.83 | L15: 2323744.13
A16: June | B16: 4782810.905 | C16: ='Graph (Ex 1.10) Inputs'!F10 -> 2.81 | D16: 2.91 | E16: 13917979.73 | H16: June | I16: 779757 | J16: 2.81 | K16: 2.91 | L16: 2269092.87
A17: July | B17: 4869664.706 | C17: ='Graph (Ex 1.10) Inputs'!F11 -> 2.93 | D17: 3.03 | E17: 14755084.06 | H17: July | I17: 791642 | J17: 2.93 | K17: 3.03 | L17: 2398675.26
A18: August | B18: 4803890.336 | C18: ='Graph (Ex 1.10) Inputs'!F12 -> 2.94 | D18: 3.04 | E18: 14603826.62 | H18: August | I18: 808284 | J18: 2.94 | K18: 3.04 | L18: 2457183.36
A19: September | B19: 4624036.987 | C19: ='Graph (Ex 1.10) Inputs'!F13 -> 2.87 | D19: 2.97 | E19: 13733389.85 | H19: September | I19: 839730 | J19: 2.87 | K19: 2.97 | L19: 2493998.1
A20: October | B20: 5022685.743 | C20: ='Graph (Ex 1.10) Inputs'!F14 -> 2.75 | D20: 2.85 | E20: 14314654.37 | H20: October | I20: 847506 | J20: 2.75 | K20: 2.85 | L20: 2415392.1
A21: November | B21: 5066770.574 | C21: ='Graph (Ex 1.10) Inputs'!F3 -> 2.82 | D21: 2.92 | E21: 14794970.08 | H21: November | I21: 824839 | J21: 2.82 | K21: 2.92 | L21: 2408529.88
A22: December | B22: 5464011.055 | C22: ='Graph (Ex 1.10) Inputs'!F4 -> 3.2 | D22: 3.3 | E22: 18031236.48 | H22: December | I22: 935335 | J22: 3.2 | K22: 3.3 | L22: 3086605.5
B24: =SUM(B11:B22) -> 59913994.53 | C24: CANYON CREEK | D24: =E24/B24 -> 3.07027731 | E24: =SUM(E11:E22) -> 183952578 | I24: =SUM(I11:I22) -> 10016061 | J24: CANYON CREEK | K24: =L24/I24 -> 3.071460177 | L24: =SUM(L11:L22) -> 30763932.49
C25: CHURCH BUTTES | J25: CHURCH BUTTES
C26: All Others -> | D26: =D24-0.2 -> 2.87027731 | J26: All Others -> | K26: =K24-0.2 -> 2.871460177

Sheet Expenses
A1: %,LACTUALS
S7: Historical
S8: 12 Months Ending
C9: FERC Acct | E9: Description | G9: 2015-09-01 | H9: 2015-10-01 | I9: 2015-11-01 | J9: 2015-12-01 | K9: 2016-01-01 | L9: 2016-02-01 | M9: 2016-03-01 | N9: 2016-04-01 | O9: 2016-05-01 | P9: 2016-06-01 | Q9: 2016-07-01 | R9: 2016-08-01 | S9: 2016-08-01
B11: 497 | C11: UTILITY OPERATING EXPENSES
B12: 498 | C12: GAS PURCHASE EXPENSES
B13: 499
B14: 500 | D14: Utah % of Sales Dth from 191 Acct ===> | G14: 0.96831 | H14: 0.96294 | I14: 0.96296 | J14: 0.96429 | K14: 0.96817 | L14: 0.96825 | M14: 0.96039 | N14: 0.95305 | O14: 0.94969 | P14: 0.9756 | Q14: 0.96989 | R14: 0.97018
B15: 501
A16: %,FACCOUNT,TQGCACCTS,V758000 | B16: 502 | C16: 758 | D16: Gas Well Royalties
B17: 503 | E17: Utah | G17: 2680945.13 | H17: 2475334.71 | I17: 2192271.231 | J17: 1905233.671 | K17: 1242068.924 | L17: 2125872.194 | M17: 2045645.423 | N17: 1603450.023 | O17: 1354847.783 | P17: 1370875.833 | Q17: 1566450.058 | R17: 1571441.565 | S17: 22134436.54
B18: 504 | E18: Wyoming | G18: 87739.61973 | H18: 95266.4801 | I18: 84325.12917 | J18: 70555.42876 | K18: 40834.82636 | L18: 69709.72596 | M18: 84369.90722 | N18: 78990.58664 | O18: 71773.30704 | P18: 34285.94743 | Q18: 48630.06241 | R18: 48300.71479 | S18: 814781.7356
B19: 505 | E19: Total | G19: 2768684.75 | H19: 2570601.19 | I19: 2276596.36 | J19: 1975789.1 | K19: 1282903.75 | L19: 2195581.92 | M19: 2130015.33 | N19: 1682440.61 | O19: 1426621.09 | P19: 1405161.78 | Q19: 1615080.12 | R19: 1619742.28 | S19: 22949218.28
B20: 506
A21: %,FACCOUNT,TQGCACCTS,V758001,V758002,V758003,V758004 | B21: 507 | C21: 758.1 | D21: Gas Well Royalties - Other
B22: 508 | E22: Utah | G22: 16081.87 | H22: 14228.49 | I22: 20030.32 | J22: 14389.17 | K22: 10663.89 | L22: 28562.26 | M22: 22427.16 | N22: 19252.41 | O22: 25073.81 | P22: 25045.86 | Q22: 28097.85 | R22: 31912.25 | S22: 255765.34
B23: 509 | E23: Wyoming | G23: 0 | H23: 0 | I23: 0 | J23: 0 | K23: 0 | L23: 0 | M23: 0 | N23: 0 | O23: 0 | P23: 0 | Q23: 0 | R23: 0 | S23: 0
B24: 510 | E24: Total | G24: 16081.87 | H24: 14228.49 | I24: 20030.32 | J24: 14389.17 | K24: 10663.89 | L24: 28562.26 | M24: 22427.16 | N24: 19252.41 | O24: 25073.81 | P24: 25045.86 | Q24: 28097.85 | R24: 31912.25 | S24: 255765.34
B25: 511
A26: %,FACCOUNT,TQGCACCTS,V759000,V759001,V759002,V759003,V759004 | B26: 512 | C26: 759 | D26: Gathering by Others, GRI & ACA - Gas Cost
B27: 513 | E27: Utah | G27: 1891788 | H27: 1666218.17 | I27: 1991661.05 | J27: 1782188.68 | K27: 1788124.76 | L27: 1992089.75 | M27: 1993407.22 | N27: 1516741.41 | O27: 2055745.11 | P27: 2051379.32 | Q27: 2011505.99 | R27: 2027420.36 | S27: 22768269.82
B28: 514 | E28: Wyoming | G28: 0 | H28: 0 | I28: 0 | J28: 0 | K28: 0 | L28: 0 | M28: 0 | N28: 0 | O28: 0 | P28: 0 | Q28: 0 | R28: 0 | S28: 0
B29: 515 | E29: Total | G29: 1891788 | H29: 1666218.17 | I29: 1991661.05 | J29: 1782188.68 | K29: 1788124.76 | L29: 1992089.75 | M29: 1993407.22 | N29: 1516741.41 | O29: 2055745.11 | P29: 2051379.32 | Q29: 2011505.99 | R29: 2027420.36 | S29: 22768269.82
B30: 516
A31: %,FACCOUNT,TQGCACCTS,V759005 | B31: 517 | C31: 759 | D31: Gathering by Others - SNG Cost
B32: 518 | E32: Utah | G32: 0 | H32: 0 | I32: 0 | J32: 0 | K32: 0 | L32: 0 | M32: 0 | N32: 0 | O32: 0 | P32: 0 | Q32: 0 | R32: 0 | S32: 0
B33: 519 | E33: Wyoming | G33: 0 | H33: 0 | I33: 0 | J33: 0 | K33: 0 | L33: 0 | M33: 0 | N33: 0 | O33: 0 | P33: 0 | Q33: 0 | R33: 0 | S33: 0
B34: 520 | E34: Total | G34: 0 | H34: 0 | I34: 0 | J34: 0 | K34: 0 | L34: 0 | M34: 0 | N34: 0 | O34: 0 | P34: 0 | Q34: 0 | R34: 0 | S34: 0
B35: 521
A36: %,FACCOUNT,TQGCACCTS,V800000,V800005,V800002 | B36: 522 | C36: 800 | D36: Natural Gas Well Head Purchases
B37: 523 | E37: Utah | G37: 0 | H37: 0 | I37: 0 | J37: 0 | K37: 0 | L37: 0 | M37: 220.2942582 | N37: 558.8971115 | O37: 726.5033531 | P37: 1194.836832 | Q37: 718.8145757 | R37: 897.6881504 | S37: 4317.034281
B38: 524 | E38: Wyoming | G38: 0 | H38: 0 | I38: 0 | J38: 0 | K38: 0 | L38: 0 | M38: 9.0857418 | N38: 27.5328885 | O38: 38.4866469 | P38: 29.883168 | Q38: 22.3154243 | R38: 27.5918496 | S38: 154.8957191
B39: 525 | E39: Total | G39: 0 | H39: 0 | I39: 0 | J39: 0 | K39: 0 | L39: 0 | M39: 229.38 | N39: 586.43 | O39: 764.99 | P39: 1224.72 | Q39: 741.13 | R39: 925.28 | S39: 4471.93
B40: 526
A41: %,FACCOUNT,TQGCACCTS,V801000 | B41: 527 | C41: 801 | D41: Natural Gas Field Line Purchases
B42: 528 | E42: Utah | G42: 0 | H42: 0 | I42: 0 | J42: 0 | K42: 0 | L42: 0 | M42: 0 | N42: 0 | O42: 0 | P42: 0 | Q42: 0 | R42: 0 | S42: 0
B43: 529 | E43: Wyoming | G43: 0 | H43: 0 | I43: 0 | J43: 0 | K43: 0 | L43: 0 | M43: 0 | N43: 0 | O43: 0 | P43: 0 | Q43: 0 | R43: 0 | S43: 0
B44: 530 | E44: Total | G44: 0 | H44: 0 | I44: 0 | J44: 0 | K44: 0 | L44: 0 | M44: 0 | N44: 0 | O44: 0 | P44: 0 | Q44: 0 | R44: 0 | S44: 0
B45: 531
A46: %,FACCOUNT,TQGCACCTS,V802000 | B46: 532 | C46: 802 | D46: Natural Gas Gasoline Plant Outlet Purchase
B47: 533 | E47: Utah | G47: 0 | H47: 0 | I47: 0 | J47: 0 | K47: 0 | L47: 0 | M47: 0 | N47: 0 | O47: 0 | P47: 0 | Q47: 0 | R47: 0 | S47: 0
B48: 534 | E48: Wyoming | G48: 0 | H48: 0 | I48: 0 | J48: 0 | K48: 0 | L48: 0 | M48: 0 | N48: 0 | O48: 0 | P48: 0 | Q48: 0 | R48: 0 | S48: 0
B49: 535 | E49: Total | G49: 0 | H49: 0 | I49: 0 | J49: 0 | K49: 0 | L49: 0 | M49: 0 | N49: 0 | O49: 0 | P49: 0 | Q49: 0 | R49: 0 | S49: 0
B50: 536
A51: %,FACCOUNT,TQGCACCTS,V803000,V803002 | B51: 537 | C51: 803 | D51: Natural Gas Transmission Line - Purchases
B52: 538 | E52: Utah | G52: -72021.92949 | H52: 962.94 | I52: 9901154.72 | J52: 24025352.39 | K52: 26291433.35 | L52: 13896102.21 | M52: 2614614.188 | N52: 945664.8632 | O52: 1186476.208 | P52: -6115.7925 | Q52: 0 | R52: -2281.86336 | S52: 78781341.29
B53: 539 | E53: Wyoming | G53: -2357.07051 | H53: 37.06 | I53: 380845.28 | J53: 889717.1326 | K53: 864369.1952 | L53: 455668.7273 | M53: 107836.2623 | N53: 46586.1868 | O53: 62853.7923 | P53: -152.9575 | Q53: 0 | R53: -70.13664 | S53: 2805333.472
B54: 540 | E54: Total | G54: -74379 | H54: 1000 | I54: 10282000 | J54: 24915069.52 | K54: 27155802.55 | L54: 14351770.94 | M54: 2722450.45 | N54: 992251.05 | O54: 1249330 | P54: -6268.75 | Q54: 0 | R54: -2352 | S54: 81586674.76
B55: 541
A56: %,FACCOUNT,V804000,FAFFILIATE,V09 | B56: 542 | C56: 804 | D56: Natural Gas City Gate Purchases - Resources
B57: 543 | E57: Utah | G57: 0 | H57: 0 | I57: 0 | J57: 0 | K57: 0 | L57: 0 | M57: 0 | N57: 0 | O57: 0 | P57: 0 | Q57: 0 | R57: 0 | S57: 0
B58: 544 | E58: Wyoming | G58: 0 | H58: 0 | I58: 0 | J58: 0 | K58: 0 | L58: 0 | M58: 0 | N58: 0 | O58: 0 | P58: 0 | Q58: 0 | R58: 0 | S58: 0
B59: 545 | E59: Total | G59: 0 | H59: 0 | I59: 0 | J59: 0 | K59: 0 | L59: 0 | M59: 0 | N59: 0 | O59: 0 | P59: 0 | Q59: 0 | R59: 0 | S59: 0
B60: 546
A61: %,FACCOUNT,V804000,FAFFILIATE,V | B61: 547 | C61: 804.1 | D61: Natural Gas City Gate Purchases - Other
B62: 548 | E62: Utah | G62: 84365.21914 | H62: 20770.6158 | I62: 22359.9312 | J62: 3663111.854 | K62: -1161.804 | L62: 1723732.388 | M62: 740344.0987 | N62: 0 | O62: 72812.7323 | P62: 0 | Q62: 0 | R62: 0 | S62: 6326335.035
B63: 549 | E63: Wyoming | G63: 2761.030863 | H63: 799.3842 | I63: 860.0688 | J63: 135653.926 | K63: -38.196 | L63: 56523.11212 | M63: 30534.50135 | N63: 0 | O63: 3857.2677 | P63: 0 | Q63: 0 | R63: 0 | S63: 230951.095
B64: 550 | E64: Total | G64: 87126.25 | H64: 21570 | I64: 23220 | J64: 3798765.78 | K64: -1200 | L64: 1780255.5 | M64: 770878.6 | N64: 0 | O64: 76670 | P64: 0 | Q64: 0 | R64: 0 | S64: 6557286.13
B65: 551
B66: 552 | C66: 805 | D66: Purchased Gas Cost Adjustments - Other
B67: 553 | E67: Utah | G67: 0 | H67: 0 | I67: 0 | J67: 0 | K67: 0 | L67: 0 | M67: 0 | N67: 0 | O67: 0 | P67: 0 | Q67: 0 | R67: 0 | S67: 0
B68: 554 | E68: Wyoming | G68: 0 | H68: 0 | I68: 0 | J68: 0 | K68: 0 | L68: 0 | M68: 0 | N68: 0 | O68: 0 | P68: 0 | Q68: 0 | R68: 0 | S68: 0
B69: 555 | E69: Total | G69: 0 | H69: 0 | I69: 0 | J69: 0 | K69: 0 | L69: 0 | M69: 0 | N69: 0 | O69: 0 | P69: 0 | Q69: 0 | R69: 0 | S69: 0
B70: 556
A71: %,FACCOUNT,TQGCACCTS,V805100 | B71: 557 | C71: 805.1 | D71: Purchased Gas Cost Adjustments - Utah
B72: 558 | E72: Utah | G72: -9031749.817 | H72: -12333561.81 | I72: -1439775.422 | J72: 32689191.86 | K72: 29942894.69 | L72: 22370338.59 | M72: 4354029.866 | N72: -9460654.778 | O72: -6708255.926 | P72: -9278164.778 | Q72: -5873797.384 | R72: -9580794.299 | S72: 25649700.79
B73: 559 | E73: Wyoming | G73: -295583.1828 | H73: -474673.1891 | I73: -55380.57824 | J73: 1210560.144 | K73: 984416.3091 | L73: 733548.4122 | M73: 179576.1337 | N73: -466059.2223 | O73: -355371.0744 | P73: -232049.2216 | Q73: -182350.6163 | R73: -294480.7005 | S73: 752153.2138
B74: 560 | E74: Total | G74: -9327333 | H74: -12808235 | I74: -1495156 | J74: 33899752 | K74: 30927311 | L74: 23103887 | M74: 4533606 | N74: -9926714 | O74: -7063627 | P74: -9510214 | Q74: -6056148 | R74: -9875275 | S74: 26401854
B75: 561
A76: %,FACCOUNT,TQGCACCTS,V806000 | B76: 562 | C76: 806 | D76: Exchange Gas
B77: 563 | E77: Utah | G77: 0 | H77: 0 | I77: 0 | J77: 0 | K77: 0 | L77: 0 | M77: 0 | N77: 0 | O77: 0 | P77: 0 | Q77: 0 | R77: 0 | S77: 0
B78: 564 | E78: Wyoming | G78: 0 | H78: 0 | I78: 0 | J78: 0 | K78: 0 | L78: 0 | M78: 0 | N78: 0 | O78: 0 | P78: 0 | Q78: 0 | R78: 0 | S78: 0
B79: 565 | E79: Total | G79: 0 | H79: 0 | I79: 0 | J79: 0 | K79: 0 | L79: 0 | M79: 0 | N79: 0 | O79: 0 | P79: 0 | Q79: 0 | R79: 0 | S79: 0
B80: 566
A81: %,FACCOUNT,TQGCACCTS,V808100 | B81: 567 | C81: 808.1 | D81: Gas Withdrawn from Underground Storage
B82: 568 | E82: Utah | G82: 8671.438761 | H82: 4137302.832 | I82: 21908558.98 | J82: 10043421.61 | K82: 12472910.88 | L82: 10350499.12 | M82: 13552537.81 | N82: 5148128.078 | O82: 88800.25062 | P82: 31112.66448 | Q82: 35077.67217 | R82: 213666.4863 | S82: 77990687.83
B83: 569 | E83: Wyoming | G83: 283.7912387 | H83: 159229.4878 | I83: 842706.8878 | J83: 371932.2878 | K83: 410065.1264 | L83: 339404.438 | M83: 558956.2809 | N83: 253611.6817 | O83: 4704.209383 | P83: 778.13552 | Q83: 1088.977832 | R83: 6567.373705 | S83: 2949328.678
B84: 570 | E84: Total | G84: 8955.23 | H84: 4296532.32 | I84: 22751265.87 | J84: 10415353.9 | K84: 12882976.01 | L84: 10689903.56 | M84: 14111494.09 | N84: 5401739.76 | O84: 93504.46 | P84: 31890.8 | Q84: 36166.65 | R84: 220233.86 | S84: 80940016.51
B85: 571
A86: %,FACCOUNT,TQGCACCTS,V808200 | B86: 572 | C86: 808.2 | D86: Gas Delivered to Underground Storage
B87: 573 | E87: Utah | G87: -13399844.3 | H87: -3391787.376 | I87: -5298138.58 | J87: -3282969.537 | K87: -529050.2808 | L87: -336276.8269 | M87: -81902.37613 | N87: -1618219.687 | O87: -7393840.47 | P87: -11637985.67 | Q87: -15641223.78 | R87: -13195855.35 | S87: -75807094.24
B88: 574 | E88: Wyoming | G88: -438538.3462 | H88: -130537.3545 | I88: -203791.4898 | J88: -121576.333 | K88: -17393.29915 | L88: -11026.89311 | M88: -3377.953871 | N88: -79718.183 | O88: -391690.04 | P88: -291068.9322 | Q88: -485578.0016 | R88: -405595.2572 | S88: -2579892.084
B89: 575 | E89: Total | G89: -13838382.65 | H89: -3522324.73 | I89: -5501930.07 | J89: -3404545.87 | K89: -546443.58 | L89: -347303.72 | M89: -85280.33 | N89: -1697937.87 | O89: -7785530.51 | P89: -11929054.6 | Q89: -16126801.78 | R89: -13601450.61 | S89: -78386986.32
B90: 576
A91: %,FACCOUNT,TQGCACCTS,V808300 | B91: 577 | C91: 808.3 | D91: Exchange Gas
B92: 578 | E92: Utah | G92: 314139.1302 | H92: 312580.9163 | I92: 308861.7163 | J92: 307385.759 | K92: 310391.4293 | L92: 313162.0658 | M92: 312012.4636 | N92: 307688.3803 | O92: 306178.1566 | P92: 312536.3868 | Q92: 308582.1422 | R92: 306764.1247 | S92: 3720282.671
B93: 579 | E93: Wyoming | G93: 10280.8698 | H93: 12030.08366 | I93: 11880.28368 | J93: 11383.24099 | K93: 10204.57068 | L93: 10268.93425 | M93: 12868.53641 | N93: 15157.6197 | O93: 16219.84338 | P93: 7816.6132 | Q93: 9579.85782 | R93: 9428.87526 | S93: 137119.3288
B94: 580 | E94: Total | G94: 324420 | H94: 324611 | I94: 320742 | J94: 318769 | K94: 320596 | L94: 323431 | M94: 324881 | N94: 322846 | O94: 322398 | P94: 320353 | Q94: 318162 | R94: 316193 | S94: 3857402
B95: 581
A96: %,FACCOUNT,TQGCACCTS,V813000,V813001,V813002,V813003,V813004 | B96: 582 | C96: 813 | D96: Other Gas Supply Expenses - Gas Cost
B97: 583 | E97: Utah | G97: 27457943.79 | H97: 27189046.47 | I97: 25788289.91 | J97: 26218965.17 | K97: 26357908.87 | L97: 27176171.04 | M97: 27870759.91 | N97: 26815798.37 | O97: 26511684.03 | P97: 25607119.88 | Q97: 25994102.61 | R97: 26137964.05 | S97: 319125754.1
B98: 584 | E98: Wyoming | G98: 898619.4903 | H98: 1046405.863 | I98: 991939.7051 | J98: 970951.94 | K98: 866554.6745 | L98: 891137.0312 | M98: 1149492.186 | N98: 1321023.801 | O98: 1404461.27 | P98: 640440.4725 | Q98: 806980.6161 | R98: 803391.2139 | S98: 11791398.26
B99: 585 | E99: Total | G99: 28356563.28 | H99: 28235452.33 | I99: 26780229.62 | J99: 27189917.11 | K99: 27224463.54 | L99: 28067308.07 | M99: 29020252.1 | N99: 28136822.17 | O99: 27916145.3 | P99: 26247560.35 | Q99: 26801083.23 | R99: 26941355.26 | S99: 330917152.4
B100: 586
B101: 587 | C101: 813 | D101: Other Gas Supply Expenses - SNG Cost
B102: 588 | E102: Utah | S102: 0
B103: 589 | E103: Wyoming | S103: 0
B104: 590 | E104: Total | G104: 0 | H104: 0 | I104: 0 | J104: 0 | K104: 0 | L104: 0 | M104: 0 | N104: 0 | O104: 0 | P104: 0 | Q104: 0 | R104: 0 | S104: 0
B105: 591
B106: 592 | C106: 813.5 | D106: CO2 Processing Expenses
A107: %,FACCOUNT,TQGCACCTS,V813005,V813007,V813008 | B107: 593 | E107: Utah | G107: 0 | H107: 0 | I107: 0 | J107: 0 | K107: 0 | L107: 0 | M107: 0 | N107: 0 | O107: 0 | P107: 0 | Q107: 0 | R107: 0 | S107: 0
A108: %,FACCOUNT,TQGCACCTS,V813006 | B108: 594 | E108: Wyoming | G108: 0 | H108: 0 | I108: 0 | J108: 0 | K108: 0 | L108: 0 | M108: 0 | N108: 0 | O108: 0 | P108: 0 | Q108: 0 | R108: 0 | S108: 0
B109: 595 | E109: Total | G109: 0 | H109: 0 | I109: 0 | J109: 0 | K109: 0 | L109: 0 | M109: 0 | N109: 0 | O109: 0 | P109: 0 | Q109: 0 | R109: 0 | S109: 0
B110: 596
A111: %,FACCOUNT,TQGCACCTS,V858000 | B111: 597 | C111: 858 | D111: Transportation GRI & ACA - Gas Cost
B112: 598 | E112: Utah | G112: 4632037.763 | H112: 4600219.492 | I112: 5776722.603 | J112: 5896981.227 | K112: 5816537.559 | L112: 5891822.735 | M112: 5771018.814 | N112: 4598418.836 | O112: 4546221.52 | P112: 4674206.74 | Q112: 4645465.926 | R112: 4648739.509 | S112: 61498392.73
B113: 599 | E113: Wyoming | G113: 151593.2673 | H113: 177045.4383 | I113: 222200.0968 | J113: 218379.5327 | K113: 191227.1507 | L113: 193199.4545 | M113: 238017.9461 | N113: 226531.4142 | O113: 240836.9096 | P113: 116903.0796 | Q113: 144217.3639 | R113: 142886.2811 | S113: 2263037.935
B114: 600 | E114: Total | G114: 4783631.03 | H114: 4777264.93 | I114: 5998922.7 | J114: 6115360.76 | K114: 6007764.71 | L114: 6085022.19 | M114: 6009036.76 | N114: 4824950.25 | O114: 4787058.43 | P114: 4791109.82 | Q114: 4789683.29 | R114: 4791625.79 | S114: 63761430.66
B115: 601
A116: %,FACCOUNT,TQGCACCTS,V858001 | B116: 602 | C116: 858 | D116: Trans & Comp of Gas by Others - SNG Cost
B117: 603 | E117: Utah | G117: 0 | H117: 0 | I117: 0 | J117: 0 | K117: 0 | L117: 0 | M117: 0 | N117: 0 | O117: 0 | P117: 0 | Q117: 0 | R117: 0 | S117: 0
B118: 604 | E118: Wyoming | G118: 0 | H118: 0 | I118: 0 | J118: 0 | K118: 0 | L118: 0 | M118: 0 | N118: 0 | O118: 0 | P118: 0 | Q118: 0 | R118: 0 | S118: 0
B119: 605 | E119: Total | G119: 0 | H119: 0 | I119: 0 | J119: 0 | K119: 0 | L119: 0 | M119: 0 | N119: 0 | O119: 0 | P119: 0 | Q119: 0 | R119: 0 | S119: 0
B120: 606
B121: 607 | C121: System Total Gas Purchase Expenses
B122: 608 | D122: Utah Gas Purchase Expenses | G122: 14582356.29 | H122: 24691315.45 | I122: 61171996.47 | J122: 103263251.9 | K122: 103702722.3 | L122: 85532075.53 | M122: 59195114.87 | N122: 29876826.8 | O122: 22046469.71 | P122: 13151205.28 | Q122: 13074979.9 | R122: 12159874.51 | S122: 542448188.9
B123: 609 | D123: Wyoming Gas Purchase Expenses | G123: 414799.4699 | H123: 885603.2538 | I123: 2275585.383 | J123: 3757557.3 | K123: 3350240.358 | L123: 2738432.943 | M123: 2358282.885 | N123: 1396151.418 | O123: 1057683.972 | P123: 276983.0201 | Q123: 342590.5755 | R123: 310455.9562 | S123: 19164366.53
B124: 610
B125: 611
B126: 612 | D126: System Total Gas Purchase Expenses | G126: 14997155.76 | H126: 25576918.7 | I126: 63447581.85 | J126: 107020809.1 | K126: 107052962.6 | L126: 88270508.47 | M126: 61553397.76 | N126: 31272978.22 | O126: 23104153.68 | P126: 13428188.3 | Q126: 13417570.48 | R126: 12470330.47 | S126: 561612555.5
B127: 613
B128: 614
B129: 615 | C129: OPERATION AND MAINTENANCE EXPENSES
B130: 616
B131: 617 | C131: Production Expenses
B132: 618
A133: %,FACCOUNT,TQGCACCTS,V810000,V810001 | B133: 619 | C133: 810 | D133: Gas Used for Compressor Station Fuel | G133: -1192.67 | H133: -1715.88 | I133: -4230.56 | J133: -1979.67 | K133: -2466.79 | L133: -3090.88 | M133: -3088.95 | N133: -1731.39 | O133: -3869 | P133: -4097 | Q133: -4097 | R133: -1410 | S133: -32969.79
A134: %,FACCOUNT,TQGCACCTS,V812000,V812001 | B134: 620 | C134: 812 | D134: Gas Used for Other Utility Operations | G134: -54547.92 | H134: -77466.92 | I134: -68573.03 | J134: -79286.93 | K134: -108867.97 | L134: -96175.35 | M134: -82778.52 | N134: -100651.42 | O134: -63302.07 | P134: -65664.2 | Q134: -22802.85 | R134: -90974.97 | S134: -911092.15
B135: 621
B136: 622 | D136: Total Production Expenses | G136: -55740.59 | H136: -79182.8 | I136: -72803.59 | J136: -81266.6 | K136: -111334.76 | L136: -99266.23 | M136: -85867.47 | N136: -102382.81 | O136: -67171.07 | P136: -69761.2 | Q136: -26899.85 | R136: -92384.97 | S136: -944061.94
B137: 623 | G137: -1766.419297 | H137: -2934.514568 | I137: -2696.644974 | J137: -2902.030286 | K137: -3543.785411 | L137: -3151.702802 | M137: -3401.210487 | N137: -4806.87293 | O137: -3379.376532 | P137: -1702.17328 | Q137: -809.9544835 | R137: -2754.919805 | S137: -33849.60485
B138: 624 | C138: Distribution Operations & Maintenance Expenses
B139: 625
B140: 626 | C140: 870 | D140: Operation Supervision & Engineering
B141: 627 | E141: Utah | G141: 804632.76 | H141: 948904.41 | I141: 845581.99 | J141: 1378224.44 | K141: 1100939.98 | L141: 1097515.72 | M141: 1040510.36 | N141: 926923.79 | O141: 1013353.79 | P141: 998894.34 | Q141: 1070084.79 | R141: 853487.81 | S141: 12079054.18
B142: 628 | E142: Wyoming | G142: 36329.27 | H142: 42346.98 | I142: 46160.5 | J142: 62626.25 | K142: 51074.63 | L142: 50203.53 | M142: 37666.14 | N142: 36410.74 | O142: 41180.47 | P142: 44661.49 | Q142: 45004.59 | R142: 44297.28 | S142: 537961.87
A143: %,FACCOUNT,TQGCACCTS,N870 | B143: 629 | E143: Total | G143: 840962.03 | H143: 991251.39 | I143: 891742.49 | J143: 1440850.69 | K143: 1152014.61 | L143: 1147719.25 | M143: 1078176.5 | N143: 963334.53 | O143: 1054534.26 | P143: 1043555.83 | Q143: 1115089.38 | R143: 897785.09 | S143: 12617016.05
B144: 630
B145: 631 | C145: 871 | D145: Distribution Load Dispatching
B146: 632 | E146: Utah | G146: 187630.25 | H146: 142194.71 | I146: 178569.9 | J146: 257285.13 | K146: 148073.54 | L146: 181543.63 | M146: 159726.77 | N146: 161195.27 | O146: 186594.51 | P146: 169962.13 | Q146: 159751.81 | R146: 184324.3 | S146: 2116851.95
B147: 633 | E147: Wyoming | G147: 4149.43 | H147: 2438.91 | I147: 2850.67 | J147: 4843.24 | K147: 1909.66 | L147: 3813.91 | M147: 2601.97 | N147: 2888.66 | O147: 3620.53 | P147: 3099.2 | Q147: 2752.94 | R147: 3138.41 | S147: 38107.53
A148: %,FACCOUNT,TQGCACCTS,N871 | B148: 634 | E148: Total | G148: 191779.68 | H148: 144633.62 | I148: 181420.57 | J148: 262128.37 | K148: 149983.2 | L148: 185357.54 | M148: 162328.74 | N148: 164083.93 | O148: 190215.04 | P148: 173061.33 | Q148: 162504.75 | R148: 187462.71 | S148: 2154959.48
B149: 635
B150: 636 | C150: 872 | D150: Compressor Station Labor & Expenses
B151: 637 | E151: Utah | G151: 0 | H151: 0 | I151: 0 | J151: 0 | K151: 0 | L151: 0 | M151: 0 | N151: 0 | O151: 0 | P151: 0 | Q151: 0 | R151: 0 | S151: 0
B152: 638 | E152: Wyoming | G152: 0 | H152: 0 | I152: 0 | J152: 0 | K152: 0 | L152: 0 | M152: 0 | N152: 0 | O152: 0 | P152: 0 | Q152: 0 | R152: 0 | S152: 0
A153: %,FACCOUNT,TQGCACCTS,N872 | B153: 639 | E153: Total | G153: 0 | H153: 0 | I153: 0 | J153: 0 | K153: 0 | L153: 0 | M153: 0 | N153: 0 | O153: 0 | P153: 0 | Q153: 0 | R153: 0 | S153: 0
B154: 640
B155: 641 | C155: 873 | D155: Compressor Station Fuel & Power
B156: 642 | E156: Utah | G156: 1197.25 | H156: 1721 | I156: 4237.57 | J156: 2016.64 | K156: 2510.97 | L156: 3161.02 | M156: 3137.26 | N156: 1741.72 | O156: 3869 | P156: 4097 | Q156: 4097 | R156: 1410 | S156: 33196.43
B157: 643 | E157: Wyoming | G157: 0 | H157: 0 | I157: 0 | J157: 0 | K157: 0 | L157: 0 | M157: 0 | N157: 0 | O157: 0 | P157: 0 | Q157: 0 | R157: 0 | S157: 0
A158: %,FACCOUNT,TQGCACCTS,N873 | B158: 644 | E158: Total | G158: 1197.25 | H158: 1721 | I158: 4237.57 | J158: 2016.64 | K158: 2510.97 | L158: 3161.02 | M158: 3137.26 | N158: 1741.72 | O158: 3869 | P158: 4097 | Q158: 4097 | R158: 1410 | S158: 33196.43
B159: 645
B160: 646 | C160: 874 | D160: Mains & Service Expenses
B161: 647 | E161: Utah | G161: 849795.94 | H161: 760022.41 | I161: 852373.06 | J161: 741930.02 | K161: 224804.6 | L161: 601579.06 | M161: 909469.13 | N161: 916114.29 | O161: 986004.65 | P161: 1022456.21 | Q161: 1049238.56 | R161: 1069881.12 | S161: 9983669.05
B162: 648 | E162: Wyoming | G162: 49991.36 | H162: 58062.71 | I162: 49402.53 | J162: 55724.93 | K162: -1222.7 | L162: 28123.27 | M162: 23897.67 | N162: 29974.41 | O162: 45710.28 | P162: 44773.09 | Q162: 54638.39 | R162: 39463.84 | S162: 478539.78
A163: %,FACCOUNT,TQGCACCTS,N874 | B163: 649 | E163: Total | G163: 899787.3 | H163: 818085.12 | I163: 901775.59 | J163: 797654.95 | K163: 223581.9 | L163: 629702.33 | M163: 933366.8 | N163: 946088.7 | O163: 1031714.93 | P163: 1067229.3 | Q163: 1103876.95 | R163: 1109344.96 | S163: 10462208.83
B164: 650
B165: 651 | C165: 875 | D165: Measuring & Regulating Station Expenses
B166: 652 | E166: Utah | G166: 386193.99 | H166: 135560.11 | I166: 164628.9 | J166: 142892.36 | K166: 190138.91 | L166: 182859.73 | M166: 302181.99 | N166: 158986 | O166: 146747.72 | P166: 259685.05 | Q166: 241604.94 | R166: 174710.07 | S166: 2486189.77
B167: 653 | E167: Wyoming | G167: 22077.58 | H167: 14188.27 | I167: 12688.7 | J167: 11524.15 | K167: 12356.92 | L167: 16145.21 | M167: 13221.41 | N167: 10014.97 | O167: 13916.19 | P167: 17820.73 | Q167: 15245.93 | R167: 13713.2 | S167: 172913.26
A168: %,FACCOUNT,TQGCACCTS,N875 | B168: 654 | E168: Total | G168: 408271.57 | H168: 149748.38 | I168: 177317.6 | J168: 154416.51 | K168: 202495.83 | L168: 199004.94 | M168: 315403.4 | N168: 169000.97 | O168: 160663.91 | P168: 277505.78 | Q168: 256850.87 | R168: 188423.27 | S168: 2659103.03
B169: 655
B170: 656 | C170: 878 | D170: Meter & House Regulator Expenses
B171: 657 | E171: Utah | G171: 269844.3 | H171: 319556.23 | I171: 355622.07 | J171: 295377.02 | K171: 300126.9 | L171: 271211.07 | M171: 276332.44 | N171: 244730.91 | O171: 302222.11 | P171: 285808.92 | Q171: 280009.52 | R171: 316870.72 | S171: 3517712.21
B172: 658 | E172: Wyoming | G172: 10346.89 | H172: 14147.29 | I172: 12833.13 | J172: 10796.94 | K172: 13323.12 | L172: 28194.46 | M172: 21631.92 | N172: 11889.7 | O172: 9255.12 | P172: 15327.61 | Q172: 10787.62 | R172: 13601.94 | S172: 172135.74
A173: %,FACCOUNT,TQGCACCTS,N878 | B173: 659 | E173: Total | G173: 280191.19 | H173: 333703.52 | I173: 368455.2 | J173: 306173.96 | K173: 313450.02 | L173: 299405.53 | M173: 297964.36 | N173: 256620.61 | O173: 311477.23 | P173: 301136.53 | Q173: 290797.14 | R173: 330472.66 | S173: 3689847.95
B174: 660
B175: 661 | C175: 879 | D175: Customer Installations Expenses
B176: 662 | E176: Utah | G176: 248569.15 | H176: 303394.12 | I176: 402195.59 | J176: 334908.53 | K176: 382209 | L176: 308706.77 | M176: 279506.89 | N176: 229684.11 | O176: 230082.19 | P176: 206314.65 | Q176: 240013.01 | R176: 292151.69 | S176: 3457735.7
B177: 663 | E177: Wyoming | G177: 9198.71 | H177: 30081.09 | I177: 53372.6 | J177: 42988.23 | K177: 28309 | L177: 20903.42 | M177: 14534.96 | N177: 8249.79 | O177: 8063.7 | P177: 7433.58 | Q177: 9132.79 | R177: 11058.39 | S177: 243326.26
A178: %,FACCOUNT,TQGCACCTS,N879 | B178: 664 | E178: Total | G178: 257767.86 | H178: 333475.21 | I178: 455568.19 | J178: 377896.76 | K178: 410518 | L178: 329610.19 | M178: 294041.85 | N178: 237933.9 | O178: 238145.89 | P178: 213748.23 | Q178: 249145.8 | R178: 303210.08 | S178: 3701061.96
B179: 665
B180: 666 | C180: 880 | D180: Other Expenses
B181: 667 | E181: Utah | G181: 791053.16 | H181: 680551.64 | I181: 813898 | J181: 777854.96 | K181: 900978.19 | L181: 1283136.75 | M181: 919780.72 | N181: 858485.85 | O181: 968807.95 | P181: 761383.66 | Q181: 794484.35 | R181: 860576.98 | S181: 10410992.21
B182: 668 | E182: Wyoming | G182: 51009.76 | H182: 53188 | I182: 84656.17 | J182: 81882.04 | K182: 89945.29 | L182: 134631.99 | M182: 112361.21 | N182: 78145.64 | O182: 67194.63 | P182: 48409.93 | Q182: 50981.65 | R182: 45273.37 | S182: 897679.68
A183: %,FACCOUNT,TQGCACCTS,N880 | B183: 669 | E183: Total | G183: 842062.92 | H183: 733739.64 | I183: 898554.17 | J183: 859737 | K183: 990923.48 | L183: 1417768.74 | M183: 1032141.93 | N183: 936631.49 | O183: 1036002.58 | P183: 809793.59 | Q183: 845466 | R183: 905850.35 | S183: 11308671.89
B184: 670
B185: 671 | C185: 881 | D185: Rents
B186: 672 | E186: Utah | G186: 17132.75 | H186: 17535.3 | I186: 35176.86 | J186: 3277.08 | K186: 30462.48 | L186: 3225.95 | M186: 12242.19 | N186: 4009.41 | O186: 3448.72 | P186: 3483.03 | Q186: 3904.83 | R186: 10879.24 | S186: 144777.84
B187: 673 | E187: Wyoming | G187: 599.35 | H187: 619.06 | I187: 1211.74 | J187: 112.89 | K187: 1033.05 | L187: 129.17 | M187: 413.85 | N187: 136.4 | O187: 116.95 | P187: 118.12 | Q187: 132.42 | R187: 370.1 | S187: 4993.1
A188: %,FACCOUNT,TQGCACCTS,N881 | B188: 674 | E188: Total | G188: 17732.1 | H188: 18154.36 | I188: 36388.6 | J188: 3389.97 | K188: 31495.53 | L188: 3355.12 | M188: 12656.04 | N188: 4145.81 | O188: 3565.67 | P188: 3601.15 | Q188: 4037.25 | R188: 11249.34 | S188: 149770.94
B189: 675
B190: 676 | C190: 885 | D190: Maintenance Supervision & Engineering
B191: 677 | E191: Utah | G191: 42266.12 | H191: 50939.54 | I191: 50501.65 | J191: 85912.36 | K191: 30128.9 | L191: 57835.27 | M191: 69326.54 | N191: 48971.79 | O191: 60196.91 | P191: 46689.81 | Q191: 43665.99 | R191: 37222.03 | S191: 623656.91
B192: 678 | E192: Wyoming | G192: 1391.71 | H192: 1673.29 | I192: 1582.94 | J192: 2833.44 | K192: 911.46 | L192: 2168.82 | M192: 2162.47 | N192: 1548.15 | O192: 1917.09 | P192: 1457.19 | Q192: 1347.56 | R192: 1150.74 | S192: 20144.86
A193: %,FACCOUNT,TQGCACCTS,N885 | B193: 679 | E193: Total | G193: 43657.83 | H193: 52612.83 | I193: 52084.59 | J193: 88745.8 | K193: 31040.36 | L193: 60004.09 | M193: 71489.01 | N193: 50519.94 | O193: 62114 | P193: 48147 | Q193: 45013.55 | R193: 38372.77 | S193: 643801.77
B194: 680
B195: 681 | C195: 886 | D195: Maintenance of Structures & Improvements
B196: 682 | E196: Utah | G196: 6432.44 | H196: 10159.33 | I196: 6326.15 | J196: 9023.13 | K196: 4312.37 | L196: 5766.77 | M196: 7366.33 | N196: 6609.49 | O196: 6236.42 | P196: 11220.81 | Q196: 6514.08 | R196: 6622.07 | S196: 86589.39
B197: 683 | E197: Wyoming | G197: 209.1 | H197: 206.1 | I197: 207.89 | J197: 265.33 | K197: 135.09 | L197: 226.62 | M197: 232.72 | N197: 199.31 | O197: 203.95 | P197: 206.52 | Q197: 203.81 | R197: 207.11 | S197: 2503.55
A198: %,FACCOUNT,TQGCACCTS,N886 | B198: 684 | E198: Total | G198: 6641.54 | H198: 10365.43 | I198: 6534.04 | J198: 9288.46 | K198: 4447.46 | L198: 5993.39 | M198: 7599.05 | N198: 6808.8 | O198: 6440.37 | P198: 11427.33 | Q198: 6717.89 | R198: 6829.18 | S198: 89092.94
B199: 685
B200: 686 | C200: 887 | D200: Maintenance of Mains
B201: 687 | E201: Utah | G201: 717750.19 | H201: 730831.48 | I201: 704044.55 | J201: 738561.38 | K201: 848449.46 | L201: 865368.25 | M201: 837202.69 | N201: 714085.53 | O201: 717183.85 | P201: 692186.14 | Q201: 736601.55 | R201: 679077.64 | S201: 8981342.71
B202: 688 | E202: Wyoming | G202: 9125.88 | H202: 1133.32 | I202: 10643.97 | J202: 13394.77 | K202: 19925.1 | L202: 18157.24 | M202: 21484.73 | N202: 14557.21 | O202: 7171.92 | P202: 6832.99 | Q202: -2846.25 | R202: 5135.28 | S202: 124716.16
A203: %,FACCOUNT,TQGCACCTS,N887 | B203: 689 | E203: Total | G203: 726876.07 | H203: 731964.8 | I203: 714688.52 | J203: 751956.15 | K203: 868374.56 | L203: 883525.49 | M203: 858687.42 | N203: 728642.74 | O203: 724355.77 | P203: 699019.13 | Q203: 733755.3 | R203: 684212.92 | S203: 9106058.87
B204: 690
B205: 691 | C205: 888 | D205: Maint of Compressor Station Equipment
B206: 692 | E206: Utah | G206: 93059.2 | H206: 179652.56 | I206: 185536.54 | J206: 118246.43 | K206: 68201.36 | L206: 71760.47 | M206: 63558.68 | N206: 95311.92 | O206: 87010.14 | P206: 83759.05 | Q206: 91496.91 | R206: 184394.52 | S206: 1321987.78
... 843 more rows

Sheet Rate Base
A1: %,LACTUALS
C2: Company: | F2: Company:
C3: Period Ended: | F3: Period Ended:
C4: Date,Time, Stamp: | F4: Date,Time, Stamp:
U5: Historical
U6: 13-Month Avg
U7: Period Ended
G8: =+H8-30 -> 2015-07-23 | H8: 2015-08-22 | I8: 2015-09-21 | J8: 2015-10-21 | K8: 2015-11-20 | L8: 2015-12-20 | M8: 2016-01-19 | N8: 2016-02-18 | O8: 2016-03-19 | P8: 2016-04-18 | Q8: 2016-05-18 | R8: 2016-06-17 | S8: 2016-07-17 | T8: 2016-08-16 | U8: 2016-08-31
C10: UTILITY RATE BASE
D11: NET UTILITY PLANT
D13: Intangible Plant
C14: 101 | D14: Gas Plant In Service
E15: Intangible Plant
B16: 1 | D16: 302 | E16: Franchises & Consents
B17: =+B16+1 -> 2 | E17: Distribution - Wyoming | H17: 10883.08 | I17: 10883.08 | J17: 10883.08 | K17: 10883.08 | L17: 10883.08 | M17: 10883.08 | N17: 10883.08 | O17: 10883.08 | P17: 10883.08 | Q17: 10883.08 | R17: 10883.08 | S17: 10883.08 | T17: 10883.08 | U17: 10883.08
B18: 3 | E18: Distribution - Utah | H18: 58742.88 | I18: 58742.88 | J18: 58742.88 | K18: 58742.88 | L18: 58742.88 | M18: 58742.88 | N18: 58742.88 | O18: 58742.88 | P18: 58742.88 | Q18: 58742.88 | R18: 58742.88 | S18: 58742.88 | T18: 58742.88 | U18: 58742.88
B19: 4
A20: ="%,FACCOUNT,TQGCACCTS,N"&(D16) -> %,FACCOUNT,TQGCACCTS,N302 | B20: 5 | E20: Total Intangible Plant | H20: 69625.96 | I20: 69625.96 | J20: 69625.96 | K20: 69625.96 | L20: 69625.96 | M20: 69625.96 | N20: 69625.96 | O20: 69625.96 | P20: 69625.96 | Q20: 69625.96 | R20: 69625.96 | S20: 69625.96 | T20: 69625.96 | U20: 69625.96
B21: 6
B22: 7 | E22: Production & Gathering Plant
A23: ="%,FACCOUNT,TQGCACCTS,N"&(D23) -> %,FACCOUNT,TQGCACCTS,N325 | B23: 8 | D23: 325 | E23: Land & Land Rights | H23: 6266900.69 | I23: 6266900.69 | J23: 6266900.69 | K23: 6266900.69 | L23: 6266900.69 | M23: 6266900.69 | N23: 6266900.69 | O23: 6266900.69 | P23: 6266900.69 | Q23: 6266900.69 | R23: 6266900.69 | S23: 6266900.69 | T23: 6266900.69 | U23: 6266900.69
A24: %,FACCOUNT,TQGCACCTS,N326,N327,N328,N329 | B24: 9 | D24: 326...9 | E24: Structures | H24: 1437567.99 | I24: 1437567.99 | J24: 1437567.99 | K24: 1437567.99 | L24: 1437567.99 | M24: 1437567.99 | N24: 1437567.99 | O24: 1437567.99 | P24: 1437567.99 | Q24: 1437567.99 | R24: 1437567.99 | S24: 1437567.99 | T24: 1437567.99 | U24: 1437567.99
A25: ="%,FACCOUNT,TQGCACCTS,N"&(D25) -> %,FACCOUNT,TQGCACCTS,N330 | B25: 10 | D25: 330 | E25: Gas Wells - Construction | H25: 52175293.81 | I25: 52175293.81 | J25: 52175293.81 | K25: 52175293.81 | L25: 52175293.81 | M25: 52175293.81 | N25: 52175293.81 | O25: 52175293.81 | P25: 52175293.81 | Q25: 52175293.81 | R25: 52175293.81 | S25: 52175293.81 | T25: 52175293.81 | U25: 52175293.81
A26: ="%,FACCOUNT,TQGCACCTS,N"&(D26) -> %,FACCOUNT,TQGCACCTS,N331 | B26: 11 | D26: 331 | E26: Gas Wells - Equipment | H26: 17216356.05 | I26: 17216356.05 | J26: 17216356.05 | K26: 17216356.05 | L26: 17216356.05 | M26: 17216356.05 | N26: 17216356.05 | O26: 17216356.05 | P26: 17216356.05 | Q26: 17216356.05 | R26: 17216356.05 | S26: 17216356.05 | T26: 17216356.05 | U26: 17216356.05
A27: %,FACCOUNT,TQGCACCTS,N332,N333,N334 | B27: 12 | D27: 332...4 | E27: Field Lines & Comp, Meas & Reg St Eqpt | H27: 2693816.12 | I27: 2693816.12 | J27: 2693816.12 | K27: 2693816.12 | L27: 2693816.12 | M27: 2693816.12 | N27: 2693816.12 | O27: 2693816.12 | P27: 2693816.12 | Q27: 2693816.12 | R27: 2693816.12 | S27: 2693816.12 | T27: 2693816.12 | U27: 2693816.12
A28: ="%,FACCOUNT,TQGCACCTS,N"&(D28) -> %,FACCOUNT,TQGCACCTS,N336 | B28: 13 | D28: 336 | E28: Purification Equipment | H28: 57014.71 | I28: 57014.71 | J28: 57014.71 | K28: 57014.71 | L28: 57014.71 | M28: 57014.71 | N28: 57014.71 | O28: 57014.71 | P28: 57014.71 | Q28: 57014.71 | R28: 57014.71 | S28: 57014.71 | T28: 57014.71 | U28: 57014.71
A29: ="%,FACCOUNT,TQGCACCTS,N"&(D29) -> %,FACCOUNT,TQGCACCTS,N337 | B29: 14 | D29: 337 | E29: Other Equipment | H29: 121186.63 | I29: 121186.63 | J29: 121186.63 | K29: 121186.63 | L29: 121186.63 | M29: 121186.63 | N29: 121186.63 | O29: 121186.63 | P29: 121186.63 | Q29: 121186.63 | R29: 121186.63 | S29: 121186.63 | T29: 121186.63 | U29: 121186.63
B30: 15
B31: 16 | E31: Total Production & Gathering Plant | H31: 79968136 | I31: 79968136 | J31: 79968136 | K31: 79968136 | L31: 79968136 | M31: 79968136 | N31: 79968136 | O31: 79968136 | P31: 79968136 | Q31: 79968136 | R31: 79968136 | S31: 79968136 | T31: 79968136 | U31: 79968136
B32: 17
B33: 18 | E33: Distribution Plant
B34: 19 | D34: 374 | E34: Land & Land Rights
B35: 20 | F35: Wyoming | H35: 400188.28 | I35: 400188.28 | J35: 400188.28 | K35: 400188.28 | L35: 400188.28 | M35: 400188.28 | N35: 400188.28 | O35: 400188.28 | P35: 400188.28 | Q35: 400188.28 | R35: 400188.28 | S35: 400188.28 | T35: 400188.28 | U35: 400188.28
A36: ="%,FACCOUNT,TQGCACCTS,N"&(D34) -> %,FACCOUNT,TQGCACCTS,N374 | B36: 21 | F36: Utah | H36: 16771388.12 | I36: 16809045.53 | J36: 17056541.56 | K36: 17056541.56 | L36: 17574435.46 | M36: 17574435.46 | N36: 17568137.46 | O36: 17557234.3 | P36: 18039023.92 | Q36: 18039023.92 | R36: 18014023.92 | S36: 17969078.14 | T36: 18294430.88 | U36: 17565869.23
B37: 22 | F37: Total | H37: 17171576.4 | I37: 17209233.81 | J37: 17456729.84 | K37: 17456729.84 | L37: 17974623.74 | M37: 17974623.74 | N37: 17968325.74 | O37: 17957422.58 | P37: 18439212.2 | Q37: 18439212.2 | R37: 18414212.2 | S37: 18369266.42 | T37: 18694619.16 | U37: 17966057.51
B38: 23
B39: 24 | D39: 375 | E39: Structures & Improvements
B40: 25 | F40: Wyoming | H40: 943906.23 | I40: 943906.23 | J40: 943906.23 | K40: 943906.23 | L40: 982959.23 | M40: 982959.23 | N40: 982959.23 | O40: 982959.23 | P40: 982959.23 | Q40: 982959.23 | R40: 982959.23 | S40: 982959.23 | T40: 982959.23 | U40: 971568.7717
A41: ="%,FACCOUNT,TQGCACCTS,N"&(D39) -> %,FACCOUNT,TQGCACCTS,N375 | B41: 26 | F41: Utah | H41: 15073542.3 | I41: 15063980.02 | J41: 15058392.77 | K41: 15139493.43 | L41: 15164181 | M41: 15164181 | N41: 15164181 | O41: 15182931.65 | P41: 15222781.65 | Q41: 15222781.65 | R41: 15222781.65 | S41: 15227467.48 | T41: 15308202.85 | U41: 15168668.82
B42: 27 | F42: Total | H42: 16017448.53 | I42: 16007886.25 | J42: 16002299 | K42: 16083399.66 | L42: 16147140.23 | M42: 16147140.23 | N42: 16147140.23 | O42: 16165890.88 | P42: 16205740.88 | Q42: 16205740.88 | R42: 16205740.88 | S42: 16210426.71 | T42: 16291162.08 | U42: 16140237.59
B43: 28
B44: 29 | D44: 376 | E44: Mains
B45: 30 | F45: Dist - Wy - Mains - SD
B46: 31 | F46: Dist - Wy - Mains - LD
B47: 32 | F47: Dist - Wy - Mains - Feeders
B48: 33 | F48: Wyoming | H48: 35301601.48 | I48: 36429466.88 | J48: 36692993.27 | K48: 36697988.09 | L48: 37088094.04 | M48: 37368409.47 | N48: 37099379.26 | O48: 37572570.12 | P48: 37336653.14 | Q48: 37203417.11 | R48: 37386319.95 | S48: 37424582.14 | T48: 37816474.77 | U48: 37071575.97
B49: 34 | F49: Dist - Ut - Mains - SD
B50: 35 | F50: Dist - Ut - Mains - LD
B51: 36 | F51: Dist - Ut - Mains - Feeders
A52: ="%,FACCOUNT,TQGCACCTS,N"&(D44) -> %,FACCOUNT,TQGCACCTS,N376 | B52: 37 | F52: Utah | H52: 1228765737 | I52: 1230684653 | J52: 1289559180 | K52: 1292700285 | L52: 1319689573 | M52: 1318449053 | N52: 1329882536 | O52: 1332949767 | P52: 1338520356 | Q52: 1341191217 | R52: 1343267144 | S52: 1348136797 | T52: 1362940252 | U52: 1315073630
B53: 38 | F53: Total | H53: 1264067338 | I53: 1267114120 | J53: 1326252173 | K53: 1329398273 | L53: 1356777667 | M53: 1355817462 | N53: 1366981916 | O53: 1370522337 | P53: 1375857009 | Q53: 1378394634 | R53: 1380653464 | S53: 1385561379 | T53: 1400756727 | U53: 1352145206
B54: 39
B55: 40 | D55: 377 | E55: Compressor Station Equipment
B56: 41 | F56: Wyoming | H56: 0 | I56: 0 | J56: 0 | K56: 0 | L56: 0 | M56: 0 | N56: 0 | O56: 0 | P56: 0 | Q56: 0 | R56: 0 | S56: 0 | T56: 0 | U56: 0
A57: ="%,FACCOUNT,TQGCACCTS,N"&(D55) -> %,FACCOUNT,TQGCACCTS,N377 | B57: 42 | F57: Utah | H57: 18194156.4 | I57: 18210417.78 | J57: 18210417.78 | K57: 18210417.78 | L57: 18242697.75 | M57: 18242697.75 | N57: 18242697.75 | O57: 18247797 | P57: 18298163.77 | Q57: 18299037.55 | R57: 18299037.55 | S57: 18299037.55 | T57: 18299037.55 | U57: 18254084.75
B58: 43 | F58: Total | H58: 18194156.4 | I58: 18210417.78 | J58: 18210417.78 | K58: 18210417.78 | L58: 18242697.75 | M58: 18242697.75 | N58: 18242697.75 | O58: 18247797 | P58: 18298163.77 | Q58: 18299037.55 | R58: 18299037.55 | S58: 18299037.55 | T58: 18299037.55 | U58: 18254084.75
B59: 44
B60: 45 | D60: 378 | E60: Measuring & Regulation Station Equip
B61: 46 | F61: Wyoming | H61: 6535230.78 | I61: 6533623.99 | J61: 6544959.17 | K61: 6545412.21 | L61: 6862112.53 | M61: 6604886.02 | N61: 6886122.02 | O61: 6954759.61 | P61: 6947275.65 | Q61: 6951320.9 | R61: 6952141.22 | S61: 6952282.32 | T61: 6952282.32 | U61: 6789887.682
A62: ="%,FACCOUNT,TQGCACCTS,N"&(D60) -> %,FACCOUNT,TQGCACCTS,N378 | B62: 47 | F62: Utah | H62: 79715742.31 | I62: 79702550.06 | J62: 80831205.55 | K62: 81660760.39 | L62: 82997758.23 | M62: 83854448.04 | N62: 83839175.59 | O62: 85544246.77 | P62: 85714816.08 | Q62: 85856424.57 | R62: 85904406.33 | S62: 86483750.34 | T62: 87291009.36 | U62: 83824409.82
B63: 48 | F63: Total | H63: 86250973.09 | I63: 86236174.05 | J63: 87376164.72 | K63: 88206172.6 | L63: 89859870.76 | M63: 90459334.06 | N63: 90725297.61 | O63: 92499006.38 | P63: 92662091.73 | Q63: 92807745.47 | R63: 92856547.55 | S63: 93436032.66 | T63: 94243291.68 | U63: 90614297.5
B64: 49
B65: 50 | D65: 380 | E65: Services
B66: 51 | F66: Wyoming | H66: 17655967.61 | I66: 17614265.9 | J66: 17777876.75 | K66: 17867640.82 | L66: 18000938.79 | M66: 17893131.04 | N66: 17927120.41 | O66: 18239187.18 | P66: 18233034.97 | Q66: 18123587.38 | R66: 18134111.32 | S66: 18240645.22 | T66: 18369697.89 | U66: 18005364.38
A67: ="%,FACCOUNT,TQGCACCTS,N"&(D65) -> %,FACCOUNT,TQGCACCTS,N380 | B67: 52 | F67: Utah | H67: 349757963.9 | I67: 350408526.5 | J67: 351651272.3 | K67: 352706587.5 | L67: 356543938.6 | M67: 357403044.3 | N67: 359786913 | O67: 361237518.6 | P67: 363394613.4 | Q67: 363759151.9 | R67: 364751208.1 | S67: 367014146.4 | T67: 368134610.1 | U67: 358966934
B68: 53 | F68: Total | H68: 367413931.5 | I68: 368022792.4 | J68: 369429149 | K68: 370574228.4 | L68: 374544877.4 | M68: 375296175.4 | N68: 377714033.4 | O68: 379476705.8 | P68: 381627648.3 | Q68: 381882739.3 | R68: 382885319.4 | S68: 385254791.6 | T68: 386504308 | U68: 376972298.3
B69: 54
B70: 55 | D70: 381...2 | E70: Meters & Meter Installation
B71: 56 | F71: Wyoming | H71: 8933376.154 | I71: 8957954.874 | J71: 8987879.374 | K71: 9031284.734 | L71: 9055333.204 | M71: 9087898.484 | N71: 9118247.364 | O71: 9160312.294 | P71: 9174815.504 | Q71: 9195404.134 | R71: 9161503.264 | S71: 9177139.984 | T71: 9228368.074 | U71: 9099053.777
A72: %,FACCOUNT,TQGCACCTS,N381,N382 | B72: 57 | F72: Utah | H72: 282375480.3 | I72: 283128076 | J72: 283805800.2 | K72: 285783288.9 | L72: 287541434.2 | M72: 287454142.4 | N72: 288333804.2 | O72: 288932644.8 | P72: 288539446.6 | Q72: 294967528.6 | R72: 297986914.1 | S72: 297964825.7 | T72: 297975146.4 | U72: 289551101.6
B73: 58 | F73: Total | H73: 291308856.4 | I73: 292086030.8 | J73: 292793679.6 | K73: 294814573.6 | L73: 296596767.4 | M73: 296542040.9 | N73: 297452051.6 | O73: 298092957.1 | P73: 297714262.1 | Q73: 304162932.7 | R73: 307148417.4 | S73: 307141965.7 | T73: 307203514.5 | U73: 298650155.4
B74: 59
B75: 60 | D75: 383...4 | E75: House Regulators & Reg Installations
B76: 61 | F76: Wyoming | H76: 871041.16 | I76: 866778.21 | J76: 862546.84 | K76: 859925.92 | L76: 854214 | M76: 837526.95 | N76: 799060.06 | O76: 796080.23 | P76: 793371.29 | Q76: 788928.63 | R76: 787953.41 | S76: 787032.37 | T76: 786219.69 | U76: 821837.3612
A77: %,FACCOUNT,TQGCACCTS,N383,N384 | B77: 62 | F77: Utah | H77: 13828884.39 | I77: 13828719.8 | J77: 13828599.18 | K77: 13828599.18 | L77: 13923487.56 | M77: 13923487.56 | N77: 13916240.18 | O77: 13914507.32 | P77: 13910349.61 | Q77: 13905342.99 | R77: 13903070.55 | S77: 13899458.18 | T77: 13897326.07 | U77: 13887080.61
B78: 63 | F78: Total | H78: 14699925.55 | I78: 14695498.01 | J78: 14691146.02 | K78: 14688525.1 | L78: 14777701.56 | M78: 14761014.51 | N78: 14715300.24 | O78: 14710587.55 | P78: 14703720.9 | Q78: 14694271.62 | R78: 14691023.96 | S78: 14686490.55 | T78: 14683545.76 | U78: 14708917.97
B79: 64
B80: 65 | D80: 387 | E80: Other Equipment
B81: =+B80+1 -> 66 | F81: Wyoming | H81: 76118.65 | I81: 76118.65 | J81: 76118.65 | K81: 76118.65 | L81: 68977.44 | M81: 68977.44 | N81: 68977.44 | O81: 68977.44 | P81: 68977.44 | Q81: 68977.44 | R81: 68977.44 | S81: 68977.44 | T81: 68977.44 | U81: 71060.29292
A82: ="%,FACCOUNT,TQGCACCTS,N"&(D80) -> %,FACCOUNT,TQGCACCTS,N387 | B82: 67 | F82: Utah | H82: 1446624.69 | I82: 1447877.92 | J82: 1449301.84 | K82: 1450671.77 | L82: 1617141.37 | M82: 1617141.37 | N82: 1617141.37 | O82: 1949171.9 | P82: 1954376.95 | Q82: 1961471.1 | R82: 1964671.77 | S82: 1965212.88 | T82: 1965336.42 | U82: 1725013.4
B83: 68 | F83: Total | H83: 1522743.34 | I83: 1523996.57 | J83: 1525420.49 | K83: 1526790.42 | L83: 1686118.81 | M83: 1686118.81 | N83: 1686118.81 | O83: 2018149.34 | P83: 2023354.39 | Q83: 2030448.54 | R83: 2033649.21 | S83: 2034190.32 | T83: 2034313.86 | U83: 1796073.692
B84: =+B83+1 -> 69
B85: =+B84+1 -> 70 | D85: 388 | E85: Other Equipment
B86: =+B85+1 -> 71 | F86: Wyoming | H86: 7220 | I86: 7220 | J86: 7220 | K86: 7220 | L86: 7220 | M86: 7220 | N86: 7220 | O86: 7220 | P86: 7220 | Q86: 7220 | R86: 7220 | S86: 7220 | T86: 7220 | U86: 7220
A87: ="%,FACCOUNT,TQGCACCTS,N"&(D85) -> %,FACCOUNT,TQGCACCTS,N388 | B87: =+B86+1 -> 72 | F87: Utah | H87: 290689.26 | I87: 290689.26 | J87: 290689.26 | K87: 290689.26 | L87: 290689.26 | M87: 290689.26 | N87: 290689.26 | O87: 298879.26 | P87: 306421.26 | Q87: 306421.26 | R87: 306421.26 | S87: 306421.26 | T87: 306421.26 | U87: 297271.26
B88: =+B87+1 -> 73 | F88: Total | H88: 297909.26 | I88: 297909.26 | J88: 297909.26 | K88: 297909.26 | L88: 297909.26 | M88: 297909.26 | N88: 297909.26 | O88: 306099.26 | P88: 313641.26 | Q88: 313641.26 | R88: 313641.26 | S88: 313641.26 | T88: 313641.26 | U88: 304491.26
B89: =+B83+1 -> 69
B90: 70 | E90: Total Distribution Plant | H90: 2076944859 | I90: 2081404059 | J90: 2144035089 | K90: 2151257020 | L90: 2186905374 | M90: 2187224517 | N90: 2201930790 | O90: 2209996953 | P90: 2217844845 | Q90: 2227230403 | R90: 2233501053 | S90: 2241307222 | T90: 2259024161 | U90: 2187551820
B91: 71
B92: 72 | C92: General Plant
B93: 73 | D93: 389 | E93: Land & Land Rights
B94: 74 | F94: Distribution - Wyoming | H94: 11584.02 | I94: 11584.02 | J94: 11584.02 | K94: 11584.02 | L94: 11584.02 | M94: 11584.02 | N94: 11584.02 | O94: 11584.02 | P94: 11584.02 | Q94: 11584.02 | R94: 11584.02 | S94: 11584.02 | T94: 11584.02 | U94: 11584.02
A95: ="%,FACCOUNT,TQGCACCTS,N"&(D93) -> %,FACCOUNT,TQGCACCTS,N389 | B95: 75 | F95: Distribution - Utah | H95: 3779827.51 | I95: 3775953.85 | J95: 3775953.85 | K95: 3775953.85 | L95: 3775953.85 | M95: 3775953.85 | N95: 3775953.85 | O95: 3775953.85 | P95: 3775953.85 | Q95: 3775953.85 | R95: 3775953.85 | S95: 3775953.85 | T95: 3899703.98 | U95: 3781271.508
B96: 76 | F96: Total | H96: 3791411.53 | I96: 3787537.87 | J96: 3787537.87 | K96: 3787537.87 | L96: 3787537.87 | M96: 3787537.87 | N96: 3787537.87 | O96: 3787537.87 | P96: 3787537.87 | Q96: 3787537.87 | R96: 3787537.87 | S96: 3787537.87 | T96: 3911288 | U96: 3792855.528
B97: 77
B98: 78 | D98: 390 | E98: Structures & Improvements
B99: 79 | F99: Distribution - Wyoming | H99: 148144.19 | I99: 148251.25 | J99: 148251.25 | K99: 149010.2 | L99: 279456.36 | M99: 279456.36 | N99: 279456.36 | O99: 279456.36 | P99: 360915 | Q99: 360915 | R99: 369525 | S99: 369795.75 | T99: 369795.75 | U99: 273621.5717
A100: ="%,FACCOUNT,TQGCACCTS,N"&(D98) -> %,FACCOUNT,TQGCACCTS,N390 | B100: 80 | F100: Distribution - Utah | H100: 21578839.63 | I100: 21678230.16 | J100: 22285698.17 | K100: 22397651.94 | L100: 23748916.36 | M100: 23743966.22 | N100: 23940265.44 | O100: 23916632.01 | P100: 23918018.04 | Q100: 24022198.64 | R100: 24081715.31 | S100: 24232752.71 | T100: 28796982.74 | U100: 23596163.02
B101: 81 | F101: General | H101: 46578825.16 | I101: 46578825.16 | J101: 46590356.44 | K101: 46590356.44 | L101: 47859277.03 | M101: 47864227.17 | N101: 48313200.63 | O101: 48311248.45 | P101: 48311228.48 | Q101: 48700099.17 | R101: 48702352.59 | S101: 48702162.59 | T101: 48702162.59 | U101: 47846985.67
B102: 82 | F102: Total | H102: 68305808.98 | I102: 68405306.57 | J102: 69024305.86 | K102: 69137018.58 | L102: 71887649.75 | M102: 71887649.75 | N102: 72532922.43 | O102: 72507336.82 | P102: 72590161.52 | Q102: 73083212.81 | R102: 73153592.9 | S102: 73304711.05 | T102: 77868941.08 | U102: 71716770.26
B103: 83
B104: 84 | D104: 391 | E104: Office Furniture & Equipment
B105: 85 | F105: Distribution - Wyoming | H105: 204157.96 | I105: 196168.43 | J105: 196168.43 | K105: 196168.43 | L105: 195516.5 | M105: 195516.5 | N105: 195516.5 | O105: 188352.8 | P105: 188352.8 | Q105: 188352.8 | R105: 186766.51 | S105: 186766.51 | T105: 186766.51 | U105: 192425.7037
A106: ="%,FACCOUNT,TQGCACCTS,N"&(D104) -> %,FACCOUNT,TQGCACCTS,N391 | B106: 86 | F106: Distribution - Utah | H106: 13158672.51 | I106: 12146524.12 | J106: 12152829.28 | K106: 12196728.05 | L106: 11836208.57 | M106: 11836208.57 | N106: 11986060.16 | O106: 11765504.52 | P106: 11800762.63 | Q106: 12100067.03 | R106: 11976108.28 | S106: 12037405.82 | T106: 14334114.94 | U106: 12131733.4
B107: 87 | F107: General | H107: 48194799.88 | I107: 48695502.56 | J107: 48695503.92 | K107: 49989299.8 | L107: 55657003.13 | M107: 54905270.46 | N107: 54905270.46 | O107: 54960501.43 | P107: 56409014.17 | Q107: 56673643.25 | R107: 57032283.43 | S107: 57168226.47 | T107: 57168226.47 | U107: 53981086.02
B108: 88 | F108: Total | H108: 61557630.35 | I108: 61038195.11 | J108: 61044501.63 | K108: 62382196.28 | L108: 67688728.2 | M108: 66936995.53 | N108: 67086847.12 | O108: 66914358.75 | P108: 68398129.6 | Q108: 68962063.08 | R108: 69195158.22 | S108: 69392398.8 | T108: 71689107.92 | U108: 66305245.12
B109: 89
B110: 90 | D110: 392 | E110: Transportation Equipment
B111: 91 | F111: Distribution - Wyoming | H111: 2387231.44 | I111: 2388359.02 | J111: 2377207.71 | K111: 2377518.08 | L111: 2377237.63 | M111: 2377237.63 | N111: 2377237.63 | O111: 2305126.56 | P111: 2339046.14 | Q111: 2416458.87 | R111: 2763329.72 | S111: 2777300.6 | T111: 2803896.01 | U111: 2455968.61
A112: ="%,FACCOUNT,TQGCACCTS,N"&(D110) -> %,FACCOUNT,TQGCACCTS,N392 | B112: 92 | F112: Distribution - Utah | H112: 46406848.43 | I112: 46086528.88 | J112: 46720109.49 | K112: 46741688.22 | L112: 46367330.94 | M112: 46367330.94 | N112: 46367612.39 | O112: 46847689.48 | P112: 47311069.72 | Q112: 47576161.39 | R112: 49652584.26 | S112: 49959142.57 | T112: 50245487.24 | U112: 47360284.68
B113: 93 | F113: General | H113: 0 | I113: 0 | J113: 0 | K113: 0 | L113: 0 | M113: 0 | N113: 0 | O113: 0 | P113: 0 | Q113: 0 | R113: 0 | S113: 0 | T113: 0 | U113: 0
B114: 94 | F114: Total | H114: 48794079.87 | I114: 48474887.9 | J114: 49097317.2 | K114: 49119206.3 | L114: 48744568.57 | M114: 48744568.57 | N114: 48744850.02 | O114: 49152816.04 | P114: 49650115.86 | Q114: 49992620.26 | R114: 52415913.98 | S114: 52736443.17 | T114: 53049383.25 | U114: 49816253.29
B115: 95
B116: 96 | D116: 393 | E116: Stores Equipment
B117: 97 | F117: Distribution - Wyoming | H117: 12371.89 | I117: 12371.89 | J117: 12371.89 | K117: 12371.89 | L117: 12371.89 | M117: 12371.89 | N117: 12371.89 | O117: 12371.89 | P117: 12371.89 | Q117: 12371.89 | R117: 12371.89 | S117: 12371.89 | T117: 12371.89 | U117: 12371.89
A118: ="%,FACCOUNT,TQGCACCTS,N"&(D116) -> %,FACCOUNT,TQGCACCTS,N393 | B118: 98 | F118: Distribution - Utah | H118: 45026.02 | I118: 45026.02 | J118: 45026.02 | K118: 45026.02 | L118: 45026.02 | M118: 45026.02 | N118: 45026.02 | O118: 45026.02 | P118: 45026.02 | Q118: 45026.02 | R118: 45026.02 | S118: 45026.02 | T118: 45026.02 | U118: 45026.02
B119: 99 | F119: Total | H119: 57397.91 | I119: 57397.91 | J119: 57397.91 | K119: 57397.91 | L119: 57397.91 | M119: 57397.91 | N119: 57397.91 | O119: 57397.91 | P119: 57397.91 | Q119: 57397.91 | R119: 57397.91 | S119: 57397.91 | T119: 57397.91 | U119: 57397.91
B120: 100
B121: 101 | D121: 394 | E121: Tools, Shop & Garage Equipment
B122: 102 | F122: Distribution - Wyoming | H122: 2182690.56 | I122: 2174752.89 | J122: 2174752.89 | K122: 2179870.95 | L122: 2211929.28 | M122: 2211929.28 | N122: 2216213.03 | O122: 2216728.53 | P122: 2218987.95 | Q122: 2233076.59 | R122: 2229363.63 | S122: 2229402.72 | T122: 2229403.01 | U122: 2208587.877
A123: ="%,FACCOUNT,TQGCACCTS,N"&(D121) -> %,FACCOUNT,TQGCACCTS,N394 | B123: 103 | F123: Distribution - Utah | H123: 26964474.35 | I123: 27895753.74 | J123: 28189061.02 | K123: 28228616 | L123: 27660066.09 | M123: 27660066.09 | N123: 27959242.88 | O123: 27970082.26 | P123: 28144372.98 | Q123: 28348197.5 | R123: 28181062 | S123: 28338649.82 | T123: 28466336.14 | U123: 28024214.64
B124: 104 | F124: General | H124: 0 | I124: 0 | J124: 0 | K124: 0 | L124: 0 | M124: 0 | N124: 0 | O124: 0 | P124: 0 | Q124: 0 | R124: 0 | S124: 0 | T124: 0 | U124: 0
B125: 105 | F125: Total | H125: 29147164.91 | I125: 30070506.63 | J125: 30363813.91 | K125: 30408486.95 | L125: 29871995.37 | M125: 29871995.37 | N125: 30175455.91 | O125: 30186810.79 | P125: 30363360.93 | Q125: 30581274.09 | R125: 30410425.63 | S125: 30568052.54 | T125: 30695739.15 | U125: 30232802.51
B126: 106
B127: 107 | D127: 395 | E127: Laboratory Equipment
B128: 108 | F128: Distribution - Wyoming | H128: 0 | I128: 0 | J128: 0 | K128: 0 | L128: 0 | M128: 0 | N128: 0 | O128: 0 | P128: 0 | Q128: 0 | R128: 0 | S128: 0 | T128: 0 | U128: 0
A129: ="%,FACCOUNT,TQGCACCTS,N"&(D127) -> %,FACCOUNT,TQGCACCTS,N395 | B129: 109 | F129: Distribution - Utah | H129: 76245.36 | I129: 76245.36 | J129: 76245.36 | K129: 76245.36 | L129: 76245.36 | M129: 76245.36 | N129: 76245.36 | O129: 61117.83 | P129: 61117.83 | Q129: 61117.83 | R129: 61117.83 | S129: 61117.83 | T129: 61117.83 | U129: 69311.90875
B130: 110 | F130: General | H130: 0 | I130: 0 | J130: 0 | K130: 0 | L130: 0 | M130: 0 | N130: 0 | O130: 0 | P130: 0 | Q130: 0 | R130: 0 | S130: 0 | T130: 0 | U130: 0
B131: 111 | F131: Total | H131: 76245.36 | I131: 76245.36 | J131: 76245.36 | K131: 76245.36 | L131: 76245.36 | M131: 76245.36 | N131: 76245.36 | O131: 61117.83 | P131: 61117.83 | Q131: 61117.83 | R131: 61117.83 | S131: 61117.83 | T131: 61117.83 | U131: 69311.90875
B132: 112
B133: 113 | D133: 396 | E133: Power Operated Equipment
B134: 114 | F134: Distribution - Wyoming | H134: 695559.31 | I134: 695559.31 | J134: 695559.31 | K134: 695559.31 | L134: 695559.31 | M134: 699615.57 | N134: 918727.88 | O134: 918753.69 | P134: 918754.72 | Q134: 918754.72 | R134: 974544.97 | S134: 974544.97 | T134: 974544.97 | U134: 828415.4917
A135: ="%,FACCOUNT,TQGCACCTS,N"&(D133) -> %,FACCOUNT,TQGCACCTS,N396 | B135: 115 | F135: Distribution - Utah | H135: 11280638.85 | I135: 11289200.85 | J135: 11308621.02 | K135: 11332894.13 | L135: 11272604.79 | M135: 11268548.53 | N135: 11305079.57 | O135: 11305079.57 | P135: 11305079.57 | Q135: 11263456.65 | R135: 11279918.63 | S135: 11278315.49 | T135: 11278315.49 | U135: 11290689.66
B136: 116 | F136: General | H136: 0 | I136: 0 | J136: 0 | K136: 0 | L136: 0 | M136: 0 | N136: 0 | O136: 0 | P136: 0 | Q136: 0 | R136: 0 | S136: 0 | T136: 0 | U136: 0
B137: 117 | F137: Total | H137: 11976198.16 | I137: 11984760.16 | J137: 12004180.33 | K137: 12028453.44 | L137: 11968164.1 | M137: 11968164.1 | N137: 12223807.45 | O137: 12223833.26 | P137: 12223834.29 | Q137: 12182211.37 | R137: 12254463.6 | S137: 12252860.46 | T137: 12252860.46 | U137: 12119105.16
B138: 118
B139: 119 | D139: 397 | E139: Communication Equipment
B140: 120 | F140: Distribution - Wyoming | H140: 49809.31 | I140: 49809.31 | J140: 49809.31 | K140: 49809.31 | L140: 49809.31 | M140: 49809.31 | N140: 49809.31 | O140: 49809.31 | P140: 49809.31 | Q140: 49809.31 | R140: 49809.31 | S140: 49809.31 | T140: 49809.31 | U140: 49809.31
A141: ="%,FACCOUNT,TQGCACCTS,N"&(D139) -> %,FACCOUNT,TQGCACCTS,N397 | B141: 121 | F141: Distribution - Utah | H141: 5257509.54 | I141: 5257509.54 | J141: 5257509.54 | K141: 5259779.81 | L141: 5332958.55 | M141: 5332958.55 | N141: 5467832.07 | O141: 5457956.07 | P141: 5458118.35 | Q141: 5463668.64 | R141: 5463668.64 | S141: 5463668.64 | T141: 16950242.46 | U141: 5859958.7
B142: 122 | F142: Total | H142: 5307318.85 | I142: 5307318.85 | J142: 5307318.85 | K142: 5309589.12 | L142: 5382767.86 | M142: 5382767.86 | N142: 5517641.38 | O142: 5507765.38 | P142: 5507927.66 | Q142: 5513477.95 | R142: 5513477.95 | S142: 5513477.95 | T142: 17000051.77 | U142: 5909768.01
B143: 123
B144: 124 | D144: 398 | E144: Miscellaneous Equipment
B145: =+B144+1 -> 125 | F145: Distribution - Wyoming | H145: 3863.92 | I145: 3863.92 | J145: 3863.92 | K145: 3863.92 | L145: 3863.92 | M145: 3863.92 | N145: 3863.92 | O145: 3863.92 | P145: 3863.92 | Q145: 3863.92 | R145: 3863.92 | S145: 3863.92 | T145: 3863.92 | U145: 3863.92
A146: ="%,FACCOUNT,TQGCACCTS,N"&(D144) -> %,FACCOUNT,TQGCACCTS,N398 | B146: 126 | F146: Distribution - Utah | H146: 267617.63 | I146: 267617.63 | J146: 267617.63 | K146: 267617.63 | L146: 267617.63 | M146: 267617.63 | N146: 267617.63 | O146: 267617.63 | P146: 267617.63 | Q146: 267617.63 | R146: 272352.23 | S146: 272352.23 | T146: 272654.16 | U146: 268616.5854
B147: 127 | F147: General | H147: 0 | I147: 0 | J147: 0 | K147: 0 | L147: 0 | M147: 0 | N147: 0 | O147: 0 | P147: 0 | Q147: 0 | R147: 0 | S147: 0 | T147: 0 | U147: 0
B148: 128 | F148: Total | H148: 271481.55 | I148: 271481.55 | J148: 271481.55 | K148: 271481.55 | L148: 271481.55 | M148: 271481.55 | N148: 271481.55 | O148: 271481.55 | P148: 271481.55 | Q148: 271481.55 | R148: 276216.15 | S148: 276216.15 | T148: 276518.08 | U148: 272480.5054
B149: 129
B150: 130 | D150: 399 | E150: Communication Equipment
B151: =+B150+1 -> 131 | F151: Distribution - Wyoming | H151: 0 | I151: 0 | J151: 0 | K151: 0 | L151: 0 | M151: 0 | N151: 0 | O151: 0 | P151: 0 | Q151: 0 | R151: 0 | S151: 0 | T151: 0 | U151: 0
A152: ="%,FACCOUNT,TQGCACCTS,N"&(D150) -> %,FACCOUNT,TQGCACCTS,N399 | B152: =+B151+1 -> 132 | F152: Distribution - Utah | H152: 52300 | I152: 52300 | J152: 52300 | K152: 52300 | L152: 52300 | M152: 52300 | N152: 52300 | O152: 52300 | P152: 52300 | Q152: 52300 | R152: 52300 | S152: 52300 | T152: 52300 | U152: 52300
B153: =+B152+1 -> 133 | F153: Total | H153: 52300 | I153: 52300 | J153: 52300 | K153: 52300 | L153: 52300 | M153: 52300 | N153: 52300 | O153: 52300 | P153: 52300 | Q153: 52300 | R153: 52300 | S153: 52300 | T153: 52300 | U153: 52300
B154: =+B148+1 -> 129
B155: 130 | E155: Total General Plant | H155: 229337037.5 | I155: 229525937.9 | J155: 231086400.5 | K155: 232629913.4 | L155: 239788836.5 | M155: 239037103.9 | N155: 240526487 | O155: 240722756.2 | P155: 242963365 | Q155: 244544694.7 | R155: 247177602 | S155: 248002513.7 | T155: 266914705.5 | U155: 240344290.2
B156: 131
B157: 132 | C157: 101 | D157: Gas Plant in Service
B158: 133 | E158: Production | H158: 79968136 | I158: 79968136 | J158: 79968136 | K158: 79968136 | L158: 79968136 | M158: 79968136 | N158: 79968136 | O158: 79968136 | P158: 79968136 | Q158: 79968136 | R158: 79968136 | S158: 79968136 | T158: 79968136 | U158: 79968136
B159: 134 | E159: Distribution - Wyoming | H159: 70735533.42 | I159: 71840406.09 | J159: 72304571.64 | K159: 72440568.01 | L159: 73330920.59 | M159: 73262079.99 | N159: 73300157.14 | O159: 74193137.46 | P159: 73955378.58 | Q159: 73732886.18 | R159: 73892257.19 | S159: 74051910.06 | T159: 74623270.77 | U159: 73248639.59
B160: 135 | E160: Distribution - Utah | H160: 2006278951 | I160: 2009633279 | J160: 2071800143 | K160: 2078886078 | L160: 2113644079 | M160: 2114032063 | N160: 2128700259 | O160: 2135873442 | P160: 2143959092 | Q160: 2153567143 | R160: 2159678422 | S160: 2167324938 | T160: 2184470516 | U160: 2114372806
B161: 136 | E161: General | H161: 229337037.5 | I161: 229525937.9 | J161: 231086400.5 | K161: 232629913.4 | L161: 239788836.5 | M161: 239037103.9 | N161: 240526487 | O161: 240722756.2 | P161: 242963365 | Q161: 244544694.7 | R161: 247177602 | S161: 248002513.7 | T161: 266914705.5 | U161: 240344290.2
B162: 137 | E162: Total | H162: 2386319658 | I162: 2390967759 | J162: 2455159252 | K162: 2463924695 | L162: 2506731972 | M162: 2506299383 | N162: 2522495039 | O162: 2530757472 | P162: 2540845972 | Q162: 2551812860 | R162: 2560716417 | S162: 2569347498 | T162: 2605976628 | U162: 2507933872
B163: 138
B164: 139 | C164: 105 | D164: Gas Plant Held for Future Use
B165: 140 | E165: Distribution - Utah | H165: 5036.83 | I165: 5036.83 | J165: 5036.83 | K165: 5036.83 | L165: 5036.83 | M165: 5036.83 | N165: 5036.83 | O165: 5036.83 | P165: 5036.83 | Q165: 5036.83 | R165: 5036.83 | S165: 5036.83 | T165: 5036.83 | U165: 5036.83
A166: %,FACCOUNT,TQGCACCTS,N105 | B166: 141 | E166: Total | H166: 5036.83 | I166: 5036.83 | J166: 5036.83 | K166: 5036.83 | L166: 5036.83 | M166: 5036.83 | N166: 5036.83 | O166: 5036.83 | P166: 5036.83 | Q166: 5036.83 | R166: 5036.83 | S166: 5036.83 | T166: 5036.83 | U166: 5036.83
B167: 142
B168: 143 | C168: 106 | D168: Completed Construction Not Classified - Gas
B169: 144 | E169: Production | H169: 0 | I169: 0 | J169: 0 | K169: 0 | L169: 0 | M169: 0 | N169: 0 | O169: 0 | P169: 0 | Q169: 0 | R169: 0 | S169: 0 | T169: 0 | U169: 0
B170: 145 | E170: Distribution - Wyoming | H170: 558937.35 | I170: 780679.25 | J170: 445237.28 | K170: 660594.22 | L170: -413881.06 | M170: -493663.8 | N170: -271884.73 | O170: -336930.26 | P170: -182958.47 | Q170: 531322.01 | R170: 706027.32 | S170: 1049625.18 | T170: 909358.04 | U170: 267359.5529
B171: 146 | E171: Distribution - Utah | H171: 5431838.23 | I171: 15931758.27 | J171: 10369960.37 | K171: 16570269.36 | L171: 10306063.33 | M171: 12369201.34 | N171: 12309366.05 | O171: 16650132.92 | P171: 14160643.05 | Q171: 13332013.89 | R171: 16068195.1 | S171: 10665637.69 | T171: 13856961.85 | U171: 13198136.78
B172: 147 | E172: General | H172: 1475937.7 | I172: 549880.43 | J172: 251457.05 | K172: 316735.52 | L172: 1623165.72 | M172: 2357122.66 | N172: 1254689.37 | O172: 1821920.46 | P172: 642262.87 | Q172: 1089170.46 | R172: 1696927.53 | S172: 960586.87 | T172: 1195212.94 | U172: 1158291.188
B173: 148 | E173: Total | H173: 7466713.28 | I173: 17262317.95 | J173: 11066654.7 | K173: 17547599.1 | L173: 11515347.99 | M173: 14232660.2 | N173: 13292170.69 | O173: 18135123.12 | P173: 14619947.45 | Q173: 14952506.36 | R173: 18471149.95 | S173: 12675849.74 | T173: 15961532.83 | U173: 14623787.53
B174: 149
B175: 150 | C175: 108 | D175: Accum Prov for Depreciation of Gas Plant in Service
B176: 151 | E176: Production | H176: -67944094.28 | I176: -67973999.84 | J176: -68001196.19 | K176: -68029065.25 | L176: -68103276.2 | M176: -68178210.2 | N176: -68255444.1 | O176: -68322385.69 | P176: -68397973.48 | Q176: -68472533.73 | R176: -68538871.03 | S176: -68609618.29 | T176: -68698903.88 | U176: -68267006.09
B177: 152 | E177: Distribution - Wyoming | H177: -26563867.7 | I177: -26645968.6 | J177: -26755997.52 | K177: -26900114.96 | L177: -26926379.86 | M177: -27052839.04 | N177: -27146749.39 | O177: -26825368.37 | P177: -26906413.7 | Q177: -26753240.32 | R177: -27140496.74 | S177: -27283530.34 | T177: -27428872.74 | U177: -26944455.75
B178: 153 | E178: Distribution - Utah | H178: -570658396.8 | I178: -572457320.2 | J178: -573696639.3 | K178: -575490426.1 | L178: -577163302.7 | M178: -578731448.3 | N178: -581021514.1 | O178: -584059561.7 | P178: -584941289.1 | Q178: -587173838.1 | R178: -588606752.8 | S178: -590331682.5 | T178: -592398818.3 | U178: -581266865.2
B179: 154 | E179: General | H179: -133325619.4 | I179: -131939541.9 | J179: -133169002.4 | K179: -134053562.8 | L179: -132818969.8 | M179: -133741397.3 | N179: -134663400.7 | O179: -133872321.1 | P179: -134815753.4 | Q179: -135505138.1 | R179: -136101069.8 | S179: -137091983.8 | T179: -144776600.3 | U179: -134735270.9
B180: 155 | E180: Total | H180: -798491978.2 | I180: -799016830.5 | J180: -801622835.4 | K180: -804473169.1 | L180: -805011928.5 | M180: -807703894.8 | N180: -811087108.3 | O180: -813079636.9 | P180: -815061429.6 | Q180: -817904750.2 | R180: -820387190.3 | S180: -823316814.9 | T180: -833303195.2 | U180: -811213597.9
B181: 156
B182: 157 | C182: 111 | D182: Accum Prov for Amortization of Gas Plant in Service
B183: 158 | E183: Production | H183: -6107602.76 | I183: -6108371.08 | J183: -6109069.8 | K183: -6109785.8 | L183: -6111692.41 | M183: -6113617.59 | N183: -6115658.56 | O183: -6117403.35 | P183: -6119373.49 | Q183: -6121316.86 | R183: -6123045.87 | S183: -6124889.85 | T183: -6127217.02 | U183: -6115969.546
B184: 159 | E184: Distribution - Wyoming | H184: -10883.08 | I184: -10883.08 | J184: -10883.08 | K184: -10883.08 | L184: -10883.08 | M184: -10883.08 | N184: -10883.08 | O184: -10883.08 | P184: -10883.08 | Q184: -10883.08 | R184: -10883.08 | S184: -10883.08 | T184: -10883.08 | U184: -10883.08
B185: 160 | E185: Distribution - Utah | H185: -58742.88 | I185: -58742.88 | J185: -58742.88 | K185: -58742.89 | L185: -58742.89 | M185: -58742.89 | N185: -58742.88 | O185: -58742.88 | P185: -58742.88 | Q185: -58742.88 | R185: -58742.89 | S185: -58742.88 | T185: -58742.88 | U185: -58742.88333
B186: 161 | E186: General | H186: 0 | I186: 0 | J186: 0 | K186: 0 | L186: 0 | M186: 0 | N186: 0 | O186: 0 | P186: 0 | Q186: 0 | R186: 0 | S186: 0 | T186: 0 | U186: 0
B187: 162 | E187: Total | H187: -6177228.72 | I187: -6177997.04 | J187: -6178695.76 | K187: -6179411.77 | L187: -6181318.38 | M187: -6183243.56 | N187: -6185284.52 | O187: -6187029.31 | P187: -6188999.45 | Q187: -6190942.82 | R187: -6192671.84 | S187: -6194515.81 | T187: -6196842.98 | U187: -6185595.509
B188: 163
B189: 164 | C189: 254 | D189: Other Regulatory Liabilities - ARC
B190: 165 | E190: Production | H190: 0 | I190: 0 | J190: 0 | K190: 0 | L190: 0 | M190: 0 | N190: 0 | O190: 0 | P190: 0 | Q190: 0 | R190: 0 | S190: 0 | T190: 0 | U190: 0
B191: 166 | E191: Distribution - Wyoming | H191: -2140677.58 | I191: -2187767.41 | J191: -2144476.46 | K191: -2168692.45 | L191: -2184704.3 | M191: -2216968.3 | N191: -2239734.26 | O191: -2274176.3 | P191: -2293074.55 | Q191: -2306546.68 | R191: -2344574.69 | S191: -2351840.69 | T191: -2359189.52 | U191: -2246874.137
B192: 167 | E192: Distribution - Utah | H192: -64692840.42 | I192: -65294262.59 | J192: -65376822.54 | K192: -66244318.55 | L192: -66995292.7 | M192: -68029175.7 | N192: -68953344.66 | O192: -69511691.62 | P192: -70479840.37 | Q192: -71337983.24 | R192: -72252138.23 | S192: -72547544.23 | T192: -73304361.4 | U192: -68835084.61
B193: 168 | E193: General | H193: 0 | I193: 0 | J193: 0 | K193: 0 | L193: 0 | M193: 0 | N193: 0 | O193: 0 | P193: 0 | Q193: 0 | R193: 0 | S193: 0 | T193: 0 | U193: 0
B194: 169 | E194: Total | H194: -66833518 | I194: -67482030 | J194: -67521299 | K194: -68413011 | L194: -69179997 | M194: -70246144 | N194: -71193078.92 | O194: -71785867.92 | P194: -72772914.92 | Q194: -73644529.92 | R194: -74596712.92 | S194: -74899384.92 | T194: -75663550.92 | U194: -71081958.75
B195: 170
B196: 171
B197: 172 | C197: System Net Utility Plant
B198: 173 | E198: Production | H198: 5916438.96 | I198: 5885765.08 | J198: 5857870.01 | K198: 5829284.95 | L198: 5753167.39 | M198: 5676308.21 | N198: 5597033.34 | O198: 5528346.96 | P198: 5450789.03 | Q198: 5374285.41 | R198: 5306219.1 | S198: 5233627.86 | T198: 5142015.1 | U198: 5585160.364
B199: 174 | E199: Distribution - Wyoming | H199: 42579042.41 | I199: 43776466.25 | J199: 43838451.86 | K199: 44021471.74 | L199: 43795072.29 | M199: 43487725.77 | N199: 43630905.68 | O199: 44745779.45 | P199: 44562048.78 | Q199: 45193538.11 | R199: 45102330 | S199: 45455281.13 | T199: 45733683.47 | U199: 46560660.31
B200: 175 | E200: Distribution - Utah | H200: 1376300809 | I200: 1387754712 | J200: 1443037899 | K200: 1453662860 | L200: 1479732804 | M200: 1479581897 | N200: 1490976024 | O200: 1498893579 | P200: 1502639863 | Q200: 1508328593 | R200: 1514828983 | S200: 1515052606 | T200: 1532565555 | U200: 1546250372
B201: 176 | E201: General | H201: 97487355.73 | I201: 98136276.48 | J201: 98168855.1 | K201: 98893086.07 | L201: 108593032.5 | M201: 107652829.3 | N201: 107117775.7 | O201: 108672355.5 | P201: 108789874.5 | Q201: 110128727.1 | R201: 112773459.8 | S201: 111871116.8 | T201: 123333318.1 | U201: 106767310.5
B202: 177 | E202: Total
... 92 more rows

Sheet RevRun Fcst
D3: TEMPERATURE ADJUSTED INPUT DATA FROM REVRUN SYSTEM
D4: 8/31/2016
T7: 12-Month
B8: Rate Class | D8: Description | H8: Nov16 | I8: Dec16 | J8: Jan17 | K8: Feb17 | L8: Mar17 | M8: Apr17 | N8: May17 | O8: Jun17 | P8: Jul17 | Q8: Aug17 | R8: Sep17 | S8: Oct17 | T8: Total
B10: UTILITY OPERATING REVENUE
B11: TARIFF DTH SALES AND REVENUE
A13: 13 | B13: Utah | H13: =MONTH(H8) -> 11 | I13: =MONTH(I8) -> 12 | J13: 1 | K13: 2 | L13: 3 | M13: 4 | N13: 5 | O13: 6 | P13: 7 | Q13: 8 | R13: 9 | S13: 10
A14: 14 | C14: GS | D14: Distribution Non-Gas Rev | H14: 32224309.83 | I14: 46187164.86 | J14: 48065507.92 | K14: 40396016.3 | L14: 33258046.3 | M14: 19466588.5 | N14: 14787960.48 | O14: 11808725.67 | P14: 11109717.17 | Q14: 10921432.19 | R14: 11256266.97 | S14: 17694293.93 | T14: 297176030.1
A15: 15
A16: 16 | D16: Supplier Non-Gas Revenue | H16: 13252746.66 | I16: 20817152.49 | J16: 21829043.53 | K16: 17627923.87 | L16: 13757529.95 | M16: 4239563.27 | N16: 2583682.59 | O16: 1533988.35 | P16: 1292629.43 | Q16: 1222790.28 | R16: 1338495.68 | S16: 3600273.48 | T16: 103095819.6
A17: 17
A18: 18 | D18: Commodity Revenue | H18: 43521008.59 | I18: 68361940.05 | J18: 71684913.02 | K18: 57888756.68 | L18: 45178678.43 | M18: 29652983.21 | N18: 18071176.65 | O18: 10729249.21 | P18: 9041100.82 | Q18: 8552621.41 | R18: 9361905.3 | S18: 25181567.68 | T18: 397225901
A19: 19 | D19: Total Revenue | H19: 88998065.08 | I19: 135366257.4 | J19: 141579464.5 | K19: 115912696.8 | L19: 92194254.68 | M19: 53359134.98 | N19: 35442819.72 | O19: 24071963.23 | P19: 21443447.42 | Q19: 20696843.88 | R19: 21956667.95 | S19: 46476135.09 | T19: 797497750.8
A20: 20 | D20: # of Customers | H20: 977620 | I20: 981751 | J20: 986187 | K20: 987615 | L20: 989935 | M20: 990179 | N20: 990821 | O20: 991086 | P20: 989406 | Q20: 990787 | R20: 991548 | S20: 994467 | T20: 988450.1667
A21: 21 | D21: Total Dth | H21: 11163498 | I21: 17535402 | J21: 18387772 | K21: 14848944 | L21: 11588704 | M21: 7606235 | N21: 4635406 | O21: 2752141 | P21: 2319117 | Q21: 2193818 | R21: 2401406 | S21: 6459280 | T21: 101891723
A22: 22
A23: 23 | C23: GS-C | D23: Distribution Non-Gas Rev | T23: 0
A24: 24
A25: 25 | D25: Supplier Non-Gas Revenue | T25: 0
A26: 26
A27: 27 | D27: Commodity Revenue | T27: 0
A28: 28 | D28: Total Revenue | T28: 0
A29: 29 | D29: # of Customers
A30: 30 | D30: Total Dth | T30: 0
A31: 31
A32: 32 | C32: GSS | D32: Distribution Non-Gas Rev | H32: 0 | I32: 0 | J32: 0 | K32: 0 | L32: 0 | M32: 0 | N32: 0 | O32: 0 | P32: 0 | Q32: 0 | R32: 0 | S32: 0 | T32: 0
A33: 33 | H33: 0 | I33: 0 | J33: 0 | K33: 0 | L33: 0 | M33: 0 | N33: 0 | O33: 0 | P33: 0 | Q33: 0 | R33: 0 | S33: 0
A34: 34 | D34: Supplier Non-Gas Revenue | H34: 0 | I34: 0 | J34: 0 | K34: 0 | L34: 0 | M34: 0 | N34: 0 | O34: 0 | P34: 0 | Q34: 0 | R34: 0 | S34: 0 | T34: 0
A35: 35 | H35: 0 | I35: 0 | J35: 0 | K35: 0 | L35: 0 | M35: 0 | N35: 0 | O35: 0 | P35: 0 | Q35: 0 | R35: 0 | S35: 0
A36: 36 | D36: Commodity Revenue | H36: 0 | I36: 0 | J36: 0 | K36: 0 | L36: 0 | M36: 0 | N36: 0 | O36: 0 | P36: 0 | Q36: 0 | R36: 0 | S36: 0 | T36: 0
A37: 37 | D37: Total Revenue | H37: 0 | I37: 0 | J37: 0 | K37: 0 | L37: 0 | M37: 0 | N37: 0 | O37: 0 | P37: 0 | Q37: 0 | R37: 0 | S37: 0 | T37: 0
A38: 38 | D38: # of Customers | H38: 0 | I38: 0 | J38: 0 | K38: 0 | L38: 0 | M38: 0 | N38: 0 | O38: 0 | P38: 0 | Q38: 0 | R38: 0 | S38: 0 | T38: 0
A39: 39 | D39: Total Dth | H39: 0 | I39: 0 | J39: 0 | K39: 0 | L39: 0 | M39: 0 | N39: 0 | O39: 0 | P39: 0 | Q39: 0 | R39: 0 | S39: 0 | T39: 0
A40: 40
